Workbook

Sheet 
B5: Valuation Model
B6: =Name_Model -> Paladin Energy
B8: Perth, 27-29 September 2017

Sheet PDN >

Sheet Overview - Valuation Summary
A1: Returns
A2: All Other Projects
Y3: =E29 -> 0.1892336254
P4: Valuation Overview | Z4: -0.1 | AA4: -0.05 | AB4: 0 | AC4: 0.05 | AD4: 0.1
D5: Note: If debt worksheet returns REF#, simply toggle the circuit breaker in the debt sheet. | S5: M AUD | U5: $A/Share | X5: Uranium Flex | Z5: 0.1331045843 | AA5: 0.1612509115 | AB5: 0.1892336254 | AC5: 0.2170733923 | AD5: 0.2448517431
P6: NPV of Projected FCFF* | S6: =E21 -> 230.370085 | U6: =S6/$U$16 -> 0.134719348 | X6: CAPEX Flex | Z6: 0.1943054778 | AA6: 0.1917695516 | AB6: 0.1892336254 | AC6: 0.186697562 | AD6: 0.1841533868
P7: (+) Undeveloped Res. | S7: =U23 -> 137.2194145 | U7: =S7/$U$16 -> 0.08024527163 | X7: OPEX Flex | Z7: 0.2268182214 | AA7: 0.2080522734 | AB7: 0.1892336254 | AC7: 0.1703479273 | AD7: 0.1511711615
P8: Enterprise Value | S8: =SUM(S6:S7) -> 367.5894995 | U8: =SUM(U6:U7) -> 0.2149646196 | X8: FX Flex | Z8: 0.2849654079 | AA8: 0.2354460224 | AB8: 0.1892336254 | AC8: 0.1453841728 | AD8: 0.1020633881
P9: Less: Net Debt | S9: -44 | U9: =S9/E28 -> -0.02573099415 | X9: WACC Flex | Z9: 0.2122139292 | AA9: 0.2002494969 | AB9: 0.1892336254 | AC9: 0.1790782183 | AD9: 0.1697043895
D10: Valuation Summary | E10: 2018 | F10: =E10+1 -> 2019 | G10: =F10+1 -> 2020 | H10: 2021 | I10: 2022 | J10: 2023 | K10: // | L10: =YEAR('Inputs - 2'!K11) -> 2046 | P10: Implied Equity Value | S10: =S8-S9 -> 411.5894995 | U10: =SUM(U8:U9) -> 0.1892336254
D11: EBITDA | E11: =SUMIF('Valuation - 2'!$J$10:$EK$10,'Overview - Valuation Summary'!E$10,'Valuation - 2'!$J20:$EK20) -> -1.184907899 | F11: =SUMIF('Valuation - 2'!$J$10:$EK$10,'Overview - Valuation Summary'!F$10,'Valuation - 2'!$J20:$EK20) -> -5.927637831 | G11: =SUMIF('Valuation - 2'!$J$10:$EK$10,'Overview - Valuation Summary'!G$10,'Valuation - 2'!$J20:$EK20) -> -20.96366643 | H11: =SUMIF('Valuation - 2'!$J$10:$EK$10,'Overview - Valuation Summary'!H$10,'Valuation - 2'!$J20:$EK20) -> 36.48343126 | I11: =SUMIF('Valuation - 2'!$J$10:$EK$10,'Overview - Valuation Summary'!I$10,'Valuation - 2'!$J20:$EK20) -> 87.5028845 | J11: =SUMIF('Valuation - 2'!$J$10:$EK$10,'Overview - Valuation Summary'!J$10,'Valuation - 2'!$J20:$EK20) -> 60.65459664 | L11: =SUM('Valuation - 2'!AF20:EK20) -> 1951.03648
D12: Less: Change in NWC | E12: =SUMIF('Valuation - 2'!$J$10:$EK$10,'Overview - Valuation Summary'!E$10,'Valuation - 2'!$J21:$EK21) -> 0 | F12: =SUMIF('Valuation - 2'!$J$10:$EK$10,'Overview - Valuation Summary'!F$10,'Valuation - 2'!$J21:$EK21) -> -1.515332329 | G12: =SUMIF('Valuation - 2'!$J$10:$EK$10,'Overview - Valuation Summary'!G$10,'Valuation - 2'!$J21:$EK21) -> 0 | H12: =SUMIF('Valuation - 2'!$J$10:$EK$10,'Overview - Valuation Summary'!H$10,'Valuation - 2'!$J21:$EK21) -> 4.480420919 | I12: =SUMIF('Valuation - 2'!$J$10:$EK$10,'Overview - Valuation Summary'!I$10,'Valuation - 2'!$J21:$EK21) -> 5.161576219 | J12: =SUMIF('Valuation - 2'!$J$10:$EK$10,'Overview - Valuation Summary'!J$10,'Valuation - 2'!$J21:$EK21) -> 1.275408262 | L12: =SUM('Valuation - 2'!AF21:EK21) -> -10.9174054 | P12: DCF Valuation Component
D13: Less: Capex | E13: =SUMIF('Valuation - 2'!$J$10:$EK$10,'Overview - Valuation Summary'!E$10,'Valuation - 2'!$J22:$EK22) -> -25.66666667 | F13: =SUMIF('Valuation - 2'!$J$10:$EK$10,'Overview - Valuation Summary'!F$10,'Valuation - 2'!$J22:$EK22) -> -21 | G13: =SUMIF('Valuation - 2'!$J$10:$EK$10,'Overview - Valuation Summary'!G$10,'Valuation - 2'!$J22:$EK22) -> -23.33333333 | H13: =SUMIF('Valuation - 2'!$J$10:$EK$10,'Overview - Valuation Summary'!H$10,'Valuation - 2'!$J22:$EK22) -> -70 | I13: =SUMIF('Valuation - 2'!$J$10:$EK$10,'Overview - Valuation Summary'!I$10,'Valuation - 2'!$J22:$EK22) -> 0 | J13: =SUMIF('Valuation - 2'!$J$10:$EK$10,'Overview - Valuation Summary'!J$10,'Valuation - 2'!$J22:$EK22) -> 0 | L13: =SUM('Valuation - 2'!AF22:EK22) -> 0 | S13: Units | U13: Value | X13: WACC
D14: Less: Tax (Ungeared) | E14: =SUMIF('Valuation - 2'!$J$10:$EK$10,'Overview - Valuation Summary'!E$10,'Valuation - 2'!$J23:$EK23) -> 0 | F14: =SUMIF('Valuation - 2'!$J$10:$EK$10,'Overview - Valuation Summary'!F$10,'Valuation - 2'!$J23:$EK23) -> 0 | G14: =SUMIF('Valuation - 2'!$J$10:$EK$10,'Overview - Valuation Summary'!G$10,'Valuation - 2'!$J23:$EK23) -> 0 | H14: =SUMIF('Valuation - 2'!$J$10:$EK$10,'Overview - Valuation Summary'!H$10,'Valuation - 2'!$J23:$EK23) -> 0 | I14: =SUMIF('Valuation - 2'!$J$10:$EK$10,'Overview - Valuation Summary'!I$10,'Valuation - 2'!$J23:$EK23) -> -0.8312161742 | J14: =SUMIF('Valuation - 2'!$J$10:$EK$10,'Overview - Valuation Summary'!J$10,'Valuation - 2'!$J23:$EK23) -> -14.98170255 | L14: =SUM('Valuation - 2'!AF23:EK23) -> -682.58658 | P14: NPV of Projected FCFF | S14: M AUD | U14: =E21 -> 230.370085
D15: Free cashflow to firm | E15: =SUM(E11:E14) -> -26.85157457 | F15: =SUM(F11:F14) -> -28.44297016 | G15: -44.29699977 | H15: -29.03614782 | I15: 91.83324454 | J15: 46.94830235 | L15: 1257.532495 | P15: Component Enterprise Value | S15: M AUD | U15: =SUM(U14) -> 230.370085 | Z15: -0.1 | AA15: -0.05 | AB15: 0 | AC15: 0.05 | AD15: 0.1 | AF15: Min | AG15: Below | AH15: Above | AI15: Max | AJ15: Median
P16: Shares Out. | S16: M | U16: =E28 -> 1710 | Y16: FX Flex | Z16: 0.2849654079 | AA16: 0.2354460224 | AB16: 0.1892336254 | AC16: 0.1453841728 | AD16: 0.1020633881 | AE16: =Y16 -> FX Flex | AF16: =MIN(Z16:AD16) -> 0.1020633881 | AG16: =AJ16-AF16 -> 0.08717023732 | AH16: =AI16-AJ16 -> 0.09573178246 | AI16: =MAX(Z16:AD16) -> 0.2849654079 | AJ16: =AB16 -> 0.1892336254
D17: Discount Factor | E17: =IFERROR(E20/E15,0) -> 0.9488016319 | F17: 0.892970327 | G17: 0.765367766 | H17: 0.7084152926 | I17: 0.6234542403 | J17: 0.5572638625 | P17: Implied Component Value | S17: $ AUD | U17: =U15/U16 -> 0.134719348 | Y17: OPEX Flex | Z17: 0.2268182214 | AA17: 0.2080522734 | AB17: 0.1892336254 | AC17: 0.1703479273 | AD17: 0.1511711615 | AE17: =Y17 -> OPEX Flex | AF17: =MIN(Z17:AD17) -> 0.1511711615 | AG17: =AJ17-AF17 -> 0.03806246395 | AH17: =AI17-AJ17 -> 0.03758459596 | AI17: =MAX(Z17:AD17) -> 0.2268182214 | AJ17: =AB17 -> 0.1892336254
D18: Discount Rate | E18: ='Valuation - 2'!E34 -> 0.1225 | Y18: WACC Flex | Z18: 0.2122139292 | AA18: 0.2002494969 | AB18: 0.1892336254 | AC18: 0.1790782183 | AD18: 0.1697043895 | AE18: WACC Flex | AF18: 0.1697043895 | AG18: 0.0195292359 | AH18: 0.0229803038 | AI18: =MAX(Z18:AD18) -> 0.2122139292 | AJ18: =AB18 -> 0.1892336254
P19: Undeveloped Resources Component | Y19: Uranium Flex | Z19: 0.1331045843 | AA19: 0.1612509115 | AB19: 0.1892336254 | AC19: 0.2170733923 | AD19: 0.2448517431 | AE19: Uranium Flex | AF19: 0.1331045843 | AG19: 0.0561290411 | AH19: 0.05561811765 | AI19: =MAX(Z19:AD19) -> 0.2448517431 | AJ19: =AB19 -> 0.1892336254
D20: Discount FCFF | E20: =SUMIF('Valuation - 2'!$J$10:$EK$10,'Overview - Valuation Summary'!E$10,'Valuation - 2'!$J35:$EK35) -> -25.47681777 | F20: =SUMIF('Valuation - 2'!$J$10:$EK$10,'Overview - Valuation Summary'!F$10,'Valuation - 2'!$J35:$EK35) -> -25.39872836 | G20: =SUMIF('Valuation - 2'!$J$10:$EK$10,'Overview - Valuation Summary'!G$10,'Valuation - 2'!$J35:$EK35) -> -33.90349575 | H20: =SUMIF('Valuation - 2'!$J$10:$EK$10,'Overview - Valuation Summary'!H$10,'Valuation - 2'!$J35:$EK35) -> -20.56965115 | I20: =SUMIF('Valuation - 2'!$J$10:$EK$10,'Overview - Valuation Summary'!I$10,'Valuation - 2'!$J35:$EK35) -> 57.25382571 | J20: =SUMIF('Valuation - 2'!$J$10:$EK$10,'Overview - Valuation Summary'!J$10,'Valuation - 2'!$J35:$EK35) -> 26.1625923 | L20: =SUM('Valuation - 2'!AF35:EK35) -> 252.30236 | P20: Resources | R20: Mlbs U3O8 | S20: Multiple** | U20: Value | AE20: 0 | AF20: 0 | AG20: 0 | AH20: 0 | AI20: =MAX(Z20:AD20) -> 0 | AJ20: =AB20 -> 0
D21: NPV FCFF | E21: ='Valuation - 2'!I35 -> 230.370085 | P21: Total Resource | R21: =SUM(Valuation!H8:H11) -> 236.8771596 | S21: =Valuation!H17 -> 0.8357901674 | U21: =R21*S21 -> 197.9796009
P22: Less: Developed*** | R22: =SUM(Valuation!H12:H13) -> -72.69789565 | S22: =S21 -> 0.8357901674 | U22: =R22*S22 -> -60.76018638 | AE22: =AE20 -> 0 | AF22: =AF20 -> 0 | AG22: 0 | AH22: 0 | AI22: 0
D23: NPV FCFF | E23: =E21 -> 230.370085 | P23: Undeveloped (planned) | U23: =SUM(U21:U22) -> 137.2194145
D24: Add: Undevelopped Resource | E24: =U23 -> 137.2194145 | P24: Component Enterprise Value | S24: M AUD | U24: =SUM(U23:U23) -> 137.2194145 | AE24: =AE18 -> WACC Flex | AF24: =AF18 -> 0.1697043895 | AG24: 0.0195292359 | AH24: 0.0229803038 | AI24: 0.2122139292
D25: Enterprise Value | E25: =SUM(E23:E24) -> 367.5894995 | P25: Shares Out. | S25: M | U25: =U16 -> 1710 | AE25: =AE17 -> OPEX Flex | AF25: =AF17 -> 0.1511711615 | AG25: 0.03806246395 | AH25: 0.03758459596 | AI25: 0.2268182214
D26: Less: Net Debt | E26: =-E42 -> -44 | P26: Implied Component Value | S26: $ AUD | U26: =U24/U25 -> 0.08024527163 | AE26: =AE19 -> Uranium Flex | AF26: =AF19 -> 0.1331045843 | AG26: =AG19 -> 0.0561290411 | AH26: =AH19 -> 0.05561811765 | AI26: =AI19 -> 0.2448517431
D27: Implied Equity Value | E27: =SUM(E25:E26) -> 323.5894995 | P27: *Attributed to Paladin | AE27: =AE16 -> FX Flex | AF27: =AF16 -> 0.1020633881 | AG27: =AG16 -> 0.08717023732 | AH27: =AH16 -> 0.09573178246 | AI27: =AI16 -> 0.2849654079
D28: (÷) Shares Oustanding | E28: =E41 -> 1710 | P28: **EV/Resource (Mlbs U3O8)
D29: Intrinsic Value Per Share | E29: =E27/E28 -> 0.1892336254 | P29: ***Resource projected to be developed
D32: Check | E32: =IF(ABS(E21-SUM(E20:L20))<0.05,"Ok","Error") -> Ok
AA37: 2018 | AB37: =AA37+1 -> 2019 | AC37: 2020 | AD37: 2021 | AE37: 2022 | AF37: 2023 | AG37: 2024 | AH37: 2025 | AI37: 2026 | AJ37: 2027 | AK37: 2028 | AL37: 2029 | AM37: 2030 | AN37: 2031 | AO37: 2032 | AP37: 2033 | AQ37: 2034 | AR37: 2035 | AS37: 2036 | AT37: 2037 | AU37: 2038 | AV37: 2039 | AW37: 2040 | AX37: 2041 | AY37: 2042 | AZ37: 2043 | BA37: 2044 | BB37: 2045 | BC37: 2046 | BD37: 2047 | BE37: 2048 | BF37: 2049 | BG37: 2050 | BH37: 2051
Z38: EBITDA | AA38: =SUMIF('Valuation - 2'!$J$10:$EK$10,'Overview - Valuation Summary'!AA$37,'Valuation - 2'!$J20:$EK20) -> -1.184907899 | AB38: =SUMIF('Valuation - 2'!$J$10:$EK$10,'Overview - Valuation Summary'!AB$37,'Valuation - 2'!$J20:$EK20) -> -5.927637831 | AC38: =SUMIF('Valuation - 2'!$J$10:$EK$10,'Overview - Valuation Summary'!AC$37,'Valuation - 2'!$J20:$EK20) -> -20.96366643 | AD38: =SUMIF('Valuation - 2'!$J$10:$EK$10,'Overview - Valuation Summary'!AD$37,'Valuation - 2'!$J20:$EK20) -> 36.48343126 | AE38: =SUMIF('Valuation - 2'!$J$10:$EK$10,'Overview - Valuation Summary'!AE$37,'Valuation - 2'!$J20:$EK20) -> 87.5028845 | AF38: =SUMIF('Valuation - 2'!$J$10:$EK$10,'Overview - Valuation Summary'!AF$37,'Valuation - 2'!$J20:$EK20) -> 60.65459664 | AG38: =SUMIF('Valuation - 2'!$J$10:$EK$10,'Overview - Valuation Summary'!AG$37,'Valuation - 2'!$J20:$EK20) -> 82.71594603 | AH38: =SUMIF('Valuation - 2'!$J$10:$EK$10,'Overview - Valuation Summary'!AH$37,'Valuation - 2'!$J20:$EK20) -> 88.55501472 | AI38: =SUMIF('Valuation - 2'!$J$10:$EK$10,'Overview - Valuation Summary'!AI$37,'Valuation - 2'!$J20:$EK20) -> 63.60615292 | AJ38: =SUMIF('Valuation - 2'!$J$10:$EK$10,'Overview - Valuation Summary'!AJ$37,'Valuation - 2'!$J20:$EK20) -> 50.26548128 | AK38: =SUMIF('Valuation - 2'!$J$10:$EK$10,'Overview - Valuation Summary'!AK$37,'Valuation - 2'!$J20:$EK20) -> 102.7345043 | AL38: =SUMIF('Valuation - 2'!$J$10:$EK$10,'Overview - Valuation Summary'!AL$37,'Valuation - 2'!$J20:$EK20) -> 89.95744664 | AM38: =SUMIF('Valuation - 2'!$J$10:$EK$10,'Overview - Valuation Summary'!AM$37,'Valuation - 2'!$J20:$EK20) -> 80.62606978 | AN38: =SUMIF('Valuation - 2'!$J$10:$EK$10,'Overview - Valuation Summary'!AN$37,'Valuation - 2'!$J20:$EK20) -> 113.4151606 | AO38: =SUMIF('Valuation - 2'!$J$10:$EK$10,'Overview - Valuation Summary'!AO$37,'Valuation - 2'!$J20:$EK20) -> 121.4769499 | AP38: =SUMIF('Valuation - 2'!$J$10:$EK$10,'Overview - Valuation Summary'!AP$37,'Valuation - 2'!$J20:$EK20) -> 119.2977637 | AQ38: =SUMIF('Valuation - 2'!$J$10:$EK$10,'Overview - Valuation Summary'!AQ$37,'Valuation - 2'!$J20:$EK20) -> 117.0640979 | AR38: =SUMIF('Valuation - 2'!$J$10:$EK$10,'Overview - Valuation Summary'!AR$37,'Valuation - 2'!$J20:$EK20) -> 114.7745904 | AS38: =SUMIF('Valuation - 2'!$J$10:$EK$10,'Overview - Valuation Summary'!AS$37,'Valuation - 2'!$J20:$EK20) -> 112.4278452 | AT38: =SUMIF('Valuation - 2'!$J$10:$EK$10,'Overview - Valuation Summary'!AT$37,'Valuation - 2'!$J20:$EK20) -> 110.0224314 | AU38: =SUMIF('Valuation - 2'!$J$10:$EK$10,'Overview - Valuation Summary'!AU$37,'Valuation - 2'!$J20:$EK20) -> 107.5568823 | AV38: =SUMIF('Valuation - 2'!$J$10:$EK$10,'Overview - Valuation Summary'!AV$37,'Valuation - 2'!$J20:$EK20) -> 105.0296944 | AW38: =SUMIF('Valuation - 2'!$J$10:$EK$10,'Overview - Valuation Summary'!AW$37,'Valuation - 2'!$J20:$EK20) -> 102.4393268 | AX38: =SUMIF('Valuation - 2'!$J$10:$EK$10,'Overview - Valuation Summary'!AX$37,'Valuation - 2'!$J20:$EK20) -> 99.78420003 | AY38: =SUMIF('Valuation - 2'!$J$10:$EK$10,'Overview - Valuation Summary'!AY$37,'Valuation - 2'!$J20:$EK20) -> 97.06269509 | AZ38: =SUMIF('Valuation - 2'!$J$10:$EK$10,'Overview - Valuation Summary'!AZ$37,'Valuation - 2'!$J20:$EK20) -> 94.27315253 | BA38: =SUMIF('Valuation - 2'!$J$10:$EK$10,'Overview - Valuation Summary'!BA$37,'Valuation - 2'!$J20:$EK20) -> 14.76449442 | BB38: =SUMIF('Valuation - 2'!$J$10:$EK$10,'Overview - Valuation Summary'!BB$37,'Valuation - 2'!$J20:$EK20) -> -20.84125734 | BC38: =SUMIF('Valuation - 2'!$J$10:$EK$10,'Overview - Valuation Summary'!BC$37,'Valuation - 2'!$J20:$EK20) -> -15.97216304 | BD38: =SUMIF('Valuation - 2'!$J$10:$EK$10,'Overview - Valuation Summary'!BD$37,'Valuation - 2'!$J20:$EK20) -> 0 | BE38: =SUMIF('Valuation - 2'!$J$10:$EK$10,'Overview - Valuation Summary'!BE$37,'Valuation - 2'!$J20:$EK20) -> 0 | BF38: =SUMIF('Valuation - 2'!$J$10:$EK$10,'Overview - Valuation Summary'!BF$37,'Valuation - 2'!$J20:$EK20) -> 0 | BG38: =SUMIF('Valuation - 2'!$J$10:$EK$10,'Overview - Valuation Summary'!BG$37,'Valuation - 2'!$J20:$EK20) -> 0 | BH38: =SUMIF('Valuation - 2'!$J$10:$EK$10,'Overview - Valuation Summary'!BH$37,'Valuation - 2'!$J20:$EK20) -> 0
D39: Other Inputs | Z39: Less: Change in NWC | AA39: =SUMIF('Valuation - 2'!$J$10:$EK$10,'Overview - Valuation Summary'!AA$37,'Valuation - 2'!$J21:$EK21) -> 0 | AB39: =SUMIF('Valuation - 2'!$J$10:$EK$10,'Overview - Valuation Summary'!AB$37,'Valuation - 2'!$J21:$EK21) -> -1.515332329 | AC39: =SUMIF('Valuation - 2'!$J$10:$EK$10,'Overview - Valuation Summary'!AC$37,'Valuation - 2'!$J21:$EK21) -> 0 | AD39: =SUMIF('Valuation - 2'!$J$10:$EK$10,'Overview - Valuation Summary'!AD$37,'Valuation - 2'!$J21:$EK21) -> 4.480420919 | AE39: =SUMIF('Valuation - 2'!$J$10:$EK$10,'Overview - Valuation Summary'!AE$37,'Valuation - 2'!$J21:$EK21) -> 5.161576219 | AF39: =SUMIF('Valuation - 2'!$J$10:$EK$10,'Overview - Valuation Summary'!AF$37,'Valuation - 2'!$J21:$EK21) -> 1.275408262 | AG39: =SUMIF('Valuation - 2'!$J$10:$EK$10,'Overview - Valuation Summary'!AG$37,'Valuation - 2'!$J21:$EK21) -> 0.6423427514 | AH39: =SUMIF('Valuation - 2'!$J$10:$EK$10,'Overview - Valuation Summary'!AH$37,'Valuation - 2'!$J21:$EK21) -> 0.1690520477 | AI39: =SUMIF('Valuation - 2'!$J$10:$EK$10,'Overview - Valuation Summary'!AI$37,'Valuation - 2'!$J21:$EK21) -> 0.1576100545 | AJ39: =SUMIF('Valuation - 2'!$J$10:$EK$10,'Overview - Valuation Summary'!AJ$37,'Valuation - 2'!$J21:$EK21) -> -4.818269635 | AK39: =SUMIF('Valuation - 2'!$J$10:$EK$10,'Overview - Valuation Summary'!AK$37,'Valuation - 2'!$J21:$EK21) -> 0.02834625634 | AL39: =SUMIF('Valuation - 2'!$J$10:$EK$10,'Overview - Valuation Summary'!AL$37,'Valuation - 2'!$J21:$EK21) -> 0.03925860715 | AM39: =SUMIF('Valuation - 2'!$J$10:$EK$10,'Overview - Valuation Summary'!AM$37,'Valuation - 2'!$J21:$EK21) -> 0.04341491649 | AN39: =SUMIF('Valuation - 2'!$J$10:$EK$10,'Overview - Valuation Summary'!AN$37,'Valuation - 2'!$J21:$EK21) -> 0.009277071067 | AO39: =SUMIF('Valuation - 2'!$J$10:$EK$10,'Overview - Valuation Summary'!AO$37,'Valuation - 2'!$J21:$EK21) -> 0 | AP39: =SUMIF('Valuation - 2'!$J$10:$EK$10,'Overview - Valuation Summary'!AP$37,'Valuation - 2'!$J21:$EK21) -> 0 | AQ39: =SUMIF('Valuation - 2'!$J$10:$EK$10,'Overview - Valuation Summary'!AQ$37,'Valuation - 2'!$J21:$EK21) -> 0 | AR39: =SUMIF('Valuation - 2'!$J$10:$EK$10,'Overview - Valuation Summary'!AR$37,'Valuation - 2'!$J21:$EK21) -> 0 | AS39: =SUMIF('Valuation - 2'!$J$10:$EK$10,'Overview - Valuation Summary'!AS$37,'Valuation - 2'!$J21:$EK21) -> 0 | AT39: =SUMIF('Valuation - 2'!$J$10:$EK$10,'Overview - Valuation Summary'!AT$37,'Valuation - 2'!$J21:$EK21) -> 0 | AU39: =SUMIF('Valuation - 2'!$J$10:$EK$10,'Overview - Valuation Summary'!AU$37,'Valuation - 2'!$J21:$EK21) -> 0 | AV39: =SUMIF('Valuation - 2'!$J$10:$EK$10,'Overview - Valuation Summary'!AV$37,'Valuation - 2'!$J21:$EK21) -> 0 | AW39: =SUMIF('Valuation - 2'!$J$10:$EK$10,'Overview - Valuation Summary'!AW$37,'Valuation - 2'!$J21:$EK21) -> 0 | AX39: =SUMIF('Valuation - 2'!$J$10:$EK$10,'Overview - Valuation Summary'!AX$37,'Valuation - 2'!$J21:$EK21) -> 0 | AY39: =SUMIF('Valuation - 2'!$J$10:$EK$10,'Overview - Valuation Summary'!AY$37,'Valuation - 2'!$J21:$EK21) -> 0 | AZ39: =SUMIF('Valuation - 2'!$J$10:$EK$10,'Overview - Valuation Summary'!AZ$37,'Valuation - 2'!$J21:$EK21) -> 0 | BA39: =SUMIF('Valuation - 2'!$J$10:$EK$10,'Overview - Valuation Summary'!BA$37,'Valuation - 2'!$J21:$EK21) -> -7.188437469 | BB39: =SUMIF('Valuation - 2'!$J$10:$EK$10,'Overview - Valuation Summary'!BB$37,'Valuation - 2'!$J21:$EK21) -> 0 | BC39: =SUMIF('Valuation - 2'!$J$10:$EK$10,'Overview - Valuation Summary'!BC$37,'Valuation - 2'!$J21:$EK21) -> 0 | BD39: =SUMIF('Valuation - 2'!$J$10:$EK$10,'Overview - Valuation Summary'!BD$37,'Valuation - 2'!$J21:$EK21) -> 0 | BE39: =SUMIF('Valuation - 2'!$J$10:$EK$10,'Overview - Valuation Summary'!BE$37,'Valuation - 2'!$J21:$EK21) -> 0 | BF39: =SUMIF('Valuation - 2'!$J$10:$EK$10,'Overview - Valuation Summary'!BF$37,'Valuation - 2'!$J21:$EK21) -> 0 | BG39: =SUMIF('Valuation - 2'!$J$10:$EK$10,'Overview - Valuation Summary'!BG$37,'Valuation - 2'!$J21:$EK21) -> 0 | BH39: =SUMIF('Valuation - 2'!$J$10:$EK$10,'Overview - Valuation Summary'!BH$37,'Valuation - 2'!$J21:$EK21) -> 0
Z40: Less: Capex | AA40: =SUMIF('Valuation - 2'!$J$10:$EK$10,'Overview - Valuation Summary'!AA$37,'Valuation - 2'!$J22:$EK22) -> -25.66666667 | AB40: =SUMIF('Valuation - 2'!$J$10:$EK$10,'Overview - Valuation Summary'!AB$37,'Valuation - 2'!$J22:$EK22) -> -21 | AC40: =SUMIF('Valuation - 2'!$J$10:$EK$10,'Overview - Valuation Summary'!AC$37,'Valuation - 2'!$J22:$EK22) -> -23.33333333 | AD40: =SUMIF('Valuation - 2'!$J$10:$EK$10,'Overview - Valuation Summary'!AD$37,'Valuation - 2'!$J22:$EK22) -> -70 | AE40: =SUMIF('Valuation - 2'!$J$10:$EK$10,'Overview - Valuation Summary'!AE$37,'Valuation - 2'!$J22:$EK22) -> 0 | AF40: =SUMIF('Valuation - 2'!$J$10:$EK$10,'Overview - Valuation Summary'!AF$37,'Valuation - 2'!$J22:$EK22) -> 0 | AG40: =SUMIF('Valuation - 2'!$J$10:$EK$10,'Overview - Valuation Summary'!AG$37,'Valuation - 2'!$J22:$EK22) -> 0 | AH40: =SUMIF('Valuation - 2'!$J$10:$EK$10,'Overview - Valuation Summary'!AH$37,'Valuation - 2'!$J22:$EK22) -> 0 | AI40: =SUMIF('Valuation - 2'!$J$10:$EK$10,'Overview - Valuation Summary'!AI$37,'Valuation - 2'!$J22:$EK22) -> 0 | AJ40: =SUMIF('Valuation - 2'!$J$10:$EK$10,'Overview - Valuation Summary'!AJ$37,'Valuation - 2'!$J22:$EK22) -> 0 | AK40: =SUMIF('Valuation - 2'!$J$10:$EK$10,'Overview - Valuation Summary'!AK$37,'Valuation - 2'!$J22:$EK22) -> 0 | AL40: =SUMIF('Valuation - 2'!$J$10:$EK$10,'Overview - Valuation Summary'!AL$37,'Valuation - 2'!$J22:$EK22) -> 0 | AM40: =SUMIF('Valuation - 2'!$J$10:$EK$10,'Overview - Valuation Summary'!AM$37,'Valuation - 2'!$J22:$EK22) -> 0 | AN40: =SUMIF('Valuation - 2'!$J$10:$EK$10,'Overview - Valuation Summary'!AN$37,'Valuation - 2'!$J22:$EK22) -> 0 | AO40: =SUMIF('Valuation - 2'!$J$10:$EK$10,'Overview - Valuation Summary'!AO$37,'Valuation - 2'!$J22:$EK22) -> 0 | AP40: =SUMIF('Valuation - 2'!$J$10:$EK$10,'Overview - Valuation Summary'!AP$37,'Valuation - 2'!$J22:$EK22) -> 0 | AQ40: =SUMIF('Valuation - 2'!$J$10:$EK$10,'Overview - Valuation Summary'!AQ$37,'Valuation - 2'!$J22:$EK22) -> 0 | AR40: =SUMIF('Valuation - 2'!$J$10:$EK$10,'Overview - Valuation Summary'!AR$37,'Valuation - 2'!$J22:$EK22) -> 0 | AS40: =SUMIF('Valuation - 2'!$J$10:$EK$10,'Overview - Valuation Summary'!AS$37,'Valuation - 2'!$J22:$EK22) -> 0 | AT40: =SUMIF('Valuation - 2'!$J$10:$EK$10,'Overview - Valuation Summary'!AT$37,'Valuation - 2'!$J22:$EK22) -> 0 | AU40: =SUMIF('Valuation - 2'!$J$10:$EK$10,'Overview - Valuation Summary'!AU$37,'Valuation - 2'!$J22:$EK22) -> 0 | AV40: =SUMIF('Valuation - 2'!$J$10:$EK$10,'Overview - Valuation Summary'!AV$37,'Valuation - 2'!$J22:$EK22) -> 0 | AW40: =SUMIF('Valuation - 2'!$J$10:$EK$10,'Overview - Valuation Summary'!AW$37,'Valuation - 2'!$J22:$EK22) -> 0 | AX40: =SUMIF('Valuation - 2'!$J$10:$EK$10,'Overview - Valuation Summary'!AX$37,'Valuation - 2'!$J22:$EK22) -> 0 | AY40: =SUMIF('Valuation - 2'!$J$10:$EK$10,'Overview - Valuation Summary'!AY$37,'Valuation - 2'!$J22:$EK22) -> 0 | AZ40: =SUMIF('Valuation - 2'!$J$10:$EK$10,'Overview - Valuation Summary'!AZ$37,'Valuation - 2'!$J22:$EK22) -> 0 | BA40: =SUMIF('Valuation - 2'!$J$10:$EK$10,'Overview - Valuation Summary'!BA$37,'Valuation - 2'!$J22:$EK22) -> 0 | BB40: =SUMIF('Valuation - 2'!$J$10:$EK$10,'Overview - Valuation Summary'!BB$37,'Valuation - 2'!$J22:$EK22) -> 0 | BC40: =SUMIF('Valuation - 2'!$J$10:$EK$10,'Overview - Valuation Summary'!BC$37,'Valuation - 2'!$J22:$EK22) -> 0 | BD40: =SUMIF('Valuation - 2'!$J$10:$EK$10,'Overview - Valuation Summary'!BD$37,'Valuation - 2'!$J22:$EK22) -> 0 | BE40: =SUMIF('Valuation - 2'!$J$10:$EK$10,'Overview - Valuation Summary'!BE$37,'Valuation - 2'!$J22:$EK22) -> 0 | BF40: =SUMIF('Valuation - 2'!$J$10:$EK$10,'Overview - Valuation Summary'!BF$37,'Valuation - 2'!$J22:$EK22) -> 0 | BG40: =SUMIF('Valuation - 2'!$J$10:$EK$10,'Overview - Valuation Summary'!BG$37,'Valuation - 2'!$J22:$EK22) -> 0 | BH40: =SUMIF('Valuation - 2'!$J$10:$EK$10,'Overview - Valuation Summary'!BH$37,'Valuation - 2'!$J22:$EK22) -> 0
D41: Shares Outstanding | E41: 1710 | Z41: Less: Tax (Ungeared) | AA41: =SUMIF('Valuation - 2'!$J$10:$EK$10,'Overview - Valuation Summary'!AA$37,'Valuation - 2'!$J23:$EK23) -> 0 | AB41: =SUMIF('Valuation - 2'!$J$10:$EK$10,'Overview - Valuation Summary'!AB$37,'Valuation - 2'!$J23:$EK23) -> 0 | AC41: =SUMIF('Valuation - 2'!$J$10:$EK$10,'Overview - Valuation Summary'!AC$37,'Valuation - 2'!$J23:$EK23) -> 0 | AD41: =SUMIF('Valuation - 2'!$J$10:$EK$10,'Overview - Valuation Summary'!AD$37,'Valuation - 2'!$J23:$EK23) -> 0 | AE41: =SUMIF('Valuation - 2'!$J$10:$EK$10,'Overview - Valuation Summary'!AE$37,'Valuation - 2'!$J23:$EK23) -> -0.8312161742 | AF41: =SUMIF('Valuation - 2'!$J$10:$EK$10,'Overview - Valuation Summary'!AF$37,'Valuation - 2'!$J23:$EK23) -> -14.98170255 | AG41: =SUMIF('Valuation - 2'!$J$10:$EK$10,'Overview - Valuation Summary'!AG$37,'Valuation - 2'!$J23:$EK23) -> -23.25470858 | AH41: =SUMIF('Valuation - 2'!$J$10:$EK$10,'Overview - Valuation Summary'!AH$37,'Valuation - 2'!$J23:$EK23) -> -25.44435933 | AI41: =SUMIF('Valuation - 2'!$J$10:$EK$10,'Overview - Valuation Summary'!AI$37,'Valuation - 2'!$J23:$EK23) -> -16.08853616 | AJ41: =SUMIF('Valuation - 2'!$J$10:$EK$10,'Overview - Valuation Summary'!AJ$37,'Valuation - 2'!$J23:$EK23) -> -11.08578429 | AK41: =SUMIF('Valuation - 2'!$J$10:$EK$10,'Overview - Valuation Summary'!AK$37,'Valuation - 2'!$J23:$EK23) -> -30.76166793 | AL41: =SUMIF('Valuation - 2'!$J$10:$EK$10,'Overview - Valuation Summary'!AL$37,'Valuation - 2'!$J23:$EK23) -> -25.9702713 | AM41: =SUMIF('Valuation - 2'!$J$10:$EK$10,'Overview - Valuation Summary'!AM$37,'Valuation - 2'!$J23:$EK23) -> -22.47100498 | AN41: =SUMIF('Valuation - 2'!$J$10:$EK$10,'Overview - Valuation Summary'!AN$37,'Valuation - 2'!$J23:$EK23) -> -34.76691404 | AO41: =SUMIF('Valuation - 2'!$J$10:$EK$10,'Overview - Valuation Summary'!AO$37,'Valuation - 2'!$J23:$EK23) -> -41.67197063 | AP41: =SUMIF('Valuation - 2'!$J$10:$EK$10,'Overview - Valuation Summary'!AP$37,'Valuation - 2'!$J23:$EK23) -> -44.7366614 | AQ41: =SUMIF('Valuation - 2'!$J$10:$EK$10,'Overview - Valuation Summary'!AQ$37,'Valuation - 2'!$J23:$EK23) -> -43.89903671 | AR41: =SUMIF('Valuation - 2'!$J$10:$EK$10,'Overview - Valuation Summary'!AR$37,'Valuation - 2'!$J23:$EK23) -> -43.0404714 | AS41: =SUMIF('Valuation - 2'!$J$10:$EK$10,'Overview - Valuation Summary'!AS$37,'Valuation - 2'!$J23:$EK23) -> -42.16044196 | AT41: =SUMIF('Valuation - 2'!$J$10:$EK$10,'Overview - Valuation Summary'!AT$37,'Valuation - 2'!$J23:$EK23) -> -41.25841178 | AU41: =SUMIF('Valuation - 2'!$J$10:$EK$10,'Overview - Valuation Summary'!AU$37,'Valuation - 2'!$J23:$EK23) -> -40.33383085 | AV41: =SUMIF('Valuation - 2'!$J$10:$EK$10,'Overview - Valuation Summary'!AV$37,'Valuation - 2'!$J23:$EK23) -> -39.38613539 | AW41: =SUMIF('Valuation - 2'!$J$10:$EK$10,'Overview - Valuation Summary'!AW$37,'Valuation - 2'!$J23:$EK23) -> -38.41474755 | AX41: =SUMIF('Valuation - 2'!$J$10:$EK$10,'Overview - Valuation Summary'!AX$37,'Valuation - 2'!$J23:$EK23) -> -37.41907501 | AY41: =SUMIF('Valuation - 2'!$J$10:$EK$10,'Overview - Valuation Summary'!AY$37,'Valuation - 2'!$J23:$EK23) -> -36.39851066 | AZ41: =SUMIF('Valuation - 2'!$J$10:$EK$10,'Overview - Valuation Summary'!AZ$37,'Valuation - 2'!$J23:$EK23) -> -35.3524322 | BA41: =SUMIF('Valuation - 2'!$J$10:$EK$10,'Overview - Valuation Summary'!BA$37,'Valuation - 2'!$J23:$EK23) -> -8.671607849 | BB41: =SUMIF('Valuation - 2'!$J$10:$EK$10,'Overview - Valuation Summary'!BB$37,'Valuation - 2'!$J23:$EK23) -> 0 | BC41: =SUMIF('Valuation - 2'!$J$10:$EK$10,'Overview - Valuation Summary'!BC$37,'Valuation - 2'!$J23:$EK23) -> 0 | BD41: =SUMIF('Valuation - 2'!$J$10:$EK$10,'Overview - Valuation Summary'!BD$37,'Valuation - 2'!$J23:$EK23) -> 0 | BE41: =SUMIF('Valuation - 2'!$J$10:$EK$10,'Overview - Valuation Summary'!BE$37,'Valuation - 2'!$J23:$EK23) -> 0 | BF41: =SUMIF('Valuation - 2'!$J$10:$EK$10,'Overview - Valuation Summary'!BF$37,'Valuation - 2'!$J23:$EK23) -> 0 | BG41: =SUMIF('Valuation - 2'!$J$10:$EK$10,'Overview - Valuation Summary'!BG$37,'Valuation - 2'!$J23:$EK23) -> 0 | BH41: =SUMIF('Valuation - 2'!$J$10:$EK$10,'Overview - Valuation Summary'!BH$37,'Valuation - 2'!$J23:$EK23) -> 0
D42: Net Debt | E42: 44 | Z42: Free cashflow to firm | AA42: =SUMIF('Valuation - 2'!$J$10:$EK$10,'Overview - Valuation Summary'!AA$37,'Valuation - 2'!$J24:$EK24) -> -26.85157457 | AB42: =SUMIF('Valuation - 2'!$J$10:$EK$10,'Overview - Valuation Summary'!AB$37,'Valuation - 2'!$J24:$EK24) -> -28.44297016 | AC42: =SUMIF('Valuation - 2'!$J$10:$EK$10,'Overview - Valuation Summary'!AC$37,'Valuation - 2'!$J24:$EK24) -> -44.29699977 | AD42: =SUMIF('Valuation - 2'!$J$10:$EK$10,'Overview - Valuation Summary'!AD$37,'Valuation - 2'!$J24:$EK24) -> -29.03614782 | AE42: =SUMIF('Valuation - 2'!$J$10:$EK$10,'Overview - Valuation Summary'!AE$37,'Valuation - 2'!$J24:$EK24) -> 91.83324454 | AF42: =SUMIF('Valuation - 2'!$J$10:$EK$10,'Overview - Valuation Summary'!AF$37,'Valuation - 2'!$J24:$EK24) -> 46.94830235 | AG42: =SUMIF('Valuation - 2'!$J$10:$EK$10,'Overview - Valuation Summary'!AG$37,'Valuation - 2'!$J24:$EK24) -> 60.10358021 | AH42: =SUMIF('Valuation - 2'!$J$10:$EK$10,'Overview - Valuation Summary'!AH$37,'Valuation - 2'!$J24:$EK24) -> 63.27970743 | AI42: =SUMIF('Valuation - 2'!$J$10:$EK$10,'Overview - Valuation Summary'!AI$37,'Valuation - 2'!$J24:$EK24) -> 47.67522681 | AJ42: =SUMIF('Valuation - 2'!$J$10:$EK$10,'Overview - Valuation Summary'!AJ$37,'Valuation - 2'!$J24:$EK24) -> 34.36142735 | AK42: =SUMIF('Valuation - 2'!$J$10:$EK$10,'Overview - Valuation Summary'!AK$37,'Valuation - 2'!$J24:$EK24) -> 72.00118264 | AL42: =SUMIF('Valuation - 2'!$J$10:$EK$10,'Overview - Valuation Summary'!AL$37,'Valuation - 2'!$J24:$EK24) -> 64.02643394 | AM42: =SUMIF('Valuation - 2'!$J$10:$EK$10,'Overview - Valuation Summary'!AM$37,'Valuation - 2'!$J24:$EK24) -> 58.19847972 | AN42: =SUMIF('Valuation - 2'!$J$10:$EK$10,'Overview - Valuation Summary'!AN$37,'Valuation - 2'!$J24:$EK24) -> 78.65752363 | AO42: =SUMIF('Valuation - 2'!$J$10:$EK$10,'Overview - Valuation Summary'!AO$37,'Valuation - 2'!$J24:$EK24) -> 79.8049793 | AP42: =SUMIF('Valuation - 2'!$J$10:$EK$10,'Overview - Valuation Summary'!AP$37,'Valuation - 2'!$J24:$EK24) -> 74.56110234 | AQ42: =SUMIF('Valuation - 2'!$J$10:$EK$10,'Overview - Valuation Summary'!AQ$37,'Valuation - 2'!$J24:$EK24) -> 73.16506118 | AR42: =SUMIF('Valuation - 2'!$J$10:$EK$10,'Overview - Valuation Summary'!AR$37,'Valuation - 2'!$J24:$EK24) -> 71.734119 | AS42: =SUMIF('Valuation - 2'!$J$10:$EK$10,'Overview - Valuation Summary'!AS$37,'Valuation - 2'!$J24:$EK24) -> 70.26740326 | AT42: =SUMIF('Valuation - 2'!$J$10:$EK$10,'Overview - Valuation Summary'!AT$37,'Valuation - 2'!$J24:$EK24) -> 68.76401963 | AU42: =SUMIF('Valuation - 2'!$J$10:$EK$10,'Overview - Valuation Summary'!AU$37,'Valuation - 2'!$J24:$EK24) -> 67.22305141 | AV42: =SUMIF('Valuation - 2'!$J$10:$EK$10,'Overview - Valuation Summary'!AV$37,'Valuation - 2'!$J24:$EK24) -> 65.64355899 | AW42: =SUMIF('Valuation - 2'!$J$10:$EK$10,'Overview - Valuation Summary'!AW$37,'Valuation - 2'!$J24:$EK24) -> 64.02457925 | AX42: =SUMIF('Valuation - 2'!$J$10:$EK$10,'Overview - Valuation Summary'!AX$37,'Valuation - 2'!$J24:$EK24) -> 62.36512502 | AY42: =SUMIF('Valuation - 2'!$J$10:$EK$10,'Overview - Valuation Summary'!AY$37,'Valuation - 2'!$J24:$EK24) -> 60.66418443 | AZ42: =SUMIF('Valuation - 2'!$J$10:$EK$10,'Overview - Valuation Summary'!AZ$37,'Valuation - 2'!$J24:$EK24) -> 58.92072033 | BA42: =SUMIF('Valuation - 2'!$J$10:$EK$10,'Overview - Valuation Summary'!BA$37,'Valuation - 2'!$J24:$EK24) -> -1.095550902 | BB42: =SUMIF('Valuation - 2'!$J$10:$EK$10,'Overview - Valuation Summary'!BB$37,'Valuation - 2'!$J24:$EK24) -> -20.84125734 | BC42: =SUMIF('Valuation - 2'!$J$10:$EK$10,'Overview - Valuation Summary'!BC$37,'Valuation - 2'!$J24:$EK24) -> -15.97216304 | BD42: =SUMIF('Valuation - 2'!$J$10:$EK$10,'Overview - Valuation Summary'!BD$37,'Valuation - 2'!$J24:$EK24) -> 0 | BE42: =SUMIF('Valuation - 2'!$J$10:$EK$10,'Overview - Valuation Summary'!BE$37,'Valuation - 2'!$J24:$EK24) -> 0 | BF42: =SUMIF('Valuation - 2'!$J$10:$EK$10,'Overview - Valuation Summary'!BF$37,'Valuation - 2'!$J24:$EK24) -> 0 | BG42: =SUMIF('Valuation - 2'!$J$10:$EK$10,'Overview - Valuation Summary'!BG$37,'Valuation - 2'!$J24:$EK24) -> 0 | BH42: =SUMIF('Valuation - 2'!$J$10:$EK$10,'Overview - Valuation Summary'!BH$37,'Valuation - 2'!$J24:$EK24) -> 0
D45: Cash Flow Statement | E45: 2018 | F45: =E45+1 -> 2019 | G45: =F45+1 -> 2020 | H45: =G45+1 -> 2021 | I45: =H45+1 -> 2022 | J45: =I45+1 -> 2023 | K45: // | L45: =L10 -> 2046 | Z45: LHM | AA45: =AA37 -> 2018 | AB45: =AB37 -> 2019 | AC45: 2020 | AD45: 2021 | AE45: 2022 | AF45: 2023 | AG45: 2024 | AH45: 2025 | AI45: 2026 | AJ45: 2027 | AK45: 2028 | AL45: 2029 | AM45: 2030 | AN45: 2031 | AO45: 2032 | AP45: 2033 | AQ45: 2034 | AR45: 2035 | AS45: 2036 | AT45: 2037 | AU45: 2038 | AV45: 2039 | AW45: 2040 | AX45: 2041 | AY45: 2042 | AZ45: 2043 | BA45: 2044 | BB45: 2045 | BC45: 2046 | BD45: 2047 | BE45: 2048 | BF45: 2049 | BG45: 2050 | BH45: 2051
D46: NPAT | E46: =SUMIF(AFS!$J$7:$AR$7,'Overview - Valuation Summary'!E$45,AFS!$J33:$AR33) -> 0 | F46: =SUMIF(AFS!$J$7:$AR$7,'Overview - Valuation Summary'!F$45,AFS!$J33:$AR33) -> -17.43655583 | G46: =SUMIF(AFS!$J$7:$AR$7,'Overview - Valuation Summary'!G$45,AFS!$J33:$AR33) -> -20.75597394 | H46: =SUMIF(AFS!$J$7:$AR$7,'Overview - Valuation Summary'!H$45,AFS!$J33:$AR33) -> -7.11069916 | I46: =SUMIF(AFS!$J$7:$AR$7,'Overview - Valuation Summary'!I$45,AFS!$J33:$AR33) -> 39.99206774 | J46: =SUMIF(AFS!$J$7:$AR$7,'Overview - Valuation Summary'!J$45,AFS!$J33:$AR33) -> 36.60684524 | L46: =SUM(AFS!P33:AR33) -> 2124.501208 | Z46: Mining | AA46: =-SUMIF(Ops!$J$23:$EK$23,'Overview - Valuation Summary'!AA$37,Ops!$J$50:$EK$50) -> 0 | AB46: =-SUMIF(Ops!$J$23:$EK$23,'Overview - Valuation Summary'!AB$37,Ops!$J$50:$EK$50) -> 0 | AC46: =-SUMIF(Ops!$J$23:$EK$23,'Overview - Valuation Summary'!AC$37,Ops!$J$50:$EK$50) -> 0 | AD46: =-SUMIF(Ops!$J$23:$EK$23,'Overview - Valuation Summary'!AD$37,Ops!$J$50:$EK$50) -> 1500 | AE46: =-SUMIF(Ops!$J$23:$EK$23,'Overview - Valuation Summary'!AE$37,Ops!$J$50:$EK$50) -> 3875 | AF46: =-SUMIF(Ops!$J$23:$EK$23,'Overview - Valuation Summary'!AF$37,Ops!$J$50:$EK$50) -> 8625 | AG46: =-SUMIF(Ops!$J$23:$EK$23,'Overview - Valuation Summary'!AG$37,Ops!$J$50:$EK$50) -> 7562.5 | AH46: =-SUMIF(Ops!$J$23:$EK$23,'Overview - Valuation Summary'!AH$37,Ops!$J$50:$EK$50) -> 6637.5 | AI46: =-SUMIF(Ops!$J$23:$EK$23,'Overview - Valuation Summary'!AI$37,Ops!$J$50:$EK$50) -> 8775 | AJ46: =-SUMIF(Ops!$J$23:$EK$23,'Overview - Valuation Summary'!AJ$37,Ops!$J$50:$EK$50) -> 7812.5 | AK46: =-SUMIF(Ops!$J$23:$EK$23,'Overview - Valuation Summary'!AK$37,Ops!$J$50:$EK$50) -> 2412.5 | AL46: =-SUMIF(Ops!$J$23:$EK$23,'Overview - Valuation Summary'!AL$37,Ops!$J$50:$EK$50) -> 3387.5 | AM46: =-SUMIF(Ops!$J$23:$EK$23,'Overview - Valuation Summary'!AM$37,Ops!$J$50:$EK$50) -> 4062.5 | AN46: =-SUMIF(Ops!$J$23:$EK$23,'Overview - Valuation Summary'!AN$37,Ops!$J$50:$EK$50) -> 914.4230769 | AO46: =-SUMIF(Ops!$J$23:$EK$23,'Overview - Valuation Summary'!AO$37,Ops!$J$50:$EK$50) -> 0 | AP46: =-SUMIF(Ops!$J$23:$EK$23,'Overview - Valuation Summary'!AP$37,Ops!$J$50:$EK$50) -> 0 | AQ46: =-SUMIF(Ops!$J$23:$EK$23,'Overview - Valuation Summary'!AQ$37,Ops!$J$50:$EK$50) -> 0 | AR46: =-SUMIF(Ops!$J$23:$EK$23,'Overview - Valuation Summary'!AR$37,Ops!$J$50:$EK$50) -> 0 | AS46: =-SUMIF(Ops!$J$23:$EK$23,'Overview - Valuation Summary'!AS$37,Ops!$J$50:$EK$50) -> 0 | AT46: =-SUMIF(Ops!$J$23:$EK$23,'Overview - Valuation Summary'!AT$37,Ops!$J$50:$EK$50) -> 0 | AU46: =-SUMIF(Ops!$J$23:$EK$23,'Overview - Valuation Summary'!AU$37,Ops!$J$50:$EK$50) -> 0 | AV46: =-SUMIF(Ops!$J$23:$EK$23,'Overview - Valuation Summary'!AV$37,Ops!$J$50:$EK$50) -> 0 | AW46: =-SUMIF(Ops!$J$23:$EK$23,'Overview - Valuation Summary'!AW$37,Ops!$J$50:$EK$50) -> 0 | AX46: =-SUMIF(Ops!$J$23:$EK$23,'Overview - Valuation Summary'!AX$37,Ops!$J$50:$EK$50) -> 0 | AY46: =-SUMIF(Ops!$J$23:$EK$23,'Overview - Valuation Summary'!AY$37,Ops!$J$50:$EK$50) -> 0 | AZ46: =-SUMIF(Ops!$J$23:$EK$23,'Overview - Valuation Summary'!AZ$37,Ops!$J$50:$EK$50) -> 0 | BA46: =-SUMIF(Ops!$J$23:$EK$23,'Overview - Valuation Summary'!BA$37,Ops!$J$50:$EK$50) -> 0 | BB46: =-SUMIF(Ops!$J$23:$EK$23,'Overview - Valuation Summary'!BB$37,Ops!$J$50:$EK$50) -> 0 | BC46: =-SUMIF(Ops!$J$23:$EK$23,'Overview - Valuation Summary'!BC$37,Ops!$J$50:$EK$50) -> 0 | BD46: =-SUMIF(Ops!$J$23:$EK$23,'Overview - Valuation Summary'!BD$37,Ops!$J$50:$EK$50) -> 0 | BE46: =-SUMIF(Ops!$J$23:$EK$23,'Overview - Valuation Summary'!BE$37,Ops!$J$50:$EK$50) -> 0 | BF46: =-SUMIF(Ops!$J$23:$EK$23,'Overview - Valuation Summary'!BF$37,Ops!$J$50:$EK$50) -> 0 | BG46: =-SUMIF(Ops!$J$23:$EK$23,'Overview - Valuation Summary'!BG$37,Ops!$J$50:$EK$50) -> 0 | BH46: =-SUMIF(Ops!$J$23:$EK$23,'Overview - Valuation Summary'!BH$37,Ops!$J$50:$EK$50) -> 0
D47: Add: D&A | E47: =SUMIF(AFS!$J$7:$AR$7,'Overview - Valuation Summary'!E$45,AFS!$J34:$AR34) -> 0 | F47: =SUMIF(AFS!$J$7:$AR$7,'Overview - Valuation Summary'!F$45,AFS!$J34:$AR34) -> 13.02565524 | G47: =SUMIF(AFS!$J$7:$AR$7,'Overview - Valuation Summary'!G$45,AFS!$J34:$AR34) -> 0 | H47: =SUMIF(AFS!$J$7:$AR$7,'Overview - Valuation Summary'!H$45,AFS!$J34:$AR34) -> 4.658262712 | I47: =SUMIF(AFS!$J$7:$AR$7,'Overview - Valuation Summary'!I$45,AFS!$J34:$AR34) -> 20.18580508 | J47: =SUMIF(AFS!$J$7:$AR$7,'Overview - Valuation Summary'!J$45,AFS!$J34:$AR34) -> 20.70338983 | L47: =SUM(AFS!P34:AR34) -> 186.3305085 | Z47: Milling | AA47: =-SUMIF(Ops!$J$23:$EK$23,'Overview - Valuation Summary'!AA$37,Ops!$J$106:$EK$106) -> 1140 | AB47: =-SUMIF(Ops!$J$23:$EK$23,'Overview - Valuation Summary'!AB$37,Ops!$J$106:$EK$106) -> 1140 | AC47: =-SUMIF(Ops!$J$23:$EK$23,'Overview - Valuation Summary'!AC$37,Ops!$J$106:$EK$106) -> 0 | AD47: =-SUMIF(Ops!$J$23:$EK$23,'Overview - Valuation Summary'!AD$37,Ops!$J$106:$EK$106) -> 2660 | AE47: =-SUMIF(Ops!$J$23:$EK$23,'Overview - Valuation Summary'!AE$37,Ops!$J$106:$EK$106) -> 3800 | AF47: =-SUMIF(Ops!$J$23:$EK$23,'Overview - Valuation Summary'!AF$37,Ops!$J$106:$EK$106) -> 3800 | AG47: =-SUMIF(Ops!$J$23:$EK$23,'Overview - Valuation Summary'!AG$37,Ops!$J$106:$EK$106) -> 3800 | AH47: =-SUMIF(Ops!$J$23:$EK$23,'Overview - Valuation Summary'!AH$37,Ops!$J$106:$EK$106) -> 3800 | AI47: =-SUMIF(Ops!$J$23:$EK$23,'Overview - Valuation Summary'!AI$37,Ops!$J$106:$EK$106) -> 3800 | AJ47: =-SUMIF(Ops!$J$23:$EK$23,'Overview - Valuation Summary'!AJ$37,Ops!$J$106:$EK$106) -> 3800 | AK47: =-SUMIF(Ops!$J$23:$EK$23,'Overview - Valuation Summary'!AK$37,Ops!$J$106:$EK$106) -> 3800 | AL47: =-SUMIF(Ops!$J$23:$EK$23,'Overview - Valuation Summary'!AL$37,Ops!$J$106:$EK$106) -> 3800 | AM47: =-SUMIF(Ops!$J$23:$EK$23,'Overview - Valuation Summary'!AM$37,Ops!$J$106:$EK$106) -> 3800 | AN47: =-SUMIF(Ops!$J$23:$EK$23,'Overview - Valuation Summary'!AN$37,Ops!$J$106:$EK$106) -> 3800 | AO47: =-SUMIF(Ops!$J$23:$EK$23,'Overview - Valuation Summary'!AO$37,Ops!$J$106:$EK$106) -> 3800 | AP47: =-SUMIF(Ops!$J$23:$EK$23,'Overview - Valuation Summary'!AP$37,Ops!$J$106:$EK$106) -> 3800 | AQ47: =-SUMIF(Ops!$J$23:$EK$23,'Overview - Valuation Summary'!AQ$37,Ops!$J$106:$EK$106) -> 3800 | AR47: =-SUMIF(Ops!$J$23:$EK$23,'Overview - Valuation Summary'!AR$37,Ops!$J$106:$EK$106) -> 3800 | AS47: =-SUMIF(Ops!$J$23:$EK$23,'Overview - Valuation Summary'!AS$37,Ops!$J$106:$EK$106) -> 3800 | AT47: =-SUMIF(Ops!$J$23:$EK$23,'Overview - Valuation Summary'!AT$37,Ops!$J$106:$EK$106) -> 3800 | AU47: =-SUMIF(Ops!$J$23:$EK$23,'Overview - Valuation Summary'!AU$37,Ops!$J$106:$EK$106) -> 3800 | AV47: =-SUMIF(Ops!$J$23:$EK$23,'Overview - Valuation Summary'!AV$37,Ops!$J$106:$EK$106) -> 3800 | AW47: =-SUMIF(Ops!$J$23:$EK$23,'Overview - Valuation Summary'!AW$37,Ops!$J$106:$EK$106) -> 3800 | AX47: =-SUMIF(Ops!$J$23:$EK$23,'Overview - Valuation Summary'!AX$37,Ops!$J$106:$EK$106) -> 3800 | AY47: =-SUMIF(Ops!$J$23:$EK$23,'Overview - Valuation Summary'!AY$37,Ops!$J$106:$EK$106) -> 3800 | AZ47: =-SUMIF(Ops!$J$23:$EK$23,'Overview - Valuation Summary'!AZ$37,Ops!$J$106:$EK$106) -> 3800 | BA47: =-SUMIF(Ops!$J$23:$EK$23,'Overview - Valuation Summary'!BA$37,Ops!$J$106:$EK$106) -> 1011.265182 | BB47: =-SUMIF(Ops!$J$23:$EK$23,'Overview - Valuation Summary'!BB$37,Ops!$J$106:$EK$106) -> 0 | BC47: =-SUMIF(Ops!$J$23:$EK$23,'Overview - Valuation Summary'!BC$37,Ops!$J$106:$EK$106) -> 0 | BD47: =-SUMIF(Ops!$J$23:$EK$23,'Overview - Valuation Summary'!BD$37,Ops!$J$106:$EK$106) -> 0 | BE47: =-SUMIF(Ops!$J$23:$EK$23,'Overview - Valuation Summary'!BE$37,Ops!$J$106:$EK$106) -> 0 | BF47: =-SUMIF(Ops!$J$23:$EK$23,'Overview - Valuation Summary'!BF$37,Ops!$J$106:$EK$106) -> 0 | BG47: =-SUMIF(Ops!$J$23:$EK$23,'Overview - Valuation Summary'!BG$37,Ops!$J$106:$EK$106) -> 0 | BH47: =-SUMIF(Ops!$J$23:$EK$23,'Overview - Valuation Summary'!BH$37,Ops!$J$106:$EK$106) -> 0
D48: Less: Change in NWC | E48: =SUMIF(AFS!$J$7:$AR$7,'Overview - Valuation Summary'!E$45,AFS!$J35:$AR35) -> 0 | F48: =SUMIF(AFS!$J$7:$AR$7,'Overview - Valuation Summary'!F$45,AFS!$J35:$AR35) -> 0.2705950588 | G48: =SUMIF(AFS!$J$7:$AR$7,'Overview - Valuation Summary'!G$45,AFS!$J35:$AR35) -> -1.785927388 | H48: =SUMIF(AFS!$J$7:$AR$7,'Overview - Valuation Summary'!H$45,AFS!$J35:$AR35) -> 4.20049731 | I48: =SUMIF(AFS!$J$7:$AR$7,'Overview - Valuation Summary'!I$45,AFS!$J35:$AR35) -> 5.055133066 | J48: =SUMIF(AFS!$J$7:$AR$7,'Overview - Valuation Summary'!J$45,AFS!$J35:$AR35) -> 1.375027476 | L48: =SUM(AFS!P35:AR35) -> -10.63065785
D49: Net Cash flows from Operations | E49: =SUMIF(AFS!$J$7:$AR$7,'Overview - Valuation Summary'!E$45,AFS!$J36:$AR36) -> 0 | F49: =SUMIF(AFS!$J$7:$AR$7,'Overview - Valuation Summary'!F$45,AFS!$J36:$AR36) -> -4.140305533 | G49: =SUMIF(AFS!$J$7:$AR$7,'Overview - Valuation Summary'!G$45,AFS!$J36:$AR36) -> -22.54190133 | H49: =SUMIF(AFS!$J$7:$AR$7,'Overview - Valuation Summary'!H$45,AFS!$J36:$AR36) -> 1.748060862 | I49: =SUMIF(AFS!$J$7:$AR$7,'Overview - Valuation Summary'!I$45,AFS!$J36:$AR36) -> 65.23300589 | J49: =SUMIF(AFS!$J$7:$AR$7,'Overview - Valuation Summary'!J$45,AFS!$J36:$AR36) -> 58.68526255 | L49: =SUM(AFS!P36:AR36) -> 2300.201058 | Z49: LHM | AA49: =AA45 -> 2018 | AB49: =AB45 -> 2019 | AC49: 2020 | AD49: 2021 | AE49: 2022 | AF49: 2023 | AG49: 2024 | AH49: 2025 | AI49: 2026 | AJ49: 2027 | AK49: 2028 | AL49: 2029 | AM49: 2030 | AN49: 2031 | AO49: 2032 | AP49: 2033 | AQ49: 2034 | AR49: 2035 | AS49: 2036 | AT49: 2037 | AU49: 2038 | AV49: 2039 | AW49: 2040 | AX49: 2041 | AY49: 2042 | AZ49: 2043 | BA49: 2044 | BB49: 2045 | BC49: 2046 | BD49: 2047 | BE49: 2048 | BF49: 2049 | BG49: 2050 | BH49: 2051
Z50: Mining | AA50: =-SUMIF(Ops!$J$23:$EK$23,'Overview - Valuation Summary'!AA$37,Ops!$J$69:$EK$69) -> 0 | AB50: =-SUMIF(Ops!$J$23:$EK$23,'Overview - Valuation Summary'!AB$37,Ops!$J$69:$EK$69) -> 0 | AC50: =-SUMIF(Ops!$J$23:$EK$23,'Overview - Valuation Summary'!AC$37,Ops!$J$69:$EK$69) -> 0 | AD50: =-SUMIF(Ops!$J$23:$EK$23,'Overview - Valuation Summary'!AD$37,Ops!$J$69:$EK$69) -> 0 | AE50: =-SUMIF(Ops!$J$23:$EK$23,'Overview - Valuation Summary'!AE$37,Ops!$J$69:$EK$69) -> 200 | AF50: =-SUMIF(Ops!$J$23:$EK$23,'Overview - Valuation Summary'!AF$37,Ops!$J$69:$EK$69) -> 1900 | AG50: =-SUMIF(Ops!$J$23:$EK$23,'Overview - Valuation Summary'!AG$37,Ops!$J$69:$EK$69) -> 750 | AH50: =-SUMIF(Ops!$J$23:$EK$23,'Overview - Valuation Summary'!AH$37,Ops!$J$69:$EK$69) -> 2400 | AI50: =-SUMIF(Ops!$J$23:$EK$23,'Overview - Valuation Summary'!AI$37,Ops!$J$69:$EK$69) -> 491.7346542 | AJ50: =-SUMIF(Ops!$J$23:$EK$23,'Overview - Valuation Summary'!AJ$37,Ops!$J$69:$EK$69) -> 0 | AK50: =-SUMIF(Ops!$J$23:$EK$23,'Overview - Valuation Summary'!AK$37,Ops!$J$69:$EK$69) -> 0 | AL50: =-SUMIF(Ops!$J$23:$EK$23,'Overview - Valuation Summary'!AL$37,Ops!$J$69:$EK$69) -> 0 | AM50: =-SUMIF(Ops!$J$23:$EK$23,'Overview - Valuation Summary'!AM$37,Ops!$J$69:$EK$69) -> 0 | AN50: =-SUMIF(Ops!$J$23:$EK$23,'Overview - Valuation Summary'!AN$37,Ops!$J$69:$EK$69) -> 0 | AO50: =-SUMIF(Ops!$J$23:$EK$23,'Overview - Valuation Summary'!AO$37,Ops!$J$69:$EK$69) -> 0 | AP50: =-SUMIF(Ops!$J$23:$EK$23,'Overview - Valuation Summary'!AP$37,Ops!$J$69:$EK$69) -> 0 | AQ50: =-SUMIF(Ops!$J$23:$EK$23,'Overview - Valuation Summary'!AQ$37,Ops!$J$69:$EK$69) -> 0 | AR50: =-SUMIF(Ops!$J$23:$EK$23,'Overview - Valuation Summary'!AR$37,Ops!$J$69:$EK$69) -> 0 | AS50: =-SUMIF(Ops!$J$23:$EK$23,'Overview - Valuation Summary'!AS$37,Ops!$J$69:$EK$69) -> 0 | AT50: =-SUMIF(Ops!$J$23:$EK$23,'Overview - Valuation Summary'!AT$37,Ops!$J$69:$EK$69) -> 0 | AU50: =-SUMIF(Ops!$J$23:$EK$23,'Overview - Valuation Summary'!AU$37,Ops!$J$69:$EK$69) -> 0 | AV50: =-SUMIF(Ops!$J$23:$EK$23,'Overview - Valuation Summary'!AV$37,Ops!$J$69:$EK$69) -> 0 | AW50: =-SUMIF(Ops!$J$23:$EK$23,'Overview - Valuation Summary'!AW$37,Ops!$J$69:$EK$69) -> 0 | AX50: =-SUMIF(Ops!$J$23:$EK$23,'Overview - Valuation Summary'!AX$37,Ops!$J$69:$EK$69) -> 0 | AY50: =-SUMIF(Ops!$J$23:$EK$23,'Overview - Valuation Summary'!AY$37,Ops!$J$69:$EK$69) -> 0 | AZ50: =-SUMIF(Ops!$J$23:$EK$23,'Overview - Valuation Summary'!AZ$37,Ops!$J$69:$EK$69) -> 0 | BA50: =-SUMIF(Ops!$J$23:$EK$23,'Overview - Valuation Summary'!BA$37,Ops!$J$69:$EK$69) -> 0 | BB50: =-SUMIF(Ops!$J$23:$EK$23,'Overview - Valuation Summary'!BB$37,Ops!$J$69:$EK$69) -> 0 | BC50: =-SUMIF(Ops!$J$23:$EK$23,'Overview - Valuation Summary'!BC$37,Ops!$J$69:$EK$69) -> 0 | BD50: =-SUMIF(Ops!$J$23:$EK$23,'Overview - Valuation Summary'!BD$37,Ops!$J$69:$EK$69) -> 0 | BE50: =-SUMIF(Ops!$J$23:$EK$23,'Overview - Valuation Summary'!BE$37,Ops!$J$69:$EK$69) -> 0 | BF50: =-SUMIF(Ops!$J$23:$EK$23,'Overview - Valuation Summary'!BF$37,Ops!$J$69:$EK$69) -> 0 | BG50: =-SUMIF(Ops!$J$23:$EK$23,'Overview - Valuation Summary'!BG$37,Ops!$J$69:$EK$69) -> 0 | BH50: =-SUMIF(Ops!$J$23:$EK$23,'Overview - Valuation Summary'!BH$37,Ops!$J$69:$EK$69) -> 0
Z51: Milling | AA51: =-SUMIF(Ops!$J$23:$EK$23,'Overview - Valuation Summary'!AA$37,Ops!$J$123:$EK$123) -> 0 | AB51: =-SUMIF(Ops!$J$23:$EK$23,'Overview - Valuation Summary'!AB$37,Ops!$J$123:$EK$123) -> 0 | AC51: =-SUMIF(Ops!$J$23:$EK$23,'Overview - Valuation Summary'!AC$37,Ops!$J$123:$EK$123) -> 0 | AD51: =-SUMIF(Ops!$J$23:$EK$23,'Overview - Valuation Summary'!AD$37,Ops!$J$123:$EK$123) -> 0 | AE51: =-SUMIF(Ops!$J$23:$EK$23,'Overview - Valuation Summary'!AE$37,Ops!$J$123:$EK$123) -> 1387 | AF51: =-SUMIF(Ops!$J$23:$EK$23,'Overview - Valuation Summary'!AF$37,Ops!$J$123:$EK$123) -> 1460 | AG51: =-SUMIF(Ops!$J$23:$EK$23,'Overview - Valuation Summary'!AG$37,Ops!$J$123:$EK$123) -> 1460 | AH51: =-SUMIF(Ops!$J$23:$EK$23,'Overview - Valuation Summary'!AH$37,Ops!$J$123:$EK$123) -> 1460 | AI51: =-SUMIF(Ops!$J$23:$EK$23,'Overview - Valuation Summary'!AI$37,Ops!$J$123:$EK$123) -> 1460 | AJ51: =-SUMIF(Ops!$J$23:$EK$23,'Overview - Valuation Summary'!AJ$37,Ops!$J$123:$EK$123) -> 92.36623318 | AK51: =-SUMIF(Ops!$J$23:$EK$23,'Overview - Valuation Summary'!AK$37,Ops!$J$123:$EK$123) -> 0 | AL51: =-SUMIF(Ops!$J$23:$EK$23,'Overview - Valuation Summary'!AL$37,Ops!$J$123:$EK$123) -> 0 | AM51: =-SUMIF(Ops!$J$23:$EK$23,'Overview - Valuation Summary'!AM$37,Ops!$J$123:$EK$123) -> 0 | AN51: =-SUMIF(Ops!$J$23:$EK$23,'Overview - Valuation Summary'!AN$37,Ops!$J$123:$EK$123) -> 0 | AO51: =-SUMIF(Ops!$J$23:$EK$23,'Overview - Valuation Summary'!AO$37,Ops!$J$123:$EK$123) -> 0 | AP51: =-SUMIF(Ops!$J$23:$EK$23,'Overview - Valuation Summary'!AP$37,Ops!$J$123:$EK$123) -> 0 | AQ51: =-SUMIF(Ops!$J$23:$EK$23,'Overview - Valuation Summary'!AQ$37,Ops!$J$123:$EK$123) -> 0 | AR51: =-SUMIF(Ops!$J$23:$EK$23,'Overview - Valuation Summary'!AR$37,Ops!$J$123:$EK$123) -> 0 | AS51: =-SUMIF(Ops!$J$23:$EK$23,'Overview - Valuation Summary'!AS$37,Ops!$J$123:$EK$123) -> 0 | AT51: =-SUMIF(Ops!$J$23:$EK$23,'Overview - Valuation Summary'!AT$37,Ops!$J$123:$EK$123) -> 0 | AU51: =-SUMIF(Ops!$J$23:$EK$23,'Overview - Valuation Summary'!AU$37,Ops!$J$123:$EK$123) -> 0 | AV51: =-SUMIF(Ops!$J$23:$EK$23,'Overview - Valuation Summary'!AV$37,Ops!$J$123:$EK$123) -> 0 | AW51: =-SUMIF(Ops!$J$23:$EK$23,'Overview - Valuation Summary'!AW$37,Ops!$J$123:$EK$123) -> 0 | AX51: =-SUMIF(Ops!$J$23:$EK$23,'Overview - Valuation Summary'!AX$37,Ops!$J$123:$EK$123) -> 0 | AY51: =-SUMIF(Ops!$J$23:$EK$23,'Overview - Valuation Summary'!AY$37,Ops!$J$123:$EK$123) -> 0 | AZ51: =-SUMIF(Ops!$J$23:$EK$23,'Overview - Valuation Summary'!AZ$37,Ops!$J$123:$EK$123) -> 0 | BA51: =-SUMIF(Ops!$J$23:$EK$23,'Overview - Valuation Summary'!BA$37,Ops!$J$123:$EK$123) -> 0 | BB51: =-SUMIF(Ops!$J$23:$EK$23,'Overview - Valuation Summary'!BB$37,Ops!$J$123:$EK$123) -> 0 | BC51: =-SUMIF(Ops!$J$23:$EK$23,'Overview - Valuation Summary'!BC$37,Ops!$J$123:$EK$123) -> 0 | BD51: =-SUMIF(Ops!$J$23:$EK$23,'Overview - Valuation Summary'!BD$37,Ops!$J$123:$EK$123) -> 0 | BE51: =-SUMIF(Ops!$J$23:$EK$23,'Overview - Valuation Summary'!BE$37,Ops!$J$123:$EK$123) -> 0 | BF51: =-SUMIF(Ops!$J$23:$EK$23,'Overview - Valuation Summary'!BF$37,Ops!$J$123:$EK$123) -> 0 | BG51: =-SUMIF(Ops!$J$23:$EK$23,'Overview - Valuation Summary'!BG$37,Ops!$J$123:$EK$123) -> 0 | BH51: =-SUMIF(Ops!$J$23:$EK$23,'Overview - Valuation Summary'!BH$37,Ops!$J$123:$EK$123) -> 0
D52: Less: Capex (LHM) | E52: =SUMIF(AFS!$J$7:$AR$7,'Overview - Valuation Summary'!E$45,AFS!$J39:$AR39) -> 0 | F52: =SUMIF(AFS!$J$7:$AR$7,'Overview - Valuation Summary'!F$45,AFS!$J39:$AR39) -> -46.66666667 | G52: =SUMIF(AFS!$J$7:$AR$7,'Overview - Valuation Summary'!G$45,AFS!$J39:$AR39) -> 0 | H52: =SUMIF(AFS!$J$7:$AR$7,'Overview - Valuation Summary'!H$45,AFS!$J39:$AR39) -> -46.66666667 | I52: =SUMIF(AFS!$J$7:$AR$7,'Overview - Valuation Summary'!I$45,AFS!$J39:$AR39) -> 0 | J52: =SUMIF(AFS!$J$7:$AR$7,'Overview - Valuation Summary'!J$45,AFS!$J39:$AR39) -> 0 | L52: =SUM(AFS!P39:AR39) -> 0
D53: Less: Capex (KM) | E53: =SUMIF(AFS!$J$7:$AR$7,'Overview - Valuation Summary'!E$45,AFS!$J40:$AR40) -> 0 | F53: =SUMIF(AFS!$J$7:$AR$7,'Overview - Valuation Summary'!F$45,AFS!$J40:$AR40) -> 0 | G53: =SUMIF(AFS!$J$7:$AR$7,'Overview - Valuation Summary'!G$45,AFS!$J40:$AR40) -> 0 | H53: =SUMIF(AFS!$J$7:$AR$7,'Overview - Valuation Summary'!H$45,AFS!$J40:$AR40) -> 0 | I53: =SUMIF(AFS!$J$7:$AR$7,'Overview - Valuation Summary'!I$45,AFS!$J40:$AR40) -> -46.66666667 | J53: =SUMIF(AFS!$J$7:$AR$7,'Overview - Valuation Summary'!J$45,AFS!$J40:$AR40) -> 0 | L53: =SUM(AFS!P40:AR40) -> 0
D54: Less: Additions | E54: =SUMIF(AFS!$J$7:$AR$7,'Overview - Valuation Summary'!E$45,AFS!$J41:$AR41) -> 0 | F54: =SUMIF(AFS!$J$7:$AR$7,'Overview - Valuation Summary'!F$45,AFS!$J41:$AR41) -> 0 | G54: =SUMIF(AFS!$J$7:$AR$7,'Overview - Valuation Summary'!G$45,AFS!$J41:$AR41) -> 0 | H54: =SUMIF(AFS!$J$7:$AR$7,'Overview - Valuation Summary'!H$45,AFS!$J41:$AR41) -> 0 | I54: =SUMIF(AFS!$J$7:$AR$7,'Overview - Valuation Summary'!I$45,AFS!$J41:$AR41) -> 0 | J54: =SUMIF(AFS!$J$7:$AR$7,'Overview - Valuation Summary'!J$45,AFS!$J41:$AR41) -> 0 | L54: =SUM(AFS!P41:AR41) -> 0
D55: Net Cash flows from Investing | E55: =SUMIF(AFS!$J$7:$AR$7,'Overview - Valuation Summary'!E$45,AFS!$J42:$AR42) -> 0 | F55: =SUMIF(AFS!$J$7:$AR$7,'Overview - Valuation Summary'!F$45,AFS!$J42:$AR42) -> -46.66666667 | G55: =SUMIF(AFS!$J$7:$AR$7,'Overview - Valuation Summary'!G$45,AFS!$J42:$AR42) -> 0 | H55: =SUMIF(AFS!$J$7:$AR$7,'Overview - Valuation Summary'!H$45,AFS!$J42:$AR42) -> -46.66666667 | I55: =SUMIF(AFS!$J$7:$AR$7,'Overview - Valuation Summary'!I$45,AFS!$J42:$AR42) -> -46.66666667 | J55: =SUMIF(AFS!$J$7:$AR$7,'Overview - Valuation Summary'!J$45,AFS!$J42:$AR42) -> 0 | L55: =SUM(AFS!P42:AR42) -> 0
D57: Issu. / Repay. of Debt(s) | E57: =SUMIF(AFS!$J$7:$AR$7,'Overview - Valuation Summary'!E$45,AFS!$J44:$AR44) -> 0 | F57: =SUMIF(AFS!$J$7:$AR$7,'Overview - Valuation Summary'!F$45,AFS!$J44:$AR44) -> 0 | G57: =SUMIF(AFS!$J$7:$AR$7,'Overview - Valuation Summary'!G$45,AFS!$J44:$AR44) -> 0 | H57: =SUMIF(AFS!$J$7:$AR$7,'Overview - Valuation Summary'!H$45,AFS!$J44:$AR44) -> 0 | I57: =SUMIF(AFS!$J$7:$AR$7,'Overview - Valuation Summary'!I$45,AFS!$J44:$AR44) -> 0 | J57: =SUMIF(AFS!$J$7:$AR$7,'Overview - Valuation Summary'!J$45,AFS!$J44:$AR44) -> -160.6073333 | L57: =SUM(AFS!P44:AR44) -> 0
D58: Less: Disrtibutions | E58: =SUMIF(AFS!$J$7:$AR$7,'Overview - Valuation Summary'!E$45,AFS!$J45:$AR45) -> 0 | F58: =SUMIF(AFS!$J$7:$AR$7,'Overview - Valuation Summary'!F$45,AFS!$J45:$AR45) -> 0 | G58: =SUMIF(AFS!$J$7:$AR$7,'Overview - Valuation Summary'!G$45,AFS!$J45:$AR45) -> 0 | H58: =SUMIF(AFS!$J$7:$AR$7,'Overview - Valuation Summary'!H$45,AFS!$J45:$AR45) -> 0 | I58: =SUMIF(AFS!$J$7:$AR$7,'Overview - Valuation Summary'!I$45,AFS!$J45:$AR45) -> 0 | J58: =SUMIF(AFS!$J$7:$AR$7,'Overview - Valuation Summary'!J$45,AFS!$J45:$AR45) -> 0 | L58: =SUM(AFS!P45:AR45) -> 0
D59: Add: Required Borrowing | E59: =SUMIF(AFS!$J$7:$AR$7,'Overview - Valuation Summary'!E$45,AFS!$J46:$AR46) -> 0 | F59: =SUMIF(AFS!$J$7:$AR$7,'Overview - Valuation Summary'!F$45,AFS!$J46:$AR46) -> 0 | G59: =SUMIF(AFS!$J$7:$AR$7,'Overview - Valuation Summary'!G$45,AFS!$J46:$AR46) -> 0 | H59: =SUMIF(AFS!$J$7:$AR$7,'Overview - Valuation Summary'!H$45,AFS!$J46:$AR46) -> 27.70357511 | I59: =SUMIF(AFS!$J$7:$AR$7,'Overview - Valuation Summary'!I$45,AFS!$J46:$AR46) -> 8.804979269 | J59: =SUMIF(AFS!$J$7:$AR$7,'Overview - Valuation Summary'!J$45,AFS!$J46:$AR46) -> 86.25854785 | L59: =SUM(AFS!P46:AR46) -> 0
D60: Net Cash flows from Financing | E60: =SUMIF(AFS!$J$7:$AR$7,'Overview - Valuation Summary'!E$45,AFS!$J47:$AR47) -> 0 | F60: =SUMIF(AFS!$J$7:$AR$7,'Overview - Valuation Summary'!F$45,AFS!$J47:$AR47) -> 0 | G60: =SUMIF(AFS!$J$7:$AR$7,'Overview - Valuation Summary'!G$45,AFS!$J47:$AR47) -> 0 | H60: =SUMIF(AFS!$J$7:$AR$7,'Overview - Valuation Summary'!H$45,AFS!$J47:$AR47) -> 27.70357511 | I60: =SUMIF(AFS!$J$7:$AR$7,'Overview - Valuation Summary'!I$45,AFS!$J47:$AR47) -> 8.804979269 | J60: =SUMIF(AFS!$J$7:$AR$7,'Overview - Valuation Summary'!J$45,AFS!$J47:$AR47) -> -74.34878548 | L60: =SUM(AFS!P47:AR47) -> 0
D62: Net cashflow | E62: =SUMIF(AFS!$J$7:$AR$7,'Overview - Valuation Summary'!E$45,AFS!$J50:$AR50) -> 0 | F62: =SUMIF(AFS!$J$7:$AR$7,'Overview - Valuation Summary'!F$45,AFS!$J50:$AR50) -> -50.8069722 | G62: =SUMIF(AFS!$J$7:$AR$7,'Overview - Valuation Summary'!G$45,AFS!$J50:$AR50) -> -22.54190133 | H62: =SUMIF(AFS!$J$7:$AR$7,'Overview - Valuation Summary'!H$45,AFS!$J50:$AR50) -> -17.2150307 | I62: =SUMIF(AFS!$J$7:$AR$7,'Overview - Valuation Summary'!I$45,AFS!$J50:$AR50) -> 27.37131849 | J62: =SUMIF(AFS!$J$7:$AR$7,'Overview - Valuation Summary'!J$45,AFS!$J50:$AR50) -> -15.66352293 | L62: =SUM(AFS!P50:AR50) -> 2300.201058
D64: Cash balance b/f | E64: =SUMIF(AFS!$J$7:$AR$7,'Overview - Valuation Summary'!E$45,AFS!$J52:$AR52) -> 92.1 | F64: =SUMIF(AFS!$J$7:$AR$7,'Overview - Valuation Summary'!F$45,AFS!$J52:$AR52) -> 92.1 | G64: =SUMIF(AFS!$J$7:$AR$7,'Overview - Valuation Summary'!G$45,AFS!$J52:$AR52) -> 41.2930278 | H64: =SUMIF(AFS!$J$7:$AR$7,'Overview - Valuation Summary'!H$45,AFS!$J52:$AR52) -> 18.75112647 | I64: =SUMIF(AFS!$J$7:$AR$7,'Overview - Valuation Summary'!I$45,AFS!$J52:$AR52) -> 1.536095769 | J64: =SUMIF(AFS!$J$7:$AR$7,'Overview - Valuation Summary'!J$45,AFS!$J52:$AR52) -> 28.90741426
D65: Cash balance c/f | E65: =SUMIF(AFS!$J$7:$AR$7,'Overview - Valuation Summary'!E$45,AFS!$J53:$AR53) -> 92.1 | F65: =SUMIF(AFS!$J$7:$AR$7,'Overview - Valuation Summary'!F$45,AFS!$J53:$AR53) -> 41.2930278 | G65: =SUMIF(AFS!$J$7:$AR$7,'Overview - Valuation Summary'!G$45,AFS!$J53:$AR53) -> 18.75112647 | H65: =SUMIF(AFS!$J$7:$AR$7,'Overview - Valuation Summary'!H$45,AFS!$J53:$AR53) -> 1.536095769 | I65: =SUMIF(AFS!$J$7:$AR$7,'Overview - Valuation Summary'!I$45,AFS!$J53:$AR53) -> 28.90741426 | J65: =SUMIF(AFS!$J$7:$AR$7,'Overview - Valuation Summary'!J$45,AFS!$J53:$AR53) -> 13.24389133
D69: Income Statement | E69: 2018 | F69: =E69+1 -> 2019 | G69: =F69+1 -> 2020 | H69: =G69+1 -> 2021 | I69: =H69+1 -> 2022 | J69: =I69+1 -> 2023 | K69: // | L69: =L34 -> 0
D70: LHM | E70: =SUMIF(AFS!$J$7:$AR$7,'Overview - Valuation Summary'!E$69,AFS!$J60:$AR60) -> 0 | F70: =SUMIF(AFS!$J$7:$AR$7,'Overview - Valuation Summary'!F$69,AFS!$J60:$AR60) -> 49.51889576 | G70: =SUMIF(AFS!$J$7:$AR$7,'Overview - Valuation Summary'!G$69,AFS!$J60:$AR60) -> 0 | H70: =SUMIF(AFS!$J$7:$AR$7,'Overview - Valuation Summary'!H$69,AFS!$J60:$AR60) -> 31.50372983 | I70: =SUMIF(AFS!$J$7:$AR$7,'Overview - Valuation Summary'!I$69,AFS!$J60:$AR60) -> 148.2761378 | J70: =SUMIF(AFS!$J$7:$AR$7,'Overview - Valuation Summary'!J$69,AFS!$J60:$AR60) -> 173.4834505 | L70: =SUM(AFS!P60:AR60) -> 4412.337838
D71: KM | E71: =SUMIF(AFS!$J$7:$AR$7,'Overview - Valuation Summary'!E$69,AFS!$J61:$AR61) -> 0 | F71: =SUMIF(AFS!$J$7:$AR$7,'Overview - Valuation Summary'!F$69,AFS!$J61:$AR61) -> 0 | G71: =SUMIF(AFS!$J$7:$AR$7,'Overview - Valuation Summary'!G$69,AFS!$J61:$AR61) -> 0 | H71: =SUMIF(AFS!$J$7:$AR$7,'Overview - Valuation Summary'!H$69,AFS!$J61:$AR61) -> 0 | I71: =SUMIF(AFS!$J$7:$AR$7,'Overview - Valuation Summary'!I$69,AFS!$J61:$AR61) -> 61.58744768 | J71: =SUMIF(AFS!$J$7:$AR$7,'Overview - Valuation Summary'!J$69,AFS!$J61:$AR61) -> 143.3673692 | L71: =SUM(AFS!P61:AR61) -> 591.7826927
D72: Revenue | E72: =SUMIF(AFS!$J$7:$AR$7,'Overview - Valuation Summary'!E$69,AFS!$J62:$AR62) -> 0 | F72: =SUMIF(AFS!$J$7:$AR$7,'Overview - Valuation Summary'!F$69,AFS!$J62:$AR62) -> 49.51889576 | G72: =SUMIF(AFS!$J$7:$AR$7,'Overview - Valuation Summary'!G$69,AFS!$J62:$AR62) -> 0 | H72: =SUMIF(AFS!$J$7:$AR$7,'Overview - Valuation Summary'!H$69,AFS!$J62:$AR62) -> 31.50372983 | I72: =SUMIF(AFS!$J$7:$AR$7,'Overview - Valuation Summary'!I$69,AFS!$J62:$AR62) -> 209.8635855 | J72: =SUMIF(AFS!$J$7:$AR$7,'Overview - Valuation Summary'!J$69,AFS!$J62:$AR62) -> 316.8508197 | L72: =SUM(AFS!P62:AR62) -> 5004.120531
D74: C&M | E74: =SUMIF(AFS!$J$7:$AR$7,'Overview - Valuation Summary'!E$69,AFS!$J63:$AR63) -> 0 | F74: =SUMIF(AFS!$J$7:$AR$7,'Overview - Valuation Summary'!F$69,AFS!$J63:$AR63) -> 0 | G74: =SUMIF(AFS!$J$7:$AR$7,'Overview - Valuation Summary'!G$69,AFS!$J63:$AR63) -> -3.75 | H74: =SUMIF(AFS!$J$7:$AR$7,'Overview - Valuation Summary'!H$69,AFS!$J63:$AR63) -> -1.25 | I74: =SUMIF(AFS!$J$7:$AR$7,'Overview - Valuation Summary'!I$69,AFS!$J63:$AR63) -> 0 | J74: =SUMIF(AFS!$J$7:$AR$7,'Overview - Valuation Summary'!J$69,AFS!$J63:$AR63) -> 0 | L74: =SUM(AFS!P63:AR63) -> 0
D75: Fixed | E75: =SUMIF(AFS!$J$7:$AR$7,'Overview - Valuation Summary'!E$69,AFS!$J64:$AR64) -> 0 | F75: =SUMIF(AFS!$J$7:$AR$7,'Overview - Valuation Summary'!F$69,AFS!$J64:$AR64) -> 0 | G75: =SUMIF(AFS!$J$7:$AR$7,'Overview - Valuation Summary'!G$69,AFS!$J64:$AR64) -> 0 | H75: =SUMIF(AFS!$J$7:$AR$7,'Overview - Valuation Summary'!H$69,AFS!$J64:$AR64) -> 0 | I75: =SUMIF(AFS!$J$7:$AR$7,'Overview - Valuation Summary'!I$69,AFS!$J64:$AR64) -> 0 | J75: =SUMIF(AFS!$J$7:$AR$7,'Overview - Valuation Summary'!J$69,AFS!$J64:$AR64) -> 0 | L75: =SUM(AFS!P64:AR64) -> 0
D76: Variable | E76: =SUMIF(AFS!$J$7:$AR$7,'Overview - Valuation Summary'!E$69,AFS!$J65:$AR65) -> 0 | F76: =SUMIF(AFS!$J$7:$AR$7,'Overview - Valuation Summary'!F$69,AFS!$J65:$AR65) -> -28.75209087 | G76: =SUMIF(AFS!$J$7:$AR$7,'Overview - Valuation Summary'!G$69,AFS!$J65:$AR65) -> 0 | H76: =SUMIF(AFS!$J$7:$AR$7,'Overview - Valuation Summary'!H$69,AFS!$J65:$AR65) -> -14.24912384 | I76: =SUMIF(AFS!$J$7:$AR$7,'Overview - Valuation Summary'!I$69,AFS!$J65:$AR65) -> -67.4905519 | J76: =SUMIF(AFS!$J$7:$AR$7,'Overview - Valuation Summary'!J$69,AFS!$J65:$AR65) -> -101.9217857 | L76: =SUM(AFS!P65:AR65) -> -2012.712296
D77: Royalty | E77: =SUMIF(AFS!$J$7:$AR$7,'Overview - Valuation Summary'!E$69,AFS!$J66:$AR66) -> 0 | F77: =SUMIF(AFS!$J$7:$AR$7,'Overview - Valuation Summary'!F$69,AFS!$J66:$AR66) -> -1.609364112 | G77: =SUMIF(AFS!$J$7:$AR$7,'Overview - Valuation Summary'!G$69,AFS!$J66:$AR66) -> 0 | H77: =SUMIF(AFS!$J$7:$AR$7,'Overview - Valuation Summary'!H$69,AFS!$J66:$AR66) -> -1.023871219 | I77: =SUMIF(AFS!$J$7:$AR$7,'Overview - Valuation Summary'!I$69,AFS!$J66:$AR66) -> -4.818974478 | J77: =SUMIF(AFS!$J$7:$AR$7,'Overview - Valuation Summary'!J$69,AFS!$J66:$AR66) -> -5.638212141 | L77: =SUM(AFS!P66:AR66) -> -143.4009798
D78: C&M | E78: =SUMIF(AFS!$J$7:$AR$7,'Overview - Valuation Summary'!E$69,AFS!$J67:$AR67) -> 0 | F78: =SUMIF(AFS!$J$7:$AR$7,'Overview - Valuation Summary'!F$69,AFS!$J67:$AR67) -> -5.754935046 | G78: =SUMIF(AFS!$J$7:$AR$7,'Overview - Valuation Summary'!G$69,AFS!$J67:$AR67) -> -5.898808422 | H78: =SUMIF(AFS!$J$7:$AR$7,'Overview - Valuation Summary'!H$69,AFS!$J67:$AR67) -> -6.046278632 | I78: =SUMIF(AFS!$J$7:$AR$7,'Overview - Valuation Summary'!I$69,AFS!$J67:$AR67) -> 0 | J78: =SUMIF(AFS!$J$7:$AR$7,'Overview - Valuation Summary'!J$69,AFS!$J67:$AR67) -> 0 | L78: =SUM(AFS!P67:AR67) -> 0
D79: Fixed | E79: =SUMIF(AFS!$J$7:$AR$7,'Overview - Valuation Summary'!E$69,AFS!$J68:$AR68) -> 0 | F79: =SUMIF(AFS!$J$7:$AR$7,'Overview - Valuation Summary'!F$69,AFS!$J68:$AR68) -> 0 | G79: =SUMIF(AFS!$J$7:$AR$7,'Overview - Valuation Summary'!G$69,AFS!$J68:$AR68) -> 0 | H79: =SUMIF(AFS!$J$7:$AR$7,'Overview - Valuation Summary'!H$69,AFS!$J68:$AR68) -> 0 | I79: =SUMIF(AFS!$J$7:$AR$7,'Overview - Valuation Summary'!I$69,AFS!$J68:$AR68) -> 0 | J79: =SUMIF(AFS!$J$7:$AR$7,'Overview - Valuation Summary'!J$69,AFS!$J68:$AR68) -> 0 | L79: =SUM(AFS!P68:AR68) -> 0
D80: Variable | E80: =SUMIF(AFS!$J$7:$AR$7,'Overview - Valuation Summary'!E$69,AFS!$J69:$AR69) -> 0 | F80: =SUMIF(AFS!$J$7:$AR$7,'Overview - Valuation Summary'!F$69,AFS!$J69:$AR69) -> 0 | G80: =SUMIF(AFS!$J$7:$AR$7,'Overview - Valuation Summary'!G$69,AFS!$J69:$AR69) -> 0 | H80: =SUMIF(AFS!$J$7:$AR$7,'Overview - Valuation Summary'!H$69,AFS!$J69:$AR69) -> 0 | I80: =SUMIF(AFS!$J$7:$AR$7,'Overview - Valuation Summary'!I$69,AFS!$J69:$AR69) -> -49.38124202 | J80: =SUMIF(AFS!$J$7:$AR$7,'Overview - Valuation Summary'!J$69,AFS!$J69:$AR69) -> -114.9659223 | L80: =SUM(AFS!P69:AR69) -> -479.6857745
D81: Royalty | E81: =SUMIF(AFS!$J$7:$AR$7,'Overview - Valuation Summary'!E$69,AFS!$J70:$AR70) -> 0 | F81: =SUMIF(AFS!$J$7:$AR$7,'Overview - Valuation Summary'!F$69,AFS!$J70:$AR70) -> 0 | G81: =SUMIF(AFS!$J$7:$AR$7,'Overview - Valuation Summary'!G$69,AFS!$J70:$AR70) -> 0 | H81: =SUMIF(AFS!$J$7:$AR$7,'Overview - Valuation Summary'!H$69,AFS!$J70:$AR70) -> 0 | I81: =SUMIF(AFS!$J$7:$AR$7,'Overview - Valuation Summary'!I$69,AFS!$J70:$AR70) -> -1.84762343 | J81: =SUMIF(AFS!$J$7:$AR$7,'Overview - Valuation Summary'!J$69,AFS!$J70:$AR70) -> -4.301021076 | L81: =SUM(AFS!P70:AR70) -> -17.75348078
D82: Corporate | E82: =SUMIF(AFS!$J$7:$AR$7,'Overview - Valuation Summary'!E$69,AFS!$J71:$AR71) -> 0 | F82: =SUMIF(AFS!$J$7:$AR$7,'Overview - Valuation Summary'!F$69,AFS!$J71:$AR71) -> -10.81630625 | G82: =SUMIF(AFS!$J$7:$AR$7,'Overview - Valuation Summary'!G$69,AFS!$J71:$AR71) -> -11.10363938 | H82: =SUMIF(AFS!$J$7:$AR$7,'Overview - Valuation Summary'!H$69,AFS!$J71:$AR71) -> -11.38123037 | I82: =SUMIF(AFS!$J$7:$AR$7,'Overview - Valuation Summary'!I$69,AFS!$J71:$AR71) -> -11.66576113 | J82: =SUMIF(AFS!$J$7:$AR$7,'Overview - Valuation Summary'!J$69,AFS!$J71:$AR71) -> -11.95740515 | L82: =SUM(AFS!P71:AR71) -> -375.0797032
D83: Operating costs | E83: =SUMIF(AFS!$J$7:$AR$7,'Overview - Valuation Summary'!E$69,AFS!$J72:$AR72) -> 0 | F83: =SUMIF(AFS!$J$7:$AR$7,'Overview - Valuation Summary'!F$69,AFS!$J72:$AR72) -> -46.93269628 | G83: =SUMIF(AFS!$J$7:$AR$7,'Overview - Valuation Summary'!G$69,AFS!$J72:$AR72) -> -20.7524478 | H83: =SUMIF(AFS!$J$7:$AR$7,'Overview - Valuation Summary'!H$69,AFS!$J72:$AR72) -> -33.95050406 | I83: =SUMIF(AFS!$J$7:$AR$7,'Overview - Valuation Summary'!I$69,AFS!$J72:$AR72) -> -135.204153 | J83: =SUMIF(AFS!$J$7:$AR$7,'Overview - Valuation Summary'!J$69,AFS!$J72:$AR72) -> -238.7843463 | L83: =SUM(AFS!P72:AR72) -> -3028.632234
D84: EBITDA | E84: =SUMIF(AFS!$J$7:$AR$7,'Overview - Valuation Summary'!E$69,AFS!$J73:$AR73) -> 0 | F84: =SUMIF(AFS!$J$7:$AR$7,'Overview - Valuation Summary'!F$69,AFS!$J73:$AR73) -> 2.586199481 | G84: =SUMIF(AFS!$J$7:$AR$7,'Overview - Valuation Summary'!G$69,AFS!$J73:$AR73) -> -20.7524478 | H84: =SUMIF(AFS!$J$7:$AR$7,'Overview - Valuation Summary'!H$69,AFS!$J73:$AR73) -> -2.446774238 | I84: =SUMIF(AFS!$J$7:$AR$7,'Overview - Valuation Summary'!I$69,AFS!$J73:$AR73) -> 74.65943251 | J84: =SUMIF(AFS!$J$7:$AR$7,'Overview - Valuation Summary'!J$69,AFS!$J73:$AR73) -> 78.06647335 | L84: =SUM(AFS!P73:AR73) -> 1975.488297
D86: Depreciation | E86: =SUMIF(AFS!$J$7:$AR$7,'Overview - Valuation Summary'!E$69,AFS!$J75:$AR75) -> 0 | F86: =SUMIF(AFS!$J$7:$AR$7,'Overview - Valuation Summary'!F$69,AFS!$J75:$AR75) -> -13.02565524 | G86: =SUMIF(AFS!$J$7:$AR$7,'Overview - Valuation Summary'!G$69,AFS!$J75:$AR75) -> 0 | H86: =SUMIF(AFS!$J$7:$AR$7,'Overview - Valuation Summary'!H$69,AFS!$J75:$AR75) -> -4.658262712 | I86: =SUMIF(AFS!$J$7:$AR$7,'Overview - Valuation Summary'!I$69,AFS!$J75:$AR75) -> -20.18580508 | J86: =SUMIF(AFS!$J$7:$AR$7,'Overview - Valuation Summary'!J$69,AFS!$J75:$AR75) -> -20.70338983 | L86: =SUM(AFS!P75:AR75) -> -186.3305085
D87: EBIT | E87: =SUMIF(AFS!$J$7:$AR$7,'Overview - Valuation Summary'!E$69,AFS!$J76:$AR76) -> 0 | F87: =SUMIF(AFS!$J$7:$AR$7,'Overview - Valuation Summary'!F$69,AFS!$J76:$AR76) -> -10.43945576 | G87: =SUMIF(AFS!$J$7:$AR$7,'Overview - Valuation Summary'!G$69,AFS!$J76:$AR76) -> -20.7524478 | H87: =SUMIF(AFS!$J$7:$AR$7,'Overview - Valuation Summary'!H$69,AFS!$J76:$AR76) -> -7.105036949 | I87: =SUMIF(AFS!$J$7:$AR$7,'Overview - Valuation Summary'!I$69,AFS!$J76:$AR76) -> 54.47362742 | J87: =SUMIF(AFS!$J$7:$AR$7,'Overview - Valuation Summary'!J$69,AFS!$J76:$AR76) -> 57.36308352 | L87: =SUM(AFS!P76:AR76) -> 1789.157788
D89: Interest expense | E89: =SUMIF(AFS!$J$7:$AR$7,'Overview - Valuation Summary'!E$69,AFS!$J78:$AR78) -> 0 | F89: =SUMIF(AFS!$J$7:$AR$7,'Overview - Valuation Summary'!F$69,AFS!$J78:$AR78) -> 0 | G89: =SUMIF(AFS!$J$7:$AR$7,'Overview - Valuation Summary'!G$69,AFS!$J78:$AR78) -> 0 | H89: =SUMIF(AFS!$J$7:$AR$7,'Overview - Valuation Summary'!H$69,AFS!$J78:$AR78) -> 0 | I89: =SUMIF(AFS!$J$7:$AR$7,'Overview - Valuation Summary'!I$69,AFS!$J78:$AR78) -> -14.45466 | J89: =SUMIF(AFS!$J$7:$AR$7,'Overview - Valuation Summary'!J$69,AFS!$J78:$AR78) -> -20.72097828 | L89: =SUM(AFS!P78:AR78) -> -132.3759737
D90: EBT | E90: =SUMIF(AFS!$J$7:$AR$7,'Overview - Valuation Summary'!E$69,AFS!$J79:$AR79) -> 0 | F90: =SUMIF(AFS!$J$7:$AR$7,'Overview - Valuation Summary'!F$69,AFS!$J79:$AR79) -> -10.43945576 | G90: =SUMIF(AFS!$J$7:$AR$7,'Overview - Valuation Summary'!G$69,AFS!$J79:$AR79) -> -20.7524478 | H90: =SUMIF(AFS!$J$7:$AR$7,'Overview - Valuation Summary'!H$69,AFS!$J79:$AR79) -> -7.105036949 | I90: =SUMIF(AFS!$J$7:$AR$7,'Overview - Valuation Summary'!I$69,AFS!$J79:$AR79) -> 40.01896742 | J90: =SUMIF(AFS!$J$7:$AR$7,'Overview - Valuation Summary'!J$69,AFS!$J79:$AR79) -> 36.64210524 | L90: =SUM(AFS!P79:AR79) -> 1656.781815
D92: Income tax expense | E92: =SUMIF(AFS!$J$7:$AR$7,'Overview - Valuation Summary'!E$69,AFS!$J81:$AR81) -> 0 | F92: =SUMIF(AFS!$J$7:$AR$7,'Overview - Valuation Summary'!F$69,AFS!$J81:$AR81) -> 0 | G92: =SUMIF(AFS!$J$7:$AR$7,'Overview - Valuation Summary'!G$69,AFS!$J81:$AR81) -> 0 | H92: =SUMIF(AFS!$J$7:$AR$7,'Overview - Valuation Summary'!H$69,AFS!$J81:$AR81) -> 0 | I92: =SUMIF(AFS!$J$7:$AR$7,'Overview - Valuation Summary'!I$69,AFS!$J81:$AR81) -> 0 | J92: =SUMIF(AFS!$J$7:$AR$7,'Overview - Valuation Summary'!J$69,AFS!$J81:$AR81) -> 0 | L92: =SUM(AFS!P81:AR81) -> 529.0676442
D93: Rollforward of Decom. Prov. | E93: =SUMIF(AFS!$J$7:$AR$7,'Overview - Valuation Summary'!E$69,AFS!$J82:$AR82) -> 0 | F93: =SUMIF(AFS!$J$7:$AR$7,'Overview - Valuation Summary'!F$69,AFS!$J82:$AR82) -> -0.0092537055 | G93: =SUMIF(AFS!$J$7:$AR$7,'Overview - Valuation Summary'!G$69,AFS!$J82:$AR82) -> -0.003526139895 | H93: =SUMIF(AFS!$J$7:$AR$7,'Overview - Valuation Summary'!H$69,AFS!$J82:$AR82) -> -0.005662210126 | I93: =SUMIF(AFS!$J$7:$AR$7,'Overview - Valuation Summary'!I$69,AFS!$J82:$AR82) -> -0.02689968253 | J93: =SUMIF(AFS!$J$7:$AR$7,'Overview - Valuation Summary'!J$69,AFS!$J82:$AR82) -> -0.03525999653 | L93: =SUM(AFS!P82:AR82) -> -61.34825128
D95: NPAT | E95: =SUMIF(AFS!$J$7:$AR$7,'Overview - Valuation Summary'!E$69,AFS!$J84:$AR84) -> 0 | F95: =SUMIF(AFS!$J$7:$AR$7,'Overview - Valuation Summary'!F$69,AFS!$J84:$AR84) -> -10.44870947 | G95: =SUMIF(AFS!$J$7:$AR$7,'Overview - Valuation Summary'!G$69,AFS!$J84:$AR84) -> -20.75597394 | H95: =SUMIF(AFS!$J$7:$AR$7,'Overview - Valuation Summary'!H$69,AFS!$J84:$AR84) -> -7.11069916 | I95: =SUMIF(AFS!$J$7:$AR$7,'Overview - Valuation Summary'!I$69,AFS!$J84:$AR84) -> 39.99206774 | J95: =SUMIF(AFS!$J$7:$AR$7,'Overview - Valuation Summary'!J$69,AFS!$J84:$AR84) -> 36.60684524 | L95: =SUM(AFS!P84:AR84) -> 2124.501208

Sheet Other Projects >

Sheet Valuation
A1: Assumptions
A2: All other Projects
C4: Valuation
C5: All other Projects
H6: Probability adj.
D7: M tonnes | E7: Metal t | F7: Mlbs U3O8 | G7: Discount | H7: Mlbs U3O8
C8: Add:Stockpile | D8: =D35 -> 35.49 | E8: =E35 -> 14114 | F8: =F35 -> 31.11600668 | G8: =G35 -> 0.95 | H8: =H35 -> 29.56020635
C9: Add:Measured | D9: =D51 -> 95.3 | E9: =E51 -> 62276 | F9: =F51 -> 137.2949151 | G9: =G51 -> 0.75 | H9: =H51 -> 102.9711863
C10: Add:Indicated | D10: =D52 -> 70.79 | E10: 49440 | F10: 108.9964128 | G10: 0.5 | H10: 54.4982064
C11: Add:Inferred | D11: 146.55 | E11: 90442 | F11: 199.390242 | G11: 0.25 | H11: 49.84756051
C12: Less: Proven Reserves | D12: =-D33 -> -42.36 | E12: -22454 | F12: -49.50253748 | G12: =G33 -> 1 | H12: =-H33 -> -49.50253748
C13: Less: Probable Reserves | D13: -18.48 | E13: -11075 | F13: -24.4161665 | G13: =G34 -> 0.95 | H13: =-H34 -> -23.19535818
C14: Less: Stockpile Milled | D14: -35.49 | E14: -14114 | F14: -31.11600668 | G14: =G35 -> 0.95 | H14: =-H35 -> -29.56020635
G15: Total | H15: =SUM(H8:H14) -> 134.6190576
F16: Min | G16: EV/Resource | H16: =N120 -> 0.5172101449
F17: Average | G17: EV/Resource | H17: =N121 -> 0.8357901674
F18: Median | G18: EV/Resource | H18: =N122 -> 0.609321184
F19: Max | G19: EV/Resource | H19: =N123 -> 1.380839173
F21: Min | G21: EV | H21: =$H$15*H16 -> 69.62634229
F22: Average | G22: EV | H22: =$H$15*H17 -> 112.5132847
F23: Median | G23: EV | H23: =$H$15*H18 -> 82.02624356
F24: Max | G24: EV | H24: =$H$15*H19 -> 185.8872682
C27: Volume
C28: Resources
C30: Measured, Indicated and Infered
H31: Probability adj.
C32: Total | D32: M tonnes | E32: Metal t | F32: Mlbs U3O8 | G32: Discount | H32: Mlbs U3O8
C33: Proven | D33: =F39+F42 -> 42.36 | E33: =H39+H42 -> 22454 | F33: 49.50253748 | G33: 1 | H33: =F33*G33 -> 49.50253748
C34: Probable | D34: =F40+F43 -> 18.48 | E34: 11075 | F34: 24.4161665 | G34: 0.95 | H34: =F34*G34 -> 23.19535818
C35: Stockpile | D35: =F41+F44 -> 35.49 | E35: 14114 | F35: 31.11600668 | G35: 0.95 | H35: =F35*G35 -> 29.56020635
G36: Total | H36: =SUM(H33:H35) -> 102.258102
F38: M Tonnes | G38: % grade | H38: Metal t | I38: Mlbs
C39: Malawi | D39: Proven | E39: Kayelekera | F39: 0.39 | G39: 0.00117 | H39: 457 | I39: =H39*2204.62/10^6 -> 1.00751134
D40: Probable | E40: Kayelekera | F40: 5.34 | G40: 0.00088 | H40: 4709 | I40: 10.38155558
D41: Stockpiles | E41: Kayelekera | F41: 1.59 | G41: 0.00076 | H41: 1199 | I41: 2.64333938
C42: Namibia | D42: Proven | E42: Langer Heinrich | F42: 41.97 | G42: 0.00052 | H42: 21997 | I42: 48.49502614
D43: Probable | E43: Langer Heinrich | F43: 13.14 | G43: 0.00048 | H43: 6366 | I43: 14.03461092
D44: Stockpiles | E44: Langer Heinrich | F44: 33.9 | G44: 0.00038 | H44: 12915 | I44: 28.4726673
C48: Measured, Indicated and Infered | F48: =SUM(F51:F52) -> 246.2913279
H49: Probability adj.
C50: Total | D50: M tonnes | E50: Metal t | F50: Mlbs U3O8 | G50: Discount | H50: Mlbs U3O8
C51: Measured | D51: =SUM(F58:F60,F73,F76,F79) -> 95.3 | E51: =SUM(H58:H60,H73,H76,H79) -> 62276 | F51: =SUM(I58:I60,I73,I76,I79) -> 137.2949151 | G51: 0.75 | H51: =F51*G51 -> 102.9711863
C52: Indicated | D52: =SUM(F61:F66,F74,F77,F80) -> 70.79 | E52: =SUM(H61:H66,H74,H77,H80) -> 49440 | F52: =SUM(I61:I66,I74,I77,I80) -> 108.9964128 | G52: 0.5 | H52: =F52*G52 -> 54.4982064
C53: Inferred | D53: =SUM(F67:F72,F75,F78,F81:F106) -> 146.55 | E53: =SUM(H67:H72,H75,H78,H81:H106) -> 90442 | F53: =SUM(I67:I72,I75,I78,I81:I106) -> 199.390242 | G53: 0.25 | H53: =F53*G53 -> 49.84756051
G54: Total | H54: =SUM(H51:H53) -> 207.3169532
F57: M Tonnes | G57: % grade | H57: Metal t | I57: Mlbs
C58: Canada | D58: Measured | E58: Jacques Lake | F58: 0 | G58: 0 | H58: 0 | I58: =H58*2204.62/10^6 -> 0
E59: Michelin | F59: 17.62 | G59: 0.00097 | H59: 17045 | I59: =H59*2204.62/10^6 -> 37.5777479
E60: Rainbow | F60: 0.21 | G60: 0.00092 | H60: 193 | I60: =H60*2204.62/10^6 -> 0.42549166
D61: Indicated | E61: Gear | F61: 0.35 | G61: 0.00077 | H61: 270 | I61: 0.5952474
E62: Inda | F62: 1.2 | G62: 0.00069 | H62: 826 | I62: 1.82101612
E63: Jacques Lake | F63: 12.96 | G63: 0.00063 | H63: 8145 | I63: 17.9566299
E64: Michelin | F64: 20.65 | G64: 0.00098 | H64: 20225 | I64: 44.5884395
E65: Nash | F65: 0.68 | G65: 0.00083 | H65: 564 | I65: 1.24340568
E66: Rainbow | F66: 0.76 | G66: 0.00086 | H66: 655 | I66: 1.4440261
D67: Inferred | E67: Gear | F67: 0.3 | G67: 0.00093 | H67: 279 | I67: 0.61508898
E68: Inda | F68: 3.26 | G68: 0.00067 | H68: 2171 | I68: 4.78623002
E69: Jacques Lake | F69: 3.61 | G69: 0.00055 | H69: 1988 | I69: 4.38278456
E70: Michelin | F70: 4.54 | G70: 0.00099 | H70: 4470 | I70: 9.8546514
E71: Nash | F71: 0.51 | G71: 0.00072 | H71: 367 | I71: 0.80909554
E72: Rainbow | F72: 0.91 | G72: 0.00082 | H72: 739 | I72: 1.62921418
C73: Malawi | D73: Measured | E73: Kayelekera | F73: 0.74 | G73: 0.00101 | H73: 753 | I73: 1.66007886
D74: Indicated | E74: Kayelekera | F74: 12.71 | G74: 0.0007 | H74: 8901 | I74: 19.62332262
D75: Inferred | E75: Kayelekera | F75: 5.35 | G75: 0.00062 | H75: 3334 | I75: 7.35020308
C76: Namibia | D76: Measured | E76: Langer Heinrich | F76: 60.71 | G76: 0.00051 | H76: 31169 | I76: 68.71580078
D77: Indicated | E77: Langer Heinrich | F77: 21.48 | G77: 0.00046 | H77: 9854 | I77: 21.72432548
D78: Inferred | E78: Langer Heinrich | F78: 8.7 | G78: 0.00047 | H78: 4073 | I78: 8.97941726
C79: Australia | D79: Measured | E79: Valhalla | F79: 16.02 | G79: 0.00082 | H79: 13116 | I79: 28.91579592
D80: Indicated | E80: Bigrlyi | F80: 0 | G80: 0 | H80: 0 | I80: 0
D81: Inferred | E81: Andersons | F81: 1.4 | G81: 0.00145 | H81: 2079 | I81: 4.58340498
E82: Bikini | F82: 5.77 | G82: 0.0005 | H82: 2868 | I82: 6.32285016
E83: Duke Batman | F83: 0.53 | G83: 0.00137 | H83: 728 | I83: 1.60496336
E84: Odin | F84: 8.2 | G84: 0.00055 | H84: 4534 | I84: 9.99574708
E85: Skal | F85: 14.3 | G85: 0.00064 | H85: 9177 | I85: 20.23179774
E86: Valhalla | F86: 18.64 | G86: 0.00084 | H86: 15662 | I86: 34.52875844
E87: Carley Bore | F87: 5.4 | G87: 0.00042 | H87: 2268 | I87: 5.00007816
E88: Manyingee | F88: 8.37 | G88: 0.00085 | H88: 7127 | I88: 15.71232674
E89: Angela | F89: 0 | G89: 0 | H89: 0 | I89: 0
E90: Bigrlyi | F90: 0 | G90: 0 | H90: 0 | I90: 0
E91: Andersons | F91: 0.1 | G91: 0.00164 | H91: 204 | I91: 0.44974248
E92: Bikini | F92: 6.7 | G92: 0.00049 | H92: 3324 | I92: 7.32815688
E93: Hill One | F93: 0 | G93: 0 | H93: 0 | I93: 0
E94: Karins | F94: 0 | G94: 0 | H94: 0 | I94: 0
E95: Sundberg | F95: 0 | G95: 0 | H95: 0 | I95: 0
E96: Walbiri | F96: 0 | G96: 0 | H96: 0 | I96: 0
E97: Duke Batman | F97: 0.29 | G97: 0.0011 | H97: 325 | I97: 0.7165015
E98: Honey Pot | F98: 2.56 | G98: 0.0007 | H98: 1799 | I98: 3.96611138
E99: Mirrioola | F99: 2 | G99: 0.00056 | H99: 1132 | I99: 2.49562984
E100: Odin | F100: 5.8 | G100: 0.00059 | H100: 3430 | I100: 7.5618466
E101: Skal | F101: 1.4 | G101: 0.00052 | H101: 708 | I101: 1.56087096
E102: Valhalla | F102: 9.1 | G102: 0.00064 | H102: 5824 | I102: 12.83970688
E103: Watta | F103: 5.6 | G103: 0.0004 | H103: 2260 | I103: 4.9824412
E104: Warwai | F104: 0.4 | G104: 0.00036 | H104: 134 | I104: 0.29541908
E105: Carley Bore | F105: 17.4 | G105: 0.00028 | H105: 4825 | I105: 10.6372915
E106: Manyingee | F106: 5.41 | G106: 0.00085 | H106: 4613 | I106: 10.16991206
C111: Comparables
C113: Listed peers
F114: Main Deposit | G114: U3O8 | H114: Grade | I114: Market Cap | J114: Cash | K114: Net Debt | L114: EV | M114: Debt | N114: Ratio
C115: Company | E115: Ticker | G115: Mlbs | H115: ppm | I115: AUD M | J115: AUD M | K115: AUD M | L115: AUD M | M115: AUD M | N115: EV/Resource
C116: Producers
C117: Paladin Energy | D117: Various | E117: PDN.AX | F117: Langer Heinrich | G117: 397.16328 | H117: 520 | I117: 198 | J117: 92 | K117: 44 | L117: =I117+MAX(K117,0) -> 242 | M117: =44+J117 -> 136 | N117: =L117/G117 -> 0.609321184
C118: ERA | D118: Various | E118: ERA.AX | F118: Ranger | G118: 193.071 | H118: 3220 | I118: 266.6 | J118: 395.5 | K118: =M118-J118 -> -395.5 | L118: =I118+MAX(K118,0) -> 266.6 | M118: 0 | N118: =L118/G118 -> 1.380839173
C119: Peninsula Energy | D119: Various | E119: PEN.AX | F119: Lance Projects | G119: 110.4 | H119: 485 | I119: 39.3 | J119: 3.3 | K119: =M119-J119 -> 17.8 | L119: =I119+MAX(K119,0) -> 57.1 | M119: 21.1 | N119: =L119/G119 -> 0.5172101449
C120: Min | D120: Various | G120: =MIN(G117:G119) -> 110.4 | H120: 485 | I120: 39.3 | J120: 3.3 | K120: -395.5 | L120: 57.1 | M120: 0 | N120: 0.5172101449
C121: Average | D121: Various | G121: =AVERAGE(G117:G119) -> 233.54476 | H121: 1408.333333 | I121: 167.9666667 | J121: 163.6 | K121: -111.2333333 | L121: 188.5666667 | M121: 52.36666667 | N121: 0.8357901674
C122: Median | D122: Various | G122: =MEDIAN(G117:G119) -> 193.071 | H122: 520 | I122: 198 | J122: 92 | K122: 17.8 | L122: 242 | M122: 21.1 | N122: 0.609321184
C123: Max | D123: Various | G123: =MAX(G117:G119) -> 397.16328 | H123: 3220 | I123: 266.6 | J123: 395.5 | K123: 44 | L123: 266.6 | M123: 136 | N123: 1.380839173
C125: Developers / Explorers
C126: Berkeley Energia | D126: Various | E126: BKY.AX | F126: Salamanca | G126: 89.3 | H126: 514 | I126: 210 | J126: 105.4 | K126: =M126-J126 -> -105.4 | L126: =I126+MAX(K126,0) -> 210 | M126: 0 | N126: =L126/G126 -> 2.35162374
C127: Greenland Minerals | D127: Various | E127: GGG.AX | F127: Kvanefjeld | G127: 593 | H127: 266 | I127: 90.6 | J127: 10.7 | K127: -10.7 | L127: =I127+MAX(K127,0) -> 90.6 | M127: 0 | N127: 0.1527824621
C128: Toro Energy | D128: Various | E128: TOE.AX | F128: Wiluma Uranium | G128: 84 | H128: 482 | I128: 52.2 | J128: 5.2 | K128: 10.1 | L128: =I128+MAX(K128,0) -> 62.3 | M128: 15.3 | N128: 0.7416666667
C129: Boss Resources | D129: Various | E129: BOE.AX | F129: Honeymoon | G129: 63.3 | H129: 660 | I129: 66 | J129: 9 | K129: -5 | L129: =I129+MAX(K129,0) -> 66 | M129: 4 | N129: 1.042654028
C130: Acap | D130: Various | E130: ACB.AX | F130: Letlhakane | G130: 190.4 | H130: 321 | I130: 61 | J130: 2.6 | K130: -2.6 | L130: 61 | M130: 0 | N130: 0.3203781513
C131: Vimy Resources | D131: Various | E131: VMY.AX | F131: Mulga Rock | G131: 90.1 | H131: 570 | I131: 54 | J131: 7.3 | K131: -7.3 | L131: 54 | M131: 0 | N131: 0.5993340733
C132: Deep Yellow | D132: Various | E132: DYL.AX | F132: Omahola | G132: 95.2 | H132: 306 | I132: 46.3 | J132: 3.5 | K132: -3.5 | L132: 46.3 | M132: 0 | N132: 0.4863445378
C133: Bannerman | D133: Various | E133: BMN.AX | F133: Etango | G133: 270.7 | H133: 186 | I133: 32.5 | J133: 2 | K133: -2 | L133: 32.5 | M133: 0 | N133: 0.120059106
C134: Aura Energy | D134: Various | E134: AEE.AX | F134: Tiris | G134: 851.6 | H134: 160 | I134: 20.7 | J134: 0.6 | K134: -0.6 | L134: 20.7 | M134: 0 | N134: 0.02430718647
C135: Marenica | D135: Various | E135: MEY.AX | F135: Marenica | G135: 61.3 | H135: 94 | I135: 8.1 | J135: 0.3 | K135: 1.3 | L135: 9.4 | M135: 1.6 | N135: 0.1533442088
C136: UraniumSA | D136: Various | E136: USA.AX | F136: Samphire | G136: 41 | H136: 290 | I136: 2.5 | J136: 0.3 | K136: -0.3 | L136: 2.5 | M136: 0 | N136: 0.06097560976
C137: Min | D137: Various | G137: =MIN(G126:G136) -> 41 | H137: 94 | I137: 2.5 | J137: 0.3 | K137: -105.4 | L137: 2.5 | M137: 0 | N137: 0.02430718647
C138: Average | D138: Various | G138: =AVERAGE(G126:G136) -> 220.9 | H138: 349.9090909 | I138: 58.53636364 | J138: 13.35454545 | K138: -11.45454545 | L138: 59.57272727 | M138: 1.9 | N138: 0.5503154337
C139: Median | D139: Various | G139: =MEDIAN(G126:G136) -> 90.1 | H139: 306 | I139: 52.2 | J139: 3.5 | K139: -2.6 | L139: 54 | M139: 0 | N139: 0.3203781513
C140: Max | D140: Various | G140: =MAX(G126:G136) -> 851.6 | H140: 660 | I140: 210 | J140: 105.4 | K140: 10.1 | L140: 210 | M140: 15.3 | N140: 2.35162374
C143: Overall (Equal Blend)
C144: Min | D144: Various | G144: =MIN(G117:G119,G126:G136) -> 41 | H144: 94 | I144: 2.5 | J144: 0.3 | K144: -395.5 | L144: 2.5 | M144: 0 | N144: 0.02430718647
C145: Average | D145: Various | G145: =AVERAGE(G117:G119,G126:G136) -> 223.6095914 | H145: 576.7142857 | I145: 81.98571429 | J145: 45.55 | K145: -32.83571429 | L145: 87.21428571 | M145: 12.71428571 | N145: 0.6114885909
C146: Median | D146: Various | G146: =MEDIAN(G117:G119,G126:G136) -> 102.8 | H146: 401.5 | I146: 53.1 | J146: 4.35 | K146: -2.3 | L146: 59.05 | M146: 0 | N146: 0.5017773414
C147: Max | D147: Various | G147: =MAX(G117:G119,G126:G136) -> 851.6 | H147: 3220 | I147: 266.6 | J147: 395.5 | K147: 44 | L147: 266.6 | M147: 136 | N147: 2.35162374

Sheet LHM & KM>

Sheet Inputs - 2
A1: Assumptions
A2: =Name_Project -> Langer Heinrich and Kalakera
C4: Timing
C5: Start date
E6: Core Timeline | M6: CAPEX Timeline
C7: LMH
C8: Key project stages | E8: Model start | F8: Production | G8: Placing into C&M | H8: Care & maintenance | I8: Restart from C&M | J8: Production | K8: Restoration | M8: BUP
C9: Start | D9: Date | F9: =E11+1 -> 2018-07-01 | G9: 2019-07-01 | H9: 2019-10-01 | I9: 2020-10-01 | J9: 2021-04-01 | K9: 2044-11-01 | M9: =F9 -> 2018-07-01
C10: Duration | D10: Qrtrs / Months | F10: 4 | G10: 1 | H10: =1+E22 -> 1 | I10: 2 | J10: 23.5 | K10: =E42/Qtrs_Yr -> 2 | M10: 6
C11: End | D11: Date | E11: 2018-06-30 | F11: =EOMONTH(F9,F10*Months_Qtr-1) -> 2019-06-30 | G11: =EOMONTH(G9,G10*Months_Qtr-1) -> 2019-09-30 | H11: =EOMONTH(H9,H10*Months_Yr-1) -> 2020-09-30 | I11: =EOMONTH(I9,I10*Months_Qtr-1) -> 2021-03-31 | J11: =EOMONTH(J9,J10*Months_Yr) -> 2044-10-31 | K11: =EOMONTH(K9,K10*Months_Yr) -> 2046-11-30 | M11: =EOMONTH(M9,M10*Months_Qtr-1) -> 2019-12-31
E14: Core Timeline
C15: KM
C16: Key project stages | E16: Model start | F16: Care & maintenance | G16: Restart from C&M | H16: Production | I16: Restoration
C17: Start | D17: Date | F17: =E19+1 -> 2018-07-01 | G17: =F19+1 -> 2021-07-01 | H17: =G19+1 -> 2022-01-01 | I17: =H19+1 -> 2030-02-01
C18: Duration | D18: Qrtrs / Months | F18: =3+E22 -> 3 | G18: 2 | H18: 8 | I18: =E58/Qtrs_Yr -> 1
C19: End | D19: Date | E19: 2018-06-30 | F19: =EOMONTH(F17,F18*Months_Yr-1) -> 2021-06-30 | G19: =EOMONTH(G17,G18*Months_Qtr-1) -> 2021-12-31 | H19: =EOMONTH(H17,H18*Months_Yr) -> 2030-01-31 | I19: =EOMONTH(I17,I18*Months_Yr) -> 2031-02-28
C22: C&M Delay Sensitivity | E22: ='Valuation - 2'!K61 -> 0
C24: Capital Expenditure
C27: Growth Capex
C29: LHM
E30: Applied | F30: Total | G30: 1 | H30: 2 | I30: 3 | J30: 4 | K30: Check | L30: Source
C31: Placing into C&M | D31: AUD M | E31: 0 | F31: =SUM(G31:J31) -> 1 | G31: 1 | K31: =(SUM(G31:J31)-1)*SUM(G31:J31) -> 0
C32: Restart from C&M | D32: AUD M | E32: =(35/0.75)*(1+$F$282) -> 46.66666667 | F32: =SUM(G32:J32) -> 1 | G32: 0.5 | H32: 0.5 | K32: =(SUM(G32:J32)-1)*SUM(G32:J32) -> 0 | L32: May 2018 Investors Presentaion
C33: BUP | D33: AUD M | E33: =(35/0.75)*(1+$F$282) -> 46.66666667 | F33: =SUM(G33:J33) -> 1 | G33: 0.1 | H33: 0.45 | I33: 0.45 | K33: =(SUM(G33:J33)-1)*SUM(G33:J33) -> 0
C34: Spare | D34: AUD M | E34: 0 | F34: =SUM(G34:J34) -> 0 | K34: =(SUM(G34:J34)-1)*SUM(G34:J34) -> 0
C35: Total | D35: AUD M | E35: =SUM(E31:E34) -> 93.33333333
C37: Contingency
C38: Contingency factor | D38: %
C40: Closure/restoration | E40: Values | F40: Source
C41: Restoration expenses | D41: AUD M | E41: =(65)*(1+$F$282) -> 65 | F41: Independent Experts Report
C42: Restoration reserve timing | D42: Quarters | E42: 8 | F42: Independent Experts Report
C46: KM
E47: Applied | F47: Total | G47: 1 | H47: 2 | I47: 3 | J47: 4 | K47: Check | L47: Source
C48: Restart from C&M | D48: AUD M | E48: =35/0.75 -> 46.66666667 | F48: =SUM(G48:J48) -> 1 | G48: 0.5 | H48: 0.5 | K48: =(SUM(G48:J48)-1)*SUM(G48:J48) -> 0 | L48: May 2018 Investors Presentaion
C49: Spare | D49: AUD M | E49: 0 | F49: =SUM(G49:J49) -> 0 | K49: =(SUM(G49:J49)-1)*SUM(G49:J49) -> 0
C50: Spare | D50: AUD M | E50: 0 | F50: =SUM(G50:J50) -> 0 | K50: =(SUM(G50:J50)-1)*SUM(G50:J50) -> 0
C51: Total | D51: AUD M | E51: =SUM(E48:E50) -> 46.66666667
C53: Contingency
C54: Contingency factor | D54: %
C56: Closure/restoration | E56: Values | F56: Source
C57: Restoration expenses | D57: AUD M | E57: =(55)*(1+$F$282) -> 55 | F57: Independent Experts Report
C58: Restoration reserve timing | D58: Quarters | E58: 4 | F58: Independent Experts Report
C62: Maintenanec Capex
F64: Values | G64: Source
C65: Care & maintenance | D65: AUD M | F65: =(6.66666666666667)*(1+$F$282) -> 6.666666667 | G65: May 2018 Investors Presentaion
C66: Maintenance capex, p.a | D66: AUD M | G66: Should be Accounted for in other Costs
C67: Periodicity | D67: Years | F67: 1
F69: Values | G69: Source
C70: Care & maintenance | D70: AUD M | F70: =(5/0.75)*(1+$F$282) -> 6.666666667 | G70: May 2018 Investors Presentaion
C71: Maintenance capex, p.a | D71: AUD M | G71: Should be Accounted for in other Costs
C72: Periodicity | D72: Years | F72: 1
C74: *KPMG Independent expert report
C76: Property, Plant & Equipment
F77: Values | G77: Source
C78: Property, Plant and Equipment | D78: AUD M | F78: 244.3 | G78: Pro-forma Balance sheet
C84: Volume
C86: Reserves & StockPiles
C88: LHM
C90: Reserves | E90: Uranium Reserves | I90: Ore
E91: U3O8 KT | F91: Lbs/T | G91: U3O8 Mlbs | I91: Avg grade | J91: kt
D92: Proven | E92: 21997 | F92: =T_Lbs -> 2204.62 | G92: =E92*F92/10^6 -> 48.49502614 | I92: 0.00052 | J92: =E92/I92/10^6*1000 -> 42301.92308
D93: Probable | E93: 6366 | F93: =T_Lbs -> 2204.62 | G93: =E93*F93/10^6 -> 14.03461092 | I93: 0.00048 | J93: =E93/I93/10^6*1000 -> 13262.5
D94: P&P | E94: =SUM(E92:E93) -> 28363 | F94: =T_Lbs -> 2204.62 | G94: =SUM(G92:G93) -> 62.52963706 | I94: =E94/(J94*10^6)*1000 -> 0.0005104525239 | J94: =SUM(J92:J93) -> 55564.42308
C96: Stockpiles | E96: Uranium Reserves | I96: Ore
E97: U3O8 KT | F97: Lbs/T | G97: U3O8 Mlbs | I97: Avg grade | J97: kt
D98: Medium Grade | E98: =J98*I98*1000 -> 1520 | F98: =T_Lbs -> 2204.62 | G98: =E98*F98/10^6 -> 3.3510224 | I98: 0.000475 | J98: =800*4 -> 3200
D99: Low Grade | E99: =12915-E98 -> 11395 | F99: =T_Lbs -> 2204.62 | G99: =E99*F99/10^6 -> 25.1216449
D100: Combined | E100: =SUM(E98:E99) -> 12915 | F100: =T_Lbs -> 2204.62 | G100: =SUM(G98:G99) -> 28.4726673 | I100: 0.00038 | J100: =E100/I100/10^6*1000 -> 33986.84211
C103: KM
C105: Reserves | E105: Uranium Reserves | I105: Ore
E106: U3O8 KT | F106: Lbs/T | G106: U3O8 Mlbs | I106: Avg grade | J106: kt
D107: Proven | E107: 457 | F107: =T_Lbs -> 2204.62 | G107: =E107*F107/10^6 -> 1.00751134 | I107: 0.00117 | J107: =E107/I107/10^6*1000 -> 390.5982906
D108: Probable | E108: 4709 | F108: =T_Lbs -> 2204.62 | G108: =E108*F108/10^6 -> 10.38155558 | I108: 0.00088 | J108: =E108/I108/10^6*1000 -> 5351.136364
D109: P&P | E109: =SUM(E107:E108) -> 5166 | F109: =T_Lbs -> 2204.62 | G109: =SUM(G107:G108) -> 11.38906692 | I109: =E109/(J109*10^6)*1000 -> 0.0008997280981 | J109: =SUM(J107:J108) -> 5741.734654
C111: Stockpiles | E111: Uranium Reserves | I111: Ore
E112: U3O8 T | F112: Lbs/T | G112: U3O8 Mlbs | I112: Avg grade | J112: kt
D113: Various | E113: 1199 | F113: =T_Lbs -> 2204.62 | G113: =E113*F113/10^6 -> 2.64333938 | I113: 0.00076 | J113: =E113/I113/10^6*1000 -> 1577.631579
Q116: =12*4 -> 48
C117: Mining Schedule
C119: LMH
C120: High Grade | E120: 1 | F120: =E120+1 -> 2 | G120: =F120+1 -> 3 | H120: 4 | I120: 5 | J120: 6 | K120: 7 | L120: =K120+1 -> 8 | M120: =L120+1 -> 9 | N120: 10 | O120: =N120+1 -> 11 | P120: =O120+1 -> 12 | Q120: Source
C121: Ore mined | D121: kt | E121: 0 | F121: 2000 | G121: 4500 | H121: 10000 | I121: 6750 | J121: 6600 | K121: 9500 | L121: 7250 | M121: 800 | N121: 4250 | O121: 4000 | P121: 250 | Q121: Independent Experts Report
C122: Grade | D122: % | E122: 0.00051 | F122: 0.00051 | G122: 0.00051 | H122: 0.00051 | I122: 0.00051 | J122: 0.00051 | K122: 0.00051 | L122: 0.00051 | M122: 0.00051 | N122: 0.00051 | O122: 0.00051 | P122: 0.00051
C124: Overburden | E124: Ratio of overburden to ore extracted
C125: Strip ratio | D125: x | E125: 4.5 | F125: 4.5 | G125: 4.5 | H125: 4.5 | I125: 4.5 | J125: 4.5 | K125: 4.5 | L125: 4.5 | M125: 4.5 | N125: 4.5 | O125: 4.5 | P125: 4.5
C127: Recovery | E127: 0.85 | F127: 0.875 | G127: 0.9 | H127: 0.9 | I127: 0.9 | J127: 0.9 | K127: 0.9 | L127: 0.9 | M127: 0.9 | N127: 0.9 | O127: 0.9 | P127: =O127 -> 0.9 | Q127: Independent Experts Report
C128: Recovery Rate | D128: % | E128: =E127*(1+$F$284) -> 0.85 | F128: 0.875 | G128: 0.9 | H128: 0.9 | I128: 0.9 | J128: 0.9 | K128: 0.9 | L128: 0.9 | M128: 0.9 | N128: 0.9 | O128: 0.9 | P128: 0.9 | Q128: Independent Experts Report
C130: Total Mined | D130: kt | E130: =SUM(F121:P121) -> 55900
C131: Avg Grade | D131: %
C134: KM
C135: High Grade | E135: 1 | F135: =E135+1 -> 2 | G135: =F135+1 -> 3 | H135: =G135+1 -> 4 | I135: =H135+1 -> 5 | J135: =I135+1 -> 6 | K135: Source
C136: Ore mined | D136: kt | E136: 200 | F136: 1900 | G136: 750 | H136: 2400 | I136: 1450 | J136: 550 | K136: Independent Experts Report
C137: Grade | D137: % | E137: 0.0009 | F137: 0.0009 | G137: 0.0009 | H137: 0.0009 | I137: 0.0009 | J137: 0.0009
C139: Overburden | E139: Ratio of overburden to ore extracted
C140: Strip ratio | D140: x | E140: 4.5 | F140: 4.5 | G140: 4.5 | H140: 4.5 | I140: 4.5 | J140: 4.5
C143: Recovery | E143: 0.85 | F143: 0.85 | G143: 0.85 | H143: 0.85 | I143: 0.85 | J143: 0.85
C144: Recovery Rate | D144: % | E144: =E143*(1+$F$284) -> 0.85 | F144: 0.85 | G144: 0.85 | H144: 0.85 | I144: 0.85 | J144: 0.85
C148: Total Mined | D148: kt | E148: =SUM(E136:J136) -> 7250
C149: Avg Grade | D149: %
C152: Milling Schedule
C154: LMH | E154: Pre - Care & Maintenance Period | I154: Post - Care & Maintenance Period
C155: Processing facility | E155: 1 | F155: 2 | G155: 3 | H155: 4 | I155: 5 | J155: 6 | K155: 7 | L155: 8 | M155: Source
C156: Ramp up | D156: % | E156: 0.6 | F156: 0.6 | G156: 0.6 | H156: 0.6 | I156: 0.9 | J156: 0.95 | K156: 0.95 | L156: 1 | M156: Independent Experts Report
C157: Capacity | D157: Kt/Qt | E157: =950 -> 950 | M157: Independent Experts Report
C159: Technological process | E159: Input | F159: Sensitivity | G159: Applied
C160: Recovery | D160: % | E160: 0.95 | G160: =E160+F160 -> 0.95
C162: KM | E162: Post - Care & Maintenance Period
C163: Processing facility | E163: 1 | F163: 2 | G163: 3 | H163: 4 | I163: Source
C164: Ramp up | D164: % | E164: 0.9 | F164: 0.95 | G164: 0.95 | H164: 1 | I164: Independent Experts Report
C165: Capacity | D165: Kt/Qt | E165: 365 | I165: Independent Experts Report
C167: Technological process | E167: Input | F167: Sensitivity | G167: Applied
C168: Recovery | D168: % | E168: 0.95 | G168: =E168+F168 -> 0.95
C171: Operations
C172: Spot pricing
C174: Price Case
C175: This section outlines pricing cases for scenario analysis | F175: 2018 | G175: =F175+1 -> 2019 | H175: 2020 | I175: 2021 | J175: 2022 | K175: 2023 | L175: 2024
B176: =IF(#REF!=C176,1,0) ->  | C176: Assumption | D176: USD/lbs | F176: 28 | G176: 33 | H176: 41 | I176: 50 | J176: 56 | K176: 58 | L176: 60
C177: Applied case | D177: USD/lbs | F177: =F176*(1+$F$281) -> 28 | G177: =G176*(1+$F$281) -> 33 | H177: 41 | I177: 50 | J177: 56 | K177: 58 | L177: 60
C181: Operating Costs
C183: LMH
C185: Fixed Costs (Real) | F185: Values | G185: Source
C186: Spare | D186: NAD M p.a
C187: Spare | D187: NAD M p.a
C188: Spare | D188: NAD M p.a
C190: Variable Costs (Real) | F190: Values | G190: Source
C191: Mining | D191: NAD/t earth moved | F191: =(2.3/L381)*(1+$F$283) -> 21.9047619 | G191: 2010 Technical Report | J191: =F191*$L$381 -> 2.3
C192: Processing and Other | D192: NAD/lbs Produced | F192: =(18.95/L381)*(1+$F$283) -> 180.4761905 | G192: 2017 Annual Report | J192: =F192*$L$381 -> 18.95
C193: Production & Distribution | D193: NAD/lbs Produced | F193: =(0.85/L381)*(1+$F$283) -> 8.095238095 | G193: 2017 Annual Report | J193: 0.85
C194: Spare | D194: NAD/lbs Produced | F194: 0 | J194: 0
C195: Spare | D195: NAD/lbs Produced | F195: 0 | J195: 0
C197: Royalties | F197: Values | G197: Source | J197: =SUM(J191:J195) -> 22.1
C198: Royalty | D198: % of spot revenue | F198: 0.0325
C201: KM
C203: Fixed Costs (Real) | F203: Values | G203: Source
C204: Spare | D204: MWK M p.a
C205: Spare | D205: MWK M p.a
C206: Spare | D206: MWK M p.a
C208: Variable Costs (Real) | F208: Values | G208: Source
C209: Mining | D209: MWK/t earth moved | F209: 0 | G209: (should be included in C1 Below)
C210: C1 | D210: MWK/Lbs Produced | F210: =(42.5/L382)*(1+$F$283) -> 23120 | G210: 2013 Annual Report
C211: Production & Distribution | F211: =(2.64/L382)*(1+$F$283) -> 1436.16 | G211: 2013 Annual Report
C212: Spare | F212: 0
C213: Spare | F213: 0
C215: Royalties | F215: Values | G215: Source
C216: Royalty | D216: % of spot revenue | F216: 0.03
C218: Company Wide
C220: Fixed Costs (Real) | F220: Values | G220: Source
C221: Administration, Marketing and Non-production Costs | D221: AUD M p.a | F221: =(3/0.75)*(1+$F$283) -> 4 | G221: 2017 Annual Report
C222: Exploration | D222: AUD M p.a | F222: =(5/0.75)*(1+$F$283) -> 6.666666667 | G222: May 2018 Investors Presentaion
C225: Working capital
C227: Operations Wide (LHM & KM)
F228: Values | G228: Source
C229: Accounts Receivable | D229: %Rev | F229: 0.05 | G229: Team Estimates
C230: Inventory | D230: %Rev | F230: 0.25 | G230: Team Estimates
F232: Values | G232: Source
C233: Payables | D233: %Rev | F233: 0.2 | G233: Team Estimates
C236: Corporate tax | F236: Values | G236: Source
C237: Tax rate | D237: % | F237: 0.375
C238: Tax losses at the start date | D238: AUD M | F238: 284 | G238: 2017 Annual Report
C242: Debt
C243: Notes
C244: Principal | F244: Values | G244: Source
C245: Principal | D245: USD M | F245: 115 | G245: Offering Circular for the Issue of US$115 New Notes
C246: Principal Payable | D246: USD M | F246: 90.5 | G246: Offering Circular for the Issue of US$115 New Notes / Pro-forma Balance sheet
C248: Repayment | F248: Values | G248: Source
C249: Cash Interest | D249: % | F249: 0.09 | G249: Offering Circular for the Issue of US$115 New Notes
C250: PIK Interest | D250: % | F250: 0.1 | G250: Offering Circular for the Issue of US$115 New Notes
C251: Payment Period | D251: Annually | F251: 2018-03-31 | G251: Offering Circular for the Issue of US$115 New Notes
C253: Criteria | F253: Values | G253: Source
C254: CFADS (specified in Report) | D254: USD M | F254: 5 | G254: Offering Circular for the Issue of US$115 New Notes
C256: Repayment Date | F256: Values | G256: Source
C257: Balance Due date | D257: Date | F257: 2023-03-30 | G257: Offering Circular for the Issue of US$115 New Notes
C260: CNNC Debt
C261: Principal | F261: Values | G261: Source
C262: Current Principal | D262: AUD M | F262: 89.5 | G262: 2017 Annual Report
C264: Repayment | F264: Values | G264: Source
C265: Interest Margin | D265: % | F265: =AVERAGE(2%,4.25%) -> 0.03125 | G265: 2017 Annual Report
C266: Payment Period | D266: Annually | F266: 2018-12-31 | G266: Assumption
C268: Criteria | F268: Values | G268: Source
C269: Net cashflow | D269: AUD M | F269: 10 | G269: Assumption
C271: Armortization | F271: Values | G271: Source
C272: =C271 -> Armortization | D272: % | F272: 0 | G272: 2017 Annual Report
C274: Repayment Date | F274: Values | G274: Source
C275: Balance Due date | D275: Date | F275: - | G275: Speculative at best, Repayment can be indefinetly deffered upon agreement, 2017 Annual Report
C277: Valuation
C279: Sensitivity Variables
C281: Uranium Flex | D281: % | F281: ='Overview - Valuation Summary'!Y5 -> 0
C282: CAPEX Flex | D282: % | F282: ='Overview - Valuation Summary'!Y6 -> 0
C283: OPEX Flex | D283: % | F283: ='Overview - Valuation Summary'!Y7 -> 0
C284: Recovery Flex | D284: %
C285: FX Flex | D285: % | F285: ='Overview - Valuation Summary'!Y8 -> 0
C286: WACC Flex | D286: % | F286: ='Overview - Valuation Summary'!Y9 -> 0
C291: Min Cash Balance | D291: AUD M | E291: 1
C293: Ownership
E294: Values | F294: Source
C295: LHM | D295: % | E295: 0.75 | F295: 2017 Annual Report
C296: KM | D296: % | E296: 0.85 | F296: 2017 Annual Report
C300: Distribution policy | E300: Values | F300: Source
C301: Dividend payout ratio | D301: % | E301: 0 | F301: Assumption
C303: CAPM buildup
... 77 more rows

Sheet Timing
A1: Timing
A2: =Name_Project -> Langer Heinrich and Kalakera | E2: =Maste_check -> 
C4: Period Start | J4: =I5+1 -> 2018-07-01 | K4: =J5+1 -> 2018-10-01 | L4: 2019-01-01 | M4: 2019-04-01 | N4: 2019-07-01 | O4: 2019-10-01 | P4: 2020-01-01 | Q4: 2020-04-01 | R4: 2020-07-01 | S4: 2020-10-01 | T4: 2021-01-01 | U4: 2021-04-01 | V4: 2021-07-01 | W4: 2021-10-01 | X4: 2022-01-01 | Y4: 2022-04-01 | Z4: 2022-07-01 | AA4: 2022-10-01 | AB4: 2023-01-01 | AC4: 2023-04-01 | AD4: 2023-07-01 | AE4: 2023-10-01 | AF4: 2024-01-01 | AG4: 2024-04-01 | AH4: 2024-07-01 | AI4: 2024-10-01 | AJ4: 2025-01-01 | AK4: 2025-04-01 | AL4: 2025-07-01 | AM4: 2025-10-01 | AN4: 2026-01-01 | AO4: 2026-04-01 | AP4: 2026-07-01 | AQ4: 2026-10-01 | AR4: 2027-01-01 | AS4: 2027-04-01 | AT4: 2027-07-01 | AU4: 2027-10-01 | AV4: 2028-01-01 | AW4: 2028-04-01 | AX4: 2028-07-01 | AY4: 2028-10-01 | AZ4: 2029-01-01 | BA4: 2029-04-01 | BB4: 2029-07-01 | BC4: 2029-10-01 | BD4: 2030-01-01 | BE4: 2030-04-01 | BF4: 2030-07-01 | BG4: 2030-10-01 | BH4: 2031-01-01 | BI4: 2031-04-01 | BJ4: 2031-07-01 | BK4: 2031-10-01 | BL4: 2032-01-01 | BM4: 2032-04-01 | BN4: =BM5+1 -> 2032-07-01 | BO4: 2032-10-01 | BP4: 2033-01-01 | BQ4: 2033-04-01 | BR4: 2033-07-01 | BS4: 2033-10-01 | BT4: 2034-01-01 | BU4: 2034-04-01 | BV4: 2034-07-01 | BW4: 2034-10-01 | BX4: 2035-01-01 | BY4: 2035-04-01 | BZ4: 2035-07-01 | CA4: 2035-10-01 | CB4: 2036-01-01 | CC4: 2036-04-01 | CD4: 2036-07-01 | CE4: 2036-10-01 | CF4: 2037-01-01 | CG4: 2037-04-01 | CH4: 2037-07-01 | CI4: 2037-10-01 | CJ4: 2038-01-01 | CK4: 2038-04-01 | CL4: 2038-07-01 | CM4: 2038-10-01 | CN4: 2039-01-01 | CO4: 2039-04-01 | CP4: 2039-07-01 | CQ4: 2039-10-01 | CR4: 2040-01-01 | CS4: 2040-04-01 | CT4: =CS5+1 -> 2040-07-01 | CU4: 2040-10-01 | CV4: 2041-01-01 | CW4: 2041-04-01 | CX4: 2041-07-01 | CY4: 2041-10-01 | CZ4: 2042-01-01 | DA4: 2042-04-01 | DB4: 2042-07-01 | DC4: 2042-10-01 | DD4: 2043-01-01 | DE4: 2043-04-01 | DF4: 2043-07-01 | DG4: 2043-10-01 | DH4: 2044-01-01 | DI4: 2044-04-01 | DJ4: 2044-07-01 | DK4: 2044-10-01 | DL4: 2045-01-01 | DM4: 2045-04-01 | DN4: 2045-07-01 | DO4: 2045-10-01 | DP4: 2046-01-01 | DQ4: 2046-04-01 | DR4: 2046-07-01 | DS4: 2046-10-01 | DT4: 2047-01-01 | DU4: 2047-04-01 | DV4: 2047-07-01 | DW4: 2047-10-01 | DX4: 2048-01-01 | DY4: 2048-04-01 | DZ4: =DY5+1 -> 2048-07-01 | EA4: 2048-10-01 | EB4: 2049-01-01 | EC4: 2049-04-01 | ED4: 2049-07-01 | EE4: 2049-10-01 | EF4: 2050-01-01 | EG4: 2050-04-01 | EH4: 2050-07-01 | EI4: 2050-10-01 | EJ4: 2051-01-01 | EK4: 2051-04-01
C5: Period End | I5: ='Inputs - 2'!E11 -> 2018-06-30 | J5: =EOMONTH(J4,Months_Qtr-1) -> 2018-09-30 | K5: 2018-12-31 | L5: 2019-03-31 | M5: 2019-06-30 | N5: 2019-09-30 | O5: 2019-12-31 | P5: 2020-03-31 | Q5: 2020-06-30 | R5: 2020-09-30 | S5: 2020-12-31 | T5: 2021-03-31 | U5: 2021-06-30 | V5: 2021-09-30 | W5: 2021-12-31 | X5: 2022-03-31 | Y5: 2022-06-30 | Z5: 2022-09-30 | AA5: 2022-12-31 | AB5: 2023-03-31 | AC5: 2023-06-30 | AD5: 2023-09-30 | AE5: 2023-12-31 | AF5: 2024-03-31 | AG5: 2024-06-30 | AH5: 2024-09-30 | AI5: 2024-12-31 | AJ5: 2025-03-31 | AK5: 2025-06-30 | AL5: 2025-09-30 | AM5: 2025-12-31 | AN5: 2026-03-31 | AO5: 2026-06-30 | AP5: =EOMONTH(AP4,Months_Qtr-1) -> 2026-09-30 | AQ5: 2026-12-31 | AR5: 2027-03-31 | AS5: 2027-06-30 | AT5: 2027-09-30 | AU5: 2027-12-31 | AV5: 2028-03-31 | AW5: 2028-06-30 | AX5: 2028-09-30 | AY5: 2028-12-31 | AZ5: 2029-03-31 | BA5: 2029-06-30 | BB5: 2029-09-30 | BC5: 2029-12-31 | BD5: 2030-03-31 | BE5: 2030-06-30 | BF5: 2030-09-30 | BG5: 2030-12-31 | BH5: 2031-03-31 | BI5: 2031-06-30 | BJ5: 2031-09-30 | BK5: 2031-12-31 | BL5: 2032-03-31 | BM5: 2032-06-30 | BN5: =EOMONTH(BN4,Months_Qtr-1) -> 2032-09-30 | BO5: 2032-12-31 | BP5: 2033-03-31 | BQ5: 2033-06-30 | BR5: 2033-09-30 | BS5: 2033-12-31 | BT5: 2034-03-31 | BU5: 2034-06-30 | BV5: 2034-09-30 | BW5: 2034-12-31 | BX5: 2035-03-31 | BY5: 2035-06-30 | BZ5: 2035-09-30 | CA5: 2035-12-31 | CB5: 2036-03-31 | CC5: 2036-06-30 | CD5: 2036-09-30 | CE5: 2036-12-31 | CF5: 2037-03-31 | CG5: 2037-06-30 | CH5: 2037-09-30 | CI5: 2037-12-31 | CJ5: 2038-03-31 | CK5: 2038-06-30 | CL5: 2038-09-30 | CM5: 2038-12-31 | CN5: 2039-03-31 | CO5: 2039-06-30 | CP5: 2039-09-30 | CQ5: 2039-12-31 | CR5: 2040-03-31 | CS5: 2040-06-30 | CT5: 2040-09-30 | CU5: 2040-12-31 | CV5: 2041-03-31 | CW5: 2041-06-30 | CX5: 2041-09-30 | CY5: 2041-12-31 | CZ5: =EOMONTH(CZ4,Months_Qtr-1) -> 2042-03-31 | DA5: 2042-06-30 | DB5: 2042-09-30 | DC5: 2042-12-31 | DD5: 2043-03-31 | DE5: 2043-06-30 | DF5: 2043-09-30 | DG5: 2043-12-31 | DH5: 2044-03-31 | DI5: 2044-06-30 | DJ5: 2044-09-30 | DK5: 2044-12-31 | DL5: 2045-03-31 | DM5: 2045-06-30 | DN5: 2045-09-30 | DO5: 2045-12-31 | DP5: 2046-03-31 | DQ5: 2046-06-30 | DR5: 2046-09-30 | DS5: 2046-12-31 | DT5: 2047-03-31 | DU5: 2047-06-30 | DV5: 2047-09-30 | DW5: 2047-12-31 | DX5: 2048-03-31 | DY5: 2048-06-30 | DZ5: =EOMONTH(DZ4,Months_Qtr-1) -> 2048-09-30 | EA5: 2048-12-31 | EB5: 2049-03-31 | EC5: 2049-06-30 | ED5: 2049-09-30 | EE5: 2049-12-31 | EF5: 2050-03-31 | EG5: 2050-06-30 | EH5: 2050-09-30 | EI5: 2050-12-31 | EJ5: 2051-03-31 | EK5: 2051-06-30
D6: Start | E6: End
C7: BUP | D7: ='Inputs - 2'!M9 -> 2018-07-01 | E7: ='Inputs - 2'!M11 -> 2019-12-31 | I7: =SUM(J7:EK7) -> 6 | J7: =IF(AND(J$4>=$D7,J$5<=$E7),1,0) -> 1 | K7: 1 | L7: 1 | M7: 1 | N7: 1 | O7: 1 | P7: 0 | Q7: 0 | R7: 0 | S7: 0 | T7: =IF(AND(T$4>=$D7,T$5<=$E7),1,0) -> 0 | U7: 0 | V7: 0 | W7: 0 | X7: 0 | Y7: 0 | Z7: 0 | AA7: 0 | AB7: 0 | AC7: 0 | AD7: =IF(AND(AD$4>=$D7,AD$5<=$E7),1,0) -> 0 | AE7: 0 | AF7: 0 | AG7: 0 | AH7: 0 | AI7: 0 | AJ7: 0 | AK7: 0 | AL7: 0 | AM7: 0 | AN7: =IF(AND(AN$4>=$D7,AN$5<=$E7),1,0) -> 0 | AO7: 0 | AP7: 0 | AQ7: 0 | AR7: 0 | AS7: 0 | AT7: 0 | AU7: 0 | AV7: 0 | AW7: 0 | AX7: =IF(AND(AX$4>=$D7,AX$5<=$E7),1,0) -> 0 | AY7: 0 | AZ7: 0 | BA7: 0 | BB7: 0 | BC7: 0 | BD7: 0 | BE7: 0 | BF7: 0 | BG7: 0 | BH7: =IF(AND(BH$4>=$D7,BH$5<=$E7),1,0) -> 0 | BI7: 0 | BJ7: 0 | BK7: 0 | BL7: 0 | BM7: 0 | BN7: 0 | BO7: 0 | BP7: 0 | BQ7: 0 | BR7: =IF(AND(BR$4>=$D7,BR$5<=$E7),1,0) -> 0 | BS7: 0 | BT7: 0 | BU7: 0 | BV7: 0 | BW7: 0 | BX7: 0 | BY7: 0 | BZ7: 0 | CA7: 0 | CB7: =IF(AND(CB$4>=$D7,CB$5<=$E7),1,0) -> 0 | CC7: 0 | CD7: 0 | CE7: 0 | CF7: 0 | CG7: 0 | CH7: 0 | CI7: 0 | CJ7: 0 | CK7: 0 | CL7: =IF(AND(CL$4>=$D7,CL$5<=$E7),1,0) -> 0 | CM7: 0 | CN7: 0 | CO7: 0 | CP7: 0 | CQ7: 0 | CR7: 0 | CS7: 0 | CT7: 0 | CU7: 0 | CV7: =IF(AND(CV$4>=$D7,CV$5<=$E7),1,0) -> 0 | CW7: 0 | CX7: 0 | CY7: 0 | CZ7: 0 | DA7: 0 | DB7: 0 | DC7: 0 | DD7: 0 | DE7: 0 | DF7: =IF(AND(DF$4>=$D7,DF$5<=$E7),1,0) -> 0 | DG7: 0 | DH7: 0 | DI7: 0 | DJ7: 0 | DK7: 0 | DL7: 0 | DM7: 0 | DN7: 0 | DO7: 0 | DP7: =IF(AND(DP$4>=$D7,DP$5<=$E7),1,0) -> 0 | DQ7: 0 | DR7: 0 | DS7: 0 | DT7: 0 | DU7: 0 | DV7: 0 | DW7: 0 | DX7: 0 | DY7: 0 | DZ7: =IF(AND(DZ$4>=$D7,DZ$5<=$E7),1,0) -> 0 | EA7: 0 | EB7: 0 | EC7: 0 | ED7: 0 | EE7: 0 | EF7: 0 | EG7: 0 | EH7: 0 | EI7: 0 | EJ7: 0 | EK7: 0
C9: =TRANSPOSE('Inputs - 2'!F8:K8) -> Production | D9: =TRANSPOSE('Inputs - 2'!F9:K9) -> 2018-07-01 | E9: =TRANSPOSE('Inputs - 2'!F11:K11) -> 2019-06-30 | I9: =SUM(J9:EK9) -> 4 | J9: 1 | K9: 1 | L9: 1 | M9: 1 | N9: 0 | O9: 0 | P9: 0 | Q9: 0 | R9: 0 | S9: 0 | T9: 0 | U9: 0 | V9: 0 | W9: 0 | X9: 0 | Y9: 0 | Z9: 0 | AA9: 0 | AB9: 0 | AC9: 0 | AD9: 0 | AE9: 0 | AF9: 0 | AG9: 0 | AH9: 0 | AI9: 0 | AJ9: 0 | AK9: 0 | AL9: 0 | AM9: 0 | AN9: 0 | AO9: 0 | AP9: 0 | AQ9: 0 | AR9: 0 | AS9: 0 | AT9: 0 | AU9: 0 | AV9: 0 | AW9: 0 | AX9: 0 | AY9: 0 | AZ9: 0 | BA9: 0 | BB9: 0 | BC9: 0 | BD9: 0 | BE9: 0 | BF9: 0 | BG9: 0 | BH9: 0 | BI9: 0 | BJ9: 0 | BK9: 0 | BL9: 0 | BM9: 0 | BN9: 0 | BO9: 0 | BP9: 0 | BQ9: 0 | BR9: 0 | BS9: 0 | BT9: 0 | BU9: 0 | BV9: 0 | BW9: 0 | BX9: 0 | BY9: 0 | BZ9: 0 | CA9: 0 | CB9: 0 | CC9: 0 | CD9: 0 | CE9: 0 | CF9: 0 | CG9: 0 | CH9: 0 | CI9: 0 | CJ9: 0 | CK9: 0 | CL9: 0 | CM9: 0 | CN9: 0 | CO9: 0 | CP9: 0 | CQ9: 0 | CR9: 0 | CS9: 0 | CT9: 0 | CU9: 0 | CV9: 0 | CW9: 0 | CX9: 0 | CY9: 0 | CZ9: 0 | DA9: 0 | DB9: 0 | DC9: 0 | DD9: 0 | DE9: 0 | DF9: 0 | DG9: 0 | DH9: 0 | DI9: 0 | DJ9: 0 | DK9: 0 | DL9: 0 | DM9: 0 | DN9: 0 | DO9: 0 | DP9: 0 | DQ9: 0 | DR9: 0 | DS9: 0 | DT9: 0 | DU9: 0 | DV9: 0 | DW9: 0 | DX9: 0 | DY9: 0 | DZ9: 0 | EA9: 0 | EB9: 0 | EC9: 0 | ED9: 0 | EE9: 0 | EF9: 0 | EG9: 0 | EH9: 0 | EI9: 0 | EJ9: 0 | EK9: 0
C10: Placing into C&M | D10: 2019-07-01 | E10: 2019-09-30 | I10: =SUM(J10:EK10) -> 1 | J10: 0 | K10: 0 | L10: 0 | M10: 0 | N10: 1 | O10: 0 | P10: 0 | Q10: 0 | R10: 0 | S10: 0 | T10: 0 | U10: 0 | V10: 0 | W10: 0 | X10: 0 | Y10: 0 | Z10: 0 | AA10: 0 | AB10: 0 | AC10: 0 | AD10: 0 | AE10: 0 | AF10: 0 | AG10: 0 | AH10: 0 | AI10: 0 | AJ10: 0 | AK10: 0 | AL10: 0 | AM10: 0 | AN10: 0 | AO10: 0 | AP10: 0 | AQ10: 0 | AR10: 0 | AS10: 0 | AT10: 0 | AU10: 0 | AV10: 0 | AW10: 0 | AX10: 0 | AY10: 0 | AZ10: 0 | BA10: 0 | BB10: 0 | BC10: 0 | BD10: 0 | BE10: 0 | BF10: 0 | BG10: 0 | BH10: 0 | BI10: 0 | BJ10: 0 | BK10: 0 | BL10: 0 | BM10: 0 | BN10: 0 | BO10: 0 | BP10: 0 | BQ10: 0 | BR10: 0 | BS10: 0 | BT10: 0 | BU10: 0 | BV10: 0 | BW10: 0 | BX10: 0 | BY10: 0 | BZ10: 0 | CA10: 0 | CB10: 0 | CC10: 0 | CD10: 0 | CE10: 0 | CF10: 0 | CG10: 0 | CH10: 0 | CI10: 0 | CJ10: 0 | CK10: 0 | CL10: 0 | CM10: 0 | CN10: 0 | CO10: 0 | CP10: 0 | CQ10: 0 | CR10: 0 | CS10: 0 | CT10: 0 | CU10: 0 | CV10: 0 | CW10: 0 | CX10: 0 | CY10: 0 | CZ10: 0 | DA10: 0 | DB10: 0 | DC10: 0 | DD10: 0 | DE10: 0 | DF10: 0 | DG10: 0 | DH10: 0 | DI10: 0 | DJ10: 0 | DK10: 0 | DL10: 0 | DM10: 0 | DN10: 0 | DO10: 0 | DP10: 0 | DQ10: 0 | DR10: 0 | DS10: 0 | DT10: 0 | DU10: 0 | DV10: 0 | DW10: 0 | DX10: 0 | DY10: 0 | DZ10: 0 | EA10: 0 | EB10: 0 | EC10: 0 | ED10: 0 | EE10: 0 | EF10: 0 | EG10: 0 | EH10: 0 | EI10: 0 | EJ10: 0 | EK10: 0
C11: Care & maintenance | D11: 2019-10-01 | E11: 2020-09-30 | I11: 4 | J11: 0 | K11: 0 | L11: 0 | M11: 0 | N11: 0 | O11: 1 | P11: 1 | Q11: 1 | R11: 1 | S11: 0 | T11: 0 | U11: 0 | V11: 0 | W11: 0 | X11: 0 | Y11: 0 | Z11: 0 | AA11: 0 | AB11: 0 | AC11: 0 | AD11: 0 | AE11: 0 | AF11: 0 | AG11: 0 | AH11: 0 | AI11: 0 | AJ11: 0 | AK11: 0 | AL11: 0 | AM11: 0 | AN11: 0 | AO11: 0 | AP11: 0 | AQ11: 0 | AR11: 0 | AS11: 0 | AT11: 0 | AU11: 0 | AV11: 0 | AW11: 0 | AX11: 0 | AY11: 0 | AZ11: 0 | BA11: 0 | BB11: 0 | BC11: 0 | BD11: 0 | BE11: 0 | BF11: 0 | BG11: 0 | BH11: 0 | BI11: 0 | BJ11: 0 | BK11: 0 | BL11: 0 | BM11: 0 | BN11: 0 | BO11: 0 | BP11: 0 | BQ11: 0 | BR11: 0 | BS11: 0 | BT11: 0 | BU11: 0 | BV11: 0 | BW11: 0 | BX11: 0 | BY11: 0 | BZ11: 0 | CA11: 0 | CB11: 0 | CC11: 0 | CD11: 0 | CE11: 0 | CF11: 0 | CG11: 0 | CH11: 0 | CI11: 0 | CJ11: 0 | CK11: 0 | CL11: 0 | CM11: 0 | CN11: 0 | CO11: 0 | CP11: 0 | CQ11: 0 | CR11: 0 | CS11: 0 | CT11: 0 | CU11: 0 | CV11: 0 | CW11: 0 | CX11: 0 | CY11: 0 | CZ11: 0 | DA11: 0 | DB11: 0 | DC11: 0 | DD11: 0 | DE11: 0 | DF11: 0 | DG11: 0 | DH11: 0 | DI11: 0 | DJ11: 0 | DK11: 0 | DL11: 0 | DM11: 0 | DN11: 0 | DO11: 0 | DP11: 0 | DQ11: 0 | DR11: 0 | DS11: 0 | DT11: 0 | DU11: 0 | DV11: 0 | DW11: 0 | DX11: 0 | DY11: 0 | DZ11: 0 | EA11: 0 | EB11: 0 | EC11: 0 | ED11: 0 | EE11: 0 | EF11: 0 | EG11: 0 | EH11: 0 | EI11: 0 | EJ11: 0 | EK11: 0
C12: Restart from C&M | D12: 2020-10-01 | E12: 2021-03-31 | I12: 2 | J12: 0 | K12: 0 | L12: 0 | M12: 0 | N12: 0 | O12: 0 | P12: 0 | Q12: 0 | R12: 0 | S12: 1 | T12: 1 | U12: 0 | V12: 0 | W12: 0 | X12: 0 | Y12: 0 | Z12: 0 | AA12: 0 | AB12: 0 | AC12: 0 | AD12: 0 | AE12: 0 | AF12: 0 | AG12: 0 | AH12: 0 | AI12: 0 | AJ12: 0 | AK12: 0 | AL12: 0 | AM12: 0 | AN12: 0 | AO12: 0 | AP12: 0 | AQ12: 0 | AR12: 0 | AS12: 0 | AT12: 0 | AU12: 0 | AV12: 0 | AW12: 0 | AX12: 0 | AY12: 0 | AZ12: 0 | BA12: 0 | BB12: 0 | BC12: 0 | BD12: 0 | BE12: 0 | BF12: 0 | BG12: 0 | BH12: 0 | BI12: 0 | BJ12: 0 | BK12: 0 | BL12: 0 | BM12: 0 | BN12: 0 | BO12: 0 | BP12: 0 | BQ12: 0 | BR12: 0 | BS12: 0 | BT12: 0 | BU12: 0 | BV12: 0 | BW12: 0 | BX12: 0 | BY12: 0 | BZ12: 0 | CA12: 0 | CB12: 0 | CC12: 0 | CD12: 0 | CE12: 0 | CF12: 0 | CG12: 0 | CH12: 0 | CI12: 0 | CJ12: 0 | CK12: 0 | CL12: 0 | CM12: 0 | CN12: 0 | CO12: 0 | CP12: 0 | CQ12: 0 | CR12: 0 | CS12: 0 | CT12: 0 | CU12: 0 | CV12: 0 | CW12: 0 | CX12: 0 | CY12: 0 | CZ12: 0 | DA12: 0 | DB12: 0 | DC12: 0 | DD12: 0 | DE12: 0 | DF12: 0 | DG12: 0 | DH12: 0 | DI12: 0 | DJ12: 0 | DK12: 0 | DL12: 0 | DM12: 0 | DN12: 0 | DO12: 0 | DP12: 0 | DQ12: 0 | DR12: 0 | DS12: 0 | DT12: 0 | DU12: 0 | DV12: 0 | DW12: 0 | DX12: 0 | DY12: 0 | DZ12: 0 | EA12: 0 | EB12: 0 | EC12: 0 | ED12: 0 | EE12: 0 | EF12: 0 | EG12: 0 | EH12: 0 | EI12: 0 | EJ12: 0 | EK12: 0
C13: Production | D13: 2021-04-01 | E13: 2044-10-31 | I13: 94 | J13: 0 | K13: 0 | L13: 0 | M13: 0 | N13: 0 | O13: 0 | P13: 0 | Q13: 0 | R13: 0 | S13: 0 | T13: 0 | U13: 1 | V13: 1 | W13: 1 | X13: 1 | Y13: 1 | Z13: 1 | AA13: 1 | AB13: 1 | AC13: 1 | AD13: 1 | AE13: 1 | AF13: 1 | AG13: 1 | AH13: 1 | AI13: 1 | AJ13: 1 | AK13: 1 | AL13: 1 | AM13: 1 | AN13: 1 | AO13: 1 | AP13: 1 | AQ13: 1 | AR13: 1 | AS13: 1 | AT13: 1 | AU13: 1 | AV13: 1 | AW13: 1 | AX13: 1 | AY13: 1 | AZ13: 1 | BA13: 1 | BB13: 1 | BC13: 1 | BD13: 1 | BE13: 1 | BF13: 1 | BG13: 1 | BH13: 1 | BI13: 1 | BJ13: 1 | BK13: 1 | BL13: 1 | BM13: 1 | BN13: 1 | BO13: 1 | BP13: 1 | BQ13: 1 | BR13: 1 | BS13: 1 | BT13: 1 | BU13: 1 | BV13: 1 | BW13: 1 | BX13: 1 | BY13: 1 | BZ13: 1 | CA13: 1 | CB13: 1 | CC13: 1 | CD13: 1 | CE13: 1 | CF13: 1 | CG13: 1 | CH13: 1 | CI13: 1 | CJ13: 1 | CK13: 1 | CL13: 1 | CM13: 1 | CN13: 1 | CO13: 1 | CP13: 1 | CQ13: 1 | CR13: 1 | CS13: 1 | CT13: 1 | CU13: 1 | CV13: 1 | CW13: 1 | CX13: 1 | CY13: 1 | CZ13: 1 | DA13: 1 | DB13: 1 | DC13: 1 | DD13: 1 | DE13: 1 | DF13: 1 | DG13: 1 | DH13: 1 | DI13: 1 | DJ13: 1 | DK13: 0 | DL13: 0 | DM13: 0 | DN13: 0 | DO13: 0 | DP13: 0 | DQ13: 0 | DR13: 0 | DS13: 0 | DT13: 0 | DU13: 0 | DV13: 0 | DW13: 0 | DX13: 0 | DY13: 0 | DZ13: 0 | EA13: 0 | EB13: 0 | EC13: 0 | ED13: 0 | EE13: 0 | EF13: 0 | EG13: 0 | EH13: 0 | EI13: 0 | EJ13: 0 | EK13: 0
C14: Restoration | D14: 2044-11-01 | E14: 2046-11-30 | I14: 7 | J14: 0 | K14: 0 | L14: 0 | M14: 0 | N14: 0 | O14: 0 | P14: 0 | Q14: 0 | R14: 0 | S14: 0 | T14: 0 | U14: 0 | V14: 0 | W14: 0 | X14: 0 | Y14: 0 | Z14: 0 | AA14: 0 | AB14: 0 | AC14: 0 | AD14: 0 | AE14: 0 | AF14: 0 | AG14: 0 | AH14: 0 | AI14: 0 | AJ14: 0 | AK14: 0 | AL14: 0 | AM14: 0 | AN14: 0 | AO14: 0 | AP14: 0 | AQ14: 0 | AR14: 0 | AS14: 0 | AT14: 0 | AU14: 0 | AV14: 0 | AW14: 0 | AX14: 0 | AY14: 0 | AZ14: 0 | BA14: 0 | BB14: 0 | BC14: 0 | BD14: 0 | BE14: 0 | BF14: 0 | BG14: 0 | BH14: 0 | BI14: 0 | BJ14: 0 | BK14: 0 | BL14: 0 | BM14: 0 | BN14: 0 | BO14: 0 | BP14: 0 | BQ14: 0 | BR14: 0 | BS14: 0 | BT14: 0 | BU14: 0 | BV14: 0 | BW14: 0 | BX14: 0 | BY14: 0 | BZ14: 0 | CA14: 0 | CB14: 0 | CC14: 0 | CD14: 0 | CE14: 0 | CF14: 0 | CG14: 0 | CH14: 0 | CI14: 0 | CJ14: 0 | CK14: 0 | CL14: 0 | CM14: 0 | CN14: 0 | CO14: 0 | CP14: 0 | CQ14: 0 | CR14: 0 | CS14: 0 | CT14: 0 | CU14: 0 | CV14: 0 | CW14: 0 | CX14: 0 | CY14: 0 | CZ14: 0 | DA14: 0 | DB14: 0 | DC14: 0 | DD14: 0 | DE14: 0 | DF14: 0 | DG14: 0 | DH14: 0 | DI14: 0 | DJ14: 0 | DK14: 0 | DL14: 1 | DM14: 1 | DN14: 1 | DO14: 1 | DP14: 1 | DQ14: 1 | DR14: 1 | DS14: 0 | DT14: 0 | DU14: 0 | DV14: 0 | DW14: 0 | DX14: 0 | DY14: 0 | DZ14: 0 | EA14: 0 | EB14: 0 | EC14: 0 | ED14: 0 | EE14: 0 | EF14: 0 | EG14: 0 | EH14: 0 | EI14: 0 | EJ14: 0 | EK14: 0
C16: =C11 -> Care & maintenance | D16: =TRANSPOSE('Inputs - 2'!F17:I17) -> 2018-07-01 | E16: =TRANSPOSE('Inputs - 2'!F19:I19) -> 2021-06-30 | I16: 12 | J16: =IF(AND(J$4>=$D16,J$5<=$E16),1,0) -> 1 | K16: =IF(AND(K$4>=$D16,K$5<=$E16),1,0) -> 1 | L16: 1 | M16: =IF(AND(M$4>=$D16,M$5<=$E16),1,0) -> 1 | N16: 1 | O16: 1 | P16: 1 | Q16: 1 | R16: 1 | S16: 1 | T16: 1 | U16: 1 | V16: 0 | W16: 0 | X16: 0 | Y16: 0 | Z16: 0 | AA16: 0 | AB16: 0 | AC16: 0 | AD16: 0 | AE16: 0 | AF16: 0 | AG16: 0 | AH16: 0 | AI16: 0 | AJ16: 0 | AK16: 0 | AL16: 0 | AM16: 0 | AN16: 0 | AO16: 0 | AP16: 0 | AQ16: 0 | AR16: 0 | AS16: 0 | AT16: 0 | AU16: 0 | AV16: 0 | AW16: 0 | AX16: 0 | AY16: 0 | AZ16: 0 | BA16: 0 | BB16: 0 | BC16: 0 | BD16: 0 | BE16: 0 | BF16: 0 | BG16: 0 | BH16: 0 | BI16: 0 | BJ16: 0 | BK16: 0 | BL16: 0 | BM16: 0 | BN16: 0 | BO16: 0 | BP16: 0 | BQ16: 0 | BR16: 0 | BS16: 0 | BT16: 0 | BU16: 0 | BV16: 0 | BW16: =IF(AND(BW$4>=$D16,BW$5<=$E16),1,0) -> 0 | BX16: 0 | BY16: 0 | BZ16: 0 | CA16: 0 | CB16: 0 | CC16: 0 | CD16: 0 | CE16: 0 | CF16: 0 | CG16: 0 | CH16: 0 | CI16: 0 | CJ16: 0 | CK16: 0 | CL16: 0 | CM16: 0 | CN16: 0 | CO16: 0 | CP16: 0 | CQ16: 0 | CR16: 0 | CS16: 0 | CT16: 0 | CU16: 0 | CV16: 0 | CW16: 0 | CX16: 0 | CY16: 0 | CZ16: 0 | DA16: 0 | DB16: 0 | DC16: 0 | DD16: 0 | DE16: 0 | DF16: 0 | DG16: 0 | DH16: 0 | DI16: 0 | DJ16: 0 | DK16: 0 | DL16: 0 | DM16: 0 | DN16: 0 | DO16: 0 | DP16: 0 | DQ16: 0 | DR16: 0 | DS16: 0 | DT16: 0 | DU16: 0 | DV16: 0 | DW16: 0 | DX16: 0 | DY16: 0 | DZ16: 0 | EA16: 0 | EB16: 0 | EC16: 0 | ED16: 0 | EE16: 0 | EF16: 0 | EG16: 0 | EH16: 0 | EI16: =IF(AND(EI$4>=$D16,EI$5<=$E16),1,0) -> 0 | EJ16: 0 | EK16: 0
C17: =C12 -> Restart from C&M | D17: 2021-07-01 | E17: 2021-12-31 | I17: 2 | J17: =IF(AND(J$4>=$D17,J$5<=$E17),1,0) -> 0 | K17: 0 | L17: 0 | M17: 0 | N17: 0 | O17: 0 | P17: 0 | Q17: 0 | R17: 0 | S17: 0 | T17: 0 | U17: 0 | V17: 1 | W17: 1 | X17: 0 | Y17: 0 | Z17: 0 | AA17: 0 | AB17: 0 | AC17: 0 | AD17: 0 | AE17: 0 | AF17: 0 | AG17: 0 | AH17: 0 | AI17: 0 | AJ17: 0 | AK17: 0 | AL17: 0 | AM17: 0 | AN17: 0 | AO17: 0 | AP17: 0 | AQ17: 0 | AR17: 0 | AS17: 0 | AT17: 0 | AU17: 0 | AV17: 0 | AW17: 0 | AX17: 0 | AY17: 0 | AZ17: 0 | BA17: 0 | BB17: 0 | BC17: 0 | BD17: 0 | BE17: 0 | BF17: 0 | BG17: 0 | BH17: 0 | BI17: 0 | BJ17: 0 | BK17: 0 | BL17: 0 | BM17: 0 | BN17: 0 | BO17: 0 | BP17: 0 | BQ17: 0 | BR17: 0 | BS17: 0 | BT17: 0 | BU17: 0 | BV17: 0 | BW17: 0 | BX17: 0 | BY17: 0 | BZ17: 0 | CA17: 0 | CB17: 0 | CC17: 0 | CD17: 0 | CE17: 0 | CF17: 0 | CG17: 0 | CH17: 0 | CI17: 0 | CJ17: 0 | CK17: 0 | CL17: 0 | CM17: 0 | CN17: 0 | CO17: 0 | CP17: 0 | CQ17: 0 | CR17: 0 | CS17: 0 | CT17: 0 | CU17: 0 | CV17: 0 | CW17: 0 | CX17: 0 | CY17: 0 | CZ17: 0 | DA17: 0 | DB17: 0 | DC17: 0 | DD17: 0 | DE17: 0 | DF17: 0 | DG17: 0 | DH17: 0 | DI17: 0 | DJ17: 0 | DK17: 0 | DL17: 0 | DM17: 0 | DN17: 0 | DO17: 0 | DP17: 0 | DQ17: 0 | DR17: 0 | DS17: 0 | DT17: 0 | DU17: 0 | DV17: 0 | DW17: 0 | DX17: 0 | DY17: 0 | DZ17: 0 | EA17: 0 | EB17: 0 | EC17: 0 | ED17: 0 | EE17: 0 | EF17: 0 | EG17: 0 | EH17: 0 | EI17: 0 | EJ17: 0 | EK17: 0
C18: =C13 -> Production | D18: 2022-01-01 | E18: 2030-01-31 | I18: 32 | J18: =IF(AND(J$4>=$D18,J$5<=$E18),1,0) -> 0 | K18: 0 | L18: 0 | M18: 0 | N18: 0 | O18: 0 | P18: 0 | Q18: 0 | R18: 0 | S18: 0 | T18: 0 | U18: 0 | V18: 0 | W18: 0 | X18: 1 | Y18: 1 | Z18: 1 | AA18: 1 | AB18: 1 | AC18: 1 | AD18: 1 | AE18: 1 | AF18: 1 | AG18: 1 | AH18: 1 | AI18: 1 | AJ18: 1 | AK18: 1 | AL18: 1 | AM18: 1 | AN18: 1 | AO18: 1 | AP18: 1 | AQ18: 1 | AR18: 1 | AS18: 1 | AT18: 1 | AU18: 1 | AV18: 1 | AW18: 1 | AX18: 1 | AY18: 1 | AZ18: 1 | BA18: 1 | BB18: 1 | BC18: 1 | BD18: 0 | BE18: 0 | BF18: 0 | BG18: 0 | BH18: 0 | BI18: 0 | BJ18: 0 | BK18: 0 | BL18: 0 | BM18: 0 | BN18: 0 | BO18: 0 | BP18: 0 | BQ18: 0 | BR18: 0 | BS18: 0 | BT18: 0 | BU18: 0 | BV18: 0 | BW18: 0 | BX18: 0 | BY18: 0 | BZ18: 0 | CA18: 0 | CB18: 0 | CC18: 0 | CD18: 0 | CE18: 0 | CF18: 0 | CG18: 0 | CH18: 0 | CI18: 0 | CJ18: 0 | CK18: 0 | CL18: 0 | CM18: 0 | CN18: 0 | CO18: 0 | CP18: 0 | CQ18: 0 | CR18: 0 | CS18: 0 | CT18: 0 | CU18: 0 | CV18: 0 | CW18: 0 | CX18: 0 | CY18: 0 | CZ18: 0 | DA18: 0 | DB18: 0 | DC18: 0 | DD18: 0 | DE18: 0 | DF18: 0 | DG18: 0 | DH18: 0 | DI18: 0 | DJ18: 0 | DK18: 0 | DL18: 0 | DM18: 0 | DN18: 0 | DO18: 0 | DP18: 0 | DQ18: 0 | DR18: 0 | DS18: 0 | DT18: 0 | DU18: 0 | DV18: 0 | DW18: 0 | DX18: 0 | DY18: 0 | DZ18: 0 | EA18: 0 | EB18: 0 | EC18: 0 | ED18: 0 | EE18: 0 | EF18: 0 | EG18: 0 | EH18: 0 | EI18: 0 | EJ18: 0 | EK18: 0
C19: =C14 -> Restoration | D19: 2030-02-01 | E19: 2031-02-28 | I19: 3 | J19: =IF(AND(J$4>=$D19,J$5<=$E19),1,0) -> 0 | K19: 0 | L19: 0 | M19: 0 | N19: 0 | O19: 0 | P19: 0 | Q19: 0 | R19: 0 | S19: 0 | T19: 0 | U19: 0 | V19: 0 | W19: 0 | X19: 0 | Y19: 0 | Z19: 0 | AA19: 0 | AB19: 0 | AC19: 0 | AD19: 0 | AE19: 0 | AF19: 0 | AG19: 0 | AH19: 0 | AI19: 0 | AJ19: 0 | AK19: 0 | AL19: 0 | AM19: 0 | AN19: 0 | AO19: 0 | AP19: 0 | AQ19: 0 | AR19: 0 | AS19: 0 | AT19: 0 | AU19: 0 | AV19: 0 | AW19: 0 | AX19: 0 | AY19: 0 | AZ19: 0 | BA19: 0 | BB19: 0 | BC19: 0 | BD19: =IF(AND(BD$4>=$D19,BD$5<=$E19),1,0) -> 0 | BE19: 1 | BF19: 1 | BG19: 1 | BH19: 0 | BI19: 0 | BJ19: 0 | BK19: 0 | BL19: 0 | BM19: 0 | BN19: 0 | BO19: 0 | BP19: 0 | BQ19: 0 | BR19: 0 | BS19: 0 | BT19: 0 | BU19: 0 | BV19: =IF(AND(BV$4>=$D19,BV$5<=$E19),1,0) -> 0 | BW19: 0 | BX19: 0 | BY19: 0 | BZ19: 0 | CA19: 0 | CB19: 0 | CC19: 0 | CD19: 0 | CE19: 0 | CF19: 0 | CG19: 0 | CH19: 0 | CI19: 0 | CJ19: 0 | CK19: 0 | CL19: 0 | CM19: 0 | CN19: 0 | CO19: 0 | CP19: 0 | CQ19: 0 | CR19: 0 | CS19: 0 | CT19: 0 | CU19: 0 | CV19: 0 | CW19: 0 | CX19: 0 | CY19: 0 | CZ19: 0 | DA19: 0 | DB19: 0 | DC19: 0 | DD19: 0 | DE19: 0 | DF19: 0 | DG19: 0 | DH19: 0 | DI19: 0 | DJ19: 0 | DK19: 0 | DL19: 0 | DM19: 0 | DN19: 0 | DO19: 0 | DP19: 0 | DQ19: 0 | DR19: 0 | DS19: 0 | DT19: 0 | DU19: 0 | DV19: 0 | DW19: 0 | DX19: 0 | DY19: 0 | DZ19: 0 | EA19: 0 | EB19: 0 | EC19: 0 | ED19: 0 | EE19: 0 | EF19: 0 | EG19: 0 | EH19: =IF(AND(EH$4>=$D19,EH$5<=$E19),1,0) -> 0 | EI19: 0 | EJ19: 0 | EK19: 0
C22: Counters
C24: LHM
C25: BUP | J25: =SUM($J7:J7)*J7 -> 1 | K25: =SUM($J7:K7)*K7 -> 2 | L25: =SUM($J7:L7)*L7 -> 3 | M25: =SUM($J7:M7)*M7 -> 4 | N25: =SUM($J7:N7)*N7 -> 5 | O25: =SUM($J7:O7)*O7 -> 6 | P25: =SUM($J7:P7)*P7 -> 0 | Q25: =SUM($J7:Q7)*Q7 -> 0 | R25: =SUM($J7:R7)*R7 -> 0 | S25: =SUM($J7:S7)*S7 -> 0 | T25: =SUM($J7:T7)*T7 -> 0 | U25: =SUM($J7:U7)*U7 -> 0 | V25: =SUM($J7:V7)*V7 -> 0 | W25: =SUM($J7:W7)*W7 -> 0 | X25: =SUM($J7:X7)*X7 -> 0 | Y25: =SUM($J7:Y7)*Y7 -> 0 | Z25: =SUM($J7:Z7)*Z7 -> 0 | AA25: =SUM($J7:AA7)*AA7 -> 0 | AB25: =SUM($J7:AB7)*AB7 -> 0 | AC25: =SUM($J7:AC7)*AC7 -> 0 | AD25: =SUM($J7:AD7)*AD7 -> 0 | AE25: =SUM($J7:AE7)*AE7 -> 0 | AF25: =SUM($J7:AF7)*AF7 -> 0 | AG25: =SUM($J7:AG7)*AG7 -> 0 | AH25: =SUM($J7:AH7)*AH7 -> 0 | AI25: =SUM($J7:AI7)*AI7 -> 0 | AJ25: =SUM($J7:AJ7)*AJ7 -> 0 | AK25: =SUM($J7:AK7)*AK7 -> 0 | AL25: =SUM($J7:AL7)*AL7 -> 0 | AM25: =SUM($J7:AM7)*AM7 -> 0 | AN25: =SUM($J7:AN7)*AN7 -> 0 | AO25: =SUM($J7:AO7)*AO7 -> 0 | AP25: =SUM($J7:AP7)*AP7 -> 0 | AQ25: =SUM($J7:AQ7)*AQ7 -> 0 | AR25: =SUM($J7:AR7)*AR7 -> 0 | AS25: =SUM($J7:AS7)*AS7 -> 0 | AT25: =SUM($J7:AT7)*AT7 -> 0 | AU25: =SUM($J7:AU7)*AU7 -> 0 | AV25: =SUM($J7:AV7)*AV7 -> 0 | AW25: =SUM($J7:AW7)*AW7 -> 0 | AX25: =SUM($J7:AX7)*AX7 -> 0 | AY25: =SUM($J7:AY7)*AY7 -> 0 | AZ25: =SUM($J7:AZ7)*AZ7 -> 0 | BA25: =SUM($J7:BA7)*BA7 -> 0 | BB25: =SUM($J7:BB7)*BB7 -> 0 | BC25: =SUM($J7:BC7)*BC7 -> 0 | BD25: =SUM($J7:BD7)*BD7 -> 0 | BE25: =SUM($J7:BE7)*BE7 -> 0 | BF25: =SUM($J7:BF7)*BF7 -> 0 | BG25: =SUM($J7:BG7)*BG7 -> 0 | BH25: =SUM($J7:BH7)*BH7 -> 0 | BI25: =SUM($J7:BI7)*BI7 -> 0 | BJ25: =SUM($J7:BJ7)*BJ7 -> 0 | BK25: =SUM($J7:BK7)*BK7 -> 0 | BL25: =SUM($J7:BL7)*BL7 -> 0 | BM25: =SUM($J7:BM7)*BM7 -> 0 | BN25: =SUM($J7:BN7)*BN7 -> 0 | BO25: =SUM($J7:BO7)*BO7 -> 0 | BP25: =SUM($J7:BP7)*BP7 -> 0 | BQ25: =SUM($J7:BQ7)*BQ7 -> 0 | BR25: =SUM($J7:BR7)*BR7 -> 0 | BS25: =SUM($J7:BS7)*BS7 -> 0 | BT25: =SUM($J7:BT7)*BT7 -> 0 | BU25: =SUM($J7:BU7)*BU7 -> 0 | BV25: =SUM($J7:BV7)*BV7 -> 0 | BW25: =SUM($J7:BW7)*BW7 -> 0 | BX25: =SUM($J7:BX7)*BX7 -> 0 | BY25: =SUM($J7:BY7)*BY7 -> 0 | BZ25: =SUM($J7:BZ7)*BZ7 -> 0 | CA25: =SUM($J7:CA7)*CA7 -> 0 | CB25: =SUM($J7:CB7)*CB7 -> 0 | CC25: =SUM($J7:CC7)*CC7 -> 0 | CD25: =SUM($J7:CD7)*CD7 -> 0 | CE25: =SUM($J7:CE7)*CE7 -> 0 | CF25: =SUM($J7:CF7)*CF7 -> 0 | CG25: =SUM($J7:CG7)*CG7 -> 0 | CH25: =SUM($J7:CH7)*CH7 -> 0 | CI25: =SUM($J7:CI7)*CI7 -> 0 | CJ25: =SUM($J7:CJ7)*CJ7 -> 0 | CK25: =SUM($J7:CK7)*CK7 -> 0 | CL25: =SUM($J7:CL7)*CL7 -> 0 | CM25: =SUM($J7:CM7)*CM7 -> 0 | CN25: =SUM($J7:CN7)*CN7 -> 0 | CO25: =SUM($J7:CO7)*CO7 -> 0 | CP25: =SUM($J7:CP7)*CP7 -> 0 | CQ25: =SUM($J7:CQ7)*CQ7 -> 0 | CR25: =SUM($J7:CR7)*CR7 -> 0 | CS25: =SUM($J7:CS7)*CS7 -> 0 | CT25: =SUM($J7:CT7)*CT7 -> 0 | CU25: =SUM($J7:CU7)*CU7 -> 0 | CV25: =SUM($J7:CV7)*CV7 -> 0 | CW25: =SUM($J7:CW7)*CW7 -> 0 | CX25: =SUM($J7:CX7)*CX7 -> 0 | CY25: =SUM($J7:CY7)*CY7 -> 0 | CZ25: =SUM($J7:CZ7)*CZ7 -> 0 | DA25: =SUM($J7:DA7)*DA7 -> 0 | DB25: =SUM($J7:DB7)*DB7 -> 0 | DC25: =SUM($J7:DC7)*DC7 -> 0 | DD25: =SUM($J7:DD7)*DD7 -> 0 | DE25: =SUM($J7:DE7)*DE7 -> 0 | DF25: =SUM($J7:DF7)*DF7 -> 0 | DG25: =SUM($J7:DG7)*DG7 -> 0 | DH25: =SUM($J7:DH7)*DH7 -> 0 | DI25: =SUM($J7:DI7)*DI7 -> 0 | DJ25: =SUM($J7:DJ7)*DJ7 -> 0 | DK25: =SUM($J7:DK7)*DK7 -> 0 | DL25: =SUM($J7:DL7)*DL7 -> 0 | DM25: =SUM($J7:DM7)*DM7 -> 0 | DN25: =SUM($J7:DN7)*DN7 -> 0 | DO25: =SUM($J7:DO7)*DO7 -> 0 | DP25: =SUM($J7:DP7)*DP7 -> 0 | DQ25: =SUM($J7:DQ7)*DQ7 -> 0 | DR25: =SUM($J7:DR7)*DR7 -> 0 | DS25: =SUM($J7:DS7)*DS7 -> 0 | DT25: =SUM($J7:DT7)*DT7 -> 0 | DU25: =SUM($J7:DU7)*DU7 -> 0 | DV25: =SUM($J7:DV7)*DV7 -> 0 | DW25: =SUM($J7:DW7)*DW7 -> 0 | DX25: =SUM($J7:DX7)*DX7 -> 0 | DY25: =SUM($J7:DY7)*DY7 -> 0 | DZ25: =SUM($J7:DZ7)*DZ7 -> 0 | EA25: =SUM($J7:EA7)*EA7 -> 0 | EB25: =SUM($J7:EB7)*EB7 -> 0 | EC25: =SUM($J7:EC7)*EC7 -> 0 | ED25: =SUM($J7:ED7)*ED7 -> 0 | EE25: =SUM($J7:EE7)*EE7 -> 0 | EF25: =SUM($J7:EF7)*EF7 -> 0 | EG25: =SUM($J7:EG7)*EG7 -> 0 | EH25: =SUM($J7:EH7)*EH7 -> 0 | EI25: =SUM($J7:EI7)*EI7 -> 0 | EJ25: =SUM($J7:EJ7)*EJ7 -> 0 | EK25: =SUM($J7:EK7)*EK7 -> 0
C27: =C9 -> Production | D27: Num# | J27: =SUM($J9:J9)*J9 -> 1 | K27: =SUM($J9:K9)*K9 -> 2 | L27: =SUM($J9:L9)*L9 -> 3 | M27: =SUM($J9:M9)*M9 -> 4 | N27: =SUM($J9:N9)*N9 -> 0 | O27: =SUM($J9:O9)*O9 -> 0 | P27: =SUM($J9:P9)*P9 -> 0 | Q27: =SUM($J9:Q9)*Q9 -> 0 | R27: =SUM($J9:R9)*R9 -> 0 | S27: =SUM($J9:S9)*S9 -> 0 | T27: =SUM($J9:T9)*T9 -> 0 | U27: =SUM($J9:U9)*U9 -> 0 | V27: =SUM($J9:V9)*V9 -> 0 | W27: =SUM($J9:W9)*W9 -> 0 | X27: =SUM($J9:X9)*X9 -> 0 | Y27: =SUM($J9:Y9)*Y9 -> 0 | Z27: =SUM($J9:Z9)*Z9 -> 0 | AA27: =SUM($J9:AA9)*AA9 -> 0 | AB27: =SUM($J9:AB9)*AB9 -> 0 | AC27: =SUM($J9:AC9)*AC9 -> 0 | AD27: =SUM($J9:AD9)*AD9 -> 0 | AE27: =SUM($J9:AE9)*AE9 -> 0 | AF27: =SUM($J9:AF9)*AF9 -> 0 | AG27: =SUM($J9:AG9)*AG9 -> 0 | AH27: =SUM($J9:AH9)*AH9 -> 0 | AI27: =SUM($J9:AI9)*AI9 -> 0 | AJ27: =SUM($J9:AJ9)*AJ9 -> 0 | AK27: =SUM($J9:AK9)*AK9 -> 0 | AL27: =SUM($J9:AL9)*AL9 -> 0 | AM27: =SUM($J9:AM9)*AM9 -> 0 | AN27: =SUM($J9:AN9)*AN9 -> 0 | AO27: =SUM($J9:AO9)*AO9 -> 0 | AP27: =SUM($J9:AP9)*AP9 -> 0 | AQ27: =SUM($J9:AQ9)*AQ9 -> 0 | AR27: =SUM($J9:AR9)*AR9 -> 0 | AS27: =SUM($J9:AS9)*AS9 -> 0 | AT27: =SUM($J9:AT9)*AT9 -> 0 | AU27: =SUM($J9:AU9)*AU9 -> 0 | AV27: =SUM($J9:AV9)*AV9 -> 0 | AW27: =SUM($J9:AW9)*AW9 -> 0 | AX27: =SUM($J9:AX9)*AX9 -> 0 | AY27: =SUM($J9:AY9)*AY9 -> 0 | AZ27: =SUM($J9:AZ9)*AZ9 -> 0 | BA27: =SUM($J9:BA9)*BA9 -> 0 | BB27: =SUM($J9:BB9)*BB9 -> 0 | BC27: =SUM($J9:BC9)*BC9 -> 0 | BD27: =SUM($J9:BD9)*BD9 -> 0 | BE27: =SUM($J9:BE9)*BE9 -> 0 | BF27: =SUM($J9:BF9)*BF9 -> 0 | BG27: =SUM($J9:BG9)*BG9 -> 0 | BH27: =SUM($J9:BH9)*BH9 -> 0 | BI27: =SUM($J9:BI9)*BI9 -> 0 | BJ27: =SUM($J9:BJ9)*BJ9 -> 0 | BK27: =SUM($J9:BK9)*BK9 -> 0 | BL27: =SUM($J9:BL9)*BL9 -> 0 | BM27: =SUM($J9:BM9)*BM9 -> 0 | BN27: =SUM($J9:BN9)*BN9 -> 0 | BO27: =SUM($J9:BO9)*BO9 -> 0 | BP27: =SUM($J9:BP9)*BP9 -> 0 | BQ27: =SUM($J9:BQ9)*BQ9 -> 0 | BR27: =SUM($J9:BR9)*BR9 -> 0 | BS27: =SUM($J9:BS9)*BS9 -> 0 | BT27: =SUM($J9:BT9)*BT9 -> 0 | BU27: =SUM($J9:BU9)*BU9 -> 0 | BV27: =SUM($J9:BV9)*BV9 -> 0 | BW27: =SUM($J9:BW9)*BW9 -> 0 | BX27: =SUM($J9:BX9)*BX9 -> 0 | BY27: =SUM($J9:BY9)*BY9 -> 0 | BZ27: =SUM($J9:BZ9)*BZ9 -> 0 | CA27: =SUM($J9:CA9)*CA9 -> 0 | CB27: =SUM($J9:CB9)*CB9 -> 0 | CC27: =SUM($J9:CC9)*CC9 -> 0 | CD27: =SUM($J9:CD9)*CD9 -> 0 | CE27: =SUM($J9:CE9)*CE9 -> 0 | CF27: =SUM($J9:CF9)*CF9 -> 0 | CG27: =SUM($J9:CG9)*CG9 -> 0 | CH27: =SUM($J9:CH9)*CH9 -> 0 | CI27: =SUM($J9:CI9)*CI9 -> 0 | CJ27: =SUM($J9:CJ9)*CJ9 -> 0 | CK27: =SUM($J9:CK9)*CK9 -> 0 | CL27: =SUM($J9:CL9)*CL9 -> 0 | CM27: =SUM($J9:CM9)*CM9 -> 0 | CN27: =SUM($J9:CN9)*CN9 -> 0 | CO27: =SUM($J9:CO9)*CO9 -> 0 | CP27: =SUM($J9:CP9)*CP9 -> 0 | CQ27: =SUM($J9:CQ9)*CQ9 -> 0 | CR27: =SUM($J9:CR9)*CR9 -> 0 | CS27: =SUM($J9:CS9)*CS9 -> 0 | CT27: =SUM($J9:CT9)*CT9 -> 0 | CU27: =SUM($J9:CU9)*CU9 -> 0 | CV27: =SUM($J9:CV9)*CV9 -> 0 | CW27: =SUM($J9:CW9)*CW9 -> 0 | CX27: =SUM($J9:CX9)*CX9 -> 0 | CY27: =SUM($J9:CY9)*CY9 -> 0 | CZ27: =SUM($J9:CZ9)*CZ9 -> 0 | DA27: =SUM($J9:DA9)*DA9 -> 0 | DB27: =SUM($J9:DB9)*DB9 -> 0 | DC27: =SUM($J9:DC9)*DC9 -> 0 | DD27: =SUM($J9:DD9)*DD9 -> 0 | DE27: =SUM($J9:DE9)*DE9 -> 0 | DF27: =SUM($J9:DF9)*DF9 -> 0 | DG27: =SUM($J9:DG9)*DG9 -> 0 | DH27: =SUM($J9:DH9)*DH9 -> 0 | DI27: =SUM($J9:DI9)*DI9 -> 0 | DJ27: =SUM($J9:DJ9)*DJ9 -> 0 | DK27: =SUM($J9:DK9)*DK9 -> 0 | DL27: =SUM($J9:DL9)*DL9 -> 0 | DM27: =SUM($J9:DM9)*DM9 -> 0 | DN27: =SUM($J9:DN9)*DN9 -> 0 | DO27: =SUM($J9:DO9)*DO9 -> 0 | DP27: =SUM($J9:DP9)*DP9 -> 0 | DQ27: =SUM($J9:DQ9)*DQ9 -> 0 | DR27: =SUM($J9:DR9)*DR9 -> 0 | DS27: =SUM($J9:DS9)*DS9 -> 0 | DT27: =SUM($J9:DT9)*DT9 -> 0 | DU27: =SUM($J9:DU9)*DU9 -> 0 | DV27: =SUM($J9:DV9)*DV9 -> 0 | DW27: =SUM($J9:DW9)*DW9 -> 0 | DX27: =SUM($J9:DX9)*DX9 -> 0 | DY27: =SUM($J9:DY9)*DY9 -> 0 | DZ27: =SUM($J9:DZ9)*DZ9 -> 0 | EA27: =SUM($J9:EA9)*EA9 -> 0 | EB27: =SUM($J9:EB9)*EB9 -> 0 | EC27: =SUM($J9:EC9)*EC9 -> 0 | ED27: =SUM($J9:ED9)*ED9 -> 0 | EE27: =SUM($J9:EE9)*EE9 -> 0 | EF27: =SUM($J9:EF9)*EF9 -> 0 | EG27: =SUM($J9:EG9)*EG9 -> 0 | EH27: =SUM($J9:EH9)*EH9 -> 0 | EI27: =SUM($J9:EI9)*EI9 -> 0 | EJ27: =SUM($J9:EJ9)*EJ9 -> 0 | EK27: =SUM($J9:EK9)*EK9 -> 0
C28: Placing into C&M | D28: Num# | J28: =SUM($J10:J10)*J10 -> 0 | K28: =SUM($J10:K10)*K10 -> 0 | L28: =SUM($J10:L10)*L10 -> 0 | M28: =SUM($J10:M10)*M10 -> 0 | N28: =SUM($J10:N10)*N10 -> 1 | O28: =SUM($J10:O10)*O10 -> 0 | P28: =SUM($J10:P10)*P10 -> 0 | Q28: =SUM($J10:Q10)*Q10 -> 0 | R28: =SUM($J10:R10)*R10 -> 0 | S28: =SUM($J10:S10)*S10 -> 0 | T28: =SUM($J10:T10)*T10 -> 0 | U28: =SUM($J10:U10)*U10 -> 0 | V28: =SUM($J10:V10)*V10 -> 0 | W28: =SUM($J10:W10)*W10 -> 0 | X28: =SUM($J10:X10)*X10 -> 0 | Y28: =SUM($J10:Y10)*Y10 -> 0 | Z28: =SUM($J10:Z10)*Z10 -> 0 | AA28: =SUM($J10:AA10)*AA10 -> 0 | AB28: =SUM($J10:AB10)*AB10 -> 0 | AC28: =SUM($J10:AC10)*AC10 -> 0 | AD28: =SUM($J10:AD10)*AD10 -> 0 | AE28: =SUM($J10:AE10)*AE10 -> 0 | AF28: =SUM($J10:AF10)*AF10 -> 0 | AG28: =SUM($J10:AG10)*AG10 -> 0 | AH28: =SUM($J10:AH10)*AH10 -> 0 | AI28: =SUM($J10:AI10)*AI10 -> 0 | AJ28: =SUM($J10:AJ10)*AJ10 -> 0 | AK28: =SUM($J10:AK10)*AK10 -> 0 | AL28: =SUM($J10:AL10)*AL10 -> 0 | AM28: =SUM($J10:AM10)*AM10 -> 0 | AN28: =SUM($J10:AN10)*AN10 -> 0 | AO28: =SUM($J10:AO10)*AO10 -> 0 | AP28: =SUM($J10:AP10)*AP10 -> 0 | AQ28: =SUM($J10:AQ10)*AQ10 -> 0 | AR28: =SUM($J10:AR10)*AR10 -> 0 | AS28: =SUM($J10:AS10)*AS10 -> 0 | AT28: =SUM($J10:AT10)*AT10 -> 0 | AU28: =SUM($J10:AU10)*AU10 -> 0 | AV28: =SUM($J10:AV10)*AV10 -> 0 | AW28: =SUM($J10:AW10)*AW10 -> 0 | AX28: =SUM($J10:AX10)*AX10 -> 0 | AY28: =SUM($J10:AY10)*AY10 -> 0 | AZ28: =SUM($J10:AZ10)*AZ10 -> 0 | BA28: =SUM($J10:BA10)*BA10 -> 0 | BB28: =SUM($J10:BB10)*BB10 -> 0 | BC28: =SUM($J10:BC10)*BC10 -> 0 | BD28: =SUM($J10:BD10)*BD10 -> 0 | BE28: =SUM($J10:BE10)*BE10 -> 0 | BF28: =SUM($J10:BF10)*BF10 -> 0 | BG28: =SUM($J10:BG10)*BG10 -> 0 | BH28: =SUM($J10:BH10)*BH10 -> 0 | BI28: =SUM($J10:BI10)*BI10 -> 0 | BJ28: =SUM($J10:BJ10)*BJ10 -> 0 | BK28: =SUM($J10:BK10)*BK10 -> 0 | BL28: =SUM($J10:BL10)*BL10 -> 0 | BM28: =SUM($J10:BM10)*BM10 -> 0 | BN28: =SUM($J10:BN10)*BN10 -> 0 | BO28: =SUM($J10:BO10)*BO10 -> 0 | BP28: =SUM($J10:BP10)*BP10 -> 0 | BQ28: =SUM($J10:BQ10)*BQ10 -> 0 | BR28: =SUM($J10:BR10)*BR10 -> 0 | BS28: =SUM($J10:BS10)*BS10 -> 0 | BT28: =SUM($J10:BT10)*BT10 -> 0 | BU28: =SUM($J10:BU10)*BU10 -> 0 | BV28: =SUM($J10:BV10)*BV10 -> 0 | BW28: =SUM($J10:BW10)*BW10 -> 0 | BX28: =SUM($J10:BX10)*BX10 -> 0 | BY28: =SUM($J10:BY10)*BY10 -> 0 | BZ28: =SUM($J10:BZ10)*BZ10 -> 0 | CA28: =SUM($J10:CA10)*CA10 -> 0 | CB28: =SUM($J10:CB10)*CB10 -> 0 | CC28: =SUM($J10:CC10)*CC10 -> 0 | CD28: =SUM($J10:CD10)*CD10 -> 0 | CE28: =SUM($J10:CE10)*CE10 -> 0 | CF28: =SUM($J10:CF10)*CF10 -> 0 | CG28: =SUM($J10:CG10)*CG10 -> 0 | CH28: =SUM($J10:CH10)*CH10 -> 0 | CI28: =SUM($J10:CI10)*CI10 -> 0 | CJ28: =SUM($J10:CJ10)*CJ10 -> 0 | CK28: =SUM($J10:CK10)*CK10 -> 0 | CL28: =SUM($J10:CL10)*CL10 -> 0 | CM28: =SUM($J10:CM10)*CM10 -> 0 | CN28: =SUM($J10:CN10)*CN10 -> 0 | CO28: =SUM($J10:CO10)*CO10 -> 0 | CP28: =SUM($J10:CP10)*CP10 -> 0 | CQ28: =SUM($J10:CQ10)*CQ10 -> 0 | CR28: =SUM($J10:CR10)*CR10 -> 0 | CS28: =SUM($J10:CS10)*CS10 -> 0 | CT28: =SUM($J10:CT10)*CT10 -> 0 | CU28: =SUM($J10:CU10)*CU10 -> 0 | CV28: =SUM($J10:CV10)*CV10 -> 0 | CW28: =SUM($J10:CW10)*CW10 -> 0 | CX28: =SUM($J10:CX10)*CX10 -> 0 | CY28: =SUM($J10:CY10)*CY10 -> 0 | CZ28: =SUM($J10:CZ10)*CZ10 -> 0 | DA28: =SUM($J10:DA10)*DA10 -> 0 | DB28: =SUM($J10:DB10)*DB10 -> 0 | DC28: =SUM($J10:DC10)*DC10 -> 0 | DD28: =SUM($J10:DD10)*DD10 -> 0 | DE28: =SUM($J10:DE10)*DE10 -> 0 | DF28: =SUM($J10:DF10)*DF10 -> 0 | DG28: =SUM($J10:DG10)*DG10 -> 0 | DH28: =SUM($J10:DH10)*DH10 -> 0 | DI28: =SUM($J10:DI10)*DI10 -> 0 | DJ28: =SUM($J10:DJ10)*DJ10 -> 0 | DK28: =SUM($J10:DK10)*DK10 -> 0 | DL28: =SUM($J10:DL10)*DL10 -> 0 | DM28: =SUM($J10:DM10)*DM10 -> 0 | DN28: =SUM($J10:DN10)*DN10 -> 0 | DO28: =SUM($J10:DO10)*DO10 -> 0 | DP28: =SUM($J10:DP10)*DP10 -> 0 | DQ28: =SUM($J10:DQ10)*DQ10 -> 0 | DR28: =SUM($J10:DR10)*DR10 -> 0 | DS28: =SUM($J10:DS10)*DS10 -> 0 | DT28: =SUM($J10:DT10)*DT10 -> 0 | DU28: =SUM($J10:DU10)*DU10 -> 0 | DV28: =SUM($J10:DV10)*DV10 -> 0 | DW28: =SUM($J10:DW10)*DW10 -> 0 | DX28: =SUM($J10:DX10)*DX10 -> 0 | DY28: =SUM($J10:DY10)*DY10 -> 0 | DZ28: =SUM($J10:DZ10)*DZ10 -> 0 | EA28: =SUM($J10:EA10)*EA10 -> 0 | EB28: =SUM($J10:EB10)*EB10 -> 0 | EC28: =SUM($J10:EC10)*EC10 -> 0 | ED28: =SUM($J10:ED10)*ED10 -> 0 | EE28: =SUM($J10:EE10)*EE10 -> 0 | EF28: =SUM($J10:EF10)*EF10 -> 0 | EG28: =SUM($J10:EG10)*EG10 -> 0 | EH28: =SUM($J10:EH10)*EH10 -> 0 | EI28: =SUM($J10:EI10)*EI10 -> 0 | EJ28: =SUM($J10:EJ10)*EJ10 -> 0 | EK28: =SUM($J10:EK10)*EK10 -> 0
C29: Care & maintenance | D29: Num# | J29: =SUM($J11:J11)*J11 -> 0 | K29: =SUM($J11:K11)*K11 -> 0 | L29: =SUM($J11:L11)*L11 -> 0 | M29: =SUM($J11:M11)*M11 -> 0 | N29: =SUM($J11:N11)*N11 -> 0 | O29: =SUM($J11:O11)*O11 -> 1 | P29: =SUM($J11:P11)*P11 -> 2 | Q29: =SUM($J11:Q11)*Q11 -> 3 | R29: =SUM($J11:R11)*R11 -> 4 | S29: =SUM($J11:S11)*S11 -> 0 | T29: =SUM($J11:T11)*T11 -> 0 | U29: =SUM($J11:U11)*U11 -> 0 | V29: =SUM($J11:V11)*V11 -> 0 | W29: =SUM($J11:W11)*W11 -> 0 | X29: =SUM($J11:X11)*X11 -> 0 | Y29: =SUM($J11:Y11)*Y11 -> 0 | Z29: =SUM($J11:Z11)*Z11 -> 0 | AA29: =SUM($J11:AA11)*AA11 -> 0 | AB29: =SUM($J11:AB11)*AB11 -> 0 | AC29: =SUM($J11:AC11)*AC11 -> 0 | AD29: =SUM($J11:AD11)*AD11 -> 0 | AE29: =SUM($J11:AE11)*AE11 -> 0 | AF29: =SUM($J11:AF11)*AF11 -> 0 | AG29: =SUM($J11:AG11)*AG11 -> 0 | AH29: =SUM($J11:AH11)*AH11 -> 0 | AI29: =SUM($J11:AI11)*AI11 -> 0 | AJ29: =SUM($J11:AJ11)*AJ11 -> 0 | AK29: =SUM($J11:AK11)*AK11 -> 0 | AL29: =SUM($J11:AL11)*AL11 -> 0 | AM29: =SUM($J11:AM11)*AM11 -> 0 | AN29: =SUM($J11:AN11)*AN11 -> 0 | AO29: =SUM($J11:AO11)*AO11 -> 0 | AP29: =SUM($J11:AP11)*AP11 -> 0 | AQ29: =SUM($J11:AQ11)*AQ11 -> 0 | AR29: =SUM($J11:AR11)*AR11 -> 0 | AS29: =SUM($J11:AS11)*AS11 -> 0 | AT29: =SUM($J11:AT11)*AT11 -> 0 | AU29: =SUM($J11:AU11)*AU11 -> 0 | AV29: =SUM($J11:AV11)*AV11 -> 0 | AW29: =SUM($J11:AW11)*AW11 -> 0 | AX29: =SUM($J11:AX11)*AX11 -> 0 | AY29: =SUM($J11:AY11)*AY11 -> 0 | AZ29: =SUM($J11:AZ11)*AZ11 -> 0 | BA29: =SUM($J11:BA11)*BA11 -> 0 | BB29: =SUM($J11:BB11)*BB11 -> 0 | BC29: =SUM($J11:BC11)*BC11 -> 0 | BD29: =SUM($J11:BD11)*BD11 -> 0 | BE29: =SUM($J11:BE11)*BE11 -> 0 | BF29: =SUM($J11:BF11)*BF11 -> 0 | BG29: =SUM($J11:BG11)*BG11 -> 0 | BH29: =SUM($J11:BH11)*BH11 -> 0 | BI29: =SUM($J11:BI11)*BI11 -> 0 | BJ29: =SUM($J11:BJ11)*BJ11 -> 0 | BK29: =SUM($J11:BK11)*BK11 -> 0 | BL29: =SUM($J11:BL11)*BL11 -> 0 | BM29: =SUM($J11:BM11)*BM11 -> 0 | BN29: =SUM($J11:BN11)*BN11 -> 0 | BO29: =SUM($J11:BO11)*BO11 -> 0 | BP29: =SUM($J11:BP11)*BP11 -> 0 | BQ29: =SUM($J11:BQ11)*BQ11 -> 0 | BR29: =SUM($J11:BR11)*BR11 -> 0 | BS29: =SUM($J11:BS11)*BS11 -> 0 | BT29: =SUM($J11:BT11)*BT11 -> 0 | BU29: =SUM($J11:BU11)*BU11 -> 0 | BV29: =SUM($J11:BV11)*BV11 -> 0 | BW29: =SUM($J11:BW11)*BW11 -> 0 | BX29: =SUM($J11:BX11)*BX11 -> 0 | BY29: =SUM($J11:BY11)*BY11 -> 0 | BZ29: =SUM($J11:BZ11)*BZ11 -> 0 | CA29: =SUM($J11:CA11)*CA11 -> 0 | CB29: =SUM($J11:CB11)*CB11 -> 0 | CC29: =SUM($J11:CC11)*CC11 -> 0 | CD29: =SUM($J11:CD11)*CD11 -> 0 | CE29: =SUM($J11:CE11)*CE11 -> 0 | CF29: =SUM($J11:CF11)*CF11 -> 0 | CG29: =SUM($J11:CG11)*CG11 -> 0 | CH29: =SUM($J11:CH11)*CH11 -> 0 | CI29: =SUM($J11:CI11)*CI11 -> 0 | CJ29: =SUM($J11:CJ11)*CJ11 -> 0 | CK29: =SUM($J11:CK11)*CK11 -> 0 | CL29: =SUM($J11:CL11)*CL11 -> 0 | CM29: =SUM($J11:CM11)*CM11 -> 0 | CN29: =SUM($J11:CN11)*CN11 -> 0 | CO29: =SUM($J11:CO11)*CO11 -> 0 | CP29: =SUM($J11:CP11)*CP11 -> 0 | CQ29: =SUM($J11:CQ11)*CQ11 -> 0 | CR29: =SUM($J11:CR11)*CR11 -> 0 | CS29: =SUM($J11:CS11)*CS11 -> 0 | CT29: =SUM($J11:CT11)*CT11 -> 0 | CU29: =SUM($J11:CU11)*CU11 -> 0 | CV29: =SUM($J11:CV11)*CV11 -> 0 | CW29: =SUM($J11:CW11)*CW11 -> 0 | CX29: =SUM($J11:CX11)*CX11 -> 0 | CY29: =SUM($J11:CY11)*CY11 -> 0 | CZ29: =SUM($J11:CZ11)*CZ11 -> 0 | DA29: =SUM($J11:DA11)*DA11 -> 0 | DB29: =SUM($J11:DB11)*DB11 -> 0 | DC29: =SUM($J11:DC11)*DC11 -> 0 | DD29: =SUM($J11:DD11)*DD11 -> 0 | DE29: =SUM($J11:DE11)*DE11 -> 0 | DF29: =SUM($J11:DF11)*DF11 -> 0 | DG29: =SUM($J11:DG11)*DG11 -> 0 | DH29: =SUM($J11:DH11)*DH11 -> 0 | DI29: =SUM($J11:DI11)*DI11 -> 0 | DJ29: =SUM($J11:DJ11)*DJ11 -> 0 | DK29: =SUM($J11:DK11)*DK11 -> 0 | DL29: =SUM($J11:DL11)*DL11 -> 0 | DM29: =SUM($J11:DM11)*DM11 -> 0 | DN29: =SUM($J11:DN11)*DN11 -> 0 | DO29: =SUM($J11:DO11)*DO11 -> 0 | DP29: =SUM($J11:DP11)*DP11 -> 0 | DQ29: =SUM($J11:DQ11)*DQ11 -> 0 | DR29: =SUM($J11:DR11)*DR11 -> 0 | DS29: =SUM($J11:DS11)*DS11 -> 0 | DT29: =SUM($J11:DT11)*DT11 -> 0 | DU29: =SUM($J11:DU11)*DU11 -> 0 | DV29: =SUM($J11:DV11)*DV11 -> 0 | DW29: =SUM($J11:DW11)*DW11 -> 0 | DX29: =SUM($J11:DX11)*DX11 -> 0 | DY29: =SUM($J11:DY11)*DY11 -> 0 | DZ29: =SUM($J11:DZ11)*DZ11 -> 0 | EA29: =SUM($J11:EA11)*EA11 -> 0 | EB29: =SUM($J11:EB11)*EB11 -> 0 | EC29: =SUM($J11:EC11)*EC11 -> 0 | ED29: =SUM($J11:ED11)*ED11 -> 0 | EE29: =SUM($J11:EE11)*EE11 -> 0 | EF29: =SUM($J11:EF11)*EF11 -> 0 | EG29: =SUM($J11:EG11)*EG11 -> 0 | EH29: =SUM($J11:EH11)*EH11 -> 0 | EI29: =SUM($J11:EI11)*EI11 -> 0 | EJ29: =SUM($J11:EJ11)*EJ11 -> 0 | EK29: =SUM($J11:EK11)*EK11 -> 0
C30: Restart from C&M | D30: Num# | J30: =SUM($J12:J12)*J12 -> 0 | K30: =SUM($J12:K12)*K12 -> 0 | L30: =SUM($J12:L12)*L12 -> 0 | M30: =SUM($J12:M12)*M12 -> 0 | N30: =SUM($J12:N12)*N12 -> 0 | O30: =SUM($J12:O12)*O12 -> 0 | P30: =SUM($J12:P12)*P12 -> 0 | Q30: =SUM($J12:Q12)*Q12 -> 0 | R30: =SUM($J12:R12)*R12 -> 0 | S30: =SUM($J12:S12)*S12 -> 1 | T30: =SUM($J12:T12)*T12 -> 2 | U30: =SUM($J12:U12)*U12 -> 0 | V30: =SUM($J12:V12)*V12 -> 0 | W30: =SUM($J12:W12)*W12 -> 0 | X30: =SUM($J12:X12)*X12 -> 0 | Y30: =SUM($J12:Y12)*Y12 -> 0 | Z30: =SUM($J12:Z12)*Z12 -> 0 | AA30: =SUM($J12:AA12)*AA12 -> 0 | AB30: =SUM($J12:AB12)*AB12 -> 0 | AC30: =SUM($J12:AC12)*AC12 -> 0 | AD30: =SUM($J12:AD12)*AD12 -> 0 | AE30: =SUM($J12:AE12)*AE12 -> 0 | AF30: =SUM($J12:AF12)*AF12 -> 0 | AG30: =SUM($J12:AG12)*AG12 -> 0 | AH30: =SUM($J12:AH12)*AH12 -> 0 | AI30: =SUM($J12:AI12)*AI12 -> 0 | AJ30: =SUM($J12:AJ12)*AJ12 -> 0 | AK30: =SUM($J12:AK12)*AK12 -> 0 | AL30: =SUM($J12:AL12)*AL12 -> 0 | AM30: =SUM($J12:AM12)*AM12 -> 0 | AN30: =SUM($J12:AN12)*AN12 -> 0 | AO30: =SUM($J12:AO12)*AO12 -> 0 | AP30: =SUM($J12:AP12)*AP12 -> 0 | AQ30: =SUM($J12:AQ12)*AQ12 -> 0 | AR30: =SUM($J12:AR12)*AR12 -> 0 | AS30: =SUM($J12:AS12)*AS12 -> 0 | AT30: =SUM($J12:AT12)*AT12 -> 0 | AU30: =SUM($J12:AU12)*AU12 -> 0 | AV30: =SUM($J12:AV12)*AV12 -> 0 | AW30: =SUM($J12:AW12)*AW12 -> 0 | AX30: =SUM($J12:AX12)*AX12 -> 0 | AY30: =SUM($J12:AY12)*AY12 -> 0 | AZ30: =SUM($J12:AZ12)*AZ12 -> 0 | BA30: =SUM($J12:BA12)*BA12 -> 0 | BB30: =SUM($J12:BB12)*BB12 -> 0 | BC30: =SUM($J12:BC12)*BC12 -> 0 | BD30: =SUM($J12:BD12)*BD12 -> 0 | BE30: =SUM($J12:BE12)*BE12 -> 0 | BF30: =SUM($J12:BF12)*BF12 -> 0 | BG30: =SUM($J12:BG12)*BG12 -> 0 | BH30: =SUM($J12:BH12)*BH12 -> 0 | BI30: =SUM($J12:BI12)*BI12 -> 0 | BJ30: =SUM($J12:BJ12)*BJ12 -> 0 | BK30: =SUM($J12:BK12)*BK12 -> 0 | BL30: =SUM($J12:BL12)*BL12 -> 0 | BM30: =SUM($J12:BM12)*BM12 -> 0 | BN30: =SUM($J12:BN12)*BN12 -> 0 | BO30: =SUM($J12:BO12)*BO12 -> 0 | BP30: =SUM($J12:BP12)*BP12 -> 0 | BQ30: =SUM($J12:BQ12)*BQ12 -> 0 | BR30: =SUM($J12:BR12)*BR12 -> 0 | BS30: =SUM($J12:BS12)*BS12 -> 0 | BT30: =SUM($J12:BT12)*BT12 -> 0 | BU30: =SUM($J12:BU12)*BU12 -> 0 | BV30: =SUM($J12:BV12)*BV12 -> 0 | BW30: =SUM($J12:BW12)*BW12 -> 0 | BX30: =SUM($J12:BX12)*BX12 -> 0 | BY30: =SUM($J12:BY12)*BY12 -> 0 | BZ30: =SUM($J12:BZ12)*BZ12 -> 0 | CA30: =SUM($J12:CA12)*CA12 -> 0 | CB30: =SUM($J12:CB12)*CB12 -> 0 | CC30: =SUM($J12:CC12)*CC12 -> 0 | CD30: =SUM($J12:CD12)*CD12 -> 0 | CE30: =SUM($J12:CE12)*CE12 -> 0 | CF30: =SUM($J12:CF12)*CF12 -> 0 | CG30: =SUM($J12:CG12)*CG12 -> 0 | CH30: =SUM($J12:CH12)*CH12 -> 0 | CI30: =SUM($J12:CI12)*CI12 -> 0 | CJ30: =SUM($J12:CJ12)*CJ12 -> 0 | CK30: =SUM($J12:CK12)*CK12 -> 0 | CL30: =SUM($J12:CL12)*CL12 -> 0 | CM30: =SUM($J12:CM12)*CM12 -> 0 | CN30: =SUM($J12:CN12)*CN12 -> 0 | CO30: =SUM($J12:CO12)*CO12 -> 0 | CP30: =SUM($J12:CP12)*CP12 -> 0 | CQ30: =SUM($J12:CQ12)*CQ12 -> 0 | CR30: =SUM($J12:CR12)*CR12 -> 0 | CS30: =SUM($J12:CS12)*CS12 -> 0 | CT30: =SUM($J12:CT12)*CT12 -> 0 | CU30: =SUM($J12:CU12)*CU12 -> 0 | CV30: =SUM($J12:CV12)*CV12 -> 0 | CW30: =SUM($J12:CW12)*CW12 -> 0 | CX30: =SUM($J12:CX12)*CX12 -> 0 | CY30: =SUM($J12:CY12)*CY12 -> 0 | CZ30: =SUM($J12:CZ12)*CZ12 -> 0 | DA30: =SUM($J12:DA12)*DA12 -> 0 | DB30: =SUM($J12:DB12)*DB12 -> 0 | DC30: =SUM($J12:DC12)*DC12 -> 0 | DD30: =SUM($J12:DD12)*DD12 -> 0 | DE30: =SUM($J12:DE12)*DE12 -> 0 | DF30: =SUM($J12:DF12)*DF12 -> 0 | DG30: =SUM($J12:DG12)*DG12 -> 0 | DH30: =SUM($J12:DH12)*DH12 -> 0 | DI30: =SUM($J12:DI12)*DI12 -> 0 | DJ30: =SUM($J12:DJ12)*DJ12 -> 0 | DK30: =SUM($J12:DK12)*DK12 -> 0 | DL30: =SUM($J12:DL12)*DL12 -> 0 | DM30: =SUM($J12:DM12)*DM12 -> 0 | DN30: =SUM($J12:DN12)*DN12 -> 0 | DO30: =SUM($J12:DO12)*DO12 -> 0 | DP30: =SUM($J12:DP12)*DP12 -> 0 | DQ30: =SUM($J12:DQ12)*DQ12 -> 0 | DR30: =SUM($J12:DR12)*DR12 -> 0 | DS30: =SUM($J12:DS12)*DS12 -> 0 | DT30: =SUM($J12:DT12)*DT12 -> 0 | DU30: =SUM($J12:DU12)*DU12 -> 0 | DV30: =SUM($J12:DV12)*DV12 -> 0 | DW30: =SUM($J12:DW12)*DW12 -> 0 | DX30: =SUM($J12:DX12)*DX12 -> 0 | DY30: =SUM($J12:DY12)*DY12 -> 0 | DZ30: =SUM($J12:DZ12)*DZ12 -> 0 | EA30: =SUM($J12:EA12)*EA12 -> 0 | EB30: =SUM($J12:EB12)*EB12 -> 0 | EC30: =SUM($J12:EC12)*EC12 -> 0 | ED30: =SUM($J12:ED12)*ED12 -> 0 | EE30: =SUM($J12:EE12)*EE12 -> 0 | EF30: =SUM($J12:EF12)*EF12 -> 0 | EG30: =SUM($J12:EG12)*EG12 -> 0 | EH30: =SUM($J12:EH12)*EH12 -> 0 | EI30: =SUM($J12:EI12)*EI12 -> 0 | EJ30: =SUM($J12:EJ12)*EJ12 -> 0 | EK30: =SUM($J12:EK12)*EK12 -> 0
C31: Production | D31: Num# | J31: =SUM($J13:J13)*J13 -> 0 | K31: =SUM($J13:K13)*K13 -> 0 | L31: =SUM($J13:L13)*L13 -> 0 | M31: =SUM($J13:M13)*M13 -> 0 | N31: =SUM($J13:N13)*N13 -> 0 | O31: =SUM($J13:O13)*O13 -> 0 | P31: =SUM($J13:P13)*P13 -> 0 | Q31: =SUM($J13:Q13)*Q13 -> 0 | R31: =SUM($J13:R13)*R13 -> 0 | S31: =SUM($J13:S13)*S13 -> 0 | T31: =SUM($J13:T13)*T13 -> 0 | U31: =SUM($J13:U13)*U13 -> 1 | V31: =SUM($J13:V13)*V13 -> 2 | W31: =SUM($J13:W13)*W13 -> 3 | X31: =SUM($J13:X13)*X13 -> 4 | Y31: =SUM($J13:Y13)*Y13 -> 5 | Z31: =SUM($J13:Z13)*Z13 -> 6 | AA31: =SUM($J13:AA13)*AA13 -> 7 | AB31: =SUM($J13:AB13)*AB13 -> 8 | AC31: =SUM($J13:AC13)*AC13 -> 9 | AD31: =SUM($J13:AD13)*AD13 -> 10 | AE31: =SUM($J13:AE13)*AE13 -> 11 | AF31: =SUM($J13:AF13)*AF13 -> 12 | AG31: =SUM($J13:AG13)*AG13 -> 13 | AH31: =SUM($J13:AH13)*AH13 -> 14 | AI31: =SUM($J13:AI13)*AI13 -> 15 | AJ31: =SUM($J13:AJ13)*AJ13 -> 16 | AK31: =SUM($J13:AK13)*AK13 -> 17 | AL31: =SUM($J13:AL13)*AL13 -> 18 | AM31: =SUM($J13:AM13)*AM13 -> 19 | AN31: =SUM($J13:AN13)*AN13 -> 20 | AO31: =SUM($J13:AO13)*AO13 -> 21 | AP31: =SUM($J13:AP13)*AP13 -> 22 | AQ31: =SUM($J13:AQ13)*AQ13 -> 23 | AR31: =SUM($J13:AR13)*AR13 -> 24 | AS31: =SUM($J13:AS13)*AS13 -> 25 | AT31: =SUM($J13:AT13)*AT13 -> 26 | AU31: =SUM($J13:AU13)*AU13 -> 27 | AV31: =SUM($J13:AV13)*AV13 -> 28 | AW31: =SUM($J13:AW13)*AW13 -> 29 | AX31: =SUM($J13:AX13)*AX13 -> 30 | AY31: =SUM($J13:AY13)*AY13 -> 31 | AZ31: =SUM($J13:AZ13)*AZ13 -> 32 | BA31: =SUM($J13:BA13)*BA13 -> 33 | BB31: =SUM($J13:BB13)*BB13 -> 34 | BC31: =SUM($J13:BC13)*BC13 -> 35 | BD31: =SUM($J13:BD13)*BD13 -> 36 | BE31: =SUM($J13:BE13)*BE13 -> 37 | BF31: =SUM($J13:BF13)*BF13 -> 38 | BG31: =SUM($J13:BG13)*BG13 -> 39 | BH31: =SUM($J13:BH13)*BH13 -> 40 | BI31: =SUM($J13:BI13)*BI13 -> 41 | BJ31: =SUM($J13:BJ13)*BJ13 -> 42 | BK31: =SUM($J13:BK13)*BK13 -> 43 | BL31: =SUM($J13:BL13)*BL13 -> 44 | BM31: =SUM($J13:BM13)*BM13 -> 45 | BN31: =SUM($J13:BN13)*BN13 -> 46 | BO31: =SUM($J13:BO13)*BO13 -> 47 | BP31: =SUM($J13:BP13)*BP13 -> 48 | BQ31: =SUM($J13:BQ13)*BQ13 -> 49 | BR31: =SUM($J13:BR13)*BR13 -> 50 | BS31: =SUM($J13:BS13)*BS13 -> 51 | BT31: =SUM($J13:BT13)*BT13 -> 52 | BU31: =SUM($J13:BU13)*BU13 -> 53 | BV31: =SUM($J13:BV13)*BV13 -> 54 | BW31: =SUM($J13:BW13)*BW13 -> 55 | BX31: =SUM($J13:BX13)*BX13 -> 56 | BY31: =SUM($J13:BY13)*BY13 -> 57 | BZ31: =SUM($J13:BZ13)*BZ13 -> 58 | CA31: =SUM($J13:CA13)*CA13 -> 59 | CB31: =SUM($J13:CB13)*CB13 -> 60 | CC31: =SUM($J13:CC13)*CC13 -> 61 | CD31: =SUM($J13:CD13)*CD13 -> 62 | CE31: =SUM($J13:CE13)*CE13 -> 63 | CF31: =SUM($J13:CF13)*CF13 -> 64 | CG31: =SUM($J13:CG13)*CG13 -> 65 | CH31: =SUM($J13:CH13)*CH13 -> 66 | CI31: =SUM($J13:CI13)*CI13 -> 67 | CJ31: =SUM($J13:CJ13)*CJ13 -> 68 | CK31: =SUM($J13:CK13)*CK13 -> 69 | CL31: =SUM($J13:CL13)*CL13 -> 70 | CM31: =SUM($J13:CM13)*CM13 -> 71 | CN31: =SUM($J13:CN13)*CN13 -> 72 | CO31: =SUM($J13:CO13)*CO13 -> 73 | CP31: =SUM($J13:CP13)*CP13 -> 74 | CQ31: =SUM($J13:CQ13)*CQ13 -> 75 | CR31: =SUM($J13:CR13)*CR13 -> 76 | CS31: =SUM($J13:CS13)*CS13 -> 77 | CT31: =SUM($J13:CT13)*CT13 -> 78 | CU31: =SUM($J13:CU13)*CU13 -> 79 | CV31: =SUM($J13:CV13)*CV13 -> 80 | CW31: =SUM($J13:CW13)*CW13 -> 81 | CX31: =SUM($J13:CX13)*CX13 -> 82 | CY31: =SUM($J13:CY13)*CY13 -> 83 | CZ31: =SUM($J13:CZ13)*CZ13 -> 84 | DA31: =SUM($J13:DA13)*DA13 -> 85 | DB31: =SUM($J13:DB13)*DB13 -> 86 | DC31: =SUM($J13:DC13)*DC13 -> 87 | DD31: =SUM($J13:DD13)*DD13 -> 88 | DE31: =SUM($J13:DE13)*DE13 -> 89 | DF31: =SUM($J13:DF13)*DF13 -> 90 | DG31: =SUM($J13:DG13)*DG13 -> 91 | DH31: =SUM($J13:DH13)*DH13 -> 92 | DI31: =SUM($J13:DI13)*DI13 -> 93 | DJ31: =SUM($J13:DJ13)*DJ13 -> 94 | DK31: =SUM($J13:DK13)*DK13 -> 0 | DL31: =SUM($J13:DL13)*DL13 -> 0 | DM31: =SUM($J13:DM13)*DM13 -> 0 | DN31: =SUM($J13:DN13)*DN13 -> 0 | DO31: =SUM($J13:DO13)*DO13 -> 0 | DP31: =SUM($J13:DP13)*DP13 -> 0 | DQ31: =SUM($J13:DQ13)*DQ13 -> 0 | DR31: =SUM($J13:DR13)*DR13 -> 0 | DS31: =SUM($J13:DS13)*DS13 -> 0 | DT31: =SUM($J13:DT13)*DT13 -> 0 | DU31: =SUM($J13:DU13)*DU13 -> 0 | DV31: =SUM($J13:DV13)*DV13 -> 0 | DW31: =SUM($J13:DW13)*DW13 -> 0 | DX31: =SUM($J13:DX13)*DX13 -> 0 | DY31: =SUM($J13:DY13)*DY13 -> 0 | DZ31: =SUM($J13:DZ13)*DZ13 -> 0 | EA31: =SUM($J13:EA13)*EA13 -> 0 | EB31: =SUM($J13:EB13)*EB13 -> 0 | EC31: =SUM($J13:EC13)*EC13 -> 0 | ED31: =SUM($J13:ED13)*ED13 -> 0 | EE31: =SUM($J13:EE13)*EE13 -> 0 | EF31: =SUM($J13:EF13)*EF13 -> 0 | EG31: =SUM($J13:EG13)*EG13 -> 0 | EH31: =SUM($J13:EH13)*EH13 -> 0 | EI31: =SUM($J13:EI13)*EI13 -> 0 | EJ31: =SUM($J13:EJ13)*EJ13 -> 0 | EK31: =SUM($J13:EK13)*EK13 -> 0
C32: Restoration | D32: Num# | J32: =SUM($J14:J14)*J14 -> 0 | K32: =SUM($J14:K14)*K14 -> 0 | L32: =SUM($J14:L14)*L14 -> 0 | M32: =SUM($J14:M14)*M14 -> 0 | N32: =SUM($J14:N14)*N14 -> 0 | O32: =SUM($J14:O14)*O14 -> 0 | P32: =SUM($J14:P14)*P14 -> 0 | Q32: =SUM($J14:Q14)*Q14 -> 0 | R32: =SUM($J14:R14)*R14 -> 0 | S32: =SUM($J14:S14)*S14 -> 0 | T32: =SUM($J14:T14)*T14 -> 0 | U32: =SUM($J14:U14)*U14 -> 0 | V32: =SUM($J14:V14)*V14 -> 0 | W32: =SUM($J14:W14)*W14 -> 0 | X32: =SUM($J14:X14)*X14 -> 0 | Y32: =SUM($J14:Y14)*Y14 -> 0 | Z32: =SUM($J14:Z14)*Z14 -> 0 | AA32: =SUM($J14:AA14)*AA14 -> 0 | AB32: =SUM($J14:AB14)*AB14 -> 0 | AC32: =SUM($J14:AC14)*AC14 -> 0 | AD32: =SUM($J14:AD14)*AD14 -> 0 | AE32: =SUM($J14:AE14)*AE14 -> 0 | AF32: =SUM($J14:AF14)*AF14 -> 0 | AG32: =SUM($J14:AG14)*AG14 -> 0 | AH32: =SUM($J14:AH14)*AH14 -> 0 | AI32: =SUM($J14:AI14)*AI14 -> 0 | AJ32: =SUM($J14:AJ14)*AJ14 -> 0 | AK32: =SUM($J14:AK14)*AK14 -> 0 | AL32: =SUM($J14:AL14)*AL14 -> 0 | AM32: =SUM($J14:AM14)*AM14 -> 0 | AN32: =SUM($J14:AN14)*AN14 -> 0 | AO32: =SUM($J14:AO14)*AO14 -> 0 | AP32: =SUM($J14:AP14)*AP14 -> 0 | AQ32: =SUM($J14:AQ14)*AQ14 -> 0 | AR32: =SUM($J14:AR14)*AR14 -> 0 | AS32: =SUM($J14:AS14)*AS14 -> 0 | AT32: =SUM($J14:AT14)*AT14 -> 0 | AU32: =SUM($J14:AU14)*AU14 -> 0 | AV32: =SUM($J14:AV14)*AV14 -> 0 | AW32: =SUM($J14:AW14)*AW14 -> 0 | AX32: =SUM($J14:AX14)*AX14 -> 0 | AY32: =SUM($J14:AY14)*AY14 -> 0 | AZ32: =SUM($J14:AZ14)*AZ14 -> 0 | BA32: =SUM($J14:BA14)*BA14 -> 0 | BB32: =SUM($J14:BB14)*BB14 -> 0 | BC32: =SUM($J14:BC14)*BC14 -> 0 | BD32: =SUM($J14:BD14)*BD14 -> 0 | BE32: =SUM($J14:BE14)*BE14 -> 0 | BF32: =SUM($J14:BF14)*BF14 -> 0 | BG32: =SUM($J14:BG14)*BG14 -> 0 | BH32: =SUM($J14:BH14)*BH14 -> 0 | BI32: =SUM($J14:BI14)*BI14 -> 0 | BJ32: =SUM($J14:BJ14)*BJ14 -> 0 | BK32: =SUM($J14:BK14)*BK14 -> 0 | BL32: =SUM($J14:BL14)*BL14 -> 0 | BM32: =SUM($J14:BM14)*BM14 -> 0 | BN32: =SUM($J14:BN14)*BN14 -> 0 | BO32: =SUM($J14:BO14)*BO14 -> 0 | BP32: =SUM($J14:BP14)*BP14 -> 0 | BQ32: =SUM($J14:BQ14)*BQ14 -> 0 | BR32: =SUM($J14:BR14)*BR14 -> 0 | BS32: =SUM($J14:BS14)*BS14 -> 0 | BT32: =SUM($J14:BT14)*BT14 -> 0 | BU32: =SUM($J14:BU14)*BU14 -> 0 | BV32: =SUM($J14:BV14)*BV14 -> 0 | BW32: =SUM($J14:BW14)*BW14 -> 0 | BX32: =SUM($J14:BX14)*BX14 -> 0 | BY32: =SUM($J14:BY14)*BY14 -> 0 | BZ32: =SUM($J14:BZ14)*BZ14 -> 0 | CA32: =SUM($J14:CA14)*CA14 -> 0 | CB32: =SUM($J14:CB14)*CB14 -> 0 | CC32: =SUM($J14:CC14)*CC14 -> 0 | CD32: =SUM($J14:CD14)*CD14 -> 0 | CE32: =SUM($J14:CE14)*CE14 -> 0 | CF32: =SUM($J14:CF14)*CF14 -> 0 | CG32: =SUM($J14:CG14)*CG14 -> 0 | CH32: =SUM($J14:CH14)*CH14 -> 0 | CI32: =SUM($J14:CI14)*CI14 -> 0 | CJ32: =SUM($J14:CJ14)*CJ14 -> 0 | CK32: =SUM($J14:CK14)*CK14 -> 0 | CL32: =SUM($J14:CL14)*CL14 -> 0 | CM32: =SUM($J14:CM14)*CM14 -> 0 | CN32: =SUM($J14:CN14)*CN14 -> 0 | CO32: =SUM($J14:CO14)*CO14 -> 0 | CP32: =SUM($J14:CP14)*CP14 -> 0 | CQ32: =SUM($J14:CQ14)*CQ14 -> 0 | CR32: =SUM($J14:CR14)*CR14 -> 0 | CS32: =SUM($J14:CS14)*CS14 -> 0 | CT32: =SUM($J14:CT14)*CT14 -> 0 | CU32: =SUM($J14:CU14)*CU14 -> 0 | CV32: =SUM($J14:CV14)*CV14 -> 0 | CW32: =SUM($J14:CW14)*CW14 -> 0 | CX32: =SUM($J14:CX14)*CX14 -> 0 | CY32: =SUM($J14:CY14)*CY14 -> 0 | CZ32: =SUM($J14:CZ14)*CZ14 -> 0 | DA32: =SUM($J14:DA14)*DA14 -> 0 | DB32: =SUM($J14:DB14)*DB14 -> 0 | DC32: =SUM($J14:DC14)*DC14 -> 0 | DD32: =SUM($J14:DD14)*DD14 -> 0 | DE32: =SUM($J14:DE14)*DE14 -> 0 | DF32: =SUM($J14:DF14)*DF14 -> 0 | DG32: =SUM($J14:DG14)*DG14 -> 0 | DH32: =SUM($J14:DH14)*DH14 -> 0 | DI32: =SUM($J14:DI14)*DI14 -> 0 | DJ32: =SUM($J14:DJ14)*DJ14 -> 0 | DK32: =SUM($J14:DK14)*DK14 -> 0 | DL32: =SUM($J14:DL14)*DL14 -> 1 | DM32: =SUM($J14:DM14)*DM14 -> 2 | DN32: =SUM($J14:DN14)*DN14 -> 3 | DO32: =SUM($J14:DO14)*DO14 -> 4 | DP32: =SUM($J14:DP14)*DP14 -> 5 | DQ32: =SUM($J14:DQ14)*DQ14 -> 6 | DR32: =SUM($J14:DR14)*DR14 -> 7 | DS32: =SUM($J14:DS14)*DS14 -> 0 | DT32: =SUM($J14:DT14)*DT14 -> 0 | DU32: =SUM($J14:DU14)*DU14 -> 0 | DV32: =SUM($J14:DV14)*DV14 -> 0 | DW32: =SUM($J14:DW14)*DW14 -> 0 | DX32: =SUM($J14:DX14)*DX14 -> 0 | DY32: =SUM($J14:DY14)*DY14 -> 0 | DZ32: =SUM($J14:DZ14)*DZ14 -> 0 | EA32: =SUM($J14:EA14)*EA14 -> 0 | EB32: =SUM($J14:EB14)*EB14 -> 0 | EC32: =SUM($J14:EC14)*EC14 -> 0 | ED32: =SUM($J14:ED14)*ED14 -> 0 | EE32: =SUM($J14:EE14)*EE14 -> 0 | EF32: =SUM($J14:EF14)*EF14 -> 0 | EG32: =SUM($J14:EG14)*EG14 -> 0 | EH32: =SUM($J14:EH14)*EH14 -> 0 | EI32: =SUM($J14:EI14)*EI14 -> 0 | EJ32: =SUM($J14:EJ14)*EJ14 -> 0 | EK32: =SUM($J14:EK14)*EK14 -> 0
C34: Production Quarter | D34: Num# | J34: =(SUM($J13:J13,$J9:J9)*MAX(J9,J13)) -> 1 | K34: =(SUM($J13:K13,$J9:K9)*MAX(K9,K13)) -> 2 | L34: =(SUM($J13:L13,$J9:L9)*MAX(L9,L13)) -> 3 | M34: =(SUM($J13:M13,$J9:M9)*MAX(M9,M13)) -> 4 | N34: =(SUM($J13:N13,$J9:N9)*MAX(N9,N13)) -> 0 | O34: =(SUM($J13:O13,$J9:O9)*MAX(O9,O13)) -> 0 | P34: =(SUM($J13:P13,$J9:P9)*MAX(P9,P13)) -> 0 | Q34: =(SUM($J13:Q13,$J9:Q9)*MAX(Q9,Q13)) -> 0 | R34: =(SUM($J13:R13,$J9:R9)*MAX(R9,R13)) -> 0 | S34: =(SUM($J13:S13,$J9:S9)*MAX(S9,S13)) -> 0 | T34: =(SUM($J13:T13,$J9:T9)*MAX(T9,T13)) -> 0 | U34: =(SUM($J13:U13,$J9:U9)*MAX(U9,U13)) -> 5 | V34: =(SUM($J13:V13,$J9:V9)*MAX(V9,V13)) -> 6 | W34: =(SUM($J13:W13,$J9:W9)*MAX(W9,W13)) -> 7 | X34: =(SUM($J13:X13,$J9:X9)*MAX(X9,X13)) -> 8 | Y34: =(SUM($J13:Y13,$J9:Y9)*MAX(Y9,Y13)) -> 9 | Z34: =(SUM($J13:Z13,$J9:Z9)*MAX(Z9,Z13)) -> 10 | AA34: =(SUM($J13:AA13,$J9:AA9)*MAX(AA9,AA13)) -> 11 | AB34: =(SUM($J13:AB13,$J9:AB9)*MAX(AB9,AB13)) -> 12 | AC34: =(SUM($J13:AC13,$J9:AC9)*MAX(AC9,AC13)) -> 13 | AD34: =(SUM($J13:AD13,$J9:AD9)*MAX(AD9,AD13)) -> 14 | AE34: =(SUM($J13:AE13,$J9:AE9)*MAX(AE9,AE13)) -> 15 | AF34: =(SUM($J13:AF13,$J9:AF9)*MAX(AF9,AF13)) -> 16 | AG34: =(SUM($J13:AG13,$J9:AG9)*MAX(AG9,AG13)) -> 17 | AH34: =(SUM($J13:AH13,$J9:AH9)*MAX(AH9,AH13)) -> 18 | AI34: =(SUM($J13:AI13,$J9:AI9)*MAX(AI9,AI13)) -> 19 | AJ34: =(SUM($J13:AJ13,$J9:AJ9)*MAX(AJ9,AJ13)) -> 20 | AK34: =(SUM($J13:AK13,$J9:AK9)*MAX(AK9,AK13)) -> 21 | AL34: =(SUM($J13:AL13,$J9:AL9)*MAX(AL9,AL13)) -> 22 | AM34: =(SUM($J13:AM13,$J9:AM9)*MAX(AM9,AM13)) -> 23 | AN34: =(SUM($J13:AN13,$J9:AN9)*MAX(AN9,AN13)) -> 24 | AO34: =(SUM($J13:AO13,$J9:AO9)*MAX(AO9,AO13)) -> 25 | AP34: =(SUM($J13:AP13,$J9:AP9)*MAX(AP9,AP13)) -> 26 | AQ34: =(SUM($J13:AQ13,$J9:AQ9)*MAX(AQ9,AQ13)) -> 27 | AR34: =(SUM($J13:AR13,$J9:AR9)*MAX(AR9,AR13)) -> 28 | AS34: =(SUM($J13:AS13,$J9:AS9)*MAX(AS9,AS13)) -> 29 | AT34: =(SUM($J13:AT13,$J9:AT9)*MAX(AT9,AT13)) -> 30 | AU34: =(SUM($J13:AU13,$J9:AU9)*MAX(AU9,AU13)) -> 31 | AV34: =(SUM($J13:AV13,$J9:AV9)*MAX(AV9,AV13)) -> 32 | AW34: =(SUM($J13:AW13,$J9:AW9)*MAX(AW9,AW13)) -> 33 | AX34: =(SUM($J13:AX13,$J9:AX9)*MAX(AX9,AX13)) -> 34 | AY34: =(SUM($J13:AY13,$J9:AY9)*MAX(AY9,AY13)) -> 35 | AZ34: =(SUM($J13:AZ13,$J9:AZ9)*MAX(AZ9,AZ13)) -> 36 | BA34: =(SUM($J13:BA13,$J9:BA9)*MAX(BA9,BA13)) -> 37 | BB34: =(SUM($J13:BB13,$J9:BB9)*MAX(BB9,BB13)) -> 38 | BC34: =(SUM($J13:BC13,$J9:BC9)*MAX(BC9,BC13)) -> 39 | BD34: =(SUM($J13:BD13,$J9:BD9)*MAX(BD9,BD13)) -> 40 | BE34: =(SUM($J13:BE13,$J9:BE9)*MAX(BE9,BE13)) -> 41 | BF34: =(SUM($J13:BF13,$J9:BF9)*MAX(BF9,BF13)) -> 42 | BG34: =(SUM($J13:BG13,$J9:BG9)*MAX(BG9,BG13)) -> 43 | BH34: =(SUM($J13:BH13,$J9:BH9)*MAX(BH9,BH13)) -> 44 | BI34: =(SUM($J13:BI13,$J9:BI9)*MAX(BI9,BI13)) -> 45 | BJ34: =(SUM($J13:BJ13,$J9:BJ9)*MAX(BJ9,BJ13)) -> 46 | BK34: =(SUM($J13:BK13,$J9:BK9)*MAX(BK9,BK13)) -> 47 | BL34: =(SUM($J13:BL13,$J9:BL9)*MAX(BL9,BL13)) -> 48 | BM34: =(SUM($J13:BM13,$J9:BM9)*MAX(BM9,BM13)) -> 49 | BN34: =(SUM($J13:BN13,$J9:BN9)*MAX(BN9,BN13)) -> 50 | BO34: =(SUM($J13:BO13,$J9:BO9)*MAX(BO9,BO13)) -> 51 | BP34: =(SUM($J13:BP13,$J9:BP9)*MAX(BP9,BP13)) -> 52 | BQ34: =(SUM($J13:BQ13,$J9:BQ9)*MAX(BQ9,BQ13)) -> 53 | BR34: =(SUM($J13:BR13,$J9:BR9)*MAX(BR9,BR13)) -> 54 | BS34: =(SUM($J13:BS13,$J9:BS9)*MAX(BS9,BS13)) -> 55 | BT34: =(SUM($J13:BT13,$J9:BT9)*MAX(BT9,BT13)) -> 56 | BU34: =(SUM($J13:BU13,$J9:BU9)*MAX(BU9,BU13)) -> 57 | BV34: =(SUM($J13:BV13,$J9:BV9)*MAX(BV9,BV13)) -> 58 | BW34: =(SUM($J13:BW13,$J9:BW9)*MAX(BW9,BW13)) -> 59 | BX34: =(SUM($J13:BX13,$J9:BX9)*MAX(BX9,BX13)) -> 60 | BY34: =(SUM($J13:BY13,$J9:BY9)*MAX(BY9,BY13)) -> 61 | BZ34: =(SUM($J13:BZ13,$J9:BZ9)*MAX(BZ9,BZ13)) -> 62 | CA34: =(SUM($J13:CA13,$J9:CA9)*MAX(CA9,CA13)) -> 63 | CB34: =(SUM($J13:CB13,$J9:CB9)*MAX(CB9,CB13)) -> 64 | CC34: =(SUM($J13:CC13,$J9:CC9)*MAX(CC9,CC13)) -> 65 | CD34: =(SUM($J13:CD13,$J9:CD9)*MAX(CD9,CD13)) -> 66 | CE34: =(SUM($J13:CE13,$J9:CE9)*MAX(CE9,CE13)) -> 67 | CF34: =(SUM($J13:CF13,$J9:CF9)*MAX(CF9,CF13)) -> 68 | CG34: =(SUM($J13:CG13,$J9:CG9)*MAX(CG9,CG13)) -> 69 | CH34: =(SUM($J13:CH13,$J9:CH9)*MAX(CH9,CH13)) -> 70 | CI34: =(SUM($J13:CI13,$J9:CI9)*MAX(CI9,CI13)) -> 71 | CJ34: =(SUM($J13:CJ13,$J9:CJ9)*MAX(CJ9,CJ13)) -> 72 | CK34: =(SUM($J13:CK13,$J9:CK9)*MAX(CK9,CK13)) -> 73 | CL34: =(SUM($J13:CL13,$J9:CL9)*MAX(CL9,CL13)) -> 74 | CM34: =(SUM($J13:CM13,$J9:CM9)*MAX(CM9,CM13)) -> 75 | CN34: =(SUM($J13:CN13,$J9:CN9)*MAX(CN9,CN13)) -> 76 | CO34: =(SUM($J13:CO13,$J9:CO9)*MAX(CO9,CO13)) -> 77 | CP34: =(SUM($J13:CP13,$J9:CP9)*MAX(CP9,CP13)) -> 78 | CQ34: =(SUM($J13:CQ13,$J9:CQ9)*MAX(CQ9,CQ13)) -> 79 | CR34: =(SUM($J13:CR13,$J9:CR9)*MAX(CR9,CR13)) -> 80 | CS34: =(SUM($J13:CS13,$J9:CS9)*MAX(CS9,CS13)) -> 81 | CT34: =(SUM($J13:CT13,$J9:CT9)*MAX(CT9,CT13)) -> 82 | CU34: =(SUM($J13:CU13,$J9:CU9)*MAX(CU9,CU13)) -> 83 | CV34: =(SUM($J13:CV13,$J9:CV9)*MAX(CV9,CV13)) -> 84 | CW34: =(SUM($J13:CW13,$J9:CW9)*MAX(CW9,CW13)) -> 85 | CX34: =(SUM($J13:CX13,$J9:CX9)*MAX(CX9,CX13)) -> 86 | CY34: =(SUM($J13:CY13,$J9:CY9)*MAX(CY9,CY13)) -> 87 | CZ34: =(SUM($J13:CZ13,$J9:CZ9)*MAX(CZ9,CZ13)) -> 88 | DA34: =(SUM($J13:DA13,$J9:DA9)*MAX(DA9,DA13)) -> 89 | DB34: =(SUM($J13:DB13,$J9:DB9)*MAX(DB9,DB13)) -> 90 | DC34: =(SUM($J13:DC13,$J9:DC9)*MAX(DC9,DC13)) -> 91 | DD34: =(SUM($J13:DD13,$J9:DD9)*MAX(DD9,DD13)) -> 92 | DE34: =(SUM($J13:DE13,$J9:DE9)*MAX(DE9,DE13)) -> 93 | DF34: =(SUM($J13:DF13,$J9:DF9)*MAX(DF9,DF13)) -> 94 | DG34: =(SUM($J13:DG13,$J9:DG9)*MAX(DG9,DG13)) -> 95 | DH34: =(SUM($J13:DH13,$J9:DH9)*MAX(DH9,DH13)) -> 96 | DI34: =(SUM($J13:DI13,$J9:DI9)*MAX(DI9,DI13)) -> 97 | DJ34: =(SUM($J13:DJ13,$J9:DJ9)*MAX(DJ9,DJ13)) -> 98 | DK34: =(SUM($J13:DK13,$J9:DK9)*MAX(DK9,DK13)) -> 0 | DL34: =(SUM($J13:DL13,$J9:DL9)*MAX(DL9,DL13)) -> 0 | DM34: =(SUM($J13:DM13,$J9:DM9)*MAX(DM9,DM13)) -> 0 | DN34: =(SUM($J13:DN13,$J9:DN9)*MAX(DN9,DN13)) -> 0 | DO34: =(SUM($J13:DO13,$J9:DO9)*MAX(DO9,DO13)) -> 0 | DP34: =(SUM($J13:DP13,$J9:DP9)*MAX(DP9,DP13)) -> 0 | DQ34: =(SUM($J13:DQ13,$J9:DQ9)*MAX(DQ9,DQ13)) -> 0 | DR34: =(SUM($J13:DR13,$J9:DR9)*MAX(DR9,DR13)) -> 0 | DS34: =(SUM($J13:DS13,$J9:DS9)*MAX(DS9,DS13)) -> 0 | DT34: =(SUM($J13:DT13,$J9:DT9)*MAX(DT9,DT13)) -> 0 | DU34: =(SUM($J13:DU13,$J9:DU9)*MAX(DU9,DU13)) -> 0 | DV34: =(SUM($J13:DV13,$J9:DV9)*MAX(DV9,DV13)) -> 0 | DW34: =(SUM($J13:DW13,$J9:DW9)*MAX(DW9,DW13)) -> 0 | DX34: =(SUM($J13:DX13,$J9:DX9)*MAX(DX9,DX13)) -> 0 | DY34: =(SUM($J13:DY13,$J9:DY9)*MAX(DY9,DY13)) -> 0 | DZ34: =(SUM($J13:DZ13,$J9:DZ9)*MAX(DZ9,DZ13)) -> 0 | EA34: =(SUM($J13:EA13,$J9:EA9)*MAX(EA9,EA13)) -> 0 | EB34: =(SUM($J13:EB13,$J9:EB9)*MAX(EB9,EB13)) -> 0 | EC34: =(SUM($J13:EC13,$J9:EC9)*MAX(EC9,EC13)) -> 0 | ED34: =(SUM($J13:ED13,$J9:ED9)*MAX(ED9,ED13)) -> 0 | EE34: =(SUM($J13:EE13,$J9:EE9)*MAX(EE9,EE13)) -> 0 | EF34: =(SUM($J13:EF13,$J9:EF9)*MAX(EF9,EF13)) -> 0 | EG34: =(SUM($J13:EG13,$J9:EG9)*MAX(EG9,EG13)) -> 0 | EH34: =(SUM($J13:EH13,$J9:EH9)*MAX(EH9,EH13)) -> 0 | EI34: =(SUM($J13:EI13,$J9:EI9)*MAX(EI9,EI13)) -> 0 | EJ34: =(SUM($J13:EJ13,$J9:EJ9)*MAX(EJ9,EJ13)) -> 0 | EK34: =(SUM($J13:EK13,$J9:EK9)*MAX(EK9,EK13)) -> 0
C35: Production Year | D35: Num# | J35: =ROUNDUP(J34/Qtrs_Yr,0) -> 1 | K35: 1 | L35: 1 | M35: 1 | N35: 0 | O35: 0 | P35: 0 | Q35: 0 | R35: 0 | S35: 0 | T35: 0 | U35: 2 | V35: 2 | W35: 2 | X35: 2 | Y35: 3 | Z35: 3 | AA35: 3 | AB35: 3 | AC35: 4 | AD35: 4 | AE35: 4 | AF35: 4 | AG35: 5 | AH35: 5 | AI35: 5 | AJ35: 5 | AK35: 6 | AL35: 6 | AM35: 6 | AN35: 6 | AO35: 7 | AP35: =ROUNDUP(AP34/Qtrs_Yr,0) -> 7 | AQ35: 7 | AR35: 7 | AS35: 8 | AT35: 8 | AU35: 8 | AV35: 8 | AW35: 9 | AX35: 9 | AY35: 9 | AZ35: 9 | BA35: 10 | BB35: 10 | BC35: 10 | BD35: 10 | BE35: 11 | BF35: 11 | BG35: 11 | BH35: 11 | BI35: 12 | BJ35: 12 | BK35: 12 | BL35: 12 | BM35: 13 | BN35: =ROUNDUP(BN34/Qtrs_Yr,0) -> 13 | BO35: 13 | BP35: 13 | BQ35: 14 | BR35: 14 | BS35: 14 | BT35: 14 | BU35: 15 | BV35: 15 | BW35: 15 | BX35: 15 | BY35: 16 | BZ35: 16 | CA35: 16 | CB35: 16 | CC35: 17 | CD35: 17 | CE35: 17 | CF35: 17 | CG35: 18 | CH35: 18 | CI35: 18 | CJ35: 18 | CK35: 19 | CL35: 19 | CM35: 19 | CN35: 19 | CO35: 20 | CP35: 20 | CQ35: 20 | CR35: 20 | CS35: 21 | CT35: 21 | CU35: 21 | CV35: 21 | CW35: 22 | CX35: 22 | CY35: 22 | CZ35: 22 | DA35: 23 | DB35: 23 | DC35: 23 | DD35: 23 | DE35: 24 | DF35: 24 | DG35: 24 | DH35: 24 | DI35: 25 | DJ35: 25 | DK35: 0 | DL35: 0 | DM35: 0 | DN35: 0 | DO35: 0 | DP35: 0 | DQ35: 0 | DR35: 0 | DS35: 0 | DT35: 0 | DU35: 0 | DV35: 0 | DW35: 0 | DX35: 0 | DY35: 0 | DZ35: =ROUNDUP(DZ34/Qtrs_Yr,0) -> 0 | EA35: 0 | EB35: 0 | EC35: 0 | ED35: 0 | EE35: 0 | EF35: 0 | EG35: 0 | EH35: 0 | EI35: 0 | EJ35: 0 | EK35: 0
C36: Calendar Year | D36: Num# | J36: =YEAR(J5) -> 2018 | K36: 2018 | L36: 2019 | M36: 2019 | N36: 2019 | O36: 2019 | P36: 2020 | Q36: 2020 | R36: 2020 | S36: 2020 | T36: 2021 | U36: 2021 | V36: 2021 | W36: 2021 | X36: 2022 | Y36: 2022 | Z36: 2022 | AA36: 2022 | AB36: 2023 | AC36: 2023 | AD36: 2023 | AE36: 2023 | AF36: 2024 | AG36: 2024 | AH36: 2024 | AI36: 2024 | AJ36: 2025 | AK36: 2025 | AL36: 2025 | AM36: 2025 | AN36: 2026 | AO36: 2026 | AP36: =YEAR(AP5) -> 2026 | AQ36: 2026 | AR36: 2027 | AS36: 2027 | AT36: 2027 | AU36: 2027 | AV36: 2028 | AW36: 2028 | AX36: 2028 | AY36: 2028 | AZ36: 2029 | BA36: 2029 | BB36: 2029 | BC36: 2029 | BD36: 2030 | BE36: 2030 | BF36: 2030 | BG36: 2030 | BH36: 2031 | BI36: 2031 | BJ36: 2031 | BK36: 2031 | BL36: 2032 | BM36: 2032 | BN36: 2032 | BO36: 2032 | BP36: 2033 | BQ36: 2033 | BR36: 2033 | BS36: 2033 | BT36: 2034 | BU36: 2034 | BV36: =YEAR(BV5) -> 2034 | BW36: 2034 | BX36: 2035 | BY36: 2035 | BZ36: 2035 | CA36: 2035 | CB36: 2036 | CC36: 2036 | CD36: 2036 | CE36: 2036 | CF36: 2037 | CG36: 2037 | CH36: 2037 | CI36: 2037 | CJ36: 2038 | CK36: 2038 | CL36: 2038 | CM36: 2038 | CN36: 2039 | CO36: 2039 | CP36: 2039 | CQ36: 2039 | CR36: 2040 | CS36: 2040 | CT36: 2040 | CU36: 2040 | CV36: 2041 | CW36: 2041 | CX36: 2041 | CY36: 2041 | CZ36: 2042 | DA36: 2042 | DB36: =YEAR(DB5) -> 2042 | DC36: 2042 | DD36: 2043 | DE36: 2043 | DF36: 2043 | DG36: 2043 | DH36: 2044 | DI36: 2044 | DJ36: 2044 | DK36: 2044 | DL36: 2045 | DM36: 2045 | DN36: 2045 | DO36: 2045 | DP36: 2046 | DQ36: 2046 | DR36: 2046 | DS36: 2046 | DT36: 2047 | DU36: 2047 | DV36: 2047 | DW36: 2047 | DX36: 2048 | DY36: 2048 | DZ36: 2048 | EA36: 2048 | EB36: 2049 | EC36: 2049 | ED36: 2049 | EE36: 2049 | EF36: 2050 | EG36: 2050 | EH36: 2050 | EI36: 2050 | EJ36: 2051 | EK36: 2051
C37: Days in period | D37: Num# | J37: =J5-J4+1 -> 92 | K37: 92 | L37: 90 | M37: 91 | N37: 92 | O37: 92 | P37: 91 | Q37: 91 | R37: 92 | S37: 92 | T37: 90 | U37: 91 | V37: 92 | W37: 92 | X37: 90 | Y37: 91 | Z37: 92 | AA37: 92 | AB37: 90 | AC37: 91 | AD37: 92 | AE37: 92 | AF37: 91 | AG37: 91 | AH37: 92 | AI37: 92 | AJ37: 90 | AK37: 91 | AL37: 92 | AM37: 92 | AN37: 90 | AO37: 91 | AP37: =AP5-AP4+1 -> 92 | AQ37: 92 | AR37: 90 | AS37: 91 | AT37: 92 | AU37: 92 | AV37: 91 | AW37: 91 | AX37: 92 | AY37: 92 | AZ37: 90 | BA37: 91 | BB37: 92 | BC37: 92 | BD37: 90 | BE37: 91 | BF37: 92 | BG37: 92 | BH37: 90 | BI37: 91 | BJ37: 92 | BK37: 92 | BL37: 91 | BM37: 91 | BN37: 92 | BO37: 92 | BP37: 90 | BQ37: 91 | BR37: 92 | BS37: 92 | BT37: 90 | BU37: 91 | BV37: =BV5-BV4+1 -> 92 | BW37: 92 | BX37: 90 | BY37: 91 | BZ37: 92 | CA37: 92 | CB37: 91 | CC37: 91 | CD37: 92 | CE37: 92 | CF37: 90 | CG37: 91 | CH37: 92 | CI37: 92 | CJ37: 90 | CK37: 91 | CL37: 92 | CM37: 92 | CN37: 90 | CO37: 91 | CP37: 92 | CQ37: 92 | CR37: 91 | CS37: 91 | CT37: 92 | CU37: 92 | CV37: 90 | CW37: 91 | CX37: 92 | CY37: 92 | CZ37: 90 | DA37: 91 | DB37: =DB5-DB4+1 -> 92 | DC37: 92 | DD37: 90 | DE37: 91 | DF37: 92 | DG37: 92 | DH37: 91 | DI37: 91 | DJ37: 92 | DK37: 92 | DL37: 90 | DM37: 91 | DN37: 92 | DO37: 92 | DP37: 90 | DQ37: 91 | DR37: 92 | DS37: 92 | DT37: 90 | DU37: 91 | DV37: 92 | DW37: 92 | DX37: 91 | DY37: 91 | DZ37: 92 | EA37: 92 | EB37: 90 | EC37: 91 | ED37: 92 | EE37: 92 | EF37: 90 | EG37: 91 | EH37: 92 | EI37: 92 | EJ37: 90 | EK37: 91
C38: Period number | D38: Num# | J38: =COUNT($J5:J5) -> 1 | K38: =COUNT($J5:K5) -> 2 | L38: =COUNT($J5:L5) -> 3 | M38: =COUNT($J5:M5) -> 4 | N38: =COUNT($J5:N5) -> 5 | O38: =COUNT($J5:O5) -> 6 | P38: =COUNT($J5:P5) -> 7 | Q38: =COUNT($J5:Q5) -> 8 | R38: =COUNT($J5:R5) -> 9 | S38: =COUNT($J5:S5) -> 10 | T38: =COUNT($J5:T5) -> 11 | U38: =COUNT($J5:U5) -> 12 | V38: =COUNT($J5:V5) -> 13 | W38: =COUNT($J5:W5) -> 14 | X38: =COUNT($J5:X5) -> 15 | Y38: =COUNT($J5:Y5) -> 16 | Z38: =COUNT($J5:Z5) -> 17 | AA38: =COUNT($J5:AA5) -> 18 | AB38: =COUNT($J5:AB5) -> 19 | AC38: =COUNT($J5:AC5) -> 20 | AD38: =COUNT($J5:AD5) -> 21 | AE38: =COUNT($J5:AE5) -> 22 | AF38: =COUNT($J5:AF5) -> 23 | AG38: =COUNT($J5:AG5) -> 24 | AH38: =COUNT($J5:AH5) -> 25 | AI38: =COUNT($J5:AI5) -> 26 | AJ38: =COUNT($J5:AJ5) -> 27 | AK38: =COUNT($J5:AK5) -> 28 | AL38: =COUNT($J5:AL5) -> 29 | AM38: =COUNT($J5:AM5) -> 30 | AN38: =COUNT($J5:AN5) -> 31 | AO38: =COUNT($J5:AO5) -> 32 | AP38: =COUNT($J5:AP5) -> 33 | AQ38: =COUNT($J5:AQ5) -> 34 | AR38: =COUNT($J5:AR5) -> 35 | AS38: =COUNT($J5:AS5) -> 36 | AT38: =COUNT($J5:AT5) -> 37 | AU38: =COUNT($J5:AU5) -> 38 | AV38: =COUNT($J5:AV5) -> 39 | AW38: =COUNT($J5:AW5) -> 40 | AX38: =COUNT($J5:AX5) -> 41 | AY38: =COUNT($J5:AY5) -> 42 | AZ38: =COUNT($J5:AZ5) -> 43 | BA38: =COUNT($J5:BA5) -> 44 | BB38: =COUNT($J5:BB5) -> 45 | BC38: =COUNT($J5:BC5) -> 46 | BD38: =COUNT($J5:BD5) -> 47 | BE38: =COUNT($J5:BE5) -> 48 | BF38: =COUNT($J5:BF5) -> 49 | BG38: =COUNT($J5:BG5) -> 50 | BH38: =COUNT($J5:BH5) -> 51 | BI38: =COUNT($J5:BI5) -> 52 | BJ38: =COUNT($J5:BJ5) -> 53 | BK38: =COUNT($J5:BK5) -> 54 | BL38: =COUNT($J5:BL5) -> 55 | BM38: =COUNT($J5:BM5) -> 56 | BN38: =COUNT($J5:BN5) -> 57 | BO38: =COUNT($J5:BO5) -> 58 | BP38: =COUNT($J5:BP5) -> 59 | BQ38: =COUNT($J5:BQ5) -> 60 | BR38: =COUNT($J5:BR5) -> 61 | BS38: =COUNT($J5:BS5) -> 62 | BT38: =COUNT($J5:BT5) -> 63 | BU38: =COUNT($J5:BU5) -> 64 | BV38: =COUNT($J5:BV5) -> 65 | BW38: =COUNT($J5:BW5) -> 66 | BX38: =COUNT($J5:BX5) -> 67 | BY38: =COUNT($J5:BY5) -> 68 | BZ38: =COUNT($J5:BZ5) -> 69 | CA38: =COUNT($J5:CA5) -> 70 | CB38: =COUNT($J5:CB5) -> 71 | CC38: =COUNT($J5:CC5) -> 72 | CD38: =COUNT($J5:CD5) -> 73 | CE38: =COUNT($J5:CE5) -> 74 | CF38: =COUNT($J5:CF5) -> 75 | CG38: =COUNT($J5:CG5) -> 76 | CH38: =COUNT($J5:CH5) -> 77 | CI38: =COUNT($J5:CI5) -> 78 | CJ38: =COUNT($J5:CJ5) -> 79 | CK38: =COUNT($J5:CK5) -> 80 | CL38: =COUNT($J5:CL5) -> 81 | CM38: =COUNT($J5:CM5) -> 82 | CN38: =COUNT($J5:CN5) -> 83 | CO38: =COUNT($J5:CO5) -> 84 | CP38: =COUNT($J5:CP5) -> 85 | CQ38: =COUNT($J5:CQ5) -> 86 | CR38: =COUNT($J5:CR5) -> 87 | CS38: =COUNT($J5:CS5) -> 88 | CT38: =COUNT($J5:CT5) -> 89 | CU38: =COUNT($J5:CU5) -> 90 | CV38: =COUNT($J5:CV5) -> 91 | CW38: =COUNT($J5:CW5) -> 92 | CX38: =COUNT($J5:CX5) -> 93 | CY38: =COUNT($J5:CY5) -> 94 | CZ38: =COUNT($J5:CZ5) -> 95 | DA38: =COUNT($J5:DA5) -> 96 | DB38: =COUNT($J5:DB5) -> 97 | DC38: =COUNT($J5:DC5) -> 98 | DD38: =COUNT($J5:DD5) -> 99 | DE38: =COUNT($J5:DE5) -> 100 | DF38: =COUNT($J5:DF5) -> 101 | DG38: =COUNT($J5:DG5) -> 102 | DH38: =COUNT($J5:DH5) -> 103 | DI38: =COUNT($J5:DI5) -> 104 | DJ38: =COUNT($J5:DJ5) -> 105 | DK38: =COUNT($J5:DK5) -> 106 | DL38: =COUNT($J5:DL5) -> 107 | DM38: =COUNT($J5:DM5) -> 108 | DN38: =COUNT($J5:DN5) -> 109 | DO38: =COUNT($J5:DO5) -> 110 | DP38: =COUNT($J5:DP5) -> 111 | DQ38: =COUNT($J5:DQ5) -> 112 | DR38: =COUNT($J5:DR5) -> 113 | DS38: =COUNT($J5:DS5) -> 114 | DT38: =COUNT($J5:DT5) -> 115 | DU38: =COUNT($J5:DU5) -> 116 | DV38: =COUNT($J5:DV5) -> 117 | DW38: =COUNT($J5:DW5) -> 118 | DX38: =COUNT($J5:DX5) -> 119 | DY38: =COUNT($J5:DY5) -> 120 | DZ38: =COUNT($J5:DZ5) -> 121 | EA38: =COUNT($J5:EA5) -> 122 | EB38: =COUNT($J5:EB5) -> 123 | EC38: =COUNT($J5:EC5) -> 124 | ED38: =COUNT($J5:ED5) -> 125 | EE38: =COUNT($J5:EE5) -> 126 | EF38: =COUNT($J5:EF5) -> 127 | EG38: =COUNT($J5:EG5) -> 128 | EH38: =COUNT($J5:EH5) -> 129 | EI38: =COUNT($J5:EI5) -> 130 | EJ38: =COUNT($J5:EJ5) -> 131 | EK38: =COUNT($J5:EK5) -> 132
C40: KM
C42: =C29 -> Care & maintenance | D42: Num# | J42: =SUM($J16:J16)*J16 -> 1 | K42: =SUM($J16:K16)*K16 -> 2 | L42: =SUM($J16:L16)*L16 -> 3 | M42: =SUM($J16:M16)*M16 -> 4 | N42: =SUM($J16:N16)*N16 -> 5 | O42: =SUM($J16:O16)*O16 -> 6 | P42: =SUM($J16:P16)*P16 -> 7 | Q42: =SUM($J16:Q16)*Q16 -> 8 | R42: =SUM($J16:R16)*R16 -> 9 | S42: =SUM($J16:S16)*S16 -> 10 | T42: =SUM($J16:T16)*T16 -> 11 | U42: =SUM($J16:U16)*U16 -> 12 | V42: =SUM($J16:V16)*V16 -> 0 | W42: =SUM($J16:W16)*W16 -> 0 | X42: =SUM($J16:X16)*X16 -> 0 | Y42: =SUM($J16:Y16)*Y16 -> 0 | Z42: =SUM($J16:Z16)*Z16 -> 0 | AA42: =SUM($J16:AA16)*AA16 -> 0 | AB42: =SUM($J16:AB16)*AB16 -> 0 | AC42: =SUM($J16:AC16)*AC16 -> 0 | AD42: =SUM($J16:AD16)*AD16 -> 0 | AE42: =SUM($J16:AE16)*AE16 -> 0 | AF42: =SUM($J16:AF16)*AF16 -> 0 | AG42: =SUM($J16:AG16)*AG16 -> 0 | AH42: =SUM($J16:AH16)*AH16 -> 0 | AI42: =SUM($J16:AI16)*AI16 -> 0 | AJ42: =SUM($J16:AJ16)*AJ16 -> 0 | AK42: =SUM($J16:AK16)*AK16 -> 0 | AL42: =SUM($J16:AL16)*AL16 -> 0 | AM42: =SUM($J16:AM16)*AM16 -> 0 | AN42: =SUM($J16:AN16)*AN16 -> 0 | AO42: =SUM($J16:AO16)*AO16 -> 0 | AP42: =SUM($J16:AP16)*AP16 -> 0 | AQ42: =SUM($J16:AQ16)*AQ16 -> 0 | AR42: =SUM($J16:AR16)*AR16 -> 0 | AS42: =SUM($J16:AS16)*AS16 -> 0 | AT42: =SUM($J16:AT16)*AT16 -> 0 | AU42: =SUM($J16:AU16)*AU16 -> 0 | AV42: =SUM($J16:AV16)*AV16 -> 0 | AW42: =SUM($J16:AW16)*AW16 -> 0 | AX42: =SUM($J16:AX16)*AX16 -> 0 | AY42: =SUM($J16:AY16)*AY16 -> 0 | AZ42: =SUM($J16:AZ16)*AZ16 -> 0 | BA42: =SUM($J16:BA16)*BA16 -> 0 | BB42: =SUM($J16:BB16)*BB16 -> 0 | BC42: =SUM($J16:BC16)*BC16 -> 0 | BD42: =SUM($J16:BD16)*BD16 -> 0 | BE42: =SUM($J16:BE16)*BE16 -> 0 | BF42: =SUM($J16:BF16)*BF16 -> 0 | BG42: =SUM($J16:BG16)*BG16 -> 0 | BH42: =SUM($J16:BH16)*BH16 -> 0 | BI42: =SUM($J16:BI16)*BI16 -> 0 | BJ42: =SUM($J16:BJ16)*BJ16 -> 0 | BK42: =SUM($J16:BK16)*BK16 -> 0 | BL42: =SUM($J16:BL16)*BL16 -> 0 | BM42: =SUM($J16:BM16)*BM16 -> 0 | BN42: =SUM($J16:BN16)*BN16 -> 0 | BO42: =SUM($J16:BO16)*BO16 -> 0 | BP42: =SUM($J16:BP16)*BP16 -> 0 | BQ42: =SUM($J16:BQ16)*BQ16 -> 0 | BR42: =SUM($J16:BR16)*BR16 -> 0 | BS42: =SUM($J16:BS16)*BS16 -> 0 | BT42: =SUM($J16:BT16)*BT16 -> 0 | BU42: =SUM($J16:BU16)*BU16 -> 0 | BV42: =SUM($J16:BV16)*BV16 -> 0 | BW42: =SUM($J16:BW16)*BW16 -> 0 | BX42: =SUM($J16:BX16)*BX16 -> 0 | BY42: =SUM($J16:BY16)*BY16 -> 0 | BZ42: =SUM($J16:BZ16)*BZ16 -> 0 | CA42: =SUM($J16:CA16)*CA16 -> 0 | CB42: =SUM($J16:CB16)*CB16 -> 0 | CC42: =SUM($J16:CC16)*CC16 -> 0 | CD42: =SUM($J16:CD16)*CD16 -> 0 | CE42: =SUM($J16:CE16)*CE16 -> 0 | CF42: =SUM($J16:CF16)*CF16 -> 0 | CG42: =SUM($J16:CG16)*CG16 -> 0 | CH42: =SUM($J16:CH16)*CH16 -> 0 | CI42: =SUM($J16:CI16)*CI16 -> 0 | CJ42: =SUM($J16:CJ16)*CJ16 -> 0 | CK42: =SUM($J16:CK16)*CK16 -> 0 | CL42: =SUM($J16:CL16)*CL16 -> 0 | CM42: =SUM($J16:CM16)*CM16 -> 0 | CN42: =SUM($J16:CN16)*CN16 -> 0 | CO42: =SUM($J16:CO16)*CO16 -> 0 | CP42: =SUM($J16:CP16)*CP16 -> 0 | CQ42: =SUM($J16:CQ16)*CQ16 -> 0 | CR42: =SUM($J16:CR16)*CR16 -> 0 | CS42: =SUM($J16:CS16)*CS16 -> 0 | CT42: =SUM($J16:CT16)*CT16 -> 0 | CU42: =SUM($J16:CU16)*CU16 -> 0 | CV42: =SUM($J16:CV16)*CV16 -> 0 | CW42: =SUM($J16:CW16)*CW16 -> 0 | CX42: =SUM($J16:CX16)*CX16 -> 0 | CY42: =SUM($J16:CY16)*CY16 -> 0 | CZ42: =SUM($J16:CZ16)*CZ16 -> 0 | DA42: =SUM($J16:DA16)*DA16 -> 0 | DB42: =SUM($J16:DB16)*DB16 -> 0 | DC42: =SUM($J16:DC16)*DC16 -> 0 | DD42: =SUM($J16:DD16)*DD16 -> 0 | DE42: =SUM($J16:DE16)*DE16 -> 0 | DF42: =SUM($J16:DF16)*DF16 -> 0 | DG42: =SUM($J16:DG16)*DG16 -> 0 | DH42: =SUM($J16:DH16)*DH16 -> 0 | DI42: =SUM($J16:DI16)*DI16 -> 0 | DJ42: =SUM($J16:DJ16)*DJ16 -> 0 | DK42: =SUM($J16:DK16)*DK16 -> 0 | DL42: =SUM($J16:DL16)*DL16 -> 0 | DM42: =SUM($J16:DM16)*DM16 -> 0 | DN42: =SUM($J16:DN16)*DN16 -> 0 | DO42: =SUM($J16:DO16)*DO16 -> 0 | DP42: =SUM($J16:DP16)*DP16 -> 0 | DQ42: =SUM($J16:DQ16)*DQ16 -> 0 | DR42: =SUM($J16:DR16)*DR16 -> 0 | DS42: =SUM($J16:DS16)*DS16 -> 0 | DT42: =SUM($J16:DT16)*DT16 -> 0 | DU42: =SUM($J16:DU16)*DU16 -> 0 | DV42: =SUM($J16:DV16)*DV16 -> 0 | DW42: =SUM($J16:DW16)*DW16 -> 0 | DX42: =SUM($J16:DX16)*DX16 -> 0 | DY42: =SUM($J16:DY16)*DY16 -> 0 | DZ42: =SUM($J16:DZ16)*DZ16 -> 0 | EA42: =SUM($J16:EA16)*EA16 -> 0 | EB42: =SUM($J16:EB16)*EB16 -> 0 | EC42: =SUM($J16:EC16)*EC16 -> 0 | ED42: =SUM($J16:ED16)*ED16 -> 0 | EE42: =SUM($J16:EE16)*EE16 -> 0 | EF42: =SUM($J16:EF16)*EF16 -> 0 | EG42: =SUM($J16:EG16)*EG16 -> 0 | EH42: =SUM($J16:EH16)*EH16 -> 0 | EI42: =SUM($J16:EI16)*EI16 -> 0 | EJ42: =SUM($J16:EJ16)*EJ16 -> 0 | EK42: =SUM($J16:EK16)*EK16 -> 0
C43: =C30 -> Restart from C&M | D43: Num# | J43: =SUM($J17:J17)*J17 -> 0 | K43: =SUM($J17:K17)*K17 -> 0 | L43: =SUM($J17:L17)*L17 -> 0 | M43: =SUM($J17:M17)*M17 -> 0 | N43: =SUM($J17:N17)*N17 -> 0 | O43: =SUM($J17:O17)*O17 -> 0 | P43: =SUM($J17:P17)*P17 -> 0 | Q43: =SUM($J17:Q17)*Q17 -> 0 | R43: =SUM($J17:R17)*R17 -> 0 | S43: =SUM($J17:S17)*S17 -> 0 | T43: =SUM($J17:T17)*T17 -> 0 | U43: =SUM($J17:U17)*U17 -> 0 | V43: =SUM($J17:V17)*V17 -> 1 | W43: =SUM($J17:W17)*W17 -> 2 | X43: =SUM($J17:X17)*X17 -> 0 | Y43: =SUM($J17:Y17)*Y17 -> 0 | Z43: =SUM($J17:Z17)*Z17 -> 0 | AA43: =SUM($J17:AA17)*AA17 -> 0 | AB43: =SUM($J17:AB17)*AB17 -> 0 | AC43: =SUM($J17:AC17)*AC17 -> 0 | AD43: =SUM($J17:AD17)*AD17 -> 0 | AE43: =SUM($J17:AE17)*AE17 -> 0 | AF43: =SUM($J17:AF17)*AF17 -> 0 | AG43: =SUM($J17:AG17)*AG17 -> 0 | AH43: =SUM($J17:AH17)*AH17 -> 0 | AI43: =SUM($J17:AI17)*AI17 -> 0 | AJ43: =SUM($J17:AJ17)*AJ17 -> 0 | AK43: =SUM($J17:AK17)*AK17 -> 0 | AL43: =SUM($J17:AL17)*AL17 -> 0 | AM43: =SUM($J17:AM17)*AM17 -> 0 | AN43: =SUM($J17:AN17)*AN17 -> 0 | AO43: =SUM($J17:AO17)*AO17 -> 0 | AP43: =SUM($J17:AP17)*AP17 -> 0 | AQ43: =SUM($J17:AQ17)*AQ17 -> 0 | AR43: =SUM($J17:AR17)*AR17 -> 0 | AS43: =SUM($J17:AS17)*AS17 -> 0 | AT43: =SUM($J17:AT17)*AT17 -> 0 | AU43: =SUM($J17:AU17)*AU17 -> 0 | AV43: =SUM($J17:AV17)*AV17 -> 0 | AW43: =SUM($J17:AW17)*AW17 -> 0 | AX43: =SUM($J17:AX17)*AX17 -> 0 | AY43: =SUM($J17:AY17)*AY17 -> 0 | AZ43: =SUM($J17:AZ17)*AZ17 -> 0 | BA43: =SUM($J17:BA17)*BA17 -> 0 | BB43: =SUM($J17:BB17)*BB17 -> 0 | BC43: =SUM($J17:BC17)*BC17 -> 0 | BD43: =SUM($J17:BD17)*BD17 -> 0 | BE43: =SUM($J17:BE17)*BE17 -> 0 | BF43: =SUM($J17:BF17)*BF17 -> 0 | BG43: =SUM($J17:BG17)*BG17 -> 0 | BH43: =SUM($J17:BH17)*BH17 -> 0 | BI43: =SUM($J17:BI17)*BI17 -> 0 | BJ43: =SUM($J17:BJ17)*BJ17 -> 0 | BK43: =SUM($J17:BK17)*BK17 -> 0 | BL43: =SUM($J17:BL17)*BL17 -> 0 | BM43: =SUM($J17:BM17)*BM17 -> 0 | BN43: =SUM($J17:BN17)*BN17 -> 0 | BO43: =SUM($J17:BO17)*BO17 -> 0 | BP43: =SUM($J17:BP17)*BP17 -> 0 | BQ43: =SUM($J17:BQ17)*BQ17 -> 0 | BR43: =SUM($J17:BR17)*BR17 -> 0 | BS43: =SUM($J17:BS17)*BS17 -> 0 | BT43: =SUM($J17:BT17)*BT17 -> 0 | BU43: =SUM($J17:BU17)*BU17 -> 0 | BV43: =SUM($J17:BV17)*BV17 -> 0 | BW43: =SUM($J17:BW17)*BW17 -> 0 | BX43: =SUM($J17:BX17)*BX17 -> 0 | BY43: =SUM($J17:BY17)*BY17 -> 0 | BZ43: =SUM($J17:BZ17)*BZ17 -> 0 | CA43: =SUM($J17:CA17)*CA17 -> 0 | CB43: =SUM($J17:CB17)*CB17 -> 0 | CC43: =SUM($J17:CC17)*CC17 -> 0 | CD43: =SUM($J17:CD17)*CD17 -> 0 | CE43: =SUM($J17:CE17)*CE17 -> 0 | CF43: =SUM($J17:CF17)*CF17 -> 0 | CG43: =SUM($J17:CG17)*CG17 -> 0 | CH43: =SUM($J17:CH17)*CH17 -> 0 | CI43: =SUM($J17:CI17)*CI17 -> 0 | CJ43: =SUM($J17:CJ17)*CJ17 -> 0 | CK43: =SUM($J17:CK17)*CK17 -> 0 | CL43: =SUM($J17:CL17)*CL17 -> 0 | CM43: =SUM($J17:CM17)*CM17 -> 0 | CN43: =SUM($J17:CN17)*CN17 -> 0 | CO43: =SUM($J17:CO17)*CO17 -> 0 | CP43: =SUM($J17:CP17)*CP17 -> 0 | CQ43: =SUM($J17:CQ17)*CQ17 -> 0 | CR43: =SUM($J17:CR17)*CR17 -> 0 | CS43: =SUM($J17:CS17)*CS17 -> 0 | CT43: =SUM($J17:CT17)*CT17 -> 0 | CU43: =SUM($J17:CU17)*CU17 -> 0 | CV43: =SUM($J17:CV17)*CV17 -> 0 | CW43: =SUM($J17:CW17)*CW17 -> 0 | CX43: =SUM($J17:CX17)*CX17 -> 0 | CY43: =SUM($J17:CY17)*CY17 -> 0 | CZ43: =SUM($J17:CZ17)*CZ17 -> 0 | DA43: =SUM($J17:DA17)*DA17 -> 0 | DB43: =SUM($J17:DB17)*DB17 -> 0 | DC43: =SUM($J17:DC17)*DC17 -> 0 | DD43: =SUM($J17:DD17)*DD17 -> 0 | DE43: =SUM($J17:DE17)*DE17 -> 0 | DF43: =SUM($J17:DF17)*DF17 -> 0 | DG43: =SUM($J17:DG17)*DG17 -> 0 | DH43: =SUM($J17:DH17)*DH17 -> 0 | DI43: =SUM($J17:DI17)*DI17 -> 0 | DJ43: =SUM($J17:DJ17)*DJ17 -> 0 | DK43: =SUM($J17:DK17)*DK17 -> 0 | DL43: =SUM($J17:DL17)*DL17 -> 0 | DM43: =SUM($J17:DM17)*DM17 -> 0 | DN43: =SUM($J17:DN17)*DN17 -> 0 | DO43: =SUM($J17:DO17)*DO17 -> 0 | DP43: =SUM($J17:DP17)*DP17 -> 0 | DQ43: =SUM($J17:DQ17)*DQ17 -> 0 | DR43: =SUM($J17:DR17)*DR17 -> 0 | DS43: =SUM($J17:DS17)*DS17 -> 0 | DT43: =SUM($J17:DT17)*DT17 -> 0 | DU43: =SUM($J17:DU17)*DU17 -> 0 | DV43: =SUM($J17:DV17)*DV17 -> 0 | DW43: =SUM($J17:DW17)*DW17 -> 0 | DX43: =SUM($J17:DX17)*DX17 -> 0 | DY43: =SUM($J17:DY17)*DY17 -> 0 | DZ43: =SUM($J17:DZ17)*DZ17 -> 0 | EA43: =SUM($J17:EA17)*EA17 -> 0 | EB43: =SUM($J17:EB17)*EB17 -> 0 | EC43: =SUM($J17:EC17)*EC17 -> 0 | ED43: =SUM($J17:ED17)*ED17 -> 0 | EE43: =SUM($J17:EE17)*EE17 -> 0 | EF43: =SUM($J17:EF17)*EF17 -> 0 | EG43: =SUM($J17:EG17)*EG17 -> 0 | EH43: =SUM($J17:EH17)*EH17 -> 0 | EI43: =SUM($J17:EI17)*EI17 -> 0 | EJ43: =SUM($J17:EJ17)*EJ17 -> 0 | EK43: =SUM($J17:EK17)*EK17 -> 0
C44: =C31 -> Production | D44: Num# | J44: =SUM($J18:J18)*J18 -> 0 | K44: =SUM($J18:K18)*K18 -> 0 | L44: =SUM($J18:L18)*L18 -> 0 | M44: =SUM($J18:M18)*M18 -> 0 | N44: =SUM($J18:N18)*N18 -> 0 | O44: =SUM($J18:O18)*O18 -> 0 | P44: =SUM($J18:P18)*P18 -> 0 | Q44: =SUM($J18:Q18)*Q18 -> 0 | R44: =SUM($J18:R18)*R18 -> 0 | S44: =SUM($J18:S18)*S18 -> 0 | T44: =SUM($J18:T18)*T18 -> 0 | U44: =SUM($J18:U18)*U18 -> 0 | V44: =SUM($J18:V18)*V18 -> 0 | W44: =SUM($J18:W18)*W18 -> 0 | X44: =SUM($J18:X18)*X18 -> 1 | Y44: =SUM($J18:Y18)*Y18 -> 2 | Z44: =SUM($J18:Z18)*Z18 -> 3 | AA44: =SUM($J18:AA18)*AA18 -> 4 | AB44: =SUM($J18:AB18)*AB18 -> 5 | AC44: =SUM($J18:AC18)*AC18 -> 6 | AD44: =SUM($J18:AD18)*AD18 -> 7 | AE44: =SUM($J18:AE18)*AE18 -> 8 | AF44: =SUM($J18:AF18)*AF18 -> 9 | AG44: =SUM($J18:AG18)*AG18 -> 10 | AH44: =SUM($J18:AH18)*AH18 -> 11 | AI44: =SUM($J18:AI18)*AI18 -> 12 | AJ44: =SUM($J18:AJ18)*AJ18 -> 13 | AK44: =SUM($J18:AK18)*AK18 -> 14 | AL44: =SUM($J18:AL18)*AL18 -> 15 | AM44: =SUM($J18:AM18)*AM18 -> 16 | AN44: =SUM($J18:AN18)*AN18 -> 17 | AO44: =SUM($J18:AO18)*AO18 -> 18 | AP44: =SUM($J18:AP18)*AP18 -> 19 | AQ44: =SUM($J18:AQ18)*AQ18 -> 20 | AR44: =SUM($J18:AR18)*AR18 -> 21 | AS44: =SUM($J18:AS18)*AS18 -> 22 | AT44: =SUM($J18:AT18)*AT18 -> 23 | AU44: =SUM($J18:AU18)*AU18 -> 24 | AV44: =SUM($J18:AV18)*AV18 -> 25 | AW44: =SUM($J18:AW18)*AW18 -> 26 | AX44: =SUM($J18:AX18)*AX18 -> 27 | AY44: =SUM($J18:AY18)*AY18 -> 28 | AZ44: =SUM($J18:AZ18)*AZ18 -> 29 | BA44: =SUM($J18:BA18)*BA18 -> 30 | BB44: =SUM($J18:BB18)*BB18 -> 31 | BC44: =SUM($J18:BC18)*BC18 -> 32 | BD44: =SUM($J18:BD18)*BD18 -> 0 | BE44: =SUM($J18:BE18)*BE18 -> 0 | BF44: =SUM($J18:BF18)*BF18 -> 0 | BG44: =SUM($J18:BG18)*BG18 -> 0 | BH44: =SUM($J18:BH18)*BH18 -> 0 | BI44: =SUM($J18:BI18)*BI18 -> 0 | BJ44: =SUM($J18:BJ18)*BJ18 -> 0 | BK44: =SUM($J18:BK18)*BK18 -> 0 | BL44: =SUM($J18:BL18)*BL18 -> 0 | BM44: =SUM($J18:BM18)*BM18 -> 0 | BN44: =SUM($J18:BN18)*BN18 -> 0 | BO44: =SUM($J18:BO18)*BO18 -> 0 | BP44: =SUM($J18:BP18)*BP18 -> 0 | BQ44: =SUM($J18:BQ18)*BQ18 -> 0 | BR44: =SUM($J18:BR18)*BR18 -> 0 | BS44: =SUM($J18:BS18)*BS18 -> 0 | BT44: =SUM($J18:BT18)*BT18 -> 0 | BU44: =SUM($J18:BU18)*BU18 -> 0 | BV44: =SUM($J18:BV18)*BV18 -> 0 | BW44: =SUM($J18:BW18)*BW18 -> 0 | BX44: =SUM($J18:BX18)*BX18 -> 0 | BY44: =SUM($J18:BY18)*BY18 -> 0 | BZ44: =SUM($J18:BZ18)*BZ18 -> 0 | CA44: =SUM($J18:CA18)*CA18 -> 0 | CB44: =SUM($J18:CB18)*CB18 -> 0 | CC44: =SUM($J18:CC18)*CC18 -> 0 | CD44: =SUM($J18:CD18)*CD18 -> 0 | CE44: =SUM($J18:CE18)*CE18 -> 0 | CF44: =SUM($J18:CF18)*CF18 -> 0 | CG44: =SUM($J18:CG18)*CG18 -> 0 | CH44: =SUM($J18:CH18)*CH18 -> 0 | CI44: =SUM($J18:CI18)*CI18 -> 0 | CJ44: =SUM($J18:CJ18)*CJ18 -> 0 | CK44: =SUM($J18:CK18)*CK18 -> 0 | CL44: =SUM($J18:CL18)*CL18 -> 0 | CM44: =SUM($J18:CM18)*CM18 -> 0 | CN44: =SUM($J18:CN18)*CN18 -> 0 | CO44: =SUM($J18:CO18)*CO18 -> 0 | CP44: =SUM($J18:CP18)*CP18 -> 0 | CQ44: =SUM($J18:CQ18)*CQ18 -> 0 | CR44: =SUM($J18:CR18)*CR18 -> 0 | CS44: =SUM($J18:CS18)*CS18 -> 0 | CT44: =SUM($J18:CT18)*CT18 -> 0 | CU44: =SUM($J18:CU18)*CU18 -> 0 | CV44: =SUM($J18:CV18)*CV18 -> 0 | CW44: =SUM($J18:CW18)*CW18 -> 0 | CX44: =SUM($J18:CX18)*CX18 -> 0 | CY44: =SUM($J18:CY18)*CY18 -> 0 | CZ44: =SUM($J18:CZ18)*CZ18 -> 0 | DA44: =SUM($J18:DA18)*DA18 -> 0 | DB44: =SUM($J18:DB18)*DB18 -> 0 | DC44: =SUM($J18:DC18)*DC18 -> 0 | DD44: =SUM($J18:DD18)*DD18 -> 0 | DE44: =SUM($J18:DE18)*DE18 -> 0 | DF44: =SUM($J18:DF18)*DF18 -> 0 | DG44: =SUM($J18:DG18)*DG18 -> 0 | DH44: =SUM($J18:DH18)*DH18 -> 0 | DI44: =SUM($J18:DI18)*DI18 -> 0 | DJ44: =SUM($J18:DJ18)*DJ18 -> 0 | DK44: =SUM($J18:DK18)*DK18 -> 0 | DL44: =SUM($J18:DL18)*DL18 -> 0 | DM44: =SUM($J18:DM18)*DM18 -> 0 | DN44: =SUM($J18:DN18)*DN18 -> 0 | DO44: =SUM($J18:DO18)*DO18 -> 0 | DP44: =SUM($J18:DP18)*DP18 -> 0 | DQ44: =SUM($J18:DQ18)*DQ18 -> 0 | DR44: =SUM($J18:DR18)*DR18 -> 0 | DS44: =SUM($J18:DS18)*DS18 -> 0 | DT44: =SUM($J18:DT18)*DT18 -> 0 | DU44: =SUM($J18:DU18)*DU18 -> 0 | DV44: =SUM($J18:DV18)*DV18 -> 0 | DW44: =SUM($J18:DW18)*DW18 -> 0 | DX44: =SUM($J18:DX18)*DX18 -> 0 | DY44: =SUM($J18:DY18)*DY18 -> 0 | DZ44: =SUM($J18:DZ18)*DZ18 -> 0 | EA44: =SUM($J18:EA18)*EA18 -> 0 | EB44: =SUM($J18:EB18)*EB18 -> 0 | EC44: =SUM($J18:EC18)*EC18 -> 0 | ED44: =SUM($J18:ED18)*ED18 -> 0 | EE44: =SUM($J18:EE18)*EE18 -> 0 | EF44: =SUM($J18:EF18)*EF18 -> 0 | EG44: =SUM($J18:EG18)*EG18 -> 0 | EH44: =SUM($J18:EH18)*EH18 -> 0 | EI44: =SUM($J18:EI18)*EI18 -> 0 | EJ44: =SUM($J18:EJ18)*EJ18 -> 0 | EK44: =SUM($J18:EK18)*EK18 -> 0
C45: =C32 -> Restoration | D45: Num# | J45: =SUM($J19:J19)*J19 -> 0 | K45: =SUM($J19:K19)*K19 -> 0 | L45: =SUM($J19:L19)*L19 -> 0 | M45: =SUM($J19:M19)*M19 -> 0 | N45: =SUM($J19:N19)*N19 -> 0 | O45: =SUM($J19:O19)*O19 -> 0 | P45: =SUM($J19:P19)*P19 -> 0 | Q45: =SUM($J19:Q19)*Q19 -> 0 | R45: =SUM($J19:R19)*R19 -> 0 | S45: =SUM($J19:S19)*S19 -> 0 | T45: =SUM($J19:T19)*T19 -> 0 | U45: =SUM($J19:U19)*U19 -> 0 | V45: =SUM($J19:V19)*V19 -> 0 | W45: =SUM($J19:W19)*W19 -> 0 | X45: =SUM($J19:X19)*X19 -> 0 | Y45: =SUM($J19:Y19)*Y19 -> 0 | Z45: =SUM($J19:Z19)*Z19 -> 0 | AA45: =SUM($J19:AA19)*AA19 -> 0 | AB45: =SUM($J19:AB19)*AB19 -> 0 | AC45: =SUM($J19:AC19)*AC19 -> 0 | AD45: =SUM($J19:AD19)*AD19 -> 0 | AE45: =SUM($J19:AE19)*AE19 -> 0 | AF45: =SUM($J19:AF19)*AF19 -> 0 | AG45: =SUM($J19:AG19)*AG19 -> 0 | AH45: =SUM($J19:AH19)*AH19 -> 0 | AI45: =SUM($J19:AI19)*AI19 -> 0 | AJ45: =SUM($J19:AJ19)*AJ19 -> 0 | AK45: =SUM($J19:AK19)*AK19 -> 0 | AL45: =SUM($J19:AL19)*AL19 -> 0 | AM45: =SUM($J19:AM19)*AM19 -> 0 | AN45: =SUM($J19:AN19)*AN19 -> 0 | AO45: =SUM($J19:AO19)*AO19 -> 0 | AP45: =SUM($J19:AP19)*AP19 -> 0 | AQ45: =SUM($J19:AQ19)*AQ19 -> 0 | AR45: =SUM($J19:AR19)*AR19 -> 0 | AS45: =SUM($J19:AS19)*AS19 -> 0 | AT45: =SUM($J19:AT19)*AT19 -> 0 | AU45: =SUM($J19:AU19)*AU19 -> 0 | AV45: =SUM($J19:AV19)*AV19 -> 0 | AW45: =SUM($J19:AW19)*AW19 -> 0 | AX45: =SUM($J19:AX19)*AX19 -> 0 | AY45: =SUM($J19:AY19)*AY19 -> 0 | AZ45: =SUM($J19:AZ19)*AZ19 -> 0 | BA45: =SUM($J19:BA19)*BA19 -> 0 | BB45: =SUM($J19:BB19)*BB19 -> 0 | BC45: =SUM($J19:BC19)*BC19 -> 0 | BD45: =SUM($J19:BD19)*BD19 -> 0 | BE45: =SUM($J19:BE19)*BE19 -> 1 | BF45: =SUM($J19:BF19)*BF19 -> 2 | BG45: =SUM($J19:BG19)*BG19 -> 3 | BH45: =SUM($J19:BH19)*BH19 -> 0 | BI45: =SUM($J19:BI19)*BI19 -> 0 | BJ45: =SUM($J19:BJ19)*BJ19 -> 0 | BK45: =SUM($J19:BK19)*BK19 -> 0 | BL45: =SUM($J19:BL19)*BL19 -> 0 | BM45: =SUM($J19:BM19)*BM19 -> 0 | BN45: =SUM($J19:BN19)*BN19 -> 0 | BO45: =SUM($J19:BO19)*BO19 -> 0 | BP45: =SUM($J19:BP19)*BP19 -> 0 | BQ45: =SUM($J19:BQ19)*BQ19 -> 0 | BR45: =SUM($J19:BR19)*BR19 -> 0 | BS45: =SUM($J19:BS19)*BS19 -> 0 | BT45: =SUM($J19:BT19)*BT19 -> 0 | BU45: =SUM($J19:BU19)*BU19 -> 0 | BV45: =SUM($J19:BV19)*BV19 -> 0 | BW45: =SUM($J19:BW19)*BW19 -> 0 | BX45: =SUM($J19:BX19)*BX19 -> 0 | BY45: =SUM($J19:BY19)*BY19 -> 0 | BZ45: =SUM($J19:BZ19)*BZ19 -> 0 | CA45: =SUM($J19:CA19)*CA19 -> 0 | CB45: =SUM($J19:CB19)*CB19 -> 0 | CC45: =SUM($J19:CC19)*CC19 -> 0 | CD45: =SUM($J19:CD19)*CD19 -> 0 | CE45: =SUM($J19:CE19)*CE19 -> 0 | CF45: =SUM($J19:CF19)*CF19 -> 0 | CG45: =SUM($J19:CG19)*CG19 -> 0 | CH45: =SUM($J19:CH19)*CH19 -> 0 | CI45: =SUM($J19:CI19)*CI19 -> 0 | CJ45: =SUM($J19:CJ19)*CJ19 -> 0 | CK45: =SUM($J19:CK19)*CK19 -> 0 | CL45: =SUM($J19:CL19)*CL19 -> 0 | CM45: =SUM($J19:CM19)*CM19 -> 0 | CN45: =SUM($J19:CN19)*CN19 -> 0 | CO45: =SUM($J19:CO19)*CO19 -> 0 | CP45: =SUM($J19:CP19)*CP19 -> 0 | CQ45: =SUM($J19:CQ19)*CQ19 -> 0 | CR45: =SUM($J19:CR19)*CR19 -> 0 | CS45: =SUM($J19:CS19)*CS19 -> 0 | CT45: =SUM($J19:CT19)*CT19 -> 0 | CU45: =SUM($J19:CU19)*CU19 -> 0 | CV45: =SUM($J19:CV19)*CV19 -> 0 | CW45: =SUM($J19:CW19)*CW19 -> 0 | CX45: =SUM($J19:CX19)*CX19 -> 0 | CY45: =SUM($J19:CY19)*CY19 -> 0 | CZ45: =SUM($J19:CZ19)*CZ19 -> 0 | DA45: =SUM($J19:DA19)*DA19 -> 0 | DB45: =SUM($J19:DB19)*DB19 -> 0 | DC45: =SUM($J19:DC19)*DC19 -> 0 | DD45: =SUM($J19:DD19)*DD19 -> 0 | DE45: =SUM($J19:DE19)*DE19 -> 0 | DF45: =SUM($J19:DF19)*DF19 -> 0 | DG45: =SUM($J19:DG19)*DG19 -> 0 | DH45: =SUM($J19:DH19)*DH19 -> 0 | DI45: =SUM($J19:DI19)*DI19 -> 0 | DJ45: =SUM($J19:DJ19)*DJ19 -> 0 | DK45: =SUM($J19:DK19)*DK19 -> 0 | DL45: =SUM($J19:DL19)*DL19 -> 0 | DM45: =SUM($J19:DM19)*DM19 -> 0 | DN45: =SUM($J19:DN19)*DN19 -> 0 | DO45: =SUM($J19:DO19)*DO19 -> 0 | DP45: =SUM($J19:DP19)*DP19 -> 0 | DQ45: =SUM($J19:DQ19)*DQ19 -> 0 | DR45: =SUM($J19:DR19)*DR19 -> 0 | DS45: =SUM($J19:DS19)*DS19 -> 0 | DT45: =SUM($J19:DT19)*DT19 -> 0 | DU45: =SUM($J19:DU19)*DU19 -> 0 | DV45: =SUM($J19:DV19)*DV19 -> 0 | DW45: =SUM($J19:DW19)*DW19 -> 0 | DX45: =SUM($J19:DX19)*DX19 -> 0 | DY45: =SUM($J19:DY19)*DY19 -> 0 | DZ45: =SUM($J19:DZ19)*DZ19 -> 0 | EA45: =SUM($J19:EA19)*EA19 -> 0 | EB45: =SUM($J19:EB19)*EB19 -> 0 | EC45: =SUM($J19:EC19)*EC19 -> 0 | ED45: =SUM($J19:ED19)*ED19 -> 0 | EE45: =SUM($J19:EE19)*EE19 -> 0 | EF45: =SUM($J19:EF19)*EF19 -> 0 | EG45: =SUM($J19:EG19)*EG19 -> 0 | EH45: =SUM($J19:EH19)*EH19 -> 0 | EI45: =SUM($J19:EI19)*EI19 -> 0 | EJ45: =SUM($J19:EJ19)*EJ19 -> 0 | EK45: =SUM($J19:EK19)*EK19 -> 0
C47: =C34 -> Production Quarter | D47: Num# | J47: =(SUM($J18:J18)*MAX(J18)) -> 0 | K47: =(SUM($J18:K18)*MAX(K18)) -> 0 | L47: =(SUM($J18:L18)*MAX(L18)) -> 0 | M47: =(SUM($J18:M18)*MAX(M18)) -> 0 | N47: =(SUM($J18:N18)*MAX(N18)) -> 0 | O47: =(SUM($J18:O18)*MAX(O18)) -> 0 | P47: =(SUM($J18:P18)*MAX(P18)) -> 0 | Q47: =(SUM($J18:Q18)*MAX(Q18)) -> 0 | R47: =(SUM($J18:R18)*MAX(R18)) -> 0 | S47: =(SUM($J18:S18)*MAX(S18)) -> 0 | T47: =(SUM($J18:T18)*MAX(T18)) -> 0 | U47: =(SUM($J18:U18)*MAX(U18)) -> 0 | V47: =(SUM($J18:V18)*MAX(V18)) -> 0 | W47: =(SUM($J18:W18)*MAX(W18)) -> 0 | X47: =(SUM($J18:X18)*MAX(X18)) -> 1 | Y47: =(SUM($J18:Y18)*MAX(Y18)) -> 2 | Z47: =(SUM($J18:Z18)*MAX(Z18)) -> 3 | AA47: =(SUM($J18:AA18)*MAX(AA18)) -> 4 | AB47: =(SUM($J18:AB18)*MAX(AB18)) -> 5 | AC47: =(SUM($J18:AC18)*MAX(AC18)) -> 6 | AD47: =(SUM($J18:AD18)*MAX(AD18)) -> 7 | AE47: =(SUM($J18:AE18)*MAX(AE18)) -> 8 | AF47: =(SUM($J18:AF18)*MAX(AF18)) -> 9 | AG47: =(SUM($J18:AG18)*MAX(AG18)) -> 10 | AH47: =(SUM($J18:AH18)*MAX(AH18)) -> 11 | AI47: =(SUM($J18:AI18)*MAX(AI18)) -> 12 | AJ47: =(SUM($J18:AJ18)*MAX(AJ18)) -> 13 | AK47: =(SUM($J18:AK18)*MAX(AK18)) -> 14 | AL47: =(SUM($J18:AL18)*MAX(AL18)) -> 15 | AM47: =(SUM($J18:AM18)*MAX(AM18)) -> 16 | AN47: =(SUM($J18:AN18)*MAX(AN18)) -> 17 | AO47: =(SUM($J18:AO18)*MAX(AO18)) -> 18 | AP47: =(SUM($J18:AP18)*MAX(AP18)) -> 19 | AQ47: =(SUM($J18:AQ18)*MAX(AQ18)) -> 20 | AR47: =(SUM($J18:AR18)*MAX(AR18)) -> 21 | AS47: =(SUM($J18:AS18)*MAX(AS18)) -> 22 | AT47: =(SUM($J18:AT18)*MAX(AT18)) -> 23 | AU47: =(SUM($J18:AU18)*MAX(AU18)) -> 24 | AV47: =(SUM($J18:AV18)*MAX(AV18)) -> 25 | AW47: =(SUM($J18:AW18)*MAX(AW18)) -> 26 | AX47: =(SUM($J18:AX18)*MAX(AX18)) -> 27 | AY47: =(SUM($J18:AY18)*MAX(AY18)) -> 28 | AZ47: =(SUM($J18:AZ18)*MAX(AZ18)) -> 29 | BA47: =(SUM($J18:BA18)*MAX(BA18)) -> 30 | BB47: =(SUM($J18:BB18)*MAX(BB18)) -> 31 | BC47: =(SUM($J18:BC18)*MAX(BC18)) -> 32 | BD47: =(SUM($J18:BD18)*MAX(BD18)) -> 0 | BE47: =(SUM($J18:BE18)*MAX(BE18)) -> 0 | BF47: =(SUM($J18:BF18)*MAX(BF18)) -> 0 | BG47: =(SUM($J18:BG18)*MAX(BG18)) -> 0 | BH47: =(SUM($J18:BH18)*MAX(BH18)) -> 0 | BI47: =(SUM($J18:BI18)*MAX(BI18)) -> 0 | BJ47: =(SUM($J18:BJ18)*MAX(BJ18)) -> 0 | BK47: =(SUM($J18:BK18)*MAX(BK18)) -> 0 | BL47: =(SUM($J18:BL18)*MAX(BL18)) -> 0 | BM47: =(SUM($J18:BM18)*MAX(BM18)) -> 0 | BN47: =(SUM($J18:BN18)*MAX(BN18)) -> 0 | BO47: =(SUM($J18:BO18)*MAX(BO18)) -> 0 | BP47: =(SUM($J18:BP18)*MAX(BP18)) -> 0 | BQ47: =(SUM($J18:BQ18)*MAX(BQ18)) -> 0 | BR47: =(SUM($J18:BR18)*MAX(BR18)) -> 0 | BS47: =(SUM($J18:BS18)*MAX(BS18)) -> 0 | BT47: =(SUM($J18:BT18)*MAX(BT18)) -> 0 | BU47: =(SUM($J18:BU18)*MAX(BU18)) -> 0 | BV47: =(SUM($J18:BV18)*MAX(BV18)) -> 0 | BW47: =(SUM($J18:BW18)*MAX(BW18)) -> 0 | BX47: =(SUM($J18:BX18)*MAX(BX18)) -> 0 | BY47: =(SUM($J18:BY18)*MAX(BY18)) -> 0 | BZ47: =(SUM($J18:BZ18)*MAX(BZ18)) -> 0 | CA47: =(SUM($J18:CA18)*MAX(CA18)) -> 0 | CB47: =(SUM($J18:CB18)*MAX(CB18)) -> 0 | CC47: =(SUM($J18:CC18)*MAX(CC18)) -> 0 | CD47: =(SUM($J18:CD18)*MAX(CD18)) -> 0 | CE47: =(SUM($J18:CE18)*MAX(CE18)) -> 0 | CF47: =(SUM($J18:CF18)*MAX(CF18)) -> 0 | CG47: =(SUM($J18:CG18)*MAX(CG18)) -> 0 | CH47: =(SUM($J18:CH18)*MAX(CH18)) -> 0 | CI47: =(SUM($J18:CI18)*MAX(CI18)) -> 0 | CJ47: =(SUM($J18:CJ18)*MAX(CJ18)) -> 0 | CK47: =(SUM($J18:CK18)*MAX(CK18)) -> 0 | CL47: =(SUM($J18:CL18)*MAX(CL18)) -> 0 | CM47: =(SUM($J18:CM18)*MAX(CM18)) -> 0 | CN47: =(SUM($J18:CN18)*MAX(CN18)) -> 0 | CO47: =(SUM($J18:CO18)*MAX(CO18)) -> 0 | CP47: =(SUM($J18:CP18)*MAX(CP18)) -> 0 | CQ47: =(SUM($J18:CQ18)*MAX(CQ18)) -> 0 | CR47: =(SUM($J18:CR18)*MAX(CR18)) -> 0 | CS47: =(SUM($J18:CS18)*MAX(CS18)) -> 0 | CT47: =(SUM($J18:CT18)*MAX(CT18)) -> 0 | CU47: =(SUM($J18:CU18)*MAX(CU18)) -> 0 | CV47: =(SUM($J18:CV18)*MAX(CV18)) -> 0 | CW47: =(SUM($J18:CW18)*MAX(CW18)) -> 0 | CX47: =(SUM($J18:CX18)*MAX(CX18)) -> 0 | CY47: =(SUM($J18:CY18)*MAX(CY18)) -> 0 | CZ47: =(SUM($J18:CZ18)*MAX(CZ18)) -> 0 | DA47: =(SUM($J18:DA18)*MAX(DA18)) -> 0 | DB47: =(SUM($J18:DB18)*MAX(DB18)) -> 0 | DC47: =(SUM($J18:DC18)*MAX(DC18)) -> 0 | DD47: =(SUM($J18:DD18)*MAX(DD18)) -> 0 | DE47: =(SUM($J18:DE18)*MAX(DE18)) -> 0 | DF47: =(SUM($J18:DF18)*MAX(DF18)) -> 0 | DG47: =(SUM($J18:DG18)*MAX(DG18)) -> 0 | DH47: =(SUM($J18:DH18)*MAX(DH18)) -> 0 | DI47: =(SUM($J18:DI18)*MAX(DI18)) -> 0 | DJ47: =(SUM($J18:DJ18)*MAX(DJ18)) -> 0 | DK47: =(SUM($J18:DK18)*MAX(DK18)) -> 0 | DL47: =(SUM($J18:DL18)*MAX(DL18)) -> 0 | DM47: =(SUM($J18:DM18)*MAX(DM18)) -> 0 | DN47: =(SUM($J18:DN18)*MAX(DN18)) -> 0 | DO47: =(SUM($J18:DO18)*MAX(DO18)) -> 0 | DP47: =(SUM($J18:DP18)*MAX(DP18)) -> 0 | DQ47: =(SUM($J18:DQ18)*MAX(DQ18)) -> 0 | DR47: =(SUM($J18:DR18)*MAX(DR18)) -> 0 | DS47: =(SUM($J18:DS18)*MAX(DS18)) -> 0 | DT47: =(SUM($J18:DT18)*MAX(DT18)) -> 0 | DU47: =(SUM($J18:DU18)*MAX(DU18)) -> 0 | DV47: =(SUM($J18:DV18)*MAX(DV18)) -> 0 | DW47: =(SUM($J18:DW18)*MAX(DW18)) -> 0 | DX47: =(SUM($J18:DX18)*MAX(DX18)) -> 0 | DY47: =(SUM($J18:DY18)*MAX(DY18)) -> 0 | DZ47: =(SUM($J18:DZ18)*MAX(DZ18)) -> 0 | EA47: =(SUM($J18:EA18)*MAX(EA18)) -> 0 | EB47: =(SUM($J18:EB18)*MAX(EB18)) -> 0 | EC47: =(SUM($J18:EC18)*MAX(EC18)) -> 0 | ED47: =(SUM($J18:ED18)*MAX(ED18)) -> 0 | EE47: =(SUM($J18:EE18)*MAX(EE18)) -> 0 | EF47: =(SUM($J18:EF18)*MAX(EF18)) -> 0 | EG47: =(SUM($J18:EG18)*MAX(EG18)) -> 0 | EH47: =(SUM($J18:EH18)*MAX(EH18)) -> 0 | EI47: =(SUM($J18:EI18)*MAX(EI18)) -> 0 | EJ47: =(SUM($J18:EJ18)*MAX(EJ18)) -> 0 | EK47: =(SUM($J18:EK18)*MAX(EK18)) -> 0
C48: =C35 -> Production Year | D48: Num# | J48: =ROUNDUP(J47/Qtrs_Yr,0) -> 0 | K48: 0 | L48: 0 | M48: 0 | N48: 0 | O48: 0 | P48: 0 | Q48: 0 | R48: 0 | S48: 0 | T48: 0 | U48: 0 | V48: 0 | W48: 0 | X48: 1 | Y48: 1 | Z48: 1 | AA48: 1 | AB48: 2 | AC48: 2 | AD48: 2 | AE48: 2 | AF48: 3 | AG48: 3 | AH48: 3 | AI48: 3 | AJ48: 4 | AK48: 4 | AL48: 4 | AM48: 4 | AN48: 5 | AO48: 5 | AP48: 5 | AQ48: 5 | AR48: 6 | AS48: 6 | AT48: 6 | AU48: 6 | AV48: 7 | AW48: 7 | AX48: 7 | AY48: 7 | AZ48: 8 | BA48: 8 | BB48: 8 | BC48: 8 | BD48: 0 | BE48: 0 | BF48: 0 | BG48: 0 | BH48: 0 | BI48: 0 | BJ48: 0 | BK48: 0 | BL48: 0 | BM48: 0 | BN48: 0 | BO48: 0 | BP48: 0 | BQ48: 0 | BR48: 0 | BS48: 0 | BT48: 0 | BU48: 0 | BV48: =ROUNDUP(BV47/Qtrs_Yr,0) -> 0 | BW48: 0 | BX48: 0 | BY48: 0 | BZ48: 0 | CA48: 0 | CB48: 0 | CC48: 0 | CD48: 0 | CE48: 0 | CF48: 0 | CG48: 0 | CH48: 0 | CI48: 0 | CJ48: 0 | CK48: 0 | CL48: 0 | CM48: 0 | CN48: 0 | CO48: 0 | CP48: 0 | CQ48: 0 | CR48: 0 | CS48: 0 | CT48: 0 | CU48: 0 | CV48: 0 | CW48: 0 | CX48: 0 | CY48: 0 | CZ48: 0 | DA48: 0 | DB48: 0 | DC48: 0 | DD48: 0 | DE48: 0 | DF48: 0 | DG48: 0 | DH48: 0 | DI48: 0 | DJ48: 0 | DK48: 0 | DL48: 0 | DM48: 0 | DN48: 0 | DO48: 0 | DP48: 0 | DQ48: 0 | DR48: 0 | DS48: 0 | DT48: 0 | DU48: 0 | DV48: 0 | DW48: 0 | DX48: 0 | DY48: 0 | DZ48: 0 | EA48: 0 | EB48: 0 | EC48: 0 | ED48: 0 | EE48: 0 | EF48: 0 | EG48: 0 | EH48: =ROUNDUP(EH47/Qtrs_Yr,0) -> 0 | EI48: =ROUNDUP(EI47/Qtrs_Yr,0) -> 0 | EJ48: =ROUNDUP(EJ47/Qtrs_Yr,0) -> 0 | EK48: =ROUNDUP(EK47/Qtrs_Yr,0) -> 0
C49: =C36 -> Calendar Year | D49: Num# | J49: =YEAR(J5) -> 2018 | K49: =YEAR(K5) -> 2018 | L49: 2019 | M49: 2019 | N49: 2019 | O49: 2019 | P49: 2020 | Q49: 2020 | R49: 2020 | S49: 2020 | T49: 2021 | U49: 2021 | V49: 2021 | W49: 2021 | X49: 2022 | Y49: 2022 | Z49: 2022 | AA49: 2022 | AB49: 2023 | AC49: 2023 | AD49: 2023 | AE49: 2023 | AF49: 2024 | AG49: 2024 | AH49: 2024 | AI49: 2024 | AJ49: 2025 | AK49: 2025 | AL49: 2025 | AM49: 2025 | AN49: 2026 | AO49: 2026 | AP49: 2026 | AQ49: 2026 | AR49: 2027 | AS49: 2027 | AT49: 2027 | AU49: 2027 | AV49: 2028 | AW49: 2028 | AX49: 2028 | AY49: 2028 | AZ49: 2029 | BA49: 2029 | BB49: 2029 | BC49: 2029 | BD49: 2030 | BE49: 2030 | BF49: 2030 | BG49: 2030 | BH49: 2031 | BI49: 2031 | BJ49: 2031 | BK49: 2031 | BL49: 2032 | BM49: 2032 | BN49: 2032 | BO49: 2032 | BP49: 2033 | BQ49: 2033 | BR49: 2033 | BS49: 2033 | BT49: 2034 | BU49: 2034 | BV49: 2034 | BW49: =YEAR(BW5) -> 2034 | BX49: 2035 | BY49: 2035 | BZ49: 2035 | CA49: 2035 | CB49: 2036 | CC49: 2036 | CD49: 2036 | CE49: 2036 | CF49: 2037 | CG49: 2037 | CH49: 2037 | CI49: 2037 | CJ49: 2038 | CK49: 2038 | CL49: 2038 | CM49: 2038 | CN49: 2039 | CO49: 2039 | CP49: 2039 | CQ49: 2039 | CR49: 2040 | CS49: 2040 | CT49: 2040 | CU49: 2040 | CV49: 2041 | CW49: 2041 | CX49: 2041 | CY49: 2041 | CZ49: 2042 | DA49: 2042 | DB49: 2042 | DC49: 2042 | DD49: 2043 | DE49: 2043 | DF49: 2043 | DG49: 2043 | DH49: 2044 | DI49: 2044 | DJ49: 2044 | DK49: 2044 | DL49: 2045 | DM49: 2045 | DN49: 2045 | DO49: 2045 | DP49: 2046 | DQ49: 2046 | DR49: 2046 | DS49: 2046 | DT49: 2047 | DU49: 2047 | DV49: 2047 | DW49: 2047 | DX49: 2048 | DY49: 2048 | DZ49: 2048 | EA49: 2048 | EB49: 2049 | EC49: 2049 | ED49: 2049 | EE49: 2049 | EF49: 2050 | EG49: 2050 | EH49: 2050 | EI49: =YEAR(EI5) -> 2050 | EJ49: =YEAR(EJ5) -> 2051 | EK49: =YEAR(EK5) -> 2051
C50: =C37 -> Days in period | D50: Num# | J50: =J5-J4+1 -> 92 | K50: =K5-K4+1 -> 92 | L50: 90 | M50: 91 | N50: 92 | O50: 92 | P50: 91 | Q50: 91 | R50: 92 | S50: 92 | T50: 90 | U50: 91 | V50: 92 | W50: 92 | X50: 90 | Y50: 91 | Z50: 92 | AA50: 92 | AB50: 90 | AC50: 91 | AD50: 92 | AE50: 92 | AF50: 91 | AG50: 91 | AH50: 92 | AI50: 92 | AJ50: 90 | AK50: 91 | AL50: 92 | AM50: 92 | AN50: 90 | AO50: 91 | AP50: 92 | AQ50: 92 | AR50: 90 | AS50: 91 | AT50: 92 | AU50: 92 | AV50: 91 | AW50: 91 | AX50: 92 | AY50: 92 | AZ50: 90 | BA50: 91 | BB50: 92 | BC50: 92 | BD50: 90 | BE50: 91 | BF50: 92 | BG50: 92 | BH50: 90 | BI50: 91 | BJ50: 92 | BK50: 92 | BL50: 91 | BM50: 91 | BN50: 92 | BO50: 92 | BP50: 90 | BQ50: 91 | BR50: 92 | BS50: 92 | BT50: 90 | BU50: 91 | BV50: 92 | BW50: =BW5-BW4+1 -> 92 | BX50: 90 | BY50: 91 | BZ50: 92 | CA50: 92 | CB50: 91 | CC50: 91 | CD50: 92 | CE50: 92 | CF50: 90 | CG50: 91 | CH50: 92 | CI50: 92 | CJ50: 90 | CK50: 91 | CL50: 92 | CM50: 92 | CN50: 90 | CO50: 91 | CP50: 92 | CQ50: 92 | CR50: 91 | CS50: 91 | CT50: 92 | CU50: 92 | CV50: 90 | CW50: 91 | CX50: 92 | CY50: 92 | CZ50: 90 | DA50: 91 | DB50: 92 | DC50: 92 | DD50: 90 | DE50: 91 | DF50: 92 | DG50: 92 | DH50: 91 | DI50: 91 | DJ50: 92 | DK50: 92 | DL50: 90 | DM50: 91 | DN50: 92 | DO50: 92 | DP50: 90 | DQ50: 91 | DR50: 92 | DS50: 92 | DT50: 90 | DU50: 91 | DV50: 92 | DW50: 92 | DX50: 91 | DY50: 91 | DZ50: 92 | EA50: 92 | EB50: 90 | EC50: 91 | ED50: 92 | EE50: 92 | EF50: 90 | EG50: 91 | EH50: 92 | EI50: =EI5-EI4+1 -> 92 | EJ50: =EJ5-EJ4+1 -> 90 | EK50: =EK5-EK4+1 -> 91
C51: =C38 -> Period number | D51: Num# | J51: =COUNT($J5:J5) -> 1 | K51: =COUNT($J5:K5) -> 2 | L51: =COUNT($J5:L5) -> 3 | M51: =COUNT($J5:M5) -> 4 | N51: =COUNT($J5:N5) -> 5 | O51: =COUNT($J5:O5) -> 6 | P51: =COUNT($J5:P5) -> 7 | Q51: =COUNT($J5:Q5) -> 8 | R51: =COUNT($J5:R5) -> 9 | S51: =COUNT($J5:S5) -> 10 | T51: =COUNT($J5:T5) -> 11 | U51: =COUNT($J5:U5) -> 12 | V51: =COUNT($J5:V5) -> 13 | W51: =COUNT($J5:W5) -> 14 | X51: =COUNT($J5:X5) -> 15 | Y51: =COUNT($J5:Y5) -> 16 | Z51: =COUNT($J5:Z5) -> 17 | AA51: =COUNT($J5:AA5) -> 18 | AB51: =COUNT($J5:AB5) -> 19 | AC51: =COUNT($J5:AC5) -> 20 | AD51: =COUNT($J5:AD5) -> 21 | AE51: =COUNT($J5:AE5) -> 22 | AF51: =COUNT($J5:AF5) -> 23 | AG51: =COUNT($J5:AG5) -> 24 | AH51: =COUNT($J5:AH5) -> 25 | AI51: =COUNT($J5:AI5) -> 26 | AJ51: =COUNT($J5:AJ5) -> 27 | AK51: =COUNT($J5:AK5) -> 28 | AL51: =COUNT($J5:AL5) -> 29 | AM51: =COUNT($J5:AM5) -> 30 | AN51: =COUNT($J5:AN5) -> 31 | AO51: =COUNT($J5:AO5) -> 32 | AP51: =COUNT($J5:AP5) -> 33 | AQ51: =COUNT($J5:AQ5) -> 34 | AR51: =COUNT($J5:AR5) -> 35 | AS51: =COUNT($J5:AS5) -> 36 | AT51: =COUNT($J5:AT5) -> 37 | AU51: =COUNT($J5:AU5) -> 38 | AV51: =COUNT($J5:AV5) -> 39 | AW51: =COUNT($J5:AW5) -> 40 | AX51: =COUNT($J5:AX5) -> 41 | AY51: =COUNT($J5:AY5) -> 42 | AZ51: =COUNT($J5:AZ5) -> 43 | BA51: =COUNT($J5:BA5) -> 44 | BB51: =COUNT($J5:BB5) -> 45 | BC51: =COUNT($J5:BC5) -> 46 | BD51: =COUNT($J5:BD5) -> 47 | BE51: =COUNT($J5:BE5) -> 48 | BF51: =COUNT($J5:BF5) -> 49 | BG51: =COUNT($J5:BG5) -> 50 | BH51: =COUNT($J5:BH5) -> 51 | BI51: =COUNT($J5:BI5) -> 52 | BJ51: =COUNT($J5:BJ5) -> 53 | BK51: =COUNT($J5:BK5) -> 54 | BL51: =COUNT($J5:BL5) -> 55 | BM51: =COUNT($J5:BM5) -> 56 | BN51: =COUNT($J5:BN5) -> 57 | BO51: =COUNT($J5:BO5) -> 58 | BP51: =COUNT($J5:BP5) -> 59 | BQ51: =COUNT($J5:BQ5) -> 60 | BR51: =COUNT($J5:BR5) -> 61 | BS51: =COUNT($J5:BS5) -> 62 | BT51: =COUNT($J5:BT5) -> 63 | BU51: =COUNT($J5:BU5) -> 64 | BV51: =COUNT($J5:BV5) -> 65 | BW51: =COUNT($J5:BW5) -> 66 | BX51: =COUNT($J5:BX5) -> 67 | BY51: =COUNT($J5:BY5) -> 68 | BZ51: =COUNT($J5:BZ5) -> 69 | CA51: =COUNT($J5:CA5) -> 70 | CB51: =COUNT($J5:CB5) -> 71 | CC51: =COUNT($J5:CC5) -> 72 | CD51: =COUNT($J5:CD5) -> 73 | CE51: =COUNT($J5:CE5) -> 74 | CF51: =COUNT($J5:CF5) -> 75 | CG51: =COUNT($J5:CG5) -> 76 | CH51: =COUNT($J5:CH5) -> 77 | CI51: =COUNT($J5:CI5) -> 78 | CJ51: =COUNT($J5:CJ5) -> 79 | CK51: =COUNT($J5:CK5) -> 80 | CL51: =COUNT($J5:CL5) -> 81 | CM51: =COUNT($J5:CM5) -> 82 | CN51: =COUNT($J5:CN5) -> 83 | CO51: =COUNT($J5:CO5) -> 84 | CP51: =COUNT($J5:CP5) -> 85 | CQ51: =COUNT($J5:CQ5) -> 86 | CR51: =COUNT($J5:CR5) -> 87 | CS51: =COUNT($J5:CS5) -> 88 | CT51: =COUNT($J5:CT5) -> 89 | CU51: =COUNT($J5:CU5) -> 90 | CV51: =COUNT($J5:CV5) -> 91 | CW51: =COUNT($J5:CW5) -> 92 | CX51: =COUNT($J5:CX5) -> 93 | CY51: =COUNT($J5:CY5) -> 94 | CZ51: =COUNT($J5:CZ5) -> 95 | DA51: =COUNT($J5:DA5) -> 96 | DB51: =COUNT($J5:DB5) -> 97 | DC51: =COUNT($J5:DC5) -> 98 | DD51: =COUNT($J5:DD5) -> 99 | DE51: =COUNT($J5:DE5) -> 100 | DF51: =COUNT($J5:DF5) -> 101 | DG51: =COUNT($J5:DG5) -> 102 | DH51: =COUNT($J5:DH5) -> 103 | DI51: =COUNT($J5:DI5) -> 104 | DJ51: =COUNT($J5:DJ5) -> 105 | DK51: =COUNT($J5:DK5) -> 106 | DL51: =COUNT($J5:DL5) -> 107 | DM51: =COUNT($J5:DM5) -> 108 | DN51: =COUNT($J5:DN5) -> 109 | DO51: =COUNT($J5:DO5) -> 110 | DP51: =COUNT($J5:DP5) -> 111 | DQ51: =COUNT($J5:DQ5) -> 112 | DR51: =COUNT($J5:DR5) -> 113 | DS51: =COUNT($J5:DS5) -> 114 | DT51: =COUNT($J5:DT5) -> 115 | DU51: =COUNT($J5:DU5) -> 116 | DV51: =COUNT($J5:DV5) -> 117 | DW51: =COUNT($J5:DW5) -> 118 | DX51: =COUNT($J5:DX5) -> 119 | DY51: =COUNT($J5:DY5) -> 120 | DZ51: =COUNT($J5:DZ5) -> 121 | EA51: =COUNT($J5:EA5) -> 122 | EB51: =COUNT($J5:EB5) -> 123 | EC51: =COUNT($J5:EC5) -> 124 | ED51: =COUNT($J5:ED5) -> 125 | EE51: =COUNT($J5:EE5) -> 126 | EF51: =COUNT($J5:EF5) -> 127 | EG51: =COUNT($J5:EG5) -> 128 | EH51: =COUNT($J5:EH5) -> 129 | EI51: =COUNT($J5:EI5) -> 130 | EJ51: =COUNT($J5:EJ5) -> 131 | EK51: =COUNT($J5:EK5) -> 132
C57: Inflation
C59: Inflation Rate | D59: % p.a | J59: =LOOKUP(J36,'Inputs - 2'!$E$395:$J$395,'Inputs - 2'!$E$396:$J$396) -> 0.025 | K59: =LOOKUP(K36,'Inputs - 2'!$E$395:$J$395,'Inputs - 2'!$E$396:$J$396) -> 0.025 | L59: =LOOKUP(L36,'Inputs - 2'!$E$395:$J$395,'Inputs - 2'!$E$396:$J$396) -> 0.025 | M59: =LOOKUP(M36,'Inputs - 2'!$E$395:$J$395,'Inputs - 2'!$E$396:$J$396) -> 0.025 | N59: =LOOKUP(N36,'Inputs - 2'!$E$395:$J$395,'Inputs - 2'!$E$396:$J$396) -> 0.025 | O59: =LOOKUP(O36,'Inputs - 2'!$E$395:$J$395,'Inputs - 2'!$E$396:$J$396) -> 0.025 | P59: =LOOKUP(P36,'Inputs - 2'!$E$395:$J$395,'Inputs - 2'!$E$396:$J$396) -> 0.025 | Q59: =LOOKUP(Q36,'Inputs - 2'!$E$395:$J$395,'Inputs - 2'!$E$396:$J$396) -> 0.025 | R59: =LOOKUP(R36,'Inputs - 2'!$E$395:$J$395,'Inputs - 2'!$E$396:$J$396) -> 0.025 | S59: =LOOKUP(S36,'Inputs - 2'!$E$395:$J$395,'Inputs - 2'!$E$396:$J$396) -> 0.025 | T59: =LOOKUP(T36,'Inputs - 2'!$E$395:$J$395,'Inputs - 2'!$E$396:$J$396) -> 0.025 | U59: =LOOKUP(U36,'Inputs - 2'!$E$395:$J$395,'Inputs - 2'!$E$396:$J$396) -> 0.025 | V59: =LOOKUP(V36,'Inputs - 2'!$E$395:$J$395,'Inputs - 2'!$E$396:$J$396) -> 0.025 | W59: =LOOKUP(W36,'Inputs - 2'!$E$395:$J$395,'Inputs - 2'!$E$396:$J$396) -> 0.025 | X59: =LOOKUP(X36,'Inputs - 2'!$E$395:$J$395,'Inputs - 2'!$E$396:$J$396) -> 0.025 | Y59: =LOOKUP(Y36,'Inputs - 2'!$E$395:$J$395,'Inputs - 2'!$E$396:$J$396) -> 0.025 | Z59: =LOOKUP(Z36,'Inputs - 2'!$E$395:$J$395,'Inputs - 2'!$E$396:$J$396) -> 0.025 | AA59: =LOOKUP(AA36,'Inputs - 2'!$E$395:$J$395,'Inputs - 2'!$E$396:$J$396) -> 0.025 | AB59: =LOOKUP(AB36,'Inputs - 2'!$E$395:$J$395,'Inputs - 2'!$E$396:$J$396) -> 0.025 | AC59: =LOOKUP(AC36,'Inputs - 2'!$E$395:$J$395,'Inputs - 2'!$E$396:$J$396) -> 0.025 | AD59: =LOOKUP(AD36,'Inputs - 2'!$E$395:$J$395,'Inputs - 2'!$E$396:$J$396) -> 0.025 | AE59: =LOOKUP(AE36,'Inputs - 2'!$E$395:$J$395,'Inputs - 2'!$E$396:$J$396) -> 0.025 | AF59: =LOOKUP(AF36,'Inputs - 2'!$E$395:$J$395,'Inputs - 2'!$E$396:$J$396) -> 0.025 | AG59: =LOOKUP(AG36,'Inputs - 2'!$E$395:$J$395,'Inputs - 2'!$E$396:$J$396) -> 0.025 | AH59: =LOOKUP(AH36,'Inputs - 2'!$E$395:$J$395,'Inputs - 2'!$E$396:$J$396) -> 0.025 | AI59: =LOOKUP(AI36,'Inputs - 2'!$E$395:$J$395,'Inputs - 2'!$E$396:$J$396) -> 0.025 | AJ59: =LOOKUP(AJ36,'Inputs - 2'!$E$395:$J$395,'Inputs - 2'!$E$396:$J$396) -> 0.025 | AK59: =LOOKUP(AK36,'Inputs - 2'!$E$395:$J$395,'Inputs - 2'!$E$396:$J$396) -> 0.025 | AL59: =LOOKUP(AL36,'Inputs - 2'!$E$395:$J$395,'Inputs - 2'!$E$396:$J$396) -> 0.025 | AM59: =LOOKUP(AM36,'Inputs - 2'!$E$395:$J$395,'Inputs - 2'!$E$396:$J$396) -> 0.025 | AN59: =LOOKUP(AN36,'Inputs - 2'!$E$395:$J$395,'Inputs - 2'!$E$396:$J$396) -> 0.025 | AO59: =LOOKUP(AO36,'Inputs - 2'!$E$395:$J$395,'Inputs - 2'!$E$396:$J$396) -> 0.025 | AP59: =LOOKUP(AP36,'Inputs - 2'!$E$395:$J$395,'Inputs - 2'!$E$396:$J$396) -> 0.025 | AQ59: =LOOKUP(AQ36,'Inputs - 2'!$E$395:$J$395,'Inputs - 2'!$E$396:$J$396) -> 0.025 | AR59: =LOOKUP(AR36,'Inputs - 2'!$E$395:$J$395,'Inputs - 2'!$E$396:$J$396) -> 0.025 | AS59: =LOOKUP(AS36,'Inputs - 2'!$E$395:$J$395,'Inputs - 2'!$E$396:$J$396) -> 0.025 | AT59: =LOOKUP(AT36,'Inputs - 2'!$E$395:$J$395,'Inputs - 2'!$E$396:$J$396) -> 0.025 | AU59: =LOOKUP(AU36,'Inputs - 2'!$E$395:$J$395,'Inputs - 2'!$E$396:$J$396) -> 0.025 | AV59: =LOOKUP(AV36,'Inputs - 2'!$E$395:$J$395,'Inputs - 2'!$E$396:$J$396) -> 0.025 | AW59: =LOOKUP(AW36,'Inputs - 2'!$E$395:$J$395,'Inputs - 2'!$E$396:$J$396) -> 0.025 | AX59: =LOOKUP(AX36,'Inputs - 2'!$E$395:$J$395,'Inputs - 2'!$E$396:$J$396) -> 0.025 | AY59: =LOOKUP(AY36,'Inputs - 2'!$E$395:$J$395,'Inputs - 2'!$E$396:$J$396) -> 0.025 | AZ59: =LOOKUP(AZ36,'Inputs - 2'!$E$395:$J$395,'Inputs - 2'!$E$396:$J$396) -> 0.025 | BA59: =LOOKUP(BA36,'Inputs - 2'!$E$395:$J$395,'Inputs - 2'!$E$396:$J$396) -> 0.025 | BB59: =LOOKUP(BB36,'Inputs - 2'!$E$395:$J$395,'Inputs - 2'!$E$396:$J$396) -> 0.025 | BC59: =LOOKUP(BC36,'Inputs - 2'!$E$395:$J$395,'Inputs - 2'!$E$396:$J$396) -> 0.025 | BD59: =LOOKUP(BD36,'Inputs - 2'!$E$395:$J$395,'Inputs - 2'!$E$396:$J$396) -> 0.025 | BE59: =LOOKUP(BE36,'Inputs - 2'!$E$395:$J$395,'Inputs - 2'!$E$396:$J$396) -> 0.025 | BF59: =LOOKUP(BF36,'Inputs - 2'!$E$395:$J$395,'Inputs - 2'!$E$396:$J$396) -> 0.025 | BG59: =LOOKUP(BG36,'Inputs - 2'!$E$395:$J$395,'Inputs - 2'!$E$396:$J$396) -> 0.025 | BH59: =LOOKUP(BH36,'Inputs - 2'!$E$395:$J$395,'Inputs - 2'!$E$396:$J$396) -> 0.025 | BI59: =LOOKUP(BI36,'Inputs - 2'!$E$395:$J$395,'Inputs - 2'!$E$396:$J$396) -> 0.025 | BJ59: =LOOKUP(BJ36,'Inputs - 2'!$E$395:$J$395,'Inputs - 2'!$E$396:$J$396) -> 0.025 | BK59: =LOOKUP(BK36,'Inputs - 2'!$E$395:$J$395,'Inputs - 2'!$E$396:$J$396) -> 0.025 | BL59: =LOOKUP(BL36,'Inputs - 2'!$E$395:$J$395,'Inputs - 2'!$E$396:$J$396) -> 0.025 | BM59: =LOOKUP(BM36,'Inputs - 2'!$E$395:$J$395,'Inputs - 2'!$E$396:$J$396) -> 0.025 | BN59: =LOOKUP(BN36,'Inputs - 2'!$E$395:$J$395,'Inputs - 2'!$E$396:$J$396) -> 0.025 | BO59: =LOOKUP(BO36,'Inputs - 2'!$E$395:$J$395,'Inputs - 2'!$E$396:$J$396) -> 0.025 | BP59: =LOOKUP(BP36,'Inputs - 2'!$E$395:$J$395,'Inputs - 2'!$E$396:$J$396) -> 0.025 | BQ59: =LOOKUP(BQ36,'Inputs - 2'!$E$395:$J$395,'Inputs - 2'!$E$396:$J$396) -> 0.025 | BR59: =LOOKUP(BR36,'Inputs - 2'!$E$395:$J$395,'Inputs - 2'!$E$396:$J$396) -> 0.025 | BS59: =LOOKUP(BS36,'Inputs - 2'!$E$395:$J$395,'Inputs - 2'!$E$396:$J$396) -> 0.025 | BT59: =LOOKUP(BT36,'Inputs - 2'!$E$395:$J$395,'Inputs - 2'!$E$396:$J$396) -> 0.025 | BU59: =LOOKUP(BU36,'Inputs - 2'!$E$395:$J$395,'Inputs - 2'!$E$396:$J$396) -> 0.025 | BV59: =LOOKUP(BV36,'Inputs - 2'!$E$395:$J$395,'Inputs - 2'!$E$396:$J$396) -> 0.025 | BW59: =LOOKUP(BW36,'Inputs - 2'!$E$395:$J$395,'Inputs - 2'!$E$396:$J$396) -> 0.025 | BX59: =LOOKUP(BX36,'Inputs - 2'!$E$395:$J$395,'Inputs - 2'!$E$396:$J$396) -> 0.025 | BY59: =LOOKUP(BY36,'Inputs - 2'!$E$395:$J$395,'Inputs - 2'!$E$396:$J$396) -> 0.025 | BZ59: =LOOKUP(BZ36,'Inputs - 2'!$E$395:$J$395,'Inputs - 2'!$E$396:$J$396) -> 0.025 | CA59: =LOOKUP(CA36,'Inputs - 2'!$E$395:$J$395,'Inputs - 2'!$E$396:$J$396) -> 0.025 | CB59: =LOOKUP(CB36,'Inputs - 2'!$E$395:$J$395,'Inputs - 2'!$E$396:$J$396) -> 0.025 | CC59: =LOOKUP(CC36,'Inputs - 2'!$E$395:$J$395,'Inputs - 2'!$E$396:$J$396) -> 0.025 | CD59: =LOOKUP(CD36,'Inputs - 2'!$E$395:$J$395,'Inputs - 2'!$E$396:$J$396) -> 0.025 | CE59: =LOOKUP(CE36,'Inputs - 2'!$E$395:$J$395,'Inputs - 2'!$E$396:$J$396) -> 0.025 | CF59: =LOOKUP(CF36,'Inputs - 2'!$E$395:$J$395,'Inputs - 2'!$E$396:$J$396) -> 0.025 | CG59: =LOOKUP(CG36,'Inputs - 2'!$E$395:$J$395,'Inputs - 2'!$E$396:$J$396) -> 0.025 | CH59: =LOOKUP(CH36,'Inputs - 2'!$E$395:$J$395,'Inputs - 2'!$E$396:$J$396) -> 0.025 | CI59: =LOOKUP(CI36,'Inputs - 2'!$E$395:$J$395,'Inputs - 2'!$E$396:$J$396) -> 0.025 | CJ59: =LOOKUP(CJ36,'Inputs - 2'!$E$395:$J$395,'Inputs - 2'!$E$396:$J$396) -> 0.025 | CK59: =LOOKUP(CK36,'Inputs - 2'!$E$395:$J$395,'Inputs - 2'!$E$396:$J$396) -> 0.025 | CL59: =LOOKUP(CL36,'Inputs - 2'!$E$395:$J$395,'Inputs - 2'!$E$396:$J$396) -> 0.025 | CM59: =LOOKUP(CM36,'Inputs - 2'!$E$395:$J$395,'Inputs - 2'!$E$396:$J$396) -> 0.025 | CN59: =LOOKUP(CN36,'Inputs - 2'!$E$395:$J$395,'Inputs - 2'!$E$396:$J$396) -> 0.025 | CO59: =LOOKUP(CO36,'Inputs - 2'!$E$395:$J$395,'Inputs - 2'!$E$396:$J$396) -> 0.025 | CP59: =LOOKUP(CP36,'Inputs - 2'!$E$395:$J$395,'Inputs - 2'!$E$396:$J$396) -> 0.025 | CQ59: =LOOKUP(CQ36,'Inputs - 2'!$E$395:$J$395,'Inputs - 2'!$E$396:$J$396) -> 0.025 | CR59: =LOOKUP(CR36,'Inputs - 2'!$E$395:$J$395,'Inputs - 2'!$E$396:$J$396) -> 0.025 | CS59: =LOOKUP(CS36,'Inputs - 2'!$E$395:$J$395,'Inputs - 2'!$E$396:$J$396) -> 0.025 | CT59: =LOOKUP(CT36,'Inputs - 2'!$E$395:$J$395,'Inputs - 2'!$E$396:$J$396) -> 0.025 | CU59: =LOOKUP(CU36,'Inputs - 2'!$E$395:$J$395,'Inputs - 2'!$E$396:$J$396) -> 0.025 | CV59: =LOOKUP(CV36,'Inputs - 2'!$E$395:$J$395,'Inputs - 2'!$E$396:$J$396) -> 0.025 | CW59: =LOOKUP(CW36,'Inputs - 2'!$E$395:$J$395,'Inputs - 2'!$E$396:$J$396) -> 0.025 | CX59: =LOOKUP(CX36,'Inputs - 2'!$E$395:$J$395,'Inputs - 2'!$E$396:$J$396) -> 0.025 | CY59: =LOOKUP(CY36,'Inputs - 2'!$E$395:$J$395,'Inputs - 2'!$E$396:$J$396) -> 0.025 | CZ59: =LOOKUP(CZ36,'Inputs - 2'!$E$395:$J$395,'Inputs - 2'!$E$396:$J$396) -> 0.025 | DA59: =LOOKUP(DA36,'Inputs - 2'!$E$395:$J$395,'Inputs - 2'!$E$396:$J$396) -> 0.025 | DB59: =LOOKUP(DB36,'Inputs - 2'!$E$395:$J$395,'Inputs - 2'!$E$396:$J$396) -> 0.025 | DC59: =LOOKUP(DC36,'Inputs - 2'!$E$395:$J$395,'Inputs - 2'!$E$396:$J$396) -> 0.025 | DD59: =LOOKUP(DD36,'Inputs - 2'!$E$395:$J$395,'Inputs - 2'!$E$396:$J$396) -> 0.025 | DE59: =LOOKUP(DE36,'Inputs - 2'!$E$395:$J$395,'Inputs - 2'!$E$396:$J$396) -> 0.025 | DF59: =LOOKUP(DF36,'Inputs - 2'!$E$395:$J$395,'Inputs - 2'!$E$396:$J$396) -> 0.025 | DG59: =LOOKUP(DG36,'Inputs - 2'!$E$395:$J$395,'Inputs - 2'!$E$396:$J$396) -> 0.025 | DH59: =LOOKUP(DH36,'Inputs - 2'!$E$395:$J$395,'Inputs - 2'!$E$396:$J$396) -> 0.025 | DI59: =LOOKUP(DI36,'Inputs - 2'!$E$395:$J$395,'Inputs - 2'!$E$396:$J$396) -> 0.025 | DJ59: =LOOKUP(DJ36,'Inputs - 2'!$E$395:$J$395,'Inputs - 2'!$E$396:$J$396) -> 0.025 | DK59: =LOOKUP(DK36,'Inputs - 2'!$E$395:$J$395,'Inputs - 2'!$E$396:$J$396) -> 0.025 | DL59: =LOOKUP(DL36,'Inputs - 2'!$E$395:$J$395,'Inputs - 2'!$E$396:$J$396) -> 0.025 | DM59: =LOOKUP(DM36,'Inputs - 2'!$E$395:$J$395,'Inputs - 2'!$E$396:$J$396) -> 0.025 | DN59: =LOOKUP(DN36,'Inputs - 2'!$E$395:$J$395,'Inputs - 2'!$E$396:$J$396) -> 0.025 | DO59: =LOOKUP(DO36,'Inputs - 2'!$E$395:$J$395,'Inputs - 2'!$E$396:$J$396) -> 0.025 | DP59: =LOOKUP(DP36,'Inputs - 2'!$E$395:$J$395,'Inputs - 2'!$E$396:$J$396) -> 0.025 | DQ59: =LOOKUP(DQ36,'Inputs - 2'!$E$395:$J$395,'Inputs - 2'!$E$396:$J$396) -> 0.025 | DR59: =LOOKUP(DR36,'Inputs - 2'!$E$395:$J$395,'Inputs - 2'!$E$396:$J$396) -> 0.025 | DS59: =LOOKUP(DS36,'Inputs - 2'!$E$395:$J$395,'Inputs - 2'!$E$396:$J$396) -> 0.025 | DT59: =LOOKUP(DT36,'Inputs - 2'!$E$395:$J$395,'Inputs - 2'!$E$396:$J$396) -> 0.025 | DU59: =LOOKUP(DU36,'Inputs - 2'!$E$395:$J$395,'Inputs - 2'!$E$396:$J$396) -> 0.025 | DV59: =LOOKUP(DV36,'Inputs - 2'!$E$395:$J$395,'Inputs - 2'!$E$396:$J$396) -> 0.025 | DW59: =LOOKUP(DW36,'Inputs - 2'!$E$395:$J$395,'Inputs - 2'!$E$396:$J$396) -> 0.025 | DX59: =LOOKUP(DX36,'Inputs - 2'!$E$395:$J$395,'Inputs - 2'!$E$396:$J$396) -> 0.025 | DY59: =LOOKUP(DY36,'Inputs - 2'!$E$395:$J$395,'Inputs - 2'!$E$396:$J$396) -> 0.025 | DZ59: =LOOKUP(DZ36,'Inputs - 2'!$E$395:$J$395,'Inputs - 2'!$E$396:$J$396) -> 0.025 | EA59: =LOOKUP(EA36,'Inputs - 2'!$E$395:$J$395,'Inputs - 2'!$E$396:$J$396) -> 0.025 | EB59: =LOOKUP(EB36,'Inputs - 2'!$E$395:$J$395,'Inputs - 2'!$E$396:$J$396) -> 0.025 | EC59: =LOOKUP(EC36,'Inputs - 2'!$E$395:$J$395,'Inputs - 2'!$E$396:$J$396) -> 0.025 | ED59: =LOOKUP(ED36,'Inputs - 2'!$E$395:$J$395,'Inputs - 2'!$E$396:$J$396) -> 0.025 | EE59: =LOOKUP(EE36,'Inputs - 2'!$E$395:$J$395,'Inputs - 2'!$E$396:$J$396) -> 0.025 | EF59: =LOOKUP(EF36,'Inputs - 2'!$E$395:$J$395,'Inputs - 2'!$E$396:$J$396) -> 0.025 | EG59: =LOOKUP(EG36,'Inputs - 2'!$E$395:$J$395,'Inputs - 2'!$E$396:$J$396) -> 0.025 | EH59: =LOOKUP(EH36,'Inputs - 2'!$E$395:$J$395,'Inputs - 2'!$E$396:$J$396) -> 0.025 | EI59: =LOOKUP(EI36,'Inputs - 2'!$E$395:$J$395,'Inputs - 2'!$E$396:$J$396) -> 0.025 | EJ59: =LOOKUP(EJ36,'Inputs - 2'!$E$395:$J$395,'Inputs - 2'!$E$396:$J$396) -> 0.025 | EK59: =LOOKUP(EK36,'Inputs - 2'!$E$395:$J$395,'Inputs - 2'!$E$396:$J$396) -> 0.025
C60: Inflation Rate | D60: % p.q | J60: =(1+J59)^(1/Qtrs_Yr)-1 -> 0.006192246326 | K60: 0.006192246326 | L60: 0.006192246326 | M60: 0.006192246326 | N60: 0.006192246326 | O60: 0.006192246326 | P60: 0.006192246326 | Q60: 0.006192246326 | R60: 0.006192246326 | S60: 0.006192246326 | T60: 0.006192246326 | U60: 0.006192246326 | V60: 0.006192246326 | W60: 0.006192246326 | X60: 0.006192246326 | Y60: 0.006192246326 | Z60: 0.006192246326 | AA60: 0.006192246326 | AB60: 0.006192246326 | AC60: 0.006192246326 | AD60: 0.006192246326 | AE60: 0.006192246326 | AF60: 0.006192246326 | AG60: 0.006192246326 | AH60: 0.006192246326 | AI60: 0.006192246326 | AJ60: 0.006192246326 | AK60: 0.006192246326 | AL60: 0.006192246326 | AM60: 0.006192246326 | AN60: 0.006192246326 | AO60: 0.006192246326 | AP60: =(1+AP59)^(1/Qtrs_Yr)-1 -> 0.006192246326 | AQ60: 0.006192246326 | AR60: 0.006192246326 | AS60: 0.006192246326 | AT60: 0.006192246326 | AU60: 0.006192246326 | AV60: 0.006192246326 | AW60: 0.006192246326 | AX60: 0.006192246326 | AY60: 0.006192246326 | AZ60: 0.006192246326 | BA60: 0.006192246326 | BB60: 0.006192246326 | BC60: 0.006192246326 | BD60: 0.006192246326 | BE60: 0.006192246326 | BF60: 0.006192246326 | BG60: 0.006192246326 | BH60: 0.006192246326 | BI60: 0.006192246326 | BJ60: 0.006192246326 | BK60: 0.006192246326 | BL60: 0.006192246326 | BM60: 0.006192246326 | BN60: =(1+BN59)^(1/Qtrs_Yr)-1 -> 0.006192246326 | BO60: 0.006192246326 | BP60: 0.006192246326 | BQ60: 0.006192246326 | BR60: 0.006192246326 | BS60: 0.006192246326 | BT60: 0.006192246326 | BU60: 0.006192246326 | BV60: 0.006192246326 | BW60: 0.006192246326 | BX60: 0.006192246326 | BY60: 0.006192246326 | BZ60: 0.006192246326 | CA60: 0.006192246326 | CB60: 0.006192246326 | CC60: 0.006192246326 | CD60: 0.006192246326 | CE60: 0.006192246326 | CF60: 0.006192246326 | CG60: 0.006192246326 | CH60: 0.006192246326 | CI60: 0.006192246326 | CJ60: 0.006192246326 | CK60: 0.006192246326 | CL60: 0.006192246326 | CM60: 0.006192246326 | CN60: 0.006192246326 | CO60: 0.006192246326 | CP60: 0.006192246326 | CQ60: 0.006192246326 | CR60: 0.006192246326 | CS60: 0.006192246326 | CT60: 0.006192246326 | CU60: 0.006192246326 | CV60: 0.006192246326 | CW60: 0.006192246326 | CX60: 0.006192246326 | CY60: 0.006192246326 | CZ60: 0.006192246326 | DA60: 0.006192246326 | DB60: 0.006192246326 | DC60: 0.006192246326 | DD60: 0.006192246326 | DE60: 0.006192246326 | DF60: 0.006192246326 | DG60: 0.006192246326 | DH60: 0.006192246326 | DI60: 0.006192246326 | DJ60: 0.006192246326 | DK60: 0.006192246326 | DL60: 0.006192246326 | DM60: 0.006192246326 | DN60: 0.006192246326 | DO60: 0.006192246326 | DP60: 0.006192246326 | DQ60: 0.006192246326 | DR60: 0.006192246326 | DS60: 0.006192246326 | DT60: 0.006192246326 | DU60: 0.006192246326 | DV60: 0.006192246326 | DW60: 0.006192246326 | DX60: 0.006192246326 | DY60: 0.006192246326 | DZ60: =(1+DZ59)^(1/Qtrs_Yr)-1 -> 0.006192246326 | EA60: 0.006192246326 | EB60: 0.006192246326 | EC60: 0.006192246326 | ED60: 0.006192246326 | EE60: 0.006192246326 | EF60: 0.006192246326 | EG60: 0.006192246326 | EH60: 0.006192246326 | EI60: 0.006192246326 | EJ60: 0.006192246326 | EK60: 0.006192246326
C61: Indexation | D61: Index | I61: 1 | J61: =I61*(1+J60) -> 1.006192246 | K61: =J61*(1+K60) -> 1.012422837 | L61: 1.018692008 | M61: 1.025 | N61: 1.031347052 | O61: 1.037733407 | P61: 1.044159308 | Q61: 1.050625 | R61: 1.057130729 | S61: 1.063676743 | T61: 1.070263291 | U61: 1.076890625 | V61: 1.083558997 | W61: 1.090268661 | X61: 1.097019873 | Y61: 1.103812891 | Z61: 1.110647972 | AA61: 1.117525378 | AB61: 1.12444537 | AC61: 1.131408213 | AD61: 1.138414171 | AE61: 1.145463512 | AF61: 1.152556504 | AG61: 1.159693418 | AH61: 1.166874526 | AI61: 1.1741001 | AJ61: 1.181370417 | AK61: 1.188685754 | AL61: 1.196046389 | AM61: 1.203452603 | AN61: 1.210904677 | AO61: 1.218402898 | AP61: 1.225947548 | AQ61: 1.233538918 | AR61: 1.241177294 | AS61: 1.24886297 | AT61: 1.256596237 | AU61: 1.264377391 | AV61: 1.272206727 | AW61: 1.280084544 | AX61: 1.288011143 | AY61: 1.295986825 | AZ61: 1.304011895 | BA61: 1.312086658 | BB61: 1.320211422 | BC61: 1.328386496 | BD61: 1.336612192 | BE61: 1.344888824 | BF61: 1.353216707 | BG61: 1.361596158 | BH61: 1.370027497 | BI61: 1.378511045 | BJ61: 1.387047125 | BK61: 1.395636062 | BL61: 1.404278185 | BM61: 1.412973821 | BN61: =BM61*(1+BN60) -> 1.421723303 | BO61: 1.430526964 | BP61: 1.439385139 | BQ61: 1.448298166 | BR61: 1.457266385 | BS61: 1.466290138 | BT61: 1.475369768 | BU61: 1.484505621 | BV61: 1.493698045 | BW61: 1.502947391 | BX61: 1.512254012 | BY61: 1.521618261 | BZ61: 1.531040496 | CA61: 1.540521076 | CB61: 1.550060362 | CC61: 1.559658718 | CD61: 1.569316509 | CE61: 1.579034103 | CF61: 1.588811871 | CG61: 1.598650186 | CH61: 1.608549421 | CI61: 1.618509956 | CJ61: 1.628532168 | CK61: 1.63861644 | CL61: 1.648763157 | CM61: 1.658972705 | CN61: 1.669245472 | CO61: 1.679581851 | CP61: 1.689982236 | CQ61: 1.700447022 | CR61: 1.710976609 | CS61: 1.721571398 | CT61: =CS61*(1+CT60) -> 1.732231792 | CU61: 1.742958198 | CV61: 1.753751024 | CW61: 1.764610683 | CX61: 1.775537587 | CY61: 1.786532153 | CZ61: 1.7975948 | DA61: 1.80872595 | DB61: 1.819926026 | DC61: 1.831195456 | DD61: 1.84253467 | DE61: 1.853944098 | DF61: 1.865424177 | DG61: 1.876975343 | DH61: 1.888598037 | DI61: 1.900292701 | DJ61: 1.912059781 | DK61: 1.923899726 | DL61: 1.935812987 | DM61: 1.947800018 | DN61: 1.959861276 | DO61: 1.97199722 | DP61: 1.984208312 | DQ61: 1.996495019 | DR61: 2.008857808 | DS61: 2.02129715 | DT61: 2.03381352 | DU61: 2.046407394 | DV61: 2.059079253 | DW61: 2.071829579 | DX61: 2.084658858 | DY61: 2.097567579 | DZ61: =DY61*(1+DZ60) -> 2.110556234 | EA61: 2.123625318 | EB61: 2.136775329 | EC61: 2.150006769 | ED61: 2.16332014 | EE61: 2.176715951 | EF61: 2.190194713 | EG61: 2.203756938 | EH61: 2.217403144 | EI61: 2.23113385 | EJ61: 2.24494958 | EK61: 2.258850861
C63: Other
C65: Forex | D65: AUD/USD | J65: =LOOKUP(J36,'Inputs - 2'!$E$379:$J$379,'Inputs - 2'!$E$380:$J$380) -> 0.75 | K65: =LOOKUP(K36,'Inputs - 2'!$E$379:$J$379,'Inputs - 2'!$E$380:$J$380) -> 0.75 | L65: =LOOKUP(L36,'Inputs - 2'!$E$379:$J$379,'Inputs - 2'!$E$380:$J$380) -> 0.75 | M65: =LOOKUP(M36,'Inputs - 2'!$E$379:$J$379,'Inputs - 2'!$E$380:$J$380) -> 0.75 | N65: =LOOKUP(N36,'Inputs - 2'!$E$379:$J$379,'Inputs - 2'!$E$380:$J$380) -> 0.75 | O65: =LOOKUP(O36,'Inputs - 2'!$E$379:$J$379,'Inputs - 2'!$E$380:$J$380) -> 0.75 | P65: =LOOKUP(P36,'Inputs - 2'!$E$379:$J$379,'Inputs - 2'!$E$380:$J$380) -> 0.75 | Q65: =LOOKUP(Q36,'Inputs - 2'!$E$379:$J$379,'Inputs - 2'!$E$380:$J$380) -> 0.75 | R65: =LOOKUP(R36,'Inputs - 2'!$E$379:$J$379,'Inputs - 2'!$E$380:$J$380) -> 0.75 | S65: =LOOKUP(S36,'Inputs - 2'!$E$379:$J$379,'Inputs - 2'!$E$380:$J$380) -> 0.75 | T65: =LOOKUP(T36,'Inputs - 2'!$E$379:$J$379,'Inputs - 2'!$E$380:$J$380) -> 0.75 | U65: =LOOKUP(U36,'Inputs - 2'!$E$379:$J$379,'Inputs - 2'!$E$380:$J$380) -> 0.75 | V65: =LOOKUP(V36,'Inputs - 2'!$E$379:$J$379,'Inputs - 2'!$E$380:$J$380) -> 0.75 | W65: =LOOKUP(W36,'Inputs - 2'!$E$379:$J$379,'Inputs - 2'!$E$380:$J$380) -> 0.75 | X65: =LOOKUP(X36,'Inputs - 2'!$E$379:$J$379,'Inputs - 2'!$E$380:$J$380) -> 0.75 | Y65: =LOOKUP(Y36,'Inputs - 2'!$E$379:$J$379,'Inputs - 2'!$E$380:$J$380) -> 0.75 | Z65: =LOOKUP(Z36,'Inputs - 2'!$E$379:$J$379,'Inputs - 2'!$E$380:$J$380) -> 0.75 | AA65: =LOOKUP(AA36,'Inputs - 2'!$E$379:$J$379,'Inputs - 2'!$E$380:$J$380) -> 0.75 | AB65: =LOOKUP(AB36,'Inputs - 2'!$E$379:$J$379,'Inputs - 2'!$E$380:$J$380) -> 0.75 | AC65: =LOOKUP(AC36,'Inputs - 2'!$E$379:$J$379,'Inputs - 2'!$E$380:$J$380) -> 0.75 | AD65: =LOOKUP(AD36,'Inputs - 2'!$E$379:$J$379,'Inputs - 2'!$E$380:$J$380) -> 0.75 | AE65: =LOOKUP(AE36,'Inputs - 2'!$E$379:$J$379,'Inputs - 2'!$E$380:$J$380) -> 0.75 | AF65: =LOOKUP(AF36,'Inputs - 2'!$E$379:$J$379,'Inputs - 2'!$E$380:$J$380) -> 0.75 | AG65: =LOOKUP(AG36,'Inputs - 2'!$E$379:$J$379,'Inputs - 2'!$E$380:$J$380) -> 0.75 | AH65: =LOOKUP(AH36,'Inputs - 2'!$E$379:$J$379,'Inputs - 2'!$E$380:$J$380) -> 0.75 | AI65: =LOOKUP(AI36,'Inputs - 2'!$E$379:$J$379,'Inputs - 2'!$E$380:$J$380) -> 0.75 | AJ65: =LOOKUP(AJ36,'Inputs - 2'!$E$379:$J$379,'Inputs - 2'!$E$380:$J$380) -> 0.75 | AK65: =LOOKUP(AK36,'Inputs - 2'!$E$379:$J$379,'Inputs - 2'!$E$380:$J$380) -> 0.75 | AL65: =LOOKUP(AL36,'Inputs - 2'!$E$379:$J$379,'Inputs - 2'!$E$380:$J$380) -> 0.75 | AM65: =LOOKUP(AM36,'Inputs - 2'!$E$379:$J$379,'Inputs - 2'!$E$380:$J$380) -> 0.75 | AN65: =LOOKUP(AN36,'Inputs - 2'!$E$379:$J$379,'Inputs - 2'!$E$380:$J$380) -> 0.75 | AO65: =LOOKUP(AO36,'Inputs - 2'!$E$379:$J$379,'Inputs - 2'!$E$380:$J$380) -> 0.75 | AP65: =LOOKUP(AP36,'Inputs - 2'!$E$379:$J$379,'Inputs - 2'!$E$380:$J$380) -> 0.75 | AQ65: =LOOKUP(AQ36,'Inputs - 2'!$E$379:$J$379,'Inputs - 2'!$E$380:$J$380) -> 0.75 | AR65: =LOOKUP(AR36,'Inputs - 2'!$E$379:$J$379,'Inputs - 2'!$E$380:$J$380) -> 0.75 | AS65: =LOOKUP(AS36,'Inputs - 2'!$E$379:$J$379,'Inputs - 2'!$E$380:$J$380) -> 0.75 | AT65: =LOOKUP(AT36,'Inputs - 2'!$E$379:$J$379,'Inputs - 2'!$E$380:$J$380) -> 0.75 | AU65: =LOOKUP(AU36,'Inputs - 2'!$E$379:$J$379,'Inputs - 2'!$E$380:$J$380) -> 0.75 | AV65: =LOOKUP(AV36,'Inputs - 2'!$E$379:$J$379,'Inputs - 2'!$E$380:$J$380) -> 0.75 | AW65: =LOOKUP(AW36,'Inputs - 2'!$E$379:$J$379,'Inputs - 2'!$E$380:$J$380) -> 0.75 | AX65: =LOOKUP(AX36,'Inputs - 2'!$E$379:$J$379,'Inputs - 2'!$E$380:$J$380) -> 0.75 | AY65: =LOOKUP(AY36,'Inputs - 2'!$E$379:$J$379,'Inputs - 2'!$E$380:$J$380) -> 0.75 | AZ65: =LOOKUP(AZ36,'Inputs - 2'!$E$379:$J$379,'Inputs - 2'!$E$380:$J$380) -> 0.75 | BA65: =LOOKUP(BA36,'Inputs - 2'!$E$379:$J$379,'Inputs - 2'!$E$380:$J$380) -> 0.75 | BB65: =LOOKUP(BB36,'Inputs - 2'!$E$379:$J$379,'Inputs - 2'!$E$380:$J$380) -> 0.75 | BC65: =LOOKUP(BC36,'Inputs - 2'!$E$379:$J$379,'Inputs - 2'!$E$380:$J$380) -> 0.75 | BD65: =LOOKUP(BD36,'Inputs - 2'!$E$379:$J$379,'Inputs - 2'!$E$380:$J$380) -> 0.75 | BE65: =LOOKUP(BE36,'Inputs - 2'!$E$379:$J$379,'Inputs - 2'!$E$380:$J$380) -> 0.75 | BF65: =LOOKUP(BF36,'Inputs - 2'!$E$379:$J$379,'Inputs - 2'!$E$380:$J$380) -> 0.75 | BG65: =LOOKUP(BG36,'Inputs - 2'!$E$379:$J$379,'Inputs - 2'!$E$380:$J$380) -> 0.75 | BH65: =LOOKUP(BH36,'Inputs - 2'!$E$379:$J$379,'Inputs - 2'!$E$380:$J$380) -> 0.75 | BI65: =LOOKUP(BI36,'Inputs - 2'!$E$379:$J$379,'Inputs - 2'!$E$380:$J$380) -> 0.75 | BJ65: =LOOKUP(BJ36,'Inputs - 2'!$E$379:$J$379,'Inputs - 2'!$E$380:$J$380) -> 0.75 | BK65: =LOOKUP(BK36,'Inputs - 2'!$E$379:$J$379,'Inputs - 2'!$E$380:$J$380) -> 0.75 | BL65: =LOOKUP(BL36,'Inputs - 2'!$E$379:$J$379,'Inputs - 2'!$E$380:$J$380) -> 0.75 | BM65: =LOOKUP(BM36,'Inputs - 2'!$E$379:$J$379,'Inputs - 2'!$E$380:$J$380) -> 0.75 | BN65: =LOOKUP(BN36,'Inputs - 2'!$E$379:$J$379,'Inputs - 2'!$E$380:$J$380) -> 0.75 | BO65: =LOOKUP(BO36,'Inputs - 2'!$E$379:$J$379,'Inputs - 2'!$E$380:$J$380) -> 0.75 | BP65: =LOOKUP(BP36,'Inputs - 2'!$E$379:$J$379,'Inputs - 2'!$E$380:$J$380) -> 0.75 | BQ65: =LOOKUP(BQ36,'Inputs - 2'!$E$379:$J$379,'Inputs - 2'!$E$380:$J$380) -> 0.75 | BR65: =LOOKUP(BR36,'Inputs - 2'!$E$379:$J$379,'Inputs - 2'!$E$380:$J$380) -> 0.75 | BS65: =LOOKUP(BS36,'Inputs - 2'!$E$379:$J$379,'Inputs - 2'!$E$380:$J$380) -> 0.75 | BT65: =LOOKUP(BT36,'Inputs - 2'!$E$379:$J$379,'Inputs - 2'!$E$380:$J$380) -> 0.75 | BU65: =LOOKUP(BU36,'Inputs - 2'!$E$379:$J$379,'Inputs - 2'!$E$380:$J$380) -> 0.75 | BV65: =LOOKUP(BV36,'Inputs - 2'!$E$379:$J$379,'Inputs - 2'!$E$380:$J$380) -> 0.75 | BW65: =LOOKUP(BW36,'Inputs - 2'!$E$379:$J$379,'Inputs - 2'!$E$380:$J$380) -> 0.75 | BX65: =LOOKUP(BX36,'Inputs - 2'!$E$379:$J$379,'Inputs - 2'!$E$380:$J$380) -> 0.75 | BY65: =LOOKUP(BY36,'Inputs - 2'!$E$379:$J$379,'Inputs - 2'!$E$380:$J$380) -> 0.75 | BZ65: =LOOKUP(BZ36,'Inputs - 2'!$E$379:$J$379,'Inputs - 2'!$E$380:$J$380) -> 0.75 | CA65: =LOOKUP(CA36,'Inputs - 2'!$E$379:$J$379,'Inputs - 2'!$E$380:$J$380) -> 0.75 | CB65: =LOOKUP(CB36,'Inputs - 2'!$E$379:$J$379,'Inputs - 2'!$E$380:$J$380) -> 0.75 | CC65: =LOOKUP(CC36,'Inputs - 2'!$E$379:$J$379,'Inputs - 2'!$E$380:$J$380) -> 0.75 | CD65: =LOOKUP(CD36,'Inputs - 2'!$E$379:$J$379,'Inputs - 2'!$E$380:$J$380) -> 0.75 | CE65: =LOOKUP(CE36,'Inputs - 2'!$E$379:$J$379,'Inputs - 2'!$E$380:$J$380) -> 0.75 | CF65: =LOOKUP(CF36,'Inputs - 2'!$E$379:$J$379,'Inputs - 2'!$E$380:$J$380) -> 0.75 | CG65: =LOOKUP(CG36,'Inputs - 2'!$E$379:$J$379,'Inputs - 2'!$E$380:$J$380) -> 0.75 | CH65: =LOOKUP(CH36,'Inputs - 2'!$E$379:$J$379,'Inputs - 2'!$E$380:$J$380) -> 0.75 | CI65: =LOOKUP(CI36,'Inputs - 2'!$E$379:$J$379,'Inputs - 2'!$E$380:$J$380) -> 0.75 | CJ65: =LOOKUP(CJ36,'Inputs - 2'!$E$379:$J$379,'Inputs - 2'!$E$380:$J$380) -> 0.75 | CK65: =LOOKUP(CK36,'Inputs - 2'!$E$379:$J$379,'Inputs - 2'!$E$380:$J$380) -> 0.75 | CL65: =LOOKUP(CL36,'Inputs - 2'!$E$379:$J$379,'Inputs - 2'!$E$380:$J$380) -> 0.75 | CM65: =LOOKUP(CM36,'Inputs - 2'!$E$379:$J$379,'Inputs - 2'!$E$380:$J$380) -> 0.75 | CN65: =LOOKUP(CN36,'Inputs - 2'!$E$379:$J$379,'Inputs - 2'!$E$380:$J$380) -> 0.75 | CO65: =LOOKUP(CO36,'Inputs - 2'!$E$379:$J$379,'Inputs - 2'!$E$380:$J$380) -> 0.75 | CP65: =LOOKUP(CP36,'Inputs - 2'!$E$379:$J$379,'Inputs - 2'!$E$380:$J$380) -> 0.75 | CQ65: =LOOKUP(CQ36,'Inputs - 2'!$E$379:$J$379,'Inputs - 2'!$E$380:$J$380) -> 0.75 | CR65: =LOOKUP(CR36,'Inputs - 2'!$E$379:$J$379,'Inputs - 2'!$E$380:$J$380) -> 0.75 | CS65: =LOOKUP(CS36,'Inputs - 2'!$E$379:$J$379,'Inputs - 2'!$E$380:$J$380) -> 0.75 | CT65: =LOOKUP(CT36,'Inputs - 2'!$E$379:$J$379,'Inputs - 2'!$E$380:$J$380) -> 0.75 | CU65: =LOOKUP(CU36,'Inputs - 2'!$E$379:$J$379,'Inputs - 2'!$E$380:$J$380) -> 0.75 | CV65: =LOOKUP(CV36,'Inputs - 2'!$E$379:$J$379,'Inputs - 2'!$E$380:$J$380) -> 0.75 | CW65: =LOOKUP(CW36,'Inputs - 2'!$E$379:$J$379,'Inputs - 2'!$E$380:$J$380) -> 0.75 | CX65: =LOOKUP(CX36,'Inputs - 2'!$E$379:$J$379,'Inputs - 2'!$E$380:$J$380) -> 0.75 | CY65: =LOOKUP(CY36,'Inputs - 2'!$E$379:$J$379,'Inputs - 2'!$E$380:$J$380) -> 0.75 | CZ65: =LOOKUP(CZ36,'Inputs - 2'!$E$379:$J$379,'Inputs - 2'!$E$380:$J$380) -> 0.75 | DA65: =LOOKUP(DA36,'Inputs - 2'!$E$379:$J$379,'Inputs - 2'!$E$380:$J$380) -> 0.75 | DB65: =LOOKUP(DB36,'Inputs - 2'!$E$379:$J$379,'Inputs - 2'!$E$380:$J$380) -> 0.75 | DC65: =LOOKUP(DC36,'Inputs - 2'!$E$379:$J$379,'Inputs - 2'!$E$380:$J$380) -> 0.75 | DD65: =LOOKUP(DD36,'Inputs - 2'!$E$379:$J$379,'Inputs - 2'!$E$380:$J$380) -> 0.75 | DE65: =LOOKUP(DE36,'Inputs - 2'!$E$379:$J$379,'Inputs - 2'!$E$380:$J$380) -> 0.75 | DF65: =LOOKUP(DF36,'Inputs - 2'!$E$379:$J$379,'Inputs - 2'!$E$380:$J$380) -> 0.75 | DG65: =LOOKUP(DG36,'Inputs - 2'!$E$379:$J$379,'Inputs - 2'!$E$380:$J$380) -> 0.75 | DH65: =LOOKUP(DH36,'Inputs - 2'!$E$379:$J$379,'Inputs - 2'!$E$380:$J$380) -> 0.75 | DI65: =LOOKUP(DI36,'Inputs - 2'!$E$379:$J$379,'Inputs - 2'!$E$380:$J$380) -> 0.75 | DJ65: =LOOKUP(DJ36,'Inputs - 2'!$E$379:$J$379,'Inputs - 2'!$E$380:$J$380) -> 0.75 | DK65: =LOOKUP(DK36,'Inputs - 2'!$E$379:$J$379,'Inputs - 2'!$E$380:$J$380) -> 0.75 | DL65: =LOOKUP(DL36,'Inputs - 2'!$E$379:$J$379,'Inputs - 2'!$E$380:$J$380) -> 0.75 | DM65: =LOOKUP(DM36,'Inputs - 2'!$E$379:$J$379,'Inputs - 2'!$E$380:$J$380) -> 0.75 | DN65: =LOOKUP(DN36,'Inputs - 2'!$E$379:$J$379,'Inputs - 2'!$E$380:$J$380) -> 0.75 | DO65: =LOOKUP(DO36,'Inputs - 2'!$E$379:$J$379,'Inputs - 2'!$E$380:$J$380) -> 0.75 | DP65: =LOOKUP(DP36,'Inputs - 2'!$E$379:$J$379,'Inputs - 2'!$E$380:$J$380) -> 0.75 | DQ65: =LOOKUP(DQ36,'Inputs - 2'!$E$379:$J$379,'Inputs - 2'!$E$380:$J$380) -> 0.75 | DR65: =LOOKUP(DR36,'Inputs - 2'!$E$379:$J$379,'Inputs - 2'!$E$380:$J$380) -> 0.75 | DS65: =LOOKUP(DS36,'Inputs - 2'!$E$379:$J$379,'Inputs - 2'!$E$380:$J$380) -> 0.75 | DT65: =LOOKUP(DT36,'Inputs - 2'!$E$379:$J$379,'Inputs - 2'!$E$380:$J$380) -> 0.75 | DU65: =LOOKUP(DU36,'Inputs - 2'!$E$379:$J$379,'Inputs - 2'!$E$380:$J$380) -> 0.75 | DV65: =LOOKUP(DV36,'Inputs - 2'!$E$379:$J$379,'Inputs - 2'!$E$380:$J$380) -> 0.75 | DW65: =LOOKUP(DW36,'Inputs - 2'!$E$379:$J$379,'Inputs - 2'!$E$380:$J$380) -> 0.75 | DX65: =LOOKUP(DX36,'Inputs - 2'!$E$379:$J$379,'Inputs - 2'!$E$380:$J$380) -> 0.75 | DY65: =LOOKUP(DY36,'Inputs - 2'!$E$379:$J$379,'Inputs - 2'!$E$380:$J$380) -> 0.75 | DZ65: =LOOKUP(DZ36,'Inputs - 2'!$E$379:$J$379,'Inputs - 2'!$E$380:$J$380) -> 0.75 | EA65: =LOOKUP(EA36,'Inputs - 2'!$E$379:$J$379,'Inputs - 2'!$E$380:$J$380) -> 0.75 | EB65: =LOOKUP(EB36,'Inputs - 2'!$E$379:$J$379,'Inputs - 2'!$E$380:$J$380) -> 0.75 | EC65: =LOOKUP(EC36,'Inputs - 2'!$E$379:$J$379,'Inputs - 2'!$E$380:$J$380) -> 0.75 | ED65: =LOOKUP(ED36,'Inputs - 2'!$E$379:$J$379,'Inputs - 2'!$E$380:$J$380) -> 0.75 | EE65: =LOOKUP(EE36,'Inputs - 2'!$E$379:$J$379,'Inputs - 2'!$E$380:$J$380) -> 0.75 | EF65: =LOOKUP(EF36,'Inputs - 2'!$E$379:$J$379,'Inputs - 2'!$E$380:$J$380) -> 0.75 | EG65: =LOOKUP(EG36,'Inputs - 2'!$E$379:$J$379,'Inputs - 2'!$E$380:$J$380) -> 0.75 | EH65: =LOOKUP(EH36,'Inputs - 2'!$E$379:$J$379,'Inputs - 2'!$E$380:$J$380) -> 0.75 | EI65: =LOOKUP(EI36,'Inputs - 2'!$E$379:$J$379,'Inputs - 2'!$E$380:$J$380) -> 0.75 | EJ65: =LOOKUP(EJ36,'Inputs - 2'!$E$379:$J$379,'Inputs - 2'!$E$380:$J$380) -> 0.75 | EK65: =LOOKUP(EK36,'Inputs - 2'!$E$379:$J$379,'Inputs - 2'!$E$380:$J$380) -> 0.75
C66: Forex | D66: AUD/NAD | J66: =LOOKUP(J36,'Inputs - 2'!$E$379:$J$379,'Inputs - 2'!$E$381:$J$381) -> 0.11 | K66: =LOOKUP(K36,'Inputs - 2'!$E$379:$J$379,'Inputs - 2'!$E$381:$J$381) -> 0.11 | L66: =LOOKUP(L36,'Inputs - 2'!$E$379:$J$379,'Inputs - 2'!$E$381:$J$381) -> 0.1 | M66: =LOOKUP(M36,'Inputs - 2'!$E$379:$J$379,'Inputs - 2'!$E$381:$J$381) -> 0.1 | N66: =LOOKUP(N36,'Inputs - 2'!$E$379:$J$379,'Inputs - 2'!$E$381:$J$381) -> 0.1 | O66: =LOOKUP(O36,'Inputs - 2'!$E$379:$J$379,'Inputs - 2'!$E$381:$J$381) -> 0.1 | P66: =LOOKUP(P36,'Inputs - 2'!$E$379:$J$379,'Inputs - 2'!$E$381:$J$381) -> 0.095 | Q66: =LOOKUP(Q36,'Inputs - 2'!$E$379:$J$379,'Inputs - 2'!$E$381:$J$381) -> 0.095 | R66: =LOOKUP(R36,'Inputs - 2'!$E$379:$J$379,'Inputs - 2'!$E$381:$J$381) -> 0.095 | S66: =LOOKUP(S36,'Inputs - 2'!$E$379:$J$379,'Inputs - 2'!$E$381:$J$381) -> 0.095 | T66: =LOOKUP(T36,'Inputs - 2'!$E$379:$J$379,'Inputs - 2'!$E$381:$J$381) -> 0.09 | U66: =LOOKUP(U36,'Inputs - 2'!$E$379:$J$379,'Inputs - 2'!$E$381:$J$381) -> 0.09 | V66: =LOOKUP(V36,'Inputs - 2'!$E$379:$J$379,'Inputs - 2'!$E$381:$J$381) -> 0.09 | W66: =LOOKUP(W36,'Inputs - 2'!$E$379:$J$379,'Inputs - 2'!$E$381:$J$381) -> 0.09 | X66: =LOOKUP(X36,'Inputs - 2'!$E$379:$J$379,'Inputs - 2'!$E$381:$J$381) -> 0.09 | Y66: =LOOKUP(Y36,'Inputs - 2'!$E$379:$J$379,'Inputs - 2'!$E$381:$J$381) -> 0.09 | Z66: =LOOKUP(Z36,'Inputs - 2'!$E$379:$J$379,'Inputs - 2'!$E$381:$J$381) -> 0.09 | AA66: =LOOKUP(AA36,'Inputs - 2'!$E$379:$J$379,'Inputs - 2'!$E$381:$J$381) -> 0.09 | AB66: =LOOKUP(AB36,'Inputs - 2'!$E$379:$J$379,'Inputs - 2'!$E$381:$J$381) -> 0.09 | AC66: =LOOKUP(AC36,'Inputs - 2'!$E$379:$J$379,'Inputs - 2'!$E$381:$J$381) -> 0.09 | AD66: =LOOKUP(AD36,'Inputs - 2'!$E$379:$J$379,'Inputs - 2'!$E$381:$J$381) -> 0.09 | AE66: =LOOKUP(AE36,'Inputs - 2'!$E$379:$J$379,'Inputs - 2'!$E$381:$J$381) -> 0.09 | AF66: =LOOKUP(AF36,'Inputs - 2'!$E$379:$J$379,'Inputs - 2'!$E$381:$J$381) -> 0.09 | AG66: =LOOKUP(AG36,'Inputs - 2'!$E$379:$J$379,'Inputs - 2'!$E$381:$J$381) -> 0.09 | AH66: =LOOKUP(AH36,'Inputs - 2'!$E$379:$J$379,'Inputs - 2'!$E$381:$J$381) -> 0.09 | AI66: =LOOKUP(AI36,'Inputs - 2'!$E$379:$J$379,'Inputs - 2'!$E$381:$J$381) -> 0.09 | AJ66: =LOOKUP(AJ36,'Inputs - 2'!$E$379:$J$379,'Inputs - 2'!$E$381:$J$381) -> 0.09 | AK66: =LOOKUP(AK36,'Inputs - 2'!$E$379:$J$379,'Inputs - 2'!$E$381:$J$381) -> 0.09 | AL66: =LOOKUP(AL36,'Inputs - 2'!$E$379:$J$379,'Inputs - 2'!$E$381:$J$381) -> 0.09 | AM66: =LOOKUP(AM36,'Inputs - 2'!$E$379:$J$379,'Inputs - 2'!$E$381:$J$381) -> 0.09 | AN66: =LOOKUP(AN36,'Inputs - 2'!$E$379:$J$379,'Inputs - 2'!$E$381:$J$381) -> 0.09 | AO66: =LOOKUP(AO36,'Inputs - 2'!$E$379:$J$379,'Inputs - 2'!$E$381:$J$381) -> 0.09 | AP66: =LOOKUP(AP36,'Inputs - 2'!$E$379:$J$379,'Inputs - 2'!$E$381:$J$381) -> 0.09 | AQ66: =LOOKUP(AQ36,'Inputs - 2'!$E$379:$J$379,'Inputs - 2'!$E$381:$J$381) -> 0.09 | AR66: =LOOKUP(AR36,'Inputs - 2'!$E$379:$J$379,'Inputs - 2'!$E$381:$J$381) -> 0.09 | AS66: =LOOKUP(AS36,'Inputs - 2'!$E$379:$J$379,'Inputs - 2'!$E$381:$J$381) -> 0.09 | AT66: =LOOKUP(AT36,'Inputs - 2'!$E$379:$J$379,'Inputs - 2'!$E$381:$J$381) -> 0.09 | AU66: =LOOKUP(AU36,'Inputs - 2'!$E$379:$J$379,'Inputs - 2'!$E$381:$J$381) -> 0.09 | AV66: =LOOKUP(AV36,'Inputs - 2'!$E$379:$J$379,'Inputs - 2'!$E$381:$J$381) -> 0.09 | AW66: =LOOKUP(AW36,'Inputs - 2'!$E$379:$J$379,'Inputs - 2'!$E$381:$J$381) -> 0.09 | AX66: =LOOKUP(AX36,'Inputs - 2'!$E$379:$J$379,'Inputs - 2'!$E$381:$J$381) -> 0.09 | AY66: =LOOKUP(AY36,'Inputs - 2'!$E$379:$J$379,'Inputs - 2'!$E$381:$J$381) -> 0.09 | AZ66: =LOOKUP(AZ36,'Inputs - 2'!$E$379:$J$379,'Inputs - 2'!$E$381:$J$381) -> 0.09 | BA66: =LOOKUP(BA36,'Inputs - 2'!$E$379:$J$379,'Inputs - 2'!$E$381:$J$381) -> 0.09 | BB66: =LOOKUP(BB36,'Inputs - 2'!$E$379:$J$379,'Inputs - 2'!$E$381:$J$381) -> 0.09 | BC66: =LOOKUP(BC36,'Inputs - 2'!$E$379:$J$379,'Inputs - 2'!$E$381:$J$381) -> 0.09 | BD66: =LOOKUP(BD36,'Inputs - 2'!$E$379:$J$379,'Inputs - 2'!$E$381:$J$381) -> 0.09 | BE66: =LOOKUP(BE36,'Inputs - 2'!$E$379:$J$379,'Inputs - 2'!$E$381:$J$381) -> 0.09 | BF66: =LOOKUP(BF36,'Inputs - 2'!$E$379:$J$379,'Inputs - 2'!$E$381:$J$381) -> 0.09 | BG66: =LOOKUP(BG36,'Inputs - 2'!$E$379:$J$379,'Inputs - 2'!$E$381:$J$381) -> 0.09 | BH66: =LOOKUP(BH36,'Inputs - 2'!$E$379:$J$379,'Inputs - 2'!$E$381:$J$381) -> 0.09 | BI66: =LOOKUP(BI36,'Inputs - 2'!$E$379:$J$379,'Inputs - 2'!$E$381:$J$381) -> 0.09 | BJ66: =LOOKUP(BJ36,'Inputs - 2'!$E$379:$J$379,'Inputs - 2'!$E$381:$J$381) -> 0.09 | BK66: =LOOKUP(BK36,'Inputs - 2'!$E$379:$J$379,'Inputs - 2'!$E$381:$J$381) -> 0.09 | BL66: =LOOKUP(BL36,'Inputs - 2'!$E$379:$J$379,'Inputs - 2'!$E$381:$J$381) -> 0.09 | BM66: =LOOKUP(BM36,'Inputs - 2'!$E$379:$J$379,'Inputs - 2'!$E$381:$J$381) -> 0.09 | BN66: =LOOKUP(BN36,'Inputs - 2'!$E$379:$J$379,'Inputs - 2'!$E$381:$J$381) -> 0.09 | BO66: =LOOKUP(BO36,'Inputs - 2'!$E$379:$J$379,'Inputs - 2'!$E$381:$J$381) -> 0.09 | BP66: =LOOKUP(BP36,'Inputs - 2'!$E$379:$J$379,'Inputs - 2'!$E$381:$J$381) -> 0.09 | BQ66: =LOOKUP(BQ36,'Inputs - 2'!$E$379:$J$379,'Inputs - 2'!$E$381:$J$381) -> 0.09 | BR66: =LOOKUP(BR36,'Inputs - 2'!$E$379:$J$379,'Inputs - 2'!$E$381:$J$381) -> 0.09 | BS66: =LOOKUP(BS36,'Inputs - 2'!$E$379:$J$379,'Inputs - 2'!$E$381:$J$381) -> 0.09 | BT66: =LOOKUP(BT36,'Inputs - 2'!$E$379:$J$379,'Inputs - 2'!$E$381:$J$381) -> 0.09 | BU66: =LOOKUP(BU36,'Inputs - 2'!$E$379:$J$379,'Inputs - 2'!$E$381:$J$381) -> 0.09 | BV66: =LOOKUP(BV36,'Inputs - 2'!$E$379:$J$379,'Inputs - 2'!$E$381:$J$381) -> 0.09 | BW66: =LOOKUP(BW36,'Inputs - 2'!$E$379:$J$379,'Inputs - 2'!$E$381:$J$381) -> 0.09 | BX66: =LOOKUP(BX36,'Inputs - 2'!$E$379:$J$379,'Inputs - 2'!$E$381:$J$381) -> 0.09 | BY66: =LOOKUP(BY36,'Inputs - 2'!$E$379:$J$379,'Inputs - 2'!$E$381:$J$381) -> 0.09 | BZ66: =LOOKUP(BZ36,'Inputs - 2'!$E$379:$J$379,'Inputs - 2'!$E$381:$J$381) -> 0.09 | CA66: =LOOKUP(CA36,'Inputs - 2'!$E$379:$J$379,'Inputs - 2'!$E$381:$J$381) -> 0.09 | CB66: =LOOKUP(CB36,'Inputs - 2'!$E$379:$J$379,'Inputs - 2'!$E$381:$J$381) -> 0.09 | CC66: =LOOKUP(CC36,'Inputs - 2'!$E$379:$J$379,'Inputs - 2'!$E$381:$J$381) -> 0.09 | CD66: =LOOKUP(CD36,'Inputs - 2'!$E$379:$J$379,'Inputs - 2'!$E$381:$J$381) -> 0.09 | CE66: =LOOKUP(CE36,'Inputs - 2'!$E$379:$J$379,'Inputs - 2'!$E$381:$J$381) -> 0.09 | CF66: =LOOKUP(CF36,'Inputs - 2'!$E$379:$J$379,'Inputs - 2'!$E$381:$J$381) -> 0.09 | CG66: =LOOKUP(CG36,'Inputs - 2'!$E$379:$J$379,'Inputs - 2'!$E$381:$J$381) -> 0.09 | CH66: =LOOKUP(CH36,'Inputs - 2'!$E$379:$J$379,'Inputs - 2'!$E$381:$J$381) -> 0.09 | CI66: =LOOKUP(CI36,'Inputs - 2'!$E$379:$J$379,'Inputs - 2'!$E$381:$J$381) -> 0.09 | CJ66: =LOOKUP(CJ36,'Inputs - 2'!$E$379:$J$379,'Inputs - 2'!$E$381:$J$381) -> 0.09 | CK66: =LOOKUP(CK36,'Inputs - 2'!$E$379:$J$379,'Inputs - 2'!$E$381:$J$381) -> 0.09 | CL66: =LOOKUP(CL36,'Inputs - 2'!$E$379:$J$379,'Inputs - 2'!$E$381:$J$381) -> 0.09 | CM66: =LOOKUP(CM36,'Inputs - 2'!$E$379:$J$379,'Inputs - 2'!$E$381:$J$381) -> 0.09 | CN66: =LOOKUP(CN36,'Inputs - 2'!$E$379:$J$379,'Inputs - 2'!$E$381:$J$381) -> 0.09 | CO66: =LOOKUP(CO36,'Inputs - 2'!$E$379:$J$379,'Inputs - 2'!$E$381:$J$381) -> 0.09 | CP66: =LOOKUP(CP36,'Inputs - 2'!$E$379:$J$379,'Inputs - 2'!$E$381:$J$381) -> 0.09 | CQ66: =LOOKUP(CQ36,'Inputs - 2'!$E$379:$J$379,'Inputs - 2'!$E$381:$J$381) -> 0.09 | CR66: =LOOKUP(CR36,'Inputs - 2'!$E$379:$J$379,'Inputs - 2'!$E$381:$J$381) -> 0.09 | CS66: =LOOKUP(CS36,'Inputs - 2'!$E$379:$J$379,'Inputs - 2'!$E$381:$J$381) -> 0.09 | CT66: =LOOKUP(CT36,'Inputs - 2'!$E$379:$J$379,'Inputs - 2'!$E$381:$J$381) -> 0.09 | CU66: =LOOKUP(CU36,'Inputs - 2'!$E$379:$J$379,'Inputs - 2'!$E$381:$J$381) -> 0.09 | CV66: =LOOKUP(CV36,'Inputs - 2'!$E$379:$J$379,'Inputs - 2'!$E$381:$J$381) -> 0.09 | CW66: =LOOKUP(CW36,'Inputs - 2'!$E$379:$J$379,'Inputs - 2'!$E$381:$J$381) -> 0.09 | CX66: =LOOKUP(CX36,'Inputs - 2'!$E$379:$J$379,'Inputs - 2'!$E$381:$J$381) -> 0.09 | CY66: =LOOKUP(CY36,'Inputs - 2'!$E$379:$J$379,'Inputs - 2'!$E$381:$J$381) -> 0.09 | CZ66: =LOOKUP(CZ36,'Inputs - 2'!$E$379:$J$379,'Inputs - 2'!$E$381:$J$381) -> 0.09 | DA66: =LOOKUP(DA36,'Inputs - 2'!$E$379:$J$379,'Inputs - 2'!$E$381:$J$381) -> 0.09 | DB66: =LOOKUP(DB36,'Inputs - 2'!$E$379:$J$379,'Inputs - 2'!$E$381:$J$381) -> 0.09 | DC66: =LOOKUP(DC36,'Inputs - 2'!$E$379:$J$379,'Inputs - 2'!$E$381:$J$381) -> 0.09 | DD66: =LOOKUP(DD36,'Inputs - 2'!$E$379:$J$379,'Inputs - 2'!$E$381:$J$381) -> 0.09 | DE66: =LOOKUP(DE36,'Inputs - 2'!$E$379:$J$379,'Inputs - 2'!$E$381:$J$381) -> 0.09 | DF66: =LOOKUP(DF36,'Inputs - 2'!$E$379:$J$379,'Inputs - 2'!$E$381:$J$381) -> 0.09 | DG66: =LOOKUP(DG36,'Inputs - 2'!$E$379:$J$379,'Inputs - 2'!$E$381:$J$381) -> 0.09 | DH66: =LOOKUP(DH36,'Inputs - 2'!$E$379:$J$379,'Inputs - 2'!$E$381:$J$381) -> 0.09 | DI66: =LOOKUP(DI36,'Inputs - 2'!$E$379:$J$379,'Inputs - 2'!$E$381:$J$381) -> 0.09 | DJ66: =LOOKUP(DJ36,'Inputs - 2'!$E$379:$J$379,'Inputs - 2'!$E$381:$J$381) -> 0.09 | DK66: =LOOKUP(DK36,'Inputs - 2'!$E$379:$J$379,'Inputs - 2'!$E$381:$J$381) -> 0.09 | DL66: =LOOKUP(DL36,'Inputs - 2'!$E$379:$J$379,'Inputs - 2'!$E$381:$J$381) -> 0.09 | DM66: =LOOKUP(DM36,'Inputs - 2'!$E$379:$J$379,'Inputs - 2'!$E$381:$J$381) -> 0.09 | DN66: =LOOKUP(DN36,'Inputs - 2'!$E$379:$J$379,'Inputs - 2'!$E$381:$J$381) -> 0.09 | DO66: =LOOKUP(DO36,'Inputs - 2'!$E$379:$J$379,'Inputs - 2'!$E$381:$J$381) -> 0.09 | DP66: =LOOKUP(DP36,'Inputs - 2'!$E$379:$J$379,'Inputs - 2'!$E$381:$J$381) -> 0.09 | DQ66: =LOOKUP(DQ36,'Inputs - 2'!$E$379:$J$379,'Inputs - 2'!$E$381:$J$381) -> 0.09 | DR66: =LOOKUP(DR36,'Inputs - 2'!$E$379:$J$379,'Inputs - 2'!$E$381:$J$381) -> 0.09 | DS66: =LOOKUP(DS36,'Inputs - 2'!$E$379:$J$379,'Inputs - 2'!$E$381:$J$381) -> 0.09 | DT66: =LOOKUP(DT36,'Inputs - 2'!$E$379:$J$379,'Inputs - 2'!$E$381:$J$381) -> 0.09 | DU66: =LOOKUP(DU36,'Inputs - 2'!$E$379:$J$379,'Inputs - 2'!$E$381:$J$381) -> 0.09 | DV66: =LOOKUP(DV36,'Inputs - 2'!$E$379:$J$379,'Inputs - 2'!$E$381:$J$381) -> 0.09 | DW66: =LOOKUP(DW36,'Inputs - 2'!$E$379:$J$379,'Inputs - 2'!$E$381:$J$381) -> 0.09 | DX66: =LOOKUP(DX36,'Inputs - 2'!$E$379:$J$379,'Inputs - 2'!$E$381:$J$381) -> 0.09 | DY66: =LOOKUP(DY36,'Inputs - 2'!$E$379:$J$379,'Inputs - 2'!$E$381:$J$381) -> 0.09 | DZ66: =LOOKUP(DZ36,'Inputs - 2'!$E$379:$J$379,'Inputs - 2'!$E$381:$J$381) -> 0.09 | EA66: =LOOKUP(EA36,'Inputs - 2'!$E$379:$J$379,'Inputs - 2'!$E$381:$J$381) -> 0.09 | EB66: =LOOKUP(EB36,'Inputs - 2'!$E$379:$J$379,'Inputs - 2'!$E$381:$J$381) -> 0.09 | EC66: =LOOKUP(EC36,'Inputs - 2'!$E$379:$J$379,'Inputs - 2'!$E$381:$J$381) -> 0.09 | ED66: =LOOKUP(ED36,'Inputs - 2'!$E$379:$J$379,'Inputs - 2'!$E$381:$J$381) -> 0.09 | EE66: =LOOKUP(EE36,'Inputs - 2'!$E$379:$J$379,'Inputs - 2'!$E$381:$J$381) -> 0.09 | EF66: =LOOKUP(EF36,'Inputs - 2'!$E$379:$J$379,'Inputs - 2'!$E$381:$J$381) -> 0.09 | EG66: =LOOKUP(EG36,'Inputs - 2'!$E$379:$J$379,'Inputs - 2'!$E$381:$J$381) -> 0.09 | EH66: =LOOKUP(EH36,'Inputs - 2'!$E$379:$J$379,'Inputs - 2'!$E$381:$J$381) -> 0.09 | EI66: =LOOKUP(EI36,'Inputs - 2'!$E$379:$J$379,'Inputs - 2'!$E$381:$J$381) -> 0.09 | EJ66: =LOOKUP(EJ36,'Inputs - 2'!$E$379:$J$379,'Inputs - 2'!$E$381:$J$381) -> 0.09 | EK66: =LOOKUP(EK36,'Inputs - 2'!$E$379:$J$379,'Inputs - 2'!$E$381:$J$381) -> 0.09
C67: Forex | D67: AUD/MWK | J67: =LOOKUP(J36,'Inputs - 2'!$E$379:$J$379,'Inputs - 2'!$E$382:$J$382) -> 0.0018 | K67: =LOOKUP(K36,'Inputs - 2'!$E$379:$J$379,'Inputs - 2'!$E$382:$J$382) -> 0.0018 | L67: =LOOKUP(L36,'Inputs - 2'!$E$379:$J$379,'Inputs - 2'!$E$382:$J$382) -> 0.002 | M67: =LOOKUP(M36,'Inputs - 2'!$E$379:$J$379,'Inputs - 2'!$E$382:$J$382) -> 0.002 | N67: =LOOKUP(N36,'Inputs - 2'!$E$379:$J$379,'Inputs - 2'!$E$382:$J$382) -> 0.002 | O67: =LOOKUP(O36,'Inputs - 2'!$E$379:$J$379,'Inputs - 2'!$E$382:$J$382) -> 0.002 | P67: =LOOKUP(P36,'Inputs - 2'!$E$379:$J$379,'Inputs - 2'!$E$382:$J$382) -> 0.002 | Q67: =LOOKUP(Q36,'Inputs - 2'!$E$379:$J$379,'Inputs - 2'!$E$382:$J$382) -> 0.002 | R67: =LOOKUP(R36,'Inputs - 2'!$E$379:$J$379,'Inputs - 2'!$E$382:$J$382) -> 0.002 | S67: =LOOKUP(S36,'Inputs - 2'!$E$379:$J$379,'Inputs - 2'!$E$382:$J$382) -> 0.002 | T67: =LOOKUP(T36,'Inputs - 2'!$E$379:$J$379,'Inputs - 2'!$E$382:$J$382) -> 0.002 | U67: =LOOKUP(U36,'Inputs - 2'!$E$379:$J$379,'Inputs - 2'!$E$382:$J$382) -> 0.002 | V67: =LOOKUP(V36,'Inputs - 2'!$E$379:$J$379,'Inputs - 2'!$E$382:$J$382) -> 0.002 | W67: =LOOKUP(W36,'Inputs - 2'!$E$379:$J$379,'Inputs - 2'!$E$382:$J$382) -> 0.002 | X67: =LOOKUP(X36,'Inputs - 2'!$E$379:$J$379,'Inputs - 2'!$E$382:$J$382) -> 0.002 | Y67: =LOOKUP(Y36,'Inputs - 2'!$E$379:$J$379,'Inputs - 2'!$E$382:$J$382) -> 0.002 | Z67: =LOOKUP(Z36,'Inputs - 2'!$E$379:$J$379,'Inputs - 2'!$E$382:$J$382) -> 0.002 | AA67: =LOOKUP(AA36,'Inputs - 2'!$E$379:$J$379,'Inputs - 2'!$E$382:$J$382) -> 0.002 | AB67: =LOOKUP(AB36,'Inputs - 2'!$E$379:$J$379,'Inputs - 2'!$E$382:$J$382) -> 0.002 | AC67: =LOOKUP(AC36,'Inputs - 2'!$E$379:$J$379,'Inputs - 2'!$E$382:$J$382) -> 0.002 | AD67: =LOOKUP(AD36,'Inputs - 2'!$E$379:$J$379,'Inputs - 2'!$E$382:$J$382) -> 0.002 | AE67: =LOOKUP(AE36,'Inputs - 2'!$E$379:$J$379,'Inputs - 2'!$E$382:$J$382) -> 0.002 | AF67: =LOOKUP(AF36,'Inputs - 2'!$E$379:$J$379,'Inputs - 2'!$E$382:$J$382) -> 0.002 | AG67: =LOOKUP(AG36,'Inputs - 2'!$E$379:$J$379,'Inputs - 2'!$E$382:$J$382) -> 0.002 | AH67: =LOOKUP(AH36,'Inputs - 2'!$E$379:$J$379,'Inputs - 2'!$E$382:$J$382) -> 0.002 | AI67: =LOOKUP(AI36,'Inputs - 2'!$E$379:$J$379,'Inputs - 2'!$E$382:$J$382) -> 0.002 | AJ67: =LOOKUP(AJ36,'Inputs - 2'!$E$379:$J$379,'Inputs - 2'!$E$382:$J$382) -> 0.002 | AK67: =LOOKUP(AK36,'Inputs - 2'!$E$379:$J$379,'Inputs - 2'!$E$382:$J$382) -> 0.002 | AL67: =LOOKUP(AL36,'Inputs - 2'!$E$379:$J$379,'Inputs - 2'!$E$382:$J$382) -> 0.002 | AM67: =LOOKUP(AM36,'Inputs - 2'!$E$379:$J$379,'Inputs - 2'!$E$382:$J$382) -> 0.002 | AN67: =LOOKUP(AN36,'Inputs - 2'!$E$379:$J$379,'Inputs - 2'!$E$382:$J$382) -> 0.002 | AO67: =LOOKUP(AO36,'Inputs - 2'!$E$379:$J$379,'Inputs - 2'!$E$382:$J$382) -> 0.002 | AP67: =LOOKUP(AP36,'Inputs - 2'!$E$379:$J$379,'Inputs - 2'!$E$382:$J$382) -> 0.002 | AQ67: =LOOKUP(AQ36,'Inputs - 2'!$E$379:$J$379,'Inputs - 2'!$E$382:$J$382) -> 0.002 | AR67: =LOOKUP(AR36,'Inputs - 2'!$E$379:$J$379,'Inputs - 2'!$E$382:$J$382) -> 0.002 | AS67: =LOOKUP(AS36,'Inputs - 2'!$E$379:$J$379,'Inputs - 2'!$E$382:$J$382) -> 0.002 | AT67: =LOOKUP(AT36,'Inputs - 2'!$E$379:$J$379,'Inputs - 2'!$E$382:$J$382) -> 0.002 | AU67: =LOOKUP(AU36,'Inputs - 2'!$E$379:$J$379,'Inputs - 2'!$E$382:$J$382) -> 0.002 | AV67: =LOOKUP(AV36,'Inputs - 2'!$E$379:$J$379,'Inputs - 2'!$E$382:$J$382) -> 0.002 | AW67: =LOOKUP(AW36,'Inputs - 2'!$E$379:$J$379,'Inputs - 2'!$E$382:$J$382) -> 0.002 | AX67: =LOOKUP(AX36,'Inputs - 2'!$E$379:$J$379,'Inputs - 2'!$E$382:$J$382) -> 0.002 | AY67: =LOOKUP(AY36,'Inputs - 2'!$E$379:$J$379,'Inputs - 2'!$E$382:$J$382) -> 0.002 | AZ67: =LOOKUP(AZ36,'Inputs - 2'!$E$379:$J$379,'Inputs - 2'!$E$382:$J$382) -> 0.002 | BA67: =LOOKUP(BA36,'Inputs - 2'!$E$379:$J$379,'Inputs - 2'!$E$382:$J$382) -> 0.002 | BB67: =LOOKUP(BB36,'Inputs - 2'!$E$379:$J$379,'Inputs - 2'!$E$382:$J$382) -> 0.002 | BC67: =LOOKUP(BC36,'Inputs - 2'!$E$379:$J$379,'Inputs - 2'!$E$382:$J$382) -> 0.002 | BD67: =LOOKUP(BD36,'Inputs - 2'!$E$379:$J$379,'Inputs - 2'!$E$382:$J$382) -> 0.002 | BE67: =LOOKUP(BE36,'Inputs - 2'!$E$379:$J$379,'Inputs - 2'!$E$382:$J$382) -> 0.002 | BF67: =LOOKUP(BF36,'Inputs - 2'!$E$379:$J$379,'Inputs - 2'!$E$382:$J$382) -> 0.002 | BG67: =LOOKUP(BG36,'Inputs - 2'!$E$379:$J$379,'Inputs - 2'!$E$382:$J$382) -> 0.002 | BH67: =LOOKUP(BH36,'Inputs - 2'!$E$379:$J$379,'Inputs - 2'!$E$382:$J$382) -> 0.002 | BI67: =LOOKUP(BI36,'Inputs - 2'!$E$379:$J$379,'Inputs - 2'!$E$382:$J$382) -> 0.002 | BJ67: =LOOKUP(BJ36,'Inputs - 2'!$E$379:$J$379,'Inputs - 2'!$E$382:$J$382) -> 0.002 | BK67: =LOOKUP(BK36,'Inputs - 2'!$E$379:$J$379,'Inputs - 2'!$E$382:$J$382) -> 0.002 | BL67: =LOOKUP(BL36,'Inputs - 2'!$E$379:$J$379,'Inputs - 2'!$E$382:$J$382) -> 0.002 | BM67: =LOOKUP(BM36,'Inputs - 2'!$E$379:$J$379,'Inputs - 2'!$E$382:$J$382) -> 0.002 | BN67: =LOOKUP(BN36,'Inputs - 2'!$E$379:$J$379,'Inputs - 2'!$E$382:$J$382) -> 0.002 | BO67: =LOOKUP(BO36,'Inputs - 2'!$E$379:$J$379,'Inputs - 2'!$E$382:$J$382) -> 0.002 | BP67: =LOOKUP(BP36,'Inputs - 2'!$E$379:$J$379,'Inputs - 2'!$E$382:$J$382) -> 0.002 | BQ67: =LOOKUP(BQ36,'Inputs - 2'!$E$379:$J$379,'Inputs - 2'!$E$382:$J$382) -> 0.002 | BR67: =LOOKUP(BR36,'Inputs - 2'!$E$379:$J$379,'Inputs - 2'!$E$382:$J$382) -> 0.002 | BS67: =LOOKUP(BS36,'Inputs - 2'!$E$379:$J$379,'Inputs - 2'!$E$382:$J$382) -> 0.002 | BT67: =LOOKUP(BT36,'Inputs - 2'!$E$379:$J$379,'Inputs - 2'!$E$382:$J$382) -> 0.002 | BU67: =LOOKUP(BU36,'Inputs - 2'!$E$379:$J$379,'Inputs - 2'!$E$382:$J$382) -> 0.002 | BV67: =LOOKUP(BV36,'Inputs - 2'!$E$379:$J$379,'Inputs - 2'!$E$382:$J$382) -> 0.002 | BW67: =LOOKUP(BW36,'Inputs - 2'!$E$379:$J$379,'Inputs - 2'!$E$382:$J$382) -> 0.002 | BX67: =LOOKUP(BX36,'Inputs - 2'!$E$379:$J$379,'Inputs - 2'!$E$382:$J$382) -> 0.002 | BY67: =LOOKUP(BY36,'Inputs - 2'!$E$379:$J$379,'Inputs - 2'!$E$382:$J$382) -> 0.002 | BZ67: =LOOKUP(BZ36,'Inputs - 2'!$E$379:$J$379,'Inputs - 2'!$E$382:$J$382) -> 0.002 | CA67: =LOOKUP(CA36,'Inputs - 2'!$E$379:$J$379,'Inputs - 2'!$E$382:$J$382) -> 0.002 | CB67: =LOOKUP(CB36,'Inputs - 2'!$E$379:$J$379,'Inputs - 2'!$E$382:$J$382) -> 0.002 | CC67: =LOOKUP(CC36,'Inputs - 2'!$E$379:$J$379,'Inputs - 2'!$E$382:$J$382) -> 0.002 | CD67: =LOOKUP(CD36,'Inputs - 2'!$E$379:$J$379,'Inputs - 2'!$E$382:$J$382) -> 0.002 | CE67: =LOOKUP(CE36,'Inputs - 2'!$E$379:$J$379,'Inputs - 2'!$E$382:$J$382) -> 0.002 | CF67: =LOOKUP(CF36,'Inputs - 2'!$E$379:$J$379,'Inputs - 2'!$E$382:$J$382) -> 0.002 | CG67: =LOOKUP(CG36,'Inputs - 2'!$E$379:$J$379,'Inputs - 2'!$E$382:$J$382) -> 0.002 | CH67: =LOOKUP(CH36,'Inputs - 2'!$E$379:$J$379,'Inputs - 2'!$E$382:$J$382) -> 0.002 | CI67: =LOOKUP(CI36,'Inputs - 2'!$E$379:$J$379,'Inputs - 2'!$E$382:$J$382) -> 0.002 | CJ67: =LOOKUP(CJ36,'Inputs - 2'!$E$379:$J$379,'Inputs - 2'!$E$382:$J$382) -> 0.002 | CK67: =LOOKUP(CK36,'Inputs - 2'!$E$379:$J$379,'Inputs - 2'!$E$382:$J$382) -> 0.002 | CL67: =LOOKUP(CL36,'Inputs - 2'!$E$379:$J$379,'Inputs - 2'!$E$382:$J$382) -> 0.002 | CM67: =LOOKUP(CM36,'Inputs - 2'!$E$379:$J$379,'Inputs - 2'!$E$382:$J$382) -> 0.002 | CN67: =LOOKUP(CN36,'Inputs - 2'!$E$379:$J$379,'Inputs - 2'!$E$382:$J$382) -> 0.002 | CO67: =LOOKUP(CO36,'Inputs - 2'!$E$379:$J$379,'Inputs - 2'!$E$382:$J$382) -> 0.002 | CP67: =LOOKUP(CP36,'Inputs - 2'!$E$379:$J$379,'Inputs - 2'!$E$382:$J$382) -> 0.002 | CQ67: =LOOKUP(CQ36,'Inputs - 2'!$E$379:$J$379,'Inputs - 2'!$E$382:$J$382) -> 0.002 | CR67: =LOOKUP(CR36,'Inputs - 2'!$E$379:$J$379,'Inputs - 2'!$E$382:$J$382) -> 0.002 | CS67: =LOOKUP(CS36,'Inputs - 2'!$E$379:$J$379,'Inputs - 2'!$E$382:$J$382) -> 0.002 | CT67: =LOOKUP(CT36,'Inputs - 2'!$E$379:$J$379,'Inputs - 2'!$E$382:$J$382) -> 0.002 | CU67: =LOOKUP(CU36,'Inputs - 2'!$E$379:$J$379,'Inputs - 2'!$E$382:$J$382) -> 0.002 | CV67: =LOOKUP(CV36,'Inputs - 2'!$E$379:$J$379,'Inputs - 2'!$E$382:$J$382) -> 0.002 | CW67: =LOOKUP(CW36,'Inputs - 2'!$E$379:$J$379,'Inputs - 2'!$E$382:$J$382) -> 0.002 | CX67: =LOOKUP(CX36,'Inputs - 2'!$E$379:$J$379,'Inputs - 2'!$E$382:$J$382) -> 0.002 | CY67: =LOOKUP(CY36,'Inputs - 2'!$E$379:$J$379,'Inputs - 2'!$E$382:$J$382) -> 0.002 | CZ67: =LOOKUP(CZ36,'Inputs - 2'!$E$379:$J$379,'Inputs - 2'!$E$382:$J$382) -> 0.002 | DA67: =LOOKUP(DA36,'Inputs - 2'!$E$379:$J$379,'Inputs - 2'!$E$382:$J$382) -> 0.002 | DB67: =LOOKUP(DB36,'Inputs - 2'!$E$379:$J$379,'Inputs - 2'!$E$382:$J$382) -> 0.002 | DC67: =LOOKUP(DC36,'Inputs - 2'!$E$379:$J$379,'Inputs - 2'!$E$382:$J$382) -> 0.002 | DD67: =LOOKUP(DD36,'Inputs - 2'!$E$379:$J$379,'Inputs - 2'!$E$382:$J$382) -> 0.002 | DE67: =LOOKUP(DE36,'Inputs - 2'!$E$379:$J$379,'Inputs - 2'!$E$382:$J$382) -> 0.002 | DF67: =LOOKUP(DF36,'Inputs - 2'!$E$379:$J$379,'Inputs - 2'!$E$382:$J$382) -> 0.002 | DG67: =LOOKUP(DG36,'Inputs - 2'!$E$379:$J$379,'Inputs - 2'!$E$382:$J$382) -> 0.002 | DH67: =LOOKUP(DH36,'Inputs - 2'!$E$379:$J$379,'Inputs - 2'!$E$382:$J$382) -> 0.002 | DI67: =LOOKUP(DI36,'Inputs - 2'!$E$379:$J$379,'Inputs - 2'!$E$382:$J$382) -> 0.002 | DJ67: =LOOKUP(DJ36,'Inputs - 2'!$E$379:$J$379,'Inputs - 2'!$E$382:$J$382) -> 0.002 | DK67: =LOOKUP(DK36,'Inputs - 2'!$E$379:$J$379,'Inputs - 2'!$E$382:$J$382) -> 0.002 | DL67: =LOOKUP(DL36,'Inputs - 2'!$E$379:$J$379,'Inputs - 2'!$E$382:$J$382) -> 0.002 | DM67: =LOOKUP(DM36,'Inputs - 2'!$E$379:$J$379,'Inputs - 2'!$E$382:$J$382) -> 0.002 | DN67: =LOOKUP(DN36,'Inputs - 2'!$E$379:$J$379,'Inputs - 2'!$E$382:$J$382) -> 0.002 | DO67: =LOOKUP(DO36,'Inputs - 2'!$E$379:$J$379,'Inputs - 2'!$E$382:$J$382) -> 0.002 | DP67: =LOOKUP(DP36,'Inputs - 2'!$E$379:$J$379,'Inputs - 2'!$E$382:$J$382) -> 0.002 | DQ67: =LOOKUP(DQ36,'Inputs - 2'!$E$379:$J$379,'Inputs - 2'!$E$382:$J$382) -> 0.002 | DR67: =LOOKUP(DR36,'Inputs - 2'!$E$379:$J$379,'Inputs - 2'!$E$382:$J$382) -> 0.002 | DS67: =LOOKUP(DS36,'Inputs - 2'!$E$379:$J$379,'Inputs - 2'!$E$382:$J$382) -> 0.002 | DT67: =LOOKUP(DT36,'Inputs - 2'!$E$379:$J$379,'Inputs - 2'!$E$382:$J$382) -> 0.002 | DU67: =LOOKUP(DU36,'Inputs - 2'!$E$379:$J$379,'Inputs - 2'!$E$382:$J$382) -> 0.002 | DV67: =LOOKUP(DV36,'Inputs - 2'!$E$379:$J$379,'Inputs - 2'!$E$382:$J$382) -> 0.002 | DW67: =LOOKUP(DW36,'Inputs - 2'!$E$379:$J$379,'Inputs - 2'!$E$382:$J$382) -> 0.002 | DX67: =LOOKUP(DX36,'Inputs - 2'!$E$379:$J$379,'Inputs - 2'!$E$382:$J$382) -> 0.002 | DY67: =LOOKUP(DY36,'Inputs - 2'!$E$379:$J$379,'Inputs - 2'!$E$382:$J$382) -> 0.002 | DZ67: =LOOKUP(DZ36,'Inputs - 2'!$E$379:$J$379,'Inputs - 2'!$E$382:$J$382) -> 0.002 | EA67: =LOOKUP(EA36,'Inputs - 2'!$E$379:$J$379,'Inputs - 2'!$E$382:$J$382) -> 0.002 | EB67: =LOOKUP(EB36,'Inputs - 2'!$E$379:$J$379,'Inputs - 2'!$E$382:$J$382) -> 0.002 | EC67: =LOOKUP(EC36,'Inputs - 2'!$E$379:$J$379,'Inputs - 2'!$E$382:$J$382) -> 0.002 | ED67: =LOOKUP(ED36,'Inputs - 2'!$E$379:$J$379,'Inputs - 2'!$E$382:$J$382) -> 0.002 | EE67: =LOOKUP(EE36,'Inputs - 2'!$E$379:$J$379,'Inputs - 2'!$E$382:$J$382) -> 0.002 | EF67: =LOOKUP(EF36,'Inputs - 2'!$E$379:$J$379,'Inputs - 2'!$E$382:$J$382) -> 0.002 | EG67: =LOOKUP(EG36,'Inputs - 2'!$E$379:$J$379,'Inputs - 2'!$E$382:$J$382) -> 0.002 | EH67: =LOOKUP(EH36,'Inputs - 2'!$E$379:$J$379,'Inputs - 2'!$E$382:$J$382) -> 0.002 | EI67: =LOOKUP(EI36,'Inputs - 2'!$E$379:$J$379,'Inputs - 2'!$E$382:$J$382) -> 0.002 | EJ67: =LOOKUP(EJ36,'Inputs - 2'!$E$379:$J$379,'Inputs - 2'!$E$382:$J$382) -> 0.002 | EK67: =LOOKUP(EK36,'Inputs - 2'!$E$379:$J$379,'Inputs - 2'!$E$382:$J$382) -> 0.002
C70: Pre-tax discount rate for restoration provisions | D70: % | J70: ='Inputs - 2'!$E$375 -> 0.07 | K70: ='Inputs - 2'!$E$375 -> 0.07 | L70: ='Inputs - 2'!$E$375 -> 0.07 | M70: ='Inputs - 2'!$E$375 -> 0.07 | N70: ='Inputs - 2'!$E$375 -> 0.07 | O70: ='Inputs - 2'!$E$375 -> 0.07 | P70: ='Inputs - 2'!$E$375 -> 0.07 | Q70: ='Inputs - 2'!$E$375 -> 0.07 | R70: ='Inputs - 2'!$E$375 -> 0.07 | S70: ='Inputs - 2'!$E$375 -> 0.07 | T70: ='Inputs - 2'!$E$375 -> 0.07 | U70: ='Inputs - 2'!$E$375 -> 0.07 | V70: ='Inputs - 2'!$E$375 -> 0.07 | W70: ='Inputs - 2'!$E$375 -> 0.07 | X70: ='Inputs - 2'!$E$375 -> 0.07 | Y70: ='Inputs - 2'!$E$375 -> 0.07 | Z70: ='Inputs - 2'!$E$375 -> 0.07 | AA70: ='Inputs - 2'!$E$375 -> 0.07 | AB70: ='Inputs - 2'!$E$375 -> 0.07 | AC70: ='Inputs - 2'!$E$375 -> 0.07 | AD70: ='Inputs - 2'!$E$375 -> 0.07 | AE70: ='Inputs - 2'!$E$375 -> 0.07 | AF70: ='Inputs - 2'!$E$375 -> 0.07 | AG70: ='Inputs - 2'!$E$375 -> 0.07 | AH70: ='Inputs - 2'!$E$375 -> 0.07 | AI70: ='Inputs - 2'!$E$375 -> 0.07 | AJ70: ='Inputs - 2'!$E$375 -> 0.07 | AK70: ='Inputs - 2'!$E$375 -> 0.07 | AL70: ='Inputs - 2'!$E$375 -> 0.07 | AM70: ='Inputs - 2'!$E$375 -> 0.07 | AN70: ='Inputs - 2'!$E$375 -> 0.07 | AO70: ='Inputs - 2'!$E$375 -> 0.07 | AP70: ='Inputs - 2'!$E$375 -> 0.07 | AQ70: ='Inputs - 2'!$E$375 -> 0.07 | AR70: ='Inputs - 2'!$E$375 -> 0.07 | AS70: ='Inputs - 2'!$E$375 -> 0.07 | AT70: ='Inputs - 2'!$E$375 -> 0.07 | AU70: ='Inputs - 2'!$E$375 -> 0.07 | AV70: ='Inputs - 2'!$E$375 -> 0.07 | AW70: ='Inputs - 2'!$E$375 -> 0.07 | AX70: ='Inputs - 2'!$E$375 -> 0.07 | AY70: ='Inputs - 2'!$E$375 -> 0.07 | AZ70: ='Inputs - 2'!$E$375 -> 0.07 | BA70: ='Inputs - 2'!$E$375 -> 0.07 | BB70: ='Inputs - 2'!$E$375 -> 0.07 | BC70: ='Inputs - 2'!$E$375 -> 0.07 | BD70: ='Inputs - 2'!$E$375 -> 0.07 | BE70: ='Inputs - 2'!$E$375 -> 0.07 | BF70: ='Inputs - 2'!$E$375 -> 0.07 | BG70: ='Inputs - 2'!$E$375 -> 0.07 | BH70: ='Inputs - 2'!$E$375 -> 0.07 | BI70: ='Inputs - 2'!$E$375 -> 0.07 | BJ70: ='Inputs - 2'!$E$375 -> 0.07 | BK70: ='Inputs - 2'!$E$375 -> 0.07 | BL70: ='Inputs - 2'!$E$375 -> 0.07 | BM70: ='Inputs - 2'!$E$375 -> 0.07 | BN70: ='Inputs - 2'!$E$375 -> 0.07 | BO70: ='Inputs - 2'!$E$375 -> 0.07 | BP70: ='Inputs - 2'!$E$375 -> 0.07 | BQ70: ='Inputs - 2'!$E$375 -> 0.07 | BR70: ='Inputs - 2'!$E$375 -> 0.07 | BS70: ='Inputs - 2'!$E$375 -> 0.07 | BT70: ='Inputs - 2'!$E$375 -> 0.07 | BU70: ='Inputs - 2'!$E$375 -> 0.07 | BV70: ='Inputs - 2'!$E$375 -> 0.07 | BW70: ='Inputs - 2'!$E$375 -> 0.07 | BX70: ='Inputs - 2'!$E$375 -> 0.07 | BY70: ='Inputs - 2'!$E$375 -> 0.07 | BZ70: ='Inputs - 2'!$E$375 -> 0.07 | CA70: ='Inputs - 2'!$E$375 -> 0.07 | CB70: ='Inputs - 2'!$E$375 -> 0.07 | CC70: ='Inputs - 2'!$E$375 -> 0.07 | CD70: ='Inputs - 2'!$E$375 -> 0.07 | CE70: ='Inputs - 2'!$E$375 -> 0.07 | CF70: ='Inputs - 2'!$E$375 -> 0.07 | CG70: ='Inputs - 2'!$E$375 -> 0.07 | CH70: ='Inputs - 2'!$E$375 -> 0.07 | CI70: ='Inputs - 2'!$E$375 -> 0.07 | CJ70: ='Inputs - 2'!$E$375 -> 0.07 | CK70: ='Inputs - 2'!$E$375 -> 0.07 | CL70: ='Inputs - 2'!$E$375 -> 0.07 | CM70: ='Inputs - 2'!$E$375 -> 0.07 | CN70: ='Inputs - 2'!$E$375 -> 0.07 | CO70: ='Inputs - 2'!$E$375 -> 0.07 | CP70: ='Inputs - 2'!$E$375 -> 0.07 | CQ70: ='Inputs - 2'!$E$375 -> 0.07 | CR70: ='Inputs - 2'!$E$375 -> 0.07 | CS70: ='Inputs - 2'!$E$375 -> 0.07 | CT70: ='Inputs - 2'!$E$375 -> 0.07 | CU70: ='Inputs - 2'!$E$375 -> 0.07 | CV70: ='Inputs - 2'!$E$375 -> 0.07 | CW70: ='Inputs - 2'!$E$375 -> 0.07 | CX70: ='Inputs - 2'!$E$375 -> 0.07 | CY70: ='Inputs - 2'!$E$375 -> 0.07 | CZ70: ='Inputs - 2'!$E$375 -> 0.07 | DA70: ='Inputs - 2'!$E$375 -> 0.07 | DB70: ='Inputs - 2'!$E$375 -> 0.07 | DC70: ='Inputs - 2'!$E$375 -> 0.07 | DD70: ='Inputs - 2'!$E$375 -> 0.07 | DE70: ='Inputs - 2'!$E$375 -> 0.07 | DF70: ='Inputs - 2'!$E$375 -> 0.07 | DG70: ='Inputs - 2'!$E$375 -> 0.07 | DH70: ='Inputs - 2'!$E$375 -> 0.07 | DI70: ='Inputs - 2'!$E$375 -> 0.07 | DJ70: ='Inputs - 2'!$E$375 -> 0.07 | DK70: ='Inputs - 2'!$E$375 -> 0.07 | DL70: ='Inputs - 2'!$E$375 -> 0.07 | DM70: ='Inputs - 2'!$E$375 -> 0.07 | DN70: ='Inputs - 2'!$E$375 -> 0.07 | DO70: ='Inputs - 2'!$E$375 -> 0.07 | DP70: ='Inputs - 2'!$E$375 -> 0.07 | DQ70: ='Inputs - 2'!$E$375 -> 0.07 | DR70: ='Inputs - 2'!$E$375 -> 0.07 | DS70: ='Inputs - 2'!$E$375 -> 0.07 | DT70: ='Inputs - 2'!$E$375 -> 0.07 | DU70: ='Inputs - 2'!$E$375 -> 0.07 | DV70: ='Inputs - 2'!$E$375 -> 0.07 | DW70: ='Inputs - 2'!$E$375 -> 0.07 | DX70: ='Inputs - 2'!$E$375 -> 0.07 | DY70: ='Inputs - 2'!$E$375 -> 0.07 | DZ70: ='Inputs - 2'!$E$375 -> 0.07 | EA70: ='Inputs - 2'!$E$375 -> 0.07 | EB70: ='Inputs - 2'!$E$375 -> 0.07 | EC70: ='Inputs - 2'!$E$375 -> 0.07 | ED70: ='Inputs - 2'!$E$375 -> 0.07 | EE70: ='Inputs - 2'!$E$375 -> 0.07 | EF70: ='Inputs - 2'!$E$375 -> 0.07 | EG70: ='Inputs - 2'!$E$375 -> 0.07 | EH70: ='Inputs - 2'!$E$375 -> 0.07 | EI70: ='Inputs - 2'!$E$375 -> 0.07 | EJ70: ='Inputs - 2'!$E$375 -> 0.07 | EK70: ='Inputs - 2'!$E$375 -> 0.07

Sheet CAPEX
A1: Development
A2: =Name_Project -> Langer Heinrich and Kalakera | E2: =Master_check -> 
C4: Period Start | J4: =Timing!J4 -> 2018-07-01 | K4: =Timing!K4 -> 2018-10-01 | L4: =Timing!L4 -> 2019-01-01 | M4: =Timing!M4 -> 2019-04-01 | N4: =Timing!N4 -> 2019-07-01 | O4: =Timing!O4 -> 2019-10-01 | P4: =Timing!P4 -> 2020-01-01 | Q4: =Timing!Q4 -> 2020-04-01 | R4: =Timing!R4 -> 2020-07-01 | S4: =Timing!S4 -> 2020-10-01 | T4: =Timing!T4 -> 2021-01-01 | U4: =Timing!U4 -> 2021-04-01 | V4: =Timing!V4 -> 2021-07-01 | W4: =Timing!W4 -> 2021-10-01 | X4: =Timing!X4 -> 2022-01-01 | Y4: =Timing!Y4 -> 2022-04-01 | Z4: =Timing!Z4 -> 2022-07-01 | AA4: =Timing!AA4 -> 2022-10-01 | AB4: =Timing!AB4 -> 2023-01-01 | AC4: =Timing!AC4 -> 2023-04-01 | AD4: =Timing!AD4 -> 2023-07-01 | AE4: =Timing!AE4 -> 2023-10-01 | AF4: =Timing!AF4 -> 2024-01-01 | AG4: =Timing!AG4 -> 2024-04-01 | AH4: =Timing!AH4 -> 2024-07-01 | AI4: =Timing!AI4 -> 2024-10-01 | AJ4: =Timing!AJ4 -> 2025-01-01 | AK4: =Timing!AK4 -> 2025-04-01 | AL4: =Timing!AL4 -> 2025-07-01 | AM4: =Timing!AM4 -> 2025-10-01 | AN4: =Timing!AN4 -> 2026-01-01 | AO4: =Timing!AO4 -> 2026-04-01 | AP4: =Timing!AP4 -> 2026-07-01 | AQ4: =Timing!AQ4 -> 2026-10-01 | AR4: =Timing!AR4 -> 2027-01-01 | AS4: =Timing!AS4 -> 2027-04-01 | AT4: =Timing!AT4 -> 2027-07-01 | AU4: =Timing!AU4 -> 2027-10-01 | AV4: =Timing!AV4 -> 2028-01-01 | AW4: =Timing!AW4 -> 2028-04-01 | AX4: =Timing!AX4 -> 2028-07-01 | AY4: =Timing!AY4 -> 2028-10-01 | AZ4: =Timing!AZ4 -> 2029-01-01 | BA4: =Timing!BA4 -> 2029-04-01 | BB4: =Timing!BB4 -> 2029-07-01 | BC4: =Timing!BC4 -> 2029-10-01 | BD4: =Timing!BD4 -> 2030-01-01 | BE4: =Timing!BE4 -> 2030-04-01 | BF4: =Timing!BF4 -> 2030-07-01 | BG4: =Timing!BG4 -> 2030-10-01 | BH4: =Timing!BH4 -> 2031-01-01 | BI4: =Timing!BI4 -> 2031-04-01 | BJ4: =Timing!BJ4 -> 2031-07-01 | BK4: =Timing!BK4 -> 2031-10-01 | BL4: =Timing!BL4 -> 2032-01-01 | BM4: =Timing!BM4 -> 2032-04-01 | BN4: =Timing!BN4 -> 2032-07-01 | BO4: =Timing!BO4 -> 2032-10-01 | BP4: =Timing!BP4 -> 2033-01-01 | BQ4: =Timing!BQ4 -> 2033-04-01 | BR4: =Timing!BR4 -> 2033-07-01 | BS4: =Timing!BS4 -> 2033-10-01 | BT4: =Timing!BT4 -> 2034-01-01 | BU4: =Timing!BU4 -> 2034-04-01 | BV4: =Timing!BV4 -> 2034-07-01 | BW4: =Timing!BW4 -> 2034-10-01 | BX4: =Timing!BX4 -> 2035-01-01 | BY4: =Timing!BY4 -> 2035-04-01 | BZ4: =Timing!BZ4 -> 2035-07-01 | CA4: =Timing!CA4 -> 2035-10-01 | CB4: =Timing!CB4 -> 2036-01-01 | CC4: =Timing!CC4 -> 2036-04-01 | CD4: =Timing!CD4 -> 2036-07-01 | CE4: =Timing!CE4 -> 2036-10-01 | CF4: =Timing!CF4 -> 2037-01-01 | CG4: =Timing!CG4 -> 2037-04-01 | CH4: =Timing!CH4 -> 2037-07-01 | CI4: =Timing!CI4 -> 2037-10-01 | CJ4: =Timing!CJ4 -> 2038-01-01 | CK4: =Timing!CK4 -> 2038-04-01 | CL4: =Timing!CL4 -> 2038-07-01 | CM4: =Timing!CM4 -> 2038-10-01 | CN4: =Timing!CN4 -> 2039-01-01 | CO4: =Timing!CO4 -> 2039-04-01 | CP4: =Timing!CP4 -> 2039-07-01 | CQ4: =Timing!CQ4 -> 2039-10-01 | CR4: =Timing!CR4 -> 2040-01-01 | CS4: =Timing!CS4 -> 2040-04-01 | CT4: =Timing!CT4 -> 2040-07-01 | CU4: =Timing!CU4 -> 2040-10-01 | CV4: =Timing!CV4 -> 2041-01-01 | CW4: =Timing!CW4 -> 2041-04-01 | CX4: =Timing!CX4 -> 2041-07-01 | CY4: =Timing!CY4 -> 2041-10-01 | CZ4: =Timing!CZ4 -> 2042-01-01 | DA4: =Timing!DA4 -> 2042-04-01 | DB4: =Timing!DB4 -> 2042-07-01 | DC4: =Timing!DC4 -> 2042-10-01 | DD4: =Timing!DD4 -> 2043-01-01 | DE4: =Timing!DE4 -> 2043-04-01 | DF4: =Timing!DF4 -> 2043-07-01 | DG4: =Timing!DG4 -> 2043-10-01 | DH4: =Timing!DH4 -> 2044-01-01 | DI4: =Timing!DI4 -> 2044-04-01 | DJ4: =Timing!DJ4 -> 2044-07-01 | DK4: =Timing!DK4 -> 2044-10-01 | DL4: =Timing!DL4 -> 2045-01-01 | DM4: =Timing!DM4 -> 2045-04-01 | DN4: =Timing!DN4 -> 2045-07-01 | DO4: =Timing!DO4 -> 2045-10-01 | DP4: =Timing!DP4 -> 2046-01-01 | DQ4: =Timing!DQ4 -> 2046-04-01 | DR4: =Timing!DR4 -> 2046-07-01 | DS4: =Timing!DS4 -> 2046-10-01 | DT4: =Timing!DT4 -> 2047-01-01 | DU4: =Timing!DU4 -> 2047-04-01 | DV4: =Timing!DV4 -> 2047-07-01 | DW4: =Timing!DW4 -> 2047-10-01 | DX4: =Timing!DX4 -> 2048-01-01 | DY4: =Timing!DY4 -> 2048-04-01 | DZ4: =Timing!DZ4 -> 2048-07-01 | EA4: =Timing!EA4 -> 2048-10-01 | EB4: =Timing!EB4 -> 2049-01-01 | EC4: =Timing!EC4 -> 2049-04-01 | ED4: =Timing!ED4 -> 2049-07-01 | EE4: =Timing!EE4 -> 2049-10-01 | EF4: =Timing!EF4 -> 2050-01-01 | EG4: =Timing!EG4 -> 2050-04-01 | EH4: =Timing!EH4 -> 2050-07-01 | EI4: =Timing!EI4 -> 2050-10-01 | EJ4: =Timing!EJ4 -> 2051-01-01 | EK4: =Timing!EK4 -> 2051-04-01
C5: Period End | I5: =Timing!I5 -> 2018-06-30 | J5: =Timing!J5 -> 2018-09-30 | K5: =Timing!K5 -> 2018-12-31 | L5: =Timing!L5 -> 2019-03-31 | M5: =Timing!M5 -> 2019-06-30 | N5: =Timing!N5 -> 2019-09-30 | O5: =Timing!O5 -> 2019-12-31 | P5: =Timing!P5 -> 2020-03-31 | Q5: =Timing!Q5 -> 2020-06-30 | R5: =Timing!R5 -> 2020-09-30 | S5: =Timing!S5 -> 2020-12-31 | T5: =Timing!T5 -> 2021-03-31 | U5: =Timing!U5 -> 2021-06-30 | V5: =Timing!V5 -> 2021-09-30 | W5: =Timing!W5 -> 2021-12-31 | X5: =Timing!X5 -> 2022-03-31 | Y5: =Timing!Y5 -> 2022-06-30 | Z5: =Timing!Z5 -> 2022-09-30 | AA5: =Timing!AA5 -> 2022-12-31 | AB5: =Timing!AB5 -> 2023-03-31 | AC5: =Timing!AC5 -> 2023-06-30 | AD5: =Timing!AD5 -> 2023-09-30 | AE5: =Timing!AE5 -> 2023-12-31 | AF5: =Timing!AF5 -> 2024-03-31 | AG5: =Timing!AG5 -> 2024-06-30 | AH5: =Timing!AH5 -> 2024-09-30 | AI5: =Timing!AI5 -> 2024-12-31 | AJ5: =Timing!AJ5 -> 2025-03-31 | AK5: =Timing!AK5 -> 2025-06-30 | AL5: =Timing!AL5 -> 2025-09-30 | AM5: =Timing!AM5 -> 2025-12-31 | AN5: =Timing!AN5 -> 2026-03-31 | AO5: =Timing!AO5 -> 2026-06-30 | AP5: =Timing!AP5 -> 2026-09-30 | AQ5: =Timing!AQ5 -> 2026-12-31 | AR5: =Timing!AR5 -> 2027-03-31 | AS5: =Timing!AS5 -> 2027-06-30 | AT5: =Timing!AT5 -> 2027-09-30 | AU5: =Timing!AU5 -> 2027-12-31 | AV5: =Timing!AV5 -> 2028-03-31 | AW5: =Timing!AW5 -> 2028-06-30 | AX5: =Timing!AX5 -> 2028-09-30 | AY5: =Timing!AY5 -> 2028-12-31 | AZ5: =Timing!AZ5 -> 2029-03-31 | BA5: =Timing!BA5 -> 2029-06-30 | BB5: =Timing!BB5 -> 2029-09-30 | BC5: =Timing!BC5 -> 2029-12-31 | BD5: =Timing!BD5 -> 2030-03-31 | BE5: =Timing!BE5 -> 2030-06-30 | BF5: =Timing!BF5 -> 2030-09-30 | BG5: =Timing!BG5 -> 2030-12-31 | BH5: =Timing!BH5 -> 2031-03-31 | BI5: =Timing!BI5 -> 2031-06-30 | BJ5: =Timing!BJ5 -> 2031-09-30 | BK5: =Timing!BK5 -> 2031-12-31 | BL5: =Timing!BL5 -> 2032-03-31 | BM5: =Timing!BM5 -> 2032-06-30 | BN5: =Timing!BN5 -> 2032-09-30 | BO5: =Timing!BO5 -> 2032-12-31 | BP5: =Timing!BP5 -> 2033-03-31 | BQ5: =Timing!BQ5 -> 2033-06-30 | BR5: =Timing!BR5 -> 2033-09-30 | BS5: =Timing!BS5 -> 2033-12-31 | BT5: =Timing!BT5 -> 2034-03-31 | BU5: =Timing!BU5 -> 2034-06-30 | BV5: =Timing!BV5 -> 2034-09-30 | BW5: =Timing!BW5 -> 2034-12-31 | BX5: =Timing!BX5 -> 2035-03-31 | BY5: =Timing!BY5 -> 2035-06-30 | BZ5: =Timing!BZ5 -> 2035-09-30 | CA5: =Timing!CA5 -> 2035-12-31 | CB5: =Timing!CB5 -> 2036-03-31 | CC5: =Timing!CC5 -> 2036-06-30 | CD5: =Timing!CD5 -> 2036-09-30 | CE5: =Timing!CE5 -> 2036-12-31 | CF5: =Timing!CF5 -> 2037-03-31 | CG5: =Timing!CG5 -> 2037-06-30 | CH5: =Timing!CH5 -> 2037-09-30 | CI5: =Timing!CI5 -> 2037-12-31 | CJ5: =Timing!CJ5 -> 2038-03-31 | CK5: =Timing!CK5 -> 2038-06-30 | CL5: =Timing!CL5 -> 2038-09-30 | CM5: =Timing!CM5 -> 2038-12-31 | CN5: =Timing!CN5 -> 2039-03-31 | CO5: =Timing!CO5 -> 2039-06-30 | CP5: =Timing!CP5 -> 2039-09-30 | CQ5: =Timing!CQ5 -> 2039-12-31 | CR5: =Timing!CR5 -> 2040-03-31 | CS5: =Timing!CS5 -> 2040-06-30 | CT5: =Timing!CT5 -> 2040-09-30 | CU5: =Timing!CU5 -> 2040-12-31 | CV5: =Timing!CV5 -> 2041-03-31 | CW5: =Timing!CW5 -> 2041-06-30 | CX5: =Timing!CX5 -> 2041-09-30 | CY5: =Timing!CY5 -> 2041-12-31 | CZ5: =Timing!CZ5 -> 2042-03-31 | DA5: =Timing!DA5 -> 2042-06-30 | DB5: =Timing!DB5 -> 2042-09-30 | DC5: =Timing!DC5 -> 2042-12-31 | DD5: =Timing!DD5 -> 2043-03-31 | DE5: =Timing!DE5 -> 2043-06-30 | DF5: =Timing!DF5 -> 2043-09-30 | DG5: =Timing!DG5 -> 2043-12-31 | DH5: =Timing!DH5 -> 2044-03-31 | DI5: =Timing!DI5 -> 2044-06-30 | DJ5: =Timing!DJ5 -> 2044-09-30 | DK5: =Timing!DK5 -> 2044-12-31 | DL5: =Timing!DL5 -> 2045-03-31 | DM5: =Timing!DM5 -> 2045-06-30 | DN5: =Timing!DN5 -> 2045-09-30 | DO5: =Timing!DO5 -> 2045-12-31 | DP5: =Timing!DP5 -> 2046-03-31 | DQ5: =Timing!DQ5 -> 2046-06-30 | DR5: =Timing!DR5 -> 2046-09-30 | DS5: =Timing!DS5 -> 2046-12-31 | DT5: =Timing!DT5 -> 2047-03-31 | DU5: =Timing!DU5 -> 2047-06-30 | DV5: =Timing!DV5 -> 2047-09-30 | DW5: =Timing!DW5 -> 2047-12-31 | DX5: =Timing!DX5 -> 2048-03-31 | DY5: =Timing!DY5 -> 2048-06-30 | DZ5: =Timing!DZ5 -> 2048-09-30 | EA5: =Timing!EA5 -> 2048-12-31 | EB5: =Timing!EB5 -> 2049-03-31 | EC5: =Timing!EC5 -> 2049-06-30 | ED5: =Timing!ED5 -> 2049-09-30 | EE5: =Timing!EE5 -> 2049-12-31 | EF5: =Timing!EF5 -> 2050-03-31 | EG5: =Timing!EG5 -> 2050-06-30 | EH5: =Timing!EH5 -> 2050-09-30 | EI5: =Timing!EI5 -> 2050-12-31 | EJ5: =Timing!EJ5 -> 2051-03-31 | EK5: =Timing!EK5 -> 2051-06-30
C6: =Timing!C9 -> Production | D6: =TRANSPOSE('Inputs - 2'!F9:K9) -> 2018-07-01 | E6: =TRANSPOSE('Inputs - 2'!F11:K11) -> 2019-06-30 | J6: =Timing!J9 -> 1 | K6: =Timing!K9 -> 1 | L6: =Timing!L9 -> 1 | M6: =Timing!M9 -> 1 | N6: =Timing!N9 -> 0 | O6: =Timing!O9 -> 0 | P6: =Timing!P9 -> 0 | Q6: =Timing!Q9 -> 0 | R6: =Timing!R9 -> 0 | S6: =Timing!S9 -> 0 | T6: =Timing!T9 -> 0 | U6: =Timing!U9 -> 0 | V6: =Timing!V9 -> 0 | W6: =Timing!W9 -> 0 | X6: =Timing!X9 -> 0 | Y6: =Timing!Y9 -> 0 | Z6: =Timing!Z9 -> 0 | AA6: =Timing!AA9 -> 0 | AB6: =Timing!AB9 -> 0 | AC6: =Timing!AC9 -> 0 | AD6: =Timing!AD9 -> 0 | AE6: =Timing!AE9 -> 0 | AF6: =Timing!AF9 -> 0 | AG6: =Timing!AG9 -> 0 | AH6: =Timing!AH9 -> 0 | AI6: =Timing!AI9 -> 0 | AJ6: =Timing!AJ9 -> 0 | AK6: =Timing!AK9 -> 0 | AL6: =Timing!AL9 -> 0 | AM6: =Timing!AM9 -> 0 | AN6: =Timing!AN9 -> 0 | AO6: =Timing!AO9 -> 0 | AP6: =Timing!AP9 -> 0 | AQ6: =Timing!AQ9 -> 0 | AR6: =Timing!AR9 -> 0 | AS6: =Timing!AS9 -> 0 | AT6: =Timing!AT9 -> 0 | AU6: =Timing!AU9 -> 0 | AV6: =Timing!AV9 -> 0 | AW6: =Timing!AW9 -> 0 | AX6: =Timing!AX9 -> 0 | AY6: =Timing!AY9 -> 0 | AZ6: =Timing!AZ9 -> 0 | BA6: =Timing!BA9 -> 0 | BB6: =Timing!BB9 -> 0 | BC6: =Timing!BC9 -> 0 | BD6: =Timing!BD9 -> 0 | BE6: =Timing!BE9 -> 0 | BF6: =Timing!BF9 -> 0 | BG6: =Timing!BG9 -> 0 | BH6: =Timing!BH9 -> 0 | BI6: =Timing!BI9 -> 0 | BJ6: =Timing!BJ9 -> 0 | BK6: =Timing!BK9 -> 0 | BL6: =Timing!BL9 -> 0 | BM6: =Timing!BM9 -> 0 | BN6: =Timing!BN9 -> 0 | BO6: =Timing!BO9 -> 0 | BP6: =Timing!BP9 -> 0 | BQ6: =Timing!BQ9 -> 0 | BR6: =Timing!BR9 -> 0 | BS6: =Timing!BS9 -> 0 | BT6: =Timing!BT9 -> 0 | BU6: =Timing!BU9 -> 0 | BV6: =Timing!BV9 -> 0 | BW6: =Timing!BW9 -> 0 | BX6: =Timing!BX9 -> 0 | BY6: =Timing!BY9 -> 0 | BZ6: =Timing!BZ9 -> 0 | CA6: =Timing!CA9 -> 0 | CB6: =Timing!CB9 -> 0 | CC6: =Timing!CC9 -> 0 | CD6: =Timing!CD9 -> 0 | CE6: =Timing!CE9 -> 0 | CF6: =Timing!CF9 -> 0 | CG6: =Timing!CG9 -> 0 | CH6: =Timing!CH9 -> 0 | CI6: =Timing!CI9 -> 0 | CJ6: =Timing!CJ9 -> 0 | CK6: =Timing!CK9 -> 0 | CL6: =Timing!CL9 -> 0 | CM6: =Timing!CM9 -> 0 | CN6: =Timing!CN9 -> 0 | CO6: =Timing!CO9 -> 0 | CP6: =Timing!CP9 -> 0 | CQ6: =Timing!CQ9 -> 0 | CR6: =Timing!CR9 -> 0 | CS6: =Timing!CS9 -> 0 | CT6: =Timing!CT9 -> 0 | CU6: =Timing!CU9 -> 0 | CV6: =Timing!CV9 -> 0 | CW6: =Timing!CW9 -> 0 | CX6: =Timing!CX9 -> 0 | CY6: =Timing!CY9 -> 0 | CZ6: =Timing!CZ9 -> 0 | DA6: =Timing!DA9 -> 0 | DB6: =Timing!DB9 -> 0 | DC6: =Timing!DC9 -> 0 | DD6: =Timing!DD9 -> 0 | DE6: =Timing!DE9 -> 0 | DF6: =Timing!DF9 -> 0 | DG6: =Timing!DG9 -> 0 | DH6: =Timing!DH9 -> 0 | DI6: =Timing!DI9 -> 0 | DJ6: =Timing!DJ9 -> 0 | DK6: =Timing!DK9 -> 0 | DL6: =Timing!DL9 -> 0 | DM6: =Timing!DM9 -> 0 | DN6: =Timing!DN9 -> 0 | DO6: =Timing!DO9 -> 0 | DP6: =Timing!DP9 -> 0 | DQ6: =Timing!DQ9 -> 0 | DR6: =Timing!DR9 -> 0 | DS6: =Timing!DS9 -> 0 | DT6: =Timing!DT9 -> 0 | DU6: =Timing!DU9 -> 0 | DV6: =Timing!DV9 -> 0 | DW6: =Timing!DW9 -> 0 | DX6: =Timing!DX9 -> 0 | DY6: =Timing!DY9 -> 0 | DZ6: =Timing!DZ9 -> 0 | EA6: =Timing!EA9 -> 0 | EB6: =Timing!EB9 -> 0 | EC6: =Timing!EC9 -> 0 | ED6: =Timing!ED9 -> 0 | EE6: =Timing!EE9 -> 0 | EF6: =Timing!EF9 -> 0 | EG6: =Timing!EG9 -> 0 | EH6: =Timing!EH9 -> 0 | EI6: =Timing!EI9 -> 0 | EJ6: =Timing!EJ9 -> 0 | EK6: =Timing!EK9 -> 0
C7: =Timing!C10 -> Placing into C&M | D7: 2019-07-01 | E7: 2019-09-30 | J7: =Timing!J10 -> 0 | K7: =Timing!K10 -> 0 | L7: =Timing!L10 -> 0 | M7: =Timing!M10 -> 0 | N7: =Timing!N10 -> 1 | O7: =Timing!O10 -> 0 | P7: =Timing!P10 -> 0 | Q7: =Timing!Q10 -> 0 | R7: =Timing!R10 -> 0 | S7: =Timing!S10 -> 0 | T7: =Timing!T10 -> 0 | U7: =Timing!U10 -> 0 | V7: =Timing!V10 -> 0 | W7: =Timing!W10 -> 0 | X7: =Timing!X10 -> 0 | Y7: =Timing!Y10 -> 0 | Z7: =Timing!Z10 -> 0 | AA7: =Timing!AA10 -> 0 | AB7: =Timing!AB10 -> 0 | AC7: =Timing!AC10 -> 0 | AD7: =Timing!AD10 -> 0 | AE7: =Timing!AE10 -> 0 | AF7: =Timing!AF10 -> 0 | AG7: =Timing!AG10 -> 0 | AH7: =Timing!AH10 -> 0 | AI7: =Timing!AI10 -> 0 | AJ7: =Timing!AJ10 -> 0 | AK7: =Timing!AK10 -> 0 | AL7: =Timing!AL10 -> 0 | AM7: =Timing!AM10 -> 0 | AN7: =Timing!AN10 -> 0 | AO7: =Timing!AO10 -> 0 | AP7: =Timing!AP10 -> 0 | AQ7: =Timing!AQ10 -> 0 | AR7: =Timing!AR10 -> 0 | AS7: =Timing!AS10 -> 0 | AT7: =Timing!AT10 -> 0 | AU7: =Timing!AU10 -> 0 | AV7: =Timing!AV10 -> 0 | AW7: =Timing!AW10 -> 0 | AX7: =Timing!AX10 -> 0 | AY7: =Timing!AY10 -> 0 | AZ7: =Timing!AZ10 -> 0 | BA7: =Timing!BA10 -> 0 | BB7: =Timing!BB10 -> 0 | BC7: =Timing!BC10 -> 0 | BD7: =Timing!BD10 -> 0 | BE7: =Timing!BE10 -> 0 | BF7: =Timing!BF10 -> 0 | BG7: =Timing!BG10 -> 0 | BH7: =Timing!BH10 -> 0 | BI7: =Timing!BI10 -> 0 | BJ7: =Timing!BJ10 -> 0 | BK7: =Timing!BK10 -> 0 | BL7: =Timing!BL10 -> 0 | BM7: =Timing!BM10 -> 0 | BN7: =Timing!BN10 -> 0 | BO7: =Timing!BO10 -> 0 | BP7: =Timing!BP10 -> 0 | BQ7: =Timing!BQ10 -> 0 | BR7: =Timing!BR10 -> 0 | BS7: =Timing!BS10 -> 0 | BT7: =Timing!BT10 -> 0 | BU7: =Timing!BU10 -> 0 | BV7: =Timing!BV10 -> 0 | BW7: =Timing!BW10 -> 0 | BX7: =Timing!BX10 -> 0 | BY7: =Timing!BY10 -> 0 | BZ7: =Timing!BZ10 -> 0 | CA7: =Timing!CA10 -> 0 | CB7: =Timing!CB10 -> 0 | CC7: =Timing!CC10 -> 0 | CD7: =Timing!CD10 -> 0 | CE7: =Timing!CE10 -> 0 | CF7: =Timing!CF10 -> 0 | CG7: =Timing!CG10 -> 0 | CH7: =Timing!CH10 -> 0 | CI7: =Timing!CI10 -> 0 | CJ7: =Timing!CJ10 -> 0 | CK7: =Timing!CK10 -> 0 | CL7: =Timing!CL10 -> 0 | CM7: =Timing!CM10 -> 0 | CN7: =Timing!CN10 -> 0 | CO7: =Timing!CO10 -> 0 | CP7: =Timing!CP10 -> 0 | CQ7: =Timing!CQ10 -> 0 | CR7: =Timing!CR10 -> 0 | CS7: =Timing!CS10 -> 0 | CT7: =Timing!CT10 -> 0 | CU7: =Timing!CU10 -> 0 | CV7: =Timing!CV10 -> 0 | CW7: =Timing!CW10 -> 0 | CX7: =Timing!CX10 -> 0 | CY7: =Timing!CY10 -> 0 | CZ7: =Timing!CZ10 -> 0 | DA7: =Timing!DA10 -> 0 | DB7: =Timing!DB10 -> 0 | DC7: =Timing!DC10 -> 0 | DD7: =Timing!DD10 -> 0 | DE7: =Timing!DE10 -> 0 | DF7: =Timing!DF10 -> 0 | DG7: =Timing!DG10 -> 0 | DH7: =Timing!DH10 -> 0 | DI7: =Timing!DI10 -> 0 | DJ7: =Timing!DJ10 -> 0 | DK7: =Timing!DK10 -> 0 | DL7: =Timing!DL10 -> 0 | DM7: =Timing!DM10 -> 0 | DN7: =Timing!DN10 -> 0 | DO7: =Timing!DO10 -> 0 | DP7: =Timing!DP10 -> 0 | DQ7: =Timing!DQ10 -> 0 | DR7: =Timing!DR10 -> 0 | DS7: =Timing!DS10 -> 0 | DT7: =Timing!DT10 -> 0 | DU7: =Timing!DU10 -> 0 | DV7: =Timing!DV10 -> 0 | DW7: =Timing!DW10 -> 0 | DX7: =Timing!DX10 -> 0 | DY7: =Timing!DY10 -> 0 | DZ7: =Timing!DZ10 -> 0 | EA7: =Timing!EA10 -> 0 | EB7: =Timing!EB10 -> 0 | EC7: =Timing!EC10 -> 0 | ED7: =Timing!ED10 -> 0 | EE7: =Timing!EE10 -> 0 | EF7: =Timing!EF10 -> 0 | EG7: =Timing!EG10 -> 0 | EH7: =Timing!EH10 -> 0 | EI7: =Timing!EI10 -> 0 | EJ7: =Timing!EJ10 -> 0 | EK7: =Timing!EK10 -> 0
C8: =Timing!C11 -> Care & maintenance | D8: 2019-10-01 | E8: 2020-09-30 | J8: =Timing!J11 -> 0 | K8: =Timing!K11 -> 0 | L8: =Timing!L11 -> 0 | M8: =Timing!M11 -> 0 | N8: =Timing!N11 -> 0 | O8: =Timing!O11 -> 1 | P8: =Timing!P11 -> 1 | Q8: =Timing!Q11 -> 1 | R8: =Timing!R11 -> 1 | S8: =Timing!S11 -> 0 | T8: =Timing!T11 -> 0 | U8: =Timing!U11 -> 0 | V8: =Timing!V11 -> 0 | W8: =Timing!W11 -> 0 | X8: =Timing!X11 -> 0 | Y8: =Timing!Y11 -> 0 | Z8: =Timing!Z11 -> 0 | AA8: =Timing!AA11 -> 0 | AB8: =Timing!AB11 -> 0 | AC8: =Timing!AC11 -> 0 | AD8: =Timing!AD11 -> 0 | AE8: =Timing!AE11 -> 0 | AF8: =Timing!AF11 -> 0 | AG8: =Timing!AG11 -> 0 | AH8: =Timing!AH11 -> 0 | AI8: =Timing!AI11 -> 0 | AJ8: =Timing!AJ11 -> 0 | AK8: =Timing!AK11 -> 0 | AL8: =Timing!AL11 -> 0 | AM8: =Timing!AM11 -> 0 | AN8: =Timing!AN11 -> 0 | AO8: =Timing!AO11 -> 0 | AP8: =Timing!AP11 -> 0 | AQ8: =Timing!AQ11 -> 0 | AR8: =Timing!AR11 -> 0 | AS8: =Timing!AS11 -> 0 | AT8: =Timing!AT11 -> 0 | AU8: =Timing!AU11 -> 0 | AV8: =Timing!AV11 -> 0 | AW8: =Timing!AW11 -> 0 | AX8: =Timing!AX11 -> 0 | AY8: =Timing!AY11 -> 0 | AZ8: =Timing!AZ11 -> 0 | BA8: =Timing!BA11 -> 0 | BB8: =Timing!BB11 -> 0 | BC8: =Timing!BC11 -> 0 | BD8: =Timing!BD11 -> 0 | BE8: =Timing!BE11 -> 0 | BF8: =Timing!BF11 -> 0 | BG8: =Timing!BG11 -> 0 | BH8: =Timing!BH11 -> 0 | BI8: =Timing!BI11 -> 0 | BJ8: =Timing!BJ11 -> 0 | BK8: =Timing!BK11 -> 0 | BL8: =Timing!BL11 -> 0 | BM8: =Timing!BM11 -> 0 | BN8: =Timing!BN11 -> 0 | BO8: =Timing!BO11 -> 0 | BP8: =Timing!BP11 -> 0 | BQ8: =Timing!BQ11 -> 0 | BR8: =Timing!BR11 -> 0 | BS8: =Timing!BS11 -> 0 | BT8: =Timing!BT11 -> 0 | BU8: =Timing!BU11 -> 0 | BV8: =Timing!BV11 -> 0 | BW8: =Timing!BW11 -> 0 | BX8: =Timing!BX11 -> 0 | BY8: =Timing!BY11 -> 0 | BZ8: =Timing!BZ11 -> 0 | CA8: =Timing!CA11 -> 0 | CB8: =Timing!CB11 -> 0 | CC8: =Timing!CC11 -> 0 | CD8: =Timing!CD11 -> 0 | CE8: =Timing!CE11 -> 0 | CF8: =Timing!CF11 -> 0 | CG8: =Timing!CG11 -> 0 | CH8: =Timing!CH11 -> 0 | CI8: =Timing!CI11 -> 0 | CJ8: =Timing!CJ11 -> 0 | CK8: =Timing!CK11 -> 0 | CL8: =Timing!CL11 -> 0 | CM8: =Timing!CM11 -> 0 | CN8: =Timing!CN11 -> 0 | CO8: =Timing!CO11 -> 0 | CP8: =Timing!CP11 -> 0 | CQ8: =Timing!CQ11 -> 0 | CR8: =Timing!CR11 -> 0 | CS8: =Timing!CS11 -> 0 | CT8: =Timing!CT11 -> 0 | CU8: =Timing!CU11 -> 0 | CV8: =Timing!CV11 -> 0 | CW8: =Timing!CW11 -> 0 | CX8: =Timing!CX11 -> 0 | CY8: =Timing!CY11 -> 0 | CZ8: =Timing!CZ11 -> 0 | DA8: =Timing!DA11 -> 0 | DB8: =Timing!DB11 -> 0 | DC8: =Timing!DC11 -> 0 | DD8: =Timing!DD11 -> 0 | DE8: =Timing!DE11 -> 0 | DF8: =Timing!DF11 -> 0 | DG8: =Timing!DG11 -> 0 | DH8: =Timing!DH11 -> 0 | DI8: =Timing!DI11 -> 0 | DJ8: =Timing!DJ11 -> 0 | DK8: =Timing!DK11 -> 0 | DL8: =Timing!DL11 -> 0 | DM8: =Timing!DM11 -> 0 | DN8: =Timing!DN11 -> 0 | DO8: =Timing!DO11 -> 0 | DP8: =Timing!DP11 -> 0 | DQ8: =Timing!DQ11 -> 0 | DR8: =Timing!DR11 -> 0 | DS8: =Timing!DS11 -> 0 | DT8: =Timing!DT11 -> 0 | DU8: =Timing!DU11 -> 0 | DV8: =Timing!DV11 -> 0 | DW8: =Timing!DW11 -> 0 | DX8: =Timing!DX11 -> 0 | DY8: =Timing!DY11 -> 0 | DZ8: =Timing!DZ11 -> 0 | EA8: =Timing!EA11 -> 0 | EB8: =Timing!EB11 -> 0 | EC8: =Timing!EC11 -> 0 | ED8: =Timing!ED11 -> 0 | EE8: =Timing!EE11 -> 0 | EF8: =Timing!EF11 -> 0 | EG8: =Timing!EG11 -> 0 | EH8: =Timing!EH11 -> 0 | EI8: =Timing!EI11 -> 0 | EJ8: =Timing!EJ11 -> 0 | EK8: =Timing!EK11 -> 0
C9: =Timing!C12 -> Restart from C&M | D9: 2020-10-01 | E9: 2021-03-31 | J9: =Timing!J12 -> 0 | K9: =Timing!K12 -> 0 | L9: =Timing!L12 -> 0 | M9: =Timing!M12 -> 0 | N9: =Timing!N12 -> 0 | O9: =Timing!O12 -> 0 | P9: =Timing!P12 -> 0 | Q9: =Timing!Q12 -> 0 | R9: =Timing!R12 -> 0 | S9: =Timing!S12 -> 1 | T9: =Timing!T12 -> 1 | U9: =Timing!U12 -> 0 | V9: =Timing!V12 -> 0 | W9: =Timing!W12 -> 0 | X9: =Timing!X12 -> 0 | Y9: =Timing!Y12 -> 0 | Z9: =Timing!Z12 -> 0 | AA9: =Timing!AA12 -> 0 | AB9: =Timing!AB12 -> 0 | AC9: =Timing!AC12 -> 0 | AD9: =Timing!AD12 -> 0 | AE9: =Timing!AE12 -> 0 | AF9: =Timing!AF12 -> 0 | AG9: =Timing!AG12 -> 0 | AH9: =Timing!AH12 -> 0 | AI9: =Timing!AI12 -> 0 | AJ9: =Timing!AJ12 -> 0 | AK9: =Timing!AK12 -> 0 | AL9: =Timing!AL12 -> 0 | AM9: =Timing!AM12 -> 0 | AN9: =Timing!AN12 -> 0 | AO9: =Timing!AO12 -> 0 | AP9: =Timing!AP12 -> 0 | AQ9: =Timing!AQ12 -> 0 | AR9: =Timing!AR12 -> 0 | AS9: =Timing!AS12 -> 0 | AT9: =Timing!AT12 -> 0 | AU9: =Timing!AU12 -> 0 | AV9: =Timing!AV12 -> 0 | AW9: =Timing!AW12 -> 0 | AX9: =Timing!AX12 -> 0 | AY9: =Timing!AY12 -> 0 | AZ9: =Timing!AZ12 -> 0 | BA9: =Timing!BA12 -> 0 | BB9: =Timing!BB12 -> 0 | BC9: =Timing!BC12 -> 0 | BD9: =Timing!BD12 -> 0 | BE9: =Timing!BE12 -> 0 | BF9: =Timing!BF12 -> 0 | BG9: =Timing!BG12 -> 0 | BH9: =Timing!BH12 -> 0 | BI9: =Timing!BI12 -> 0 | BJ9: =Timing!BJ12 -> 0 | BK9: =Timing!BK12 -> 0 | BL9: =Timing!BL12 -> 0 | BM9: =Timing!BM12 -> 0 | BN9: =Timing!BN12 -> 0 | BO9: =Timing!BO12 -> 0 | BP9: =Timing!BP12 -> 0 | BQ9: =Timing!BQ12 -> 0 | BR9: =Timing!BR12 -> 0 | BS9: =Timing!BS12 -> 0 | BT9: =Timing!BT12 -> 0 | BU9: =Timing!BU12 -> 0 | BV9: =Timing!BV12 -> 0 | BW9: =Timing!BW12 -> 0 | BX9: =Timing!BX12 -> 0 | BY9: =Timing!BY12 -> 0 | BZ9: =Timing!BZ12 -> 0 | CA9: =Timing!CA12 -> 0 | CB9: =Timing!CB12 -> 0 | CC9: =Timing!CC12 -> 0 | CD9: =Timing!CD12 -> 0 | CE9: =Timing!CE12 -> 0 | CF9: =Timing!CF12 -> 0 | CG9: =Timing!CG12 -> 0 | CH9: =Timing!CH12 -> 0 | CI9: =Timing!CI12 -> 0 | CJ9: =Timing!CJ12 -> 0 | CK9: =Timing!CK12 -> 0 | CL9: =Timing!CL12 -> 0 | CM9: =Timing!CM12 -> 0 | CN9: =Timing!CN12 -> 0 | CO9: =Timing!CO12 -> 0 | CP9: =Timing!CP12 -> 0 | CQ9: =Timing!CQ12 -> 0 | CR9: =Timing!CR12 -> 0 | CS9: =Timing!CS12 -> 0 | CT9: =Timing!CT12 -> 0 | CU9: =Timing!CU12 -> 0 | CV9: =Timing!CV12 -> 0 | CW9: =Timing!CW12 -> 0 | CX9: =Timing!CX12 -> 0 | CY9: =Timing!CY12 -> 0 | CZ9: =Timing!CZ12 -> 0 | DA9: =Timing!DA12 -> 0 | DB9: =Timing!DB12 -> 0 | DC9: =Timing!DC12 -> 0 | DD9: =Timing!DD12 -> 0 | DE9: =Timing!DE12 -> 0 | DF9: =Timing!DF12 -> 0 | DG9: =Timing!DG12 -> 0 | DH9: =Timing!DH12 -> 0 | DI9: =Timing!DI12 -> 0 | DJ9: =Timing!DJ12 -> 0 | DK9: =Timing!DK12 -> 0 | DL9: =Timing!DL12 -> 0 | DM9: =Timing!DM12 -> 0 | DN9: =Timing!DN12 -> 0 | DO9: =Timing!DO12 -> 0 | DP9: =Timing!DP12 -> 0 | DQ9: =Timing!DQ12 -> 0 | DR9: =Timing!DR12 -> 0 | DS9: =Timing!DS12 -> 0 | DT9: =Timing!DT12 -> 0 | DU9: =Timing!DU12 -> 0 | DV9: =Timing!DV12 -> 0 | DW9: =Timing!DW12 -> 0 | DX9: =Timing!DX12 -> 0 | DY9: =Timing!DY12 -> 0 | DZ9: =Timing!DZ12 -> 0 | EA9: =Timing!EA12 -> 0 | EB9: =Timing!EB12 -> 0 | EC9: =Timing!EC12 -> 0 | ED9: =Timing!ED12 -> 0 | EE9: =Timing!EE12 -> 0 | EF9: =Timing!EF12 -> 0 | EG9: =Timing!EG12 -> 0 | EH9: =Timing!EH12 -> 0 | EI9: =Timing!EI12 -> 0 | EJ9: =Timing!EJ12 -> 0 | EK9: =Timing!EK12 -> 0
C10: =Timing!C13 -> Production | D10: 2021-04-01 | E10: 2044-10-31 | J10: =Timing!J13 -> 0 | K10: =Timing!K13 -> 0 | L10: =Timing!L13 -> 0 | M10: =Timing!M13 -> 0 | N10: =Timing!N13 -> 0 | O10: =Timing!O13 -> 0 | P10: =Timing!P13 -> 0 | Q10: =Timing!Q13 -> 0 | R10: =Timing!R13 -> 0 | S10: =Timing!S13 -> 0 | T10: =Timing!T13 -> 0 | U10: =Timing!U13 -> 1 | V10: =Timing!V13 -> 1 | W10: =Timing!W13 -> 1 | X10: =Timing!X13 -> 1 | Y10: =Timing!Y13 -> 1 | Z10: =Timing!Z13 -> 1 | AA10: =Timing!AA13 -> 1 | AB10: =Timing!AB13 -> 1 | AC10: =Timing!AC13 -> 1 | AD10: =Timing!AD13 -> 1 | AE10: =Timing!AE13 -> 1 | AF10: =Timing!AF13 -> 1 | AG10: =Timing!AG13 -> 1 | AH10: =Timing!AH13 -> 1 | AI10: =Timing!AI13 -> 1 | AJ10: =Timing!AJ13 -> 1 | AK10: =Timing!AK13 -> 1 | AL10: =Timing!AL13 -> 1 | AM10: =Timing!AM13 -> 1 | AN10: =Timing!AN13 -> 1 | AO10: =Timing!AO13 -> 1 | AP10: =Timing!AP13 -> 1 | AQ10: =Timing!AQ13 -> 1 | AR10: =Timing!AR13 -> 1 | AS10: =Timing!AS13 -> 1 | AT10: =Timing!AT13 -> 1 | AU10: =Timing!AU13 -> 1 | AV10: =Timing!AV13 -> 1 | AW10: =Timing!AW13 -> 1 | AX10: =Timing!AX13 -> 1 | AY10: =Timing!AY13 -> 1 | AZ10: =Timing!AZ13 -> 1 | BA10: =Timing!BA13 -> 1 | BB10: =Timing!BB13 -> 1 | BC10: =Timing!BC13 -> 1 | BD10: =Timing!BD13 -> 1 | BE10: =Timing!BE13 -> 1 | BF10: =Timing!BF13 -> 1 | BG10: =Timing!BG13 -> 1 | BH10: =Timing!BH13 -> 1 | BI10: =Timing!BI13 -> 1 | BJ10: =Timing!BJ13 -> 1 | BK10: =Timing!BK13 -> 1 | BL10: =Timing!BL13 -> 1 | BM10: =Timing!BM13 -> 1 | BN10: =Timing!BN13 -> 1 | BO10: =Timing!BO13 -> 1 | BP10: =Timing!BP13 -> 1 | BQ10: =Timing!BQ13 -> 1 | BR10: =Timing!BR13 -> 1 | BS10: =Timing!BS13 -> 1 | BT10: =Timing!BT13 -> 1 | BU10: =Timing!BU13 -> 1 | BV10: =Timing!BV13 -> 1 | BW10: =Timing!BW13 -> 1 | BX10: =Timing!BX13 -> 1 | BY10: =Timing!BY13 -> 1 | BZ10: =Timing!BZ13 -> 1 | CA10: =Timing!CA13 -> 1 | CB10: =Timing!CB13 -> 1 | CC10: =Timing!CC13 -> 1 | CD10: =Timing!CD13 -> 1 | CE10: =Timing!CE13 -> 1 | CF10: =Timing!CF13 -> 1 | CG10: =Timing!CG13 -> 1 | CH10: =Timing!CH13 -> 1 | CI10: =Timing!CI13 -> 1 | CJ10: =Timing!CJ13 -> 1 | CK10: =Timing!CK13 -> 1 | CL10: =Timing!CL13 -> 1 | CM10: =Timing!CM13 -> 1 | CN10: =Timing!CN13 -> 1 | CO10: =Timing!CO13 -> 1 | CP10: =Timing!CP13 -> 1 | CQ10: =Timing!CQ13 -> 1 | CR10: =Timing!CR13 -> 1 | CS10: =Timing!CS13 -> 1 | CT10: =Timing!CT13 -> 1 | CU10: =Timing!CU13 -> 1 | CV10: =Timing!CV13 -> 1 | CW10: =Timing!CW13 -> 1 | CX10: =Timing!CX13 -> 1 | CY10: =Timing!CY13 -> 1 | CZ10: =Timing!CZ13 -> 1 | DA10: =Timing!DA13 -> 1 | DB10: =Timing!DB13 -> 1 | DC10: =Timing!DC13 -> 1 | DD10: =Timing!DD13 -> 1 | DE10: =Timing!DE13 -> 1 | DF10: =Timing!DF13 -> 1 | DG10: =Timing!DG13 -> 1 | DH10: =Timing!DH13 -> 1 | DI10: =Timing!DI13 -> 1 | DJ10: =Timing!DJ13 -> 1 | DK10: =Timing!DK13 -> 0 | DL10: =Timing!DL13 -> 0 | DM10: =Timing!DM13 -> 0 | DN10: =Timing!DN13 -> 0 | DO10: =Timing!DO13 -> 0 | DP10: =Timing!DP13 -> 0 | DQ10: =Timing!DQ13 -> 0 | DR10: =Timing!DR13 -> 0 | DS10: =Timing!DS13 -> 0 | DT10: =Timing!DT13 -> 0 | DU10: =Timing!DU13 -> 0 | DV10: =Timing!DV13 -> 0 | DW10: =Timing!DW13 -> 0 | DX10: =Timing!DX13 -> 0 | DY10: =Timing!DY13 -> 0 | DZ10: =Timing!DZ13 -> 0 | EA10: =Timing!EA13 -> 0 | EB10: =Timing!EB13 -> 0 | EC10: =Timing!EC13 -> 0 | ED10: =Timing!ED13 -> 0 | EE10: =Timing!EE13 -> 0 | EF10: =Timing!EF13 -> 0 | EG10: =Timing!EG13 -> 0 | EH10: =Timing!EH13 -> 0 | EI10: =Timing!EI13 -> 0 | EJ10: =Timing!EJ13 -> 0 | EK10: =Timing!EK13 -> 0
C11: =Timing!C14 -> Restoration | D11: 2044-11-01 | E11: 2046-11-30 | J11: =Timing!J14 -> 0 | K11: =Timing!K14 -> 0 | L11: =Timing!L14 -> 0 | M11: =Timing!M14 -> 0 | N11: =Timing!N14 -> 0 | O11: =Timing!O14 -> 0 | P11: =Timing!P14 -> 0 | Q11: =Timing!Q14 -> 0 | R11: =Timing!R14 -> 0 | S11: =Timing!S14 -> 0 | T11: =Timing!T14 -> 0 | U11: =Timing!U14 -> 0 | V11: =Timing!V14 -> 0 | W11: =Timing!W14 -> 0 | X11: =Timing!X14 -> 0 | Y11: =Timing!Y14 -> 0 | Z11: =Timing!Z14 -> 0 | AA11: =Timing!AA14 -> 0 | AB11: =Timing!AB14 -> 0 | AC11: =Timing!AC14 -> 0 | AD11: =Timing!AD14 -> 0 | AE11: =Timing!AE14 -> 0 | AF11: =Timing!AF14 -> 0 | AG11: =Timing!AG14 -> 0 | AH11: =Timing!AH14 -> 0 | AI11: =Timing!AI14 -> 0 | AJ11: =Timing!AJ14 -> 0 | AK11: =Timing!AK14 -> 0 | AL11: =Timing!AL14 -> 0 | AM11: =Timing!AM14 -> 0 | AN11: =Timing!AN14 -> 0 | AO11: =Timing!AO14 -> 0 | AP11: =Timing!AP14 -> 0 | AQ11: =Timing!AQ14 -> 0 | AR11: =Timing!AR14 -> 0 | AS11: =Timing!AS14 -> 0 | AT11: =Timing!AT14 -> 0 | AU11: =Timing!AU14 -> 0 | AV11: =Timing!AV14 -> 0 | AW11: =Timing!AW14 -> 0 | AX11: =Timing!AX14 -> 0 | AY11: =Timing!AY14 -> 0 | AZ11: =Timing!AZ14 -> 0 | BA11: =Timing!BA14 -> 0 | BB11: =Timing!BB14 -> 0 | BC11: =Timing!BC14 -> 0 | BD11: =Timing!BD14 -> 0 | BE11: =Timing!BE14 -> 0 | BF11: =Timing!BF14 -> 0 | BG11: =Timing!BG14 -> 0 | BH11: =Timing!BH14 -> 0 | BI11: =Timing!BI14 -> 0 | BJ11: =Timing!BJ14 -> 0 | BK11: =Timing!BK14 -> 0 | BL11: =Timing!BL14 -> 0 | BM11: =Timing!BM14 -> 0 | BN11: =Timing!BN14 -> 0 | BO11: =Timing!BO14 -> 0 | BP11: =Timing!BP14 -> 0 | BQ11: =Timing!BQ14 -> 0 | BR11: =Timing!BR14 -> 0 | BS11: =Timing!BS14 -> 0 | BT11: =Timing!BT14 -> 0 | BU11: =Timing!BU14 -> 0 | BV11: =Timing!BV14 -> 0 | BW11: =Timing!BW14 -> 0 | BX11: =Timing!BX14 -> 0 | BY11: =Timing!BY14 -> 0 | BZ11: =Timing!BZ14 -> 0 | CA11: =Timing!CA14 -> 0 | CB11: =Timing!CB14 -> 0 | CC11: =Timing!CC14 -> 0 | CD11: =Timing!CD14 -> 0 | CE11: =Timing!CE14 -> 0 | CF11: =Timing!CF14 -> 0 | CG11: =Timing!CG14 -> 0 | CH11: =Timing!CH14 -> 0 | CI11: =Timing!CI14 -> 0 | CJ11: =Timing!CJ14 -> 0 | CK11: =Timing!CK14 -> 0 | CL11: =Timing!CL14 -> 0 | CM11: =Timing!CM14 -> 0 | CN11: =Timing!CN14 -> 0 | CO11: =Timing!CO14 -> 0 | CP11: =Timing!CP14 -> 0 | CQ11: =Timing!CQ14 -> 0 | CR11: =Timing!CR14 -> 0 | CS11: =Timing!CS14 -> 0 | CT11: =Timing!CT14 -> 0 | CU11: =Timing!CU14 -> 0 | CV11: =Timing!CV14 -> 0 | CW11: =Timing!CW14 -> 0 | CX11: =Timing!CX14 -> 0 | CY11: =Timing!CY14 -> 0 | CZ11: =Timing!CZ14 -> 0 | DA11: =Timing!DA14 -> 0 | DB11: =Timing!DB14 -> 0 | DC11: =Timing!DC14 -> 0 | DD11: =Timing!DD14 -> 0 | DE11: =Timing!DE14 -> 0 | DF11: =Timing!DF14 -> 0 | DG11: =Timing!DG14 -> 0 | DH11: =Timing!DH14 -> 0 | DI11: =Timing!DI14 -> 0 | DJ11: =Timing!DJ14 -> 0 | DK11: =Timing!DK14 -> 0 | DL11: =Timing!DL14 -> 1 | DM11: =Timing!DM14 -> 1 | DN11: =Timing!DN14 -> 1 | DO11: =Timing!DO14 -> 1 | DP11: =Timing!DP14 -> 1 | DQ11: =Timing!DQ14 -> 1 | DR11: =Timing!DR14 -> 1 | DS11: =Timing!DS14 -> 0 | DT11: =Timing!DT14 -> 0 | DU11: =Timing!DU14 -> 0 | DV11: =Timing!DV14 -> 0 | DW11: =Timing!DW14 -> 0 | DX11: =Timing!DX14 -> 0 | DY11: =Timing!DY14 -> 0 | DZ11: =Timing!DZ14 -> 0 | EA11: =Timing!EA14 -> 0 | EB11: =Timing!EB14 -> 0 | EC11: =Timing!EC14 -> 0 | ED11: =Timing!ED14 -> 0 | EE11: =Timing!EE14 -> 0 | EF11: =Timing!EF14 -> 0 | EG11: =Timing!EG14 -> 0 | EH11: =Timing!EH14 -> 0 | EI11: =Timing!EI14 -> 0 | EJ11: =Timing!EJ14 -> 0 | EK11: =Timing!EK14 -> 0
C13: Counters
C14: LHM
C15: =C6 -> Production | D15: Num# | J15: =MAX(Timing!J27,Timing!J31) -> 1 | K15: =MAX(Timing!K27,Timing!K31) -> 2 | L15: =MAX(Timing!L27,Timing!L31) -> 3 | M15: =MAX(Timing!M27,Timing!M31) -> 4 | N15: =MAX(Timing!N27,Timing!N31) -> 0 | O15: =MAX(Timing!O27,Timing!O31) -> 0 | P15: =MAX(Timing!P27,Timing!P31) -> 0 | Q15: =MAX(Timing!Q27,Timing!Q31) -> 0 | R15: =MAX(Timing!R27,Timing!R31) -> 0 | S15: =MAX(Timing!S27,Timing!S31) -> 0 | T15: =MAX(Timing!T27,Timing!T31) -> 0 | U15: =MAX(Timing!U27,Timing!U31) -> 1 | V15: =MAX(Timing!V27,Timing!V31) -> 2 | W15: =MAX(Timing!W27,Timing!W31) -> 3 | X15: =MAX(Timing!X27,Timing!X31) -> 4 | Y15: =MAX(Timing!Y27,Timing!Y31) -> 5 | Z15: =MAX(Timing!Z27,Timing!Z31) -> 6 | AA15: =MAX(Timing!AA27,Timing!AA31) -> 7 | AB15: =MAX(Timing!AB27,Timing!AB31) -> 8 | AC15: =MAX(Timing!AC27,Timing!AC31) -> 9 | AD15: =MAX(Timing!AD27,Timing!AD31) -> 10 | AE15: =MAX(Timing!AE27,Timing!AE31) -> 11 | AF15: =MAX(Timing!AF27,Timing!AF31) -> 12 | AG15: =MAX(Timing!AG27,Timing!AG31) -> 13 | AH15: =MAX(Timing!AH27,Timing!AH31) -> 14 | AI15: =MAX(Timing!AI27,Timing!AI31) -> 15 | AJ15: =MAX(Timing!AJ27,Timing!AJ31) -> 16 | AK15: =MAX(Timing!AK27,Timing!AK31) -> 17 | AL15: =MAX(Timing!AL27,Timing!AL31) -> 18 | AM15: =MAX(Timing!AM27,Timing!AM31) -> 19 | AN15: =MAX(Timing!AN27,Timing!AN31) -> 20 | AO15: =MAX(Timing!AO27,Timing!AO31) -> 21 | AP15: =MAX(Timing!AP27,Timing!AP31) -> 22 | AQ15: =MAX(Timing!AQ27,Timing!AQ31) -> 23 | AR15: =MAX(Timing!AR27,Timing!AR31) -> 24 | AS15: =MAX(Timing!AS27,Timing!AS31) -> 25 | AT15: =MAX(Timing!AT27,Timing!AT31) -> 26 | AU15: =MAX(Timing!AU27,Timing!AU31) -> 27 | AV15: =MAX(Timing!AV27,Timing!AV31) -> 28 | AW15: =MAX(Timing!AW27,Timing!AW31) -> 29 | AX15: =MAX(Timing!AX27,Timing!AX31) -> 30 | AY15: =MAX(Timing!AY27,Timing!AY31) -> 31 | AZ15: =MAX(Timing!AZ27,Timing!AZ31) -> 32 | BA15: =MAX(Timing!BA27,Timing!BA31) -> 33 | BB15: =MAX(Timing!BB27,Timing!BB31) -> 34 | BC15: =MAX(Timing!BC27,Timing!BC31) -> 35 | BD15: =MAX(Timing!BD27,Timing!BD31) -> 36 | BE15: =MAX(Timing!BE27,Timing!BE31) -> 37 | BF15: =MAX(Timing!BF27,Timing!BF31) -> 38 | BG15: =MAX(Timing!BG27,Timing!BG31) -> 39 | BH15: =MAX(Timing!BH27,Timing!BH31) -> 40 | BI15: =MAX(Timing!BI27,Timing!BI31) -> 41 | BJ15: =MAX(Timing!BJ27,Timing!BJ31) -> 42 | BK15: =MAX(Timing!BK27,Timing!BK31) -> 43 | BL15: =MAX(Timing!BL27,Timing!BL31) -> 44 | BM15: =MAX(Timing!BM27,Timing!BM31) -> 45 | BN15: =MAX(Timing!BN27,Timing!BN31) -> 46 | BO15: =MAX(Timing!BO27,Timing!BO31) -> 47 | BP15: =MAX(Timing!BP27,Timing!BP31) -> 48 | BQ15: =MAX(Timing!BQ27,Timing!BQ31) -> 49 | BR15: =MAX(Timing!BR27,Timing!BR31) -> 50 | BS15: =MAX(Timing!BS27,Timing!BS31) -> 51 | BT15: =MAX(Timing!BT27,Timing!BT31) -> 52 | BU15: =MAX(Timing!BU27,Timing!BU31) -> 53 | BV15: =MAX(Timing!BV27,Timing!BV31) -> 54 | BW15: =MAX(Timing!BW27,Timing!BW31) -> 55 | BX15: =MAX(Timing!BX27,Timing!BX31) -> 56 | BY15: =MAX(Timing!BY27,Timing!BY31) -> 57 | BZ15: =MAX(Timing!BZ27,Timing!BZ31) -> 58 | CA15: =MAX(Timing!CA27,Timing!CA31) -> 59 | CB15: =MAX(Timing!CB27,Timing!CB31) -> 60 | CC15: =MAX(Timing!CC27,Timing!CC31) -> 61 | CD15: =MAX(Timing!CD27,Timing!CD31) -> 62 | CE15: =MAX(Timing!CE27,Timing!CE31) -> 63 | CF15: =MAX(Timing!CF27,Timing!CF31) -> 64 | CG15: =MAX(Timing!CG27,Timing!CG31) -> 65 | CH15: =MAX(Timing!CH27,Timing!CH31) -> 66 | CI15: =MAX(Timing!CI27,Timing!CI31) -> 67 | CJ15: =MAX(Timing!CJ27,Timing!CJ31) -> 68 | CK15: =MAX(Timing!CK27,Timing!CK31) -> 69 | CL15: =MAX(Timing!CL27,Timing!CL31) -> 70 | CM15: =MAX(Timing!CM27,Timing!CM31) -> 71 | CN15: =MAX(Timing!CN27,Timing!CN31) -> 72 | CO15: =MAX(Timing!CO27,Timing!CO31) -> 73 | CP15: =MAX(Timing!CP27,Timing!CP31) -> 74 | CQ15: =MAX(Timing!CQ27,Timing!CQ31) -> 75 | CR15: =MAX(Timing!CR27,Timing!CR31) -> 76 | CS15: =MAX(Timing!CS27,Timing!CS31) -> 77 | CT15: =MAX(Timing!CT27,Timing!CT31) -> 78 | CU15: =MAX(Timing!CU27,Timing!CU31) -> 79 | CV15: =MAX(Timing!CV27,Timing!CV31) -> 80 | CW15: =MAX(Timing!CW27,Timing!CW31) -> 81 | CX15: =MAX(Timing!CX27,Timing!CX31) -> 82 | CY15: =MAX(Timing!CY27,Timing!CY31) -> 83 | CZ15: =MAX(Timing!CZ27,Timing!CZ31) -> 84 | DA15: =MAX(Timing!DA27,Timing!DA31) -> 85 | DB15: =MAX(Timing!DB27,Timing!DB31) -> 86 | DC15: =MAX(Timing!DC27,Timing!DC31) -> 87 | DD15: =MAX(Timing!DD27,Timing!DD31) -> 88 | DE15: =MAX(Timing!DE27,Timing!DE31) -> 89 | DF15: =MAX(Timing!DF27,Timing!DF31) -> 90 | DG15: =MAX(Timing!DG27,Timing!DG31) -> 91 | DH15: =MAX(Timing!DH27,Timing!DH31) -> 92 | DI15: =MAX(Timing!DI27,Timing!DI31) -> 93 | DJ15: =MAX(Timing!DJ27,Timing!DJ31) -> 94 | DK15: =MAX(Timing!DK27,Timing!DK31) -> 0 | DL15: =MAX(Timing!DL27,Timing!DL31) -> 0 | DM15: =MAX(Timing!DM27,Timing!DM31) -> 0 | DN15: =MAX(Timing!DN27,Timing!DN31) -> 0 | DO15: =MAX(Timing!DO27,Timing!DO31) -> 0 | DP15: =MAX(Timing!DP27,Timing!DP31) -> 0 | DQ15: =MAX(Timing!DQ27,Timing!DQ31) -> 0 | DR15: =MAX(Timing!DR27,Timing!DR31) -> 0 | DS15: =MAX(Timing!DS27,Timing!DS31) -> 0 | DT15: =MAX(Timing!DT27,Timing!DT31) -> 0 | DU15: =MAX(Timing!DU27,Timing!DU31) -> 0 | DV15: =MAX(Timing!DV27,Timing!DV31) -> 0 | DW15: =MAX(Timing!DW27,Timing!DW31) -> 0 | DX15: =MAX(Timing!DX27,Timing!DX31) -> 0 | DY15: =MAX(Timing!DY27,Timing!DY31) -> 0 | DZ15: =MAX(Timing!DZ27,Timing!DZ31) -> 0 | EA15: =MAX(Timing!EA27,Timing!EA31) -> 0 | EB15: =MAX(Timing!EB27,Timing!EB31) -> 0 | EC15: =MAX(Timing!EC27,Timing!EC31) -> 0 | ED15: =MAX(Timing!ED27,Timing!ED31) -> 0 | EE15: =MAX(Timing!EE27,Timing!EE31) -> 0 | EF15: =MAX(Timing!EF27,Timing!EF31) -> 0 | EG15: =MAX(Timing!EG27,Timing!EG31) -> 0 | EH15: =MAX(Timing!EH27,Timing!EH31) -> 0 | EI15: =MAX(Timing!EI27,Timing!EI31) -> 0 | EJ15: =MAX(Timing!EJ27,Timing!EJ31) -> 0 | EK15: =MAX(Timing!EK27,Timing!EK31) -> 0
C17: BUP | D17: Num# | J17: =Timing!J25 -> 1 | K17: =Timing!K25 -> 2 | L17: =Timing!L25 -> 3 | M17: =Timing!M25 -> 4 | N17: =Timing!N25 -> 5 | O17: =Timing!O25 -> 6 | P17: =Timing!P25 -> 0 | Q17: =Timing!Q25 -> 0 | R17: =Timing!R25 -> 0 | S17: =Timing!S25 -> 0 | T17: =Timing!T25 -> 0 | U17: =Timing!U25 -> 0 | V17: =Timing!V25 -> 0 | W17: =Timing!W25 -> 0 | X17: =Timing!X25 -> 0 | Y17: =Timing!Y25 -> 0 | Z17: =Timing!Z25 -> 0 | AA17: =Timing!AA25 -> 0 | AB17: =Timing!AB25 -> 0 | AC17: =Timing!AC25 -> 0 | AD17: =Timing!AD25 -> 0 | AE17: =Timing!AE25 -> 0 | AF17: =Timing!AF25 -> 0 | AG17: =Timing!AG25 -> 0 | AH17: =Timing!AH25 -> 0 | AI17: =Timing!AI25 -> 0 | AJ17: =Timing!AJ25 -> 0 | AK17: =Timing!AK25 -> 0 | AL17: =Timing!AL25 -> 0 | AM17: =Timing!AM25 -> 0 | AN17: =Timing!AN25 -> 0 | AO17: =Timing!AO25 -> 0 | AP17: =Timing!AP25 -> 0 | AQ17: =Timing!AQ25 -> 0 | AR17: =Timing!AR25 -> 0 | AS17: =Timing!AS25 -> 0 | AT17: =Timing!AT25 -> 0 | AU17: =Timing!AU25 -> 0 | AV17: =Timing!AV25 -> 0 | AW17: =Timing!AW25 -> 0 | AX17: =Timing!AX25 -> 0 | AY17: =Timing!AY25 -> 0 | AZ17: =Timing!AZ25 -> 0 | BA17: =Timing!BA25 -> 0 | BB17: =Timing!BB25 -> 0 | BC17: =Timing!BC25 -> 0 | BD17: =Timing!BD25 -> 0 | BE17: =Timing!BE25 -> 0 | BF17: =Timing!BF25 -> 0 | BG17: =Timing!BG25 -> 0 | BH17: =Timing!BH25 -> 0 | BI17: =Timing!BI25 -> 0 | BJ17: =Timing!BJ25 -> 0 | BK17: =Timing!BK25 -> 0 | BL17: =Timing!BL25 -> 0 | BM17: =Timing!BM25 -> 0 | BN17: =Timing!BN25 -> 0 | BO17: =Timing!BO25 -> 0 | BP17: =Timing!BP25 -> 0 | BQ17: =Timing!BQ25 -> 0 | BR17: =Timing!BR25 -> 0 | BS17: =Timing!BS25 -> 0 | BT17: =Timing!BT25 -> 0 | BU17: =Timing!BU25 -> 0 | BV17: =Timing!BV25 -> 0 | BW17: =Timing!BW25 -> 0 | BX17: =Timing!BX25 -> 0 | BY17: =Timing!BY25 -> 0 | BZ17: =Timing!BZ25 -> 0 | CA17: =Timing!CA25 -> 0 | CB17: =Timing!CB25 -> 0 | CC17: =Timing!CC25 -> 0 | CD17: =Timing!CD25 -> 0 | CE17: =Timing!CE25 -> 0 | CF17: =Timing!CF25 -> 0 | CG17: =Timing!CG25 -> 0 | CH17: =Timing!CH25 -> 0 | CI17: =Timing!CI25 -> 0 | CJ17: =Timing!CJ25 -> 0 | CK17: =Timing!CK25 -> 0 | CL17: =Timing!CL25 -> 0 | CM17: =Timing!CM25 -> 0 | CN17: =Timing!CN25 -> 0 | CO17: =Timing!CO25 -> 0 | CP17: =Timing!CP25 -> 0 | CQ17: =Timing!CQ25 -> 0 | CR17: =Timing!CR25 -> 0 | CS17: =Timing!CS25 -> 0 | CT17: =Timing!CT25 -> 0 | CU17: =Timing!CU25 -> 0 | CV17: =Timing!CV25 -> 0 | CW17: =Timing!CW25 -> 0 | CX17: =Timing!CX25 -> 0 | CY17: =Timing!CY25 -> 0 | CZ17: =Timing!CZ25 -> 0 | DA17: =Timing!DA25 -> 0 | DB17: =Timing!DB25 -> 0 | DC17: =Timing!DC25 -> 0 | DD17: =Timing!DD25 -> 0 | DE17: =Timing!DE25 -> 0 | DF17: =Timing!DF25 -> 0 | DG17: =Timing!DG25 -> 0 | DH17: =Timing!DH25 -> 0 | DI17: =Timing!DI25 -> 0 | DJ17: =Timing!DJ25 -> 0 | DK17: =Timing!DK25 -> 0 | DL17: =Timing!DL25 -> 0 | DM17: =Timing!DM25 -> 0 | DN17: =Timing!DN25 -> 0 | DO17: =Timing!DO25 -> 0 | DP17: =Timing!DP25 -> 0 | DQ17: =Timing!DQ25 -> 0 | DR17: =Timing!DR25 -> 0 | DS17: =Timing!DS25 -> 0 | DT17: =Timing!DT25 -> 0 | DU17: =Timing!DU25 -> 0 | DV17: =Timing!DV25 -> 0 | DW17: =Timing!DW25 -> 0 | DX17: =Timing!DX25 -> 0 | DY17: =Timing!DY25 -> 0 | DZ17: =Timing!DZ25 -> 0 | EA17: =Timing!EA25 -> 0 | EB17: =Timing!EB25 -> 0 | EC17: =Timing!EC25 -> 0 | ED17: =Timing!ED25 -> 0 | EE17: =Timing!EE25 -> 0 | EF17: =Timing!EF25 -> 0 | EG17: =Timing!EG25 -> 0 | EH17: =Timing!EH25 -> 0 | EI17: =Timing!EI25 -> 0 | EJ17: =Timing!EJ25 -> 0 | EK17: =Timing!EK25 -> 0
C18: Care & Maintenance | D18: Num# | J18: =Timing!J28 -> 0 | K18: =Timing!K28 -> 0 | L18: =Timing!L28 -> 0 | M18: =Timing!M28 -> 0 | N18: =Timing!N28 -> 1 | O18: =Timing!O28 -> 0 | P18: =Timing!P28 -> 0 | Q18: =Timing!Q28 -> 0 | R18: =Timing!R28 -> 0 | S18: =Timing!S28 -> 0 | T18: =Timing!T28 -> 0 | U18: =Timing!U28 -> 0 | V18: =Timing!V28 -> 0 | W18: =Timing!W28 -> 0 | X18: =Timing!X28 -> 0 | Y18: =Timing!Y28 -> 0 | Z18: =Timing!Z28 -> 0 | AA18: =Timing!AA28 -> 0 | AB18: =Timing!AB28 -> 0 | AC18: =Timing!AC28 -> 0 | AD18: =Timing!AD28 -> 0 | AE18: =Timing!AE28 -> 0 | AF18: =Timing!AF28 -> 0 | AG18: =Timing!AG28 -> 0 | AH18: =Timing!AH28 -> 0 | AI18: =Timing!AI28 -> 0 | AJ18: =Timing!AJ28 -> 0 | AK18: =Timing!AK28 -> 0 | AL18: =Timing!AL28 -> 0 | AM18: =Timing!AM28 -> 0 | AN18: =Timing!AN28 -> 0 | AO18: =Timing!AO28 -> 0 | AP18: =Timing!AP28 -> 0 | AQ18: =Timing!AQ28 -> 0 | AR18: =Timing!AR28 -> 0 | AS18: =Timing!AS28 -> 0 | AT18: =Timing!AT28 -> 0 | AU18: =Timing!AU28 -> 0 | AV18: =Timing!AV28 -> 0 | AW18: =Timing!AW28 -> 0 | AX18: =Timing!AX28 -> 0 | AY18: =Timing!AY28 -> 0 | AZ18: =Timing!AZ28 -> 0 | BA18: =Timing!BA28 -> 0 | BB18: =Timing!BB28 -> 0 | BC18: =Timing!BC28 -> 0 | BD18: =Timing!BD28 -> 0 | BE18: =Timing!BE28 -> 0 | BF18: =Timing!BF28 -> 0 | BG18: =Timing!BG28 -> 0 | BH18: =Timing!BH28 -> 0 | BI18: =Timing!BI28 -> 0 | BJ18: =Timing!BJ28 -> 0 | BK18: =Timing!BK28 -> 0 | BL18: =Timing!BL28 -> 0 | BM18: =Timing!BM28 -> 0 | BN18: =Timing!BN28 -> 0 | BO18: =Timing!BO28 -> 0 | BP18: =Timing!BP28 -> 0 | BQ18: =Timing!BQ28 -> 0 | BR18: =Timing!BR28 -> 0 | BS18: =Timing!BS28 -> 0 | BT18: =Timing!BT28 -> 0 | BU18: =Timing!BU28 -> 0 | BV18: =Timing!BV28 -> 0 | BW18: =Timing!BW28 -> 0 | BX18: =Timing!BX28 -> 0 | BY18: =Timing!BY28 -> 0 | BZ18: =Timing!BZ28 -> 0 | CA18: =Timing!CA28 -> 0 | CB18: =Timing!CB28 -> 0 | CC18: =Timing!CC28 -> 0 | CD18: =Timing!CD28 -> 0 | CE18: =Timing!CE28 -> 0 | CF18: =Timing!CF28 -> 0 | CG18: =Timing!CG28 -> 0 | CH18: =Timing!CH28 -> 0 | CI18: =Timing!CI28 -> 0 | CJ18: =Timing!CJ28 -> 0 | CK18: =Timing!CK28 -> 0 | CL18: =Timing!CL28 -> 0 | CM18: =Timing!CM28 -> 0 | CN18: =Timing!CN28 -> 0 | CO18: =Timing!CO28 -> 0 | CP18: =Timing!CP28 -> 0 | CQ18: =Timing!CQ28 -> 0 | CR18: =Timing!CR28 -> 0 | CS18: =Timing!CS28 -> 0 | CT18: =Timing!CT28 -> 0 | CU18: =Timing!CU28 -> 0 | CV18: =Timing!CV28 -> 0 | CW18: =Timing!CW28 -> 0 | CX18: =Timing!CX28 -> 0 | CY18: =Timing!CY28 -> 0 | CZ18: =Timing!CZ28 -> 0 | DA18: =Timing!DA28 -> 0 | DB18: =Timing!DB28 -> 0 | DC18: =Timing!DC28 -> 0 | DD18: =Timing!DD28 -> 0 | DE18: =Timing!DE28 -> 0 | DF18: =Timing!DF28 -> 0 | DG18: =Timing!DG28 -> 0 | DH18: =Timing!DH28 -> 0 | DI18: =Timing!DI28 -> 0 | DJ18: =Timing!DJ28 -> 0 | DK18: =Timing!DK28 -> 0 | DL18: =Timing!DL28 -> 0 | DM18: =Timing!DM28 -> 0 | DN18: =Timing!DN28 -> 0 | DO18: =Timing!DO28 -> 0 | DP18: =Timing!DP28 -> 0 | DQ18: =Timing!DQ28 -> 0 | DR18: =Timing!DR28 -> 0 | DS18: =Timing!DS28 -> 0 | DT18: =Timing!DT28 -> 0 | DU18: =Timing!DU28 -> 0 | DV18: =Timing!DV28 -> 0 | DW18: =Timing!DW28 -> 0 | DX18: =Timing!DX28 -> 0 | DY18: =Timing!DY28 -> 0 | DZ18: =Timing!DZ28 -> 0 | EA18: =Timing!EA28 -> 0 | EB18: =Timing!EB28 -> 0 | EC18: =Timing!EC28 -> 0 | ED18: =Timing!ED28 -> 0 | EE18: =Timing!EE28 -> 0 | EF18: =Timing!EF28 -> 0 | EG18: =Timing!EG28 -> 0 | EH18: =Timing!EH28 -> 0 | EI18: =Timing!EI28 -> 0 | EJ18: =Timing!EJ28 -> 0 | EK18: =Timing!EK28 -> 0
C19: ='Inputs - 2'!C32 -> Restart from C&M | D19: Num# | J19: =Timing!J30 -> 0 | K19: =Timing!K30 -> 0 | L19: =Timing!L30 -> 0 | M19: =Timing!M30 -> 0 | N19: =Timing!N30 -> 0 | O19: =Timing!O30 -> 0 | P19: =Timing!P30 -> 0 | Q19: =Timing!Q30 -> 0 | R19: =Timing!R30 -> 0 | S19: =Timing!S30 -> 1 | T19: =Timing!T30 -> 2 | U19: =Timing!U30 -> 0 | V19: =Timing!V30 -> 0 | W19: =Timing!W30 -> 0 | X19: =Timing!X30 -> 0 | Y19: =Timing!Y30 -> 0 | Z19: =Timing!Z30 -> 0 | AA19: =Timing!AA30 -> 0 | AB19: =Timing!AB30 -> 0 | AC19: =Timing!AC30 -> 0 | AD19: =Timing!AD30 -> 0 | AE19: =Timing!AE30 -> 0 | AF19: =Timing!AF30 -> 0 | AG19: =Timing!AG30 -> 0 | AH19: =Timing!AH30 -> 0 | AI19: =Timing!AI30 -> 0 | AJ19: =Timing!AJ30 -> 0 | AK19: =Timing!AK30 -> 0 | AL19: =Timing!AL30 -> 0 | AM19: =Timing!AM30 -> 0 | AN19: =Timing!AN30 -> 0 | AO19: =Timing!AO30 -> 0 | AP19: =Timing!AP30 -> 0 | AQ19: =Timing!AQ30 -> 0 | AR19: =Timing!AR30 -> 0 | AS19: =Timing!AS30 -> 0 | AT19: =Timing!AT30 -> 0 | AU19: =Timing!AU30 -> 0 | AV19: =Timing!AV30 -> 0 | AW19: =Timing!AW30 -> 0 | AX19: =Timing!AX30 -> 0 | AY19: =Timing!AY30 -> 0 | AZ19: =Timing!AZ30 -> 0 | BA19: =Timing!BA30 -> 0 | BB19: =Timing!BB30 -> 0 | BC19: =Timing!BC30 -> 0 | BD19: =Timing!BD30 -> 0 | BE19: =Timing!BE30 -> 0 | BF19: =Timing!BF30 -> 0 | BG19: =Timing!BG30 -> 0 | BH19: =Timing!BH30 -> 0 | BI19: =Timing!BI30 -> 0 | BJ19: =Timing!BJ30 -> 0 | BK19: =Timing!BK30 -> 0 | BL19: =Timing!BL30 -> 0 | BM19: =Timing!BM30 -> 0 | BN19: =Timing!BN30 -> 0 | BO19: =Timing!BO30 -> 0 | BP19: =Timing!BP30 -> 0 | BQ19: =Timing!BQ30 -> 0 | BR19: =Timing!BR30 -> 0 | BS19: =Timing!BS30 -> 0 | BT19: =Timing!BT30 -> 0 | BU19: =Timing!BU30 -> 0 | BV19: =Timing!BV30 -> 0 | BW19: =Timing!BW30 -> 0 | BX19: =Timing!BX30 -> 0 | BY19: =Timing!BY30 -> 0 | BZ19: =Timing!BZ30 -> 0 | CA19: =Timing!CA30 -> 0 | CB19: =Timing!CB30 -> 0 | CC19: =Timing!CC30 -> 0 | CD19: =Timing!CD30 -> 0 | CE19: =Timing!CE30 -> 0 | CF19: =Timing!CF30 -> 0 | CG19: =Timing!CG30 -> 0 | CH19: =Timing!CH30 -> 0 | CI19: =Timing!CI30 -> 0 | CJ19: =Timing!CJ30 -> 0 | CK19: =Timing!CK30 -> 0 | CL19: =Timing!CL30 -> 0 | CM19: =Timing!CM30 -> 0 | CN19: =Timing!CN30 -> 0 | CO19: =Timing!CO30 -> 0 | CP19: =Timing!CP30 -> 0 | CQ19: =Timing!CQ30 -> 0 | CR19: =Timing!CR30 -> 0 | CS19: =Timing!CS30 -> 0 | CT19: =Timing!CT30 -> 0 | CU19: =Timing!CU30 -> 0 | CV19: =Timing!CV30 -> 0 | CW19: =Timing!CW30 -> 0 | CX19: =Timing!CX30 -> 0 | CY19: =Timing!CY30 -> 0 | CZ19: =Timing!CZ30 -> 0 | DA19: =Timing!DA30 -> 0 | DB19: =Timing!DB30 -> 0 | DC19: =Timing!DC30 -> 0 | DD19: =Timing!DD30 -> 0 | DE19: =Timing!DE30 -> 0 | DF19: =Timing!DF30 -> 0 | DG19: =Timing!DG30 -> 0 | DH19: =Timing!DH30 -> 0 | DI19: =Timing!DI30 -> 0 | DJ19: =Timing!DJ30 -> 0 | DK19: =Timing!DK30 -> 0 | DL19: =Timing!DL30 -> 0 | DM19: =Timing!DM30 -> 0 | DN19: =Timing!DN30 -> 0 | DO19: =Timing!DO30 -> 0 | DP19: =Timing!DP30 -> 0 | DQ19: =Timing!DQ30 -> 0 | DR19: =Timing!DR30 -> 0 | DS19: =Timing!DS30 -> 0 | DT19: =Timing!DT30 -> 0 | DU19: =Timing!DU30 -> 0 | DV19: =Timing!DV30 -> 0 | DW19: =Timing!DW30 -> 0 | DX19: =Timing!DX30 -> 0 | DY19: =Timing!DY30 -> 0 | DZ19: =Timing!DZ30 -> 0 | EA19: =Timing!EA30 -> 0 | EB19: =Timing!EB30 -> 0 | EC19: =Timing!EC30 -> 0 | ED19: =Timing!ED30 -> 0 | EE19: =Timing!EE30 -> 0 | EF19: =Timing!EF30 -> 0 | EG19: =Timing!EG30 -> 0 | EH19: =Timing!EH30 -> 0 | EI19: =Timing!EI30 -> 0 | EJ19: =Timing!EJ30 -> 0 | EK19: =Timing!EK30 -> 0
C20: Year | D20: Num# | J20: =Timing!J36 -> 2018 | K20: =Timing!K36 -> 2018 | L20: =Timing!L36 -> 2019 | M20: =Timing!M36 -> 2019 | N20: =Timing!N36 -> 2019 | O20: =Timing!O36 -> 2019 | P20: =Timing!P36 -> 2020 | Q20: =Timing!Q36 -> 2020 | R20: =Timing!R36 -> 2020 | S20: =Timing!S36 -> 2020 | T20: =Timing!T36 -> 2021 | U20: =Timing!U36 -> 2021 | V20: =Timing!V36 -> 2021 | W20: =Timing!W36 -> 2021 | X20: =Timing!X36 -> 2022 | Y20: =Timing!Y36 -> 2022 | Z20: =Timing!Z36 -> 2022 | AA20: =Timing!AA36 -> 2022 | AB20: =Timing!AB36 -> 2023 | AC20: =Timing!AC36 -> 2023 | AD20: =Timing!AD36 -> 2023 | AE20: =Timing!AE36 -> 2023 | AF20: =Timing!AF36 -> 2024 | AG20: =Timing!AG36 -> 2024 | AH20: =Timing!AH36 -> 2024 | AI20: =Timing!AI36 -> 2024 | AJ20: =Timing!AJ36 -> 2025 | AK20: =Timing!AK36 -> 2025 | AL20: =Timing!AL36 -> 2025 | AM20: =Timing!AM36 -> 2025 | AN20: =Timing!AN36 -> 2026 | AO20: =Timing!AO36 -> 2026 | AP20: =Timing!AP36 -> 2026 | AQ20: =Timing!AQ36 -> 2026 | AR20: =Timing!AR36 -> 2027 | AS20: =Timing!AS36 -> 2027 | AT20: =Timing!AT36 -> 2027 | AU20: =Timing!AU36 -> 2027 | AV20: =Timing!AV36 -> 2028 | AW20: =Timing!AW36 -> 2028 | AX20: =Timing!AX36 -> 2028 | AY20: =Timing!AY36 -> 2028 | AZ20: =Timing!AZ36 -> 2029 | BA20: =Timing!BA36 -> 2029 | BB20: =Timing!BB36 -> 2029 | BC20: =Timing!BC36 -> 2029 | BD20: =Timing!BD36 -> 2030 | BE20: =Timing!BE36 -> 2030 | BF20: =Timing!BF36 -> 2030 | BG20: =Timing!BG36 -> 2030 | BH20: =Timing!BH36 -> 2031 | BI20: =Timing!BI36 -> 2031 | BJ20: =Timing!BJ36 -> 2031 | BK20: =Timing!BK36 -> 2031 | BL20: =Timing!BL36 -> 2032 | BM20: =Timing!BM36 -> 2032 | BN20: =Timing!BN36 -> 2032 | BO20: =Timing!BO36 -> 2032 | BP20: =Timing!BP36 -> 2033 | BQ20: =Timing!BQ36 -> 2033 | BR20: =Timing!BR36 -> 2033 | BS20: =Timing!BS36 -> 2033 | BT20: =Timing!BT36 -> 2034 | BU20: =Timing!BU36 -> 2034 | BV20: =Timing!BV36 -> 2034 | BW20: =Timing!BW36 -> 2034 | BX20: =Timing!BX36 -> 2035 | BY20: =Timing!BY36 -> 2035 | BZ20: =Timing!BZ36 -> 2035 | CA20: =Timing!CA36 -> 2035 | CB20: =Timing!CB36 -> 2036 | CC20: =Timing!CC36 -> 2036 | CD20: =Timing!CD36 -> 2036 | CE20: =Timing!CE36 -> 2036 | CF20: =Timing!CF36 -> 2037 | CG20: =Timing!CG36 -> 2037 | CH20: =Timing!CH36 -> 2037 | CI20: =Timing!CI36 -> 2037 | CJ20: =Timing!CJ36 -> 2038 | CK20: =Timing!CK36 -> 2038 | CL20: =Timing!CL36 -> 2038 | CM20: =Timing!CM36 -> 2038 | CN20: =Timing!CN36 -> 2039 | CO20: =Timing!CO36 -> 2039 | CP20: =Timing!CP36 -> 2039 | CQ20: =Timing!CQ36 -> 2039 | CR20: =Timing!CR36 -> 2040 | CS20: =Timing!CS36 -> 2040 | CT20: =Timing!CT36 -> 2040 | CU20: =Timing!CU36 -> 2040 | CV20: =Timing!CV36 -> 2041 | CW20: =Timing!CW36 -> 2041 | CX20: =Timing!CX36 -> 2041 | CY20: =Timing!CY36 -> 2041 | CZ20: =Timing!CZ36 -> 2042 | DA20: =Timing!DA36 -> 2042 | DB20: =Timing!DB36 -> 2042 | DC20: =Timing!DC36 -> 2042 | DD20: =Timing!DD36 -> 2043 | DE20: =Timing!DE36 -> 2043 | DF20: =Timing!DF36 -> 2043 | DG20: =Timing!DG36 -> 2043 | DH20: =Timing!DH36 -> 2044 | DI20: =Timing!DI36 -> 2044 | DJ20: =Timing!DJ36 -> 2044 | DK20: =Timing!DK36 -> 2044 | DL20: =Timing!DL36 -> 2045 | DM20: =Timing!DM36 -> 2045 | DN20: =Timing!DN36 -> 2045 | DO20: =Timing!DO36 -> 2045 | DP20: =Timing!DP36 -> 2046 | DQ20: =Timing!DQ36 -> 2046 | DR20: =Timing!DR36 -> 2046 | DS20: =Timing!DS36 -> 2046 | DT20: =Timing!DT36 -> 2047 | DU20: =Timing!DU36 -> 2047 | DV20: =Timing!DV36 -> 2047 | DW20: =Timing!DW36 -> 2047 | DX20: =Timing!DX36 -> 2048 | DY20: =Timing!DY36 -> 2048 | DZ20: =Timing!DZ36 -> 2048 | EA20: =Timing!EA36 -> 2048 | EB20: =Timing!EB36 -> 2049 | EC20: =Timing!EC36 -> 2049 | ED20: =Timing!ED36 -> 2049 | EE20: =Timing!EE36 -> 2049 | EF20: =Timing!EF36 -> 2050 | EG20: =Timing!EG36 -> 2050 | EH20: =Timing!EH36 -> 2050 | EI20: =Timing!EI36 -> 2050 | EJ20: =Timing!EJ36 -> 2051 | EK20: =Timing!EK36 -> 2051
